Workbook

Sheet 国語表紙
A2: 国語の結果の分析
B4: 最初にデータコピーをクリックして、国語のデータを入力したファイルを選択してください。
B6: 選択ボタン一覧（色で囲んであるところをクリックしてください。）

Sheet ①国語の平均正答数②国語の平均正答率
A1: ①国語の平均正答数②国語の平均正答率
A4: 集計対象
A5: 児童数
A6: =国語!AB1 -> 45 | B6: 人
A8: 観点別集計結果
O9: 1900-01-01
A10: 国語 | O10: 1900-01-01
A11: 観点 | D11: 対象設問数 （問） | E11: 富山県 平均正答率 （％） | F11: 自校 平均正答率 （％） | G11: 自校 平均正答数 （問） | J11: 自校 平均正答率 （％） | M11: 自校 平均正答数 （問）
A12: =国語!BG35 -> 知識・技能 | D12: =国語得点!BA64 -> 12 | E12: =IF(ISERR(国語!F76)*100,0,(国語!F76)*100) -> 77.15 | F12: =IF(ISERR(国語!F71)*100,0,(国語!F71)*100) -> 21.48148148 | G12: =IF(ISERR(D12*F12)/100,"",(D12*F12)/100) -> 2.577777778 | I12: 60 | J12: 50 | M12: =IF(J12="","",D12*J12/100) -> 6
A13: =国語!BG36 -> 思考・判断・表現 | D13: =国語得点!BA65 -> 13 | E13: =IF(ISERR(国語!K76)*100,0,(国語!K76)*100) -> 64.46923077 | F13: =IF(ISERR(国語!K71)*100,0,(国語!K71)*100) -> 73.16239316 | G13: =IF(ISERR(D13*F13)/100,"",(D13*F13)/100) -> 9.511111111 | I13: 60 | J13: 50 | M13: =IF(J13="","",D13*J13/100) -> 6.5
A14: =国語!BG37 -> - | D14: =国語得点!BA66 -> 0 | E14: =IF(ISERR(国語!P76)*100,0,(国語!P76)*100) -> 0 | F14: =IF(ISERR(国語!P71)*100,0,(国語!P71)*100) -> 0 | G14: =IF(ISERR(D14*F14)/100,"",(D14*F14)/100) -> 0 | I14: 60 | J14: 50 | M14: =IF(J14="","",D14*J14/100) -> 0
A15: =国語!BG38 -> - | D15: =国語得点!BA67 -> 0 | E15: =IF(ISERR(国語!U76)*100,0,(国語!U76)*100) -> 0 | F15: =IF(ISERR(国語!U71)*100,0,(国語!U71)*100) -> 0 | G15: =IF(ISERR(D15*F15)/100,"",(D15*F15)/100) -> 0
A16: =国語!BG39 -> - | D16: =国語得点!BA68 -> 0 | E16: =IF(ISERR(国語!Z76)*100,0,(国語!Z76)*100) -> 0 | F16: =IF(ISERR(国語!Z71)*100,0,(国語!Z71)*100) -> 0 | G16: =IF(ISERR(D16*F16)/100,"",(D16*F16)/100) -> 0
A17: 設問数・平均正答率・平均正答数 | D17: =SUM(D12:D16) -> 25 | E17: =SUM(E12:E16)/国語!BG41 -> 70.80961538 | F17: =SUM(F12:F16)/国語!BG41 -> 47.32193732 | G17: =D17*F17/100 -> 11.83048433 | I17: 0 | J17: 0 | K17: 観点数 | M17: =IF(J17="","",#REF!*J17/100) ->  | N17: =国語!BG41 -> 2
A19: ◆国語
B20: 平均正答数
B21: 富山県（ア） | C21: 自校(イ) | D21: 県との差（イーア）
A22: ="国語 "&国語!AX1&"問" -> 国語 25問 | B22: =D17*E17/100 -> 17.70240385 | C22: =G17 -> 11.83048433 | D22: =C22-B22 -> -5.871919516
B25: 平均正答率
B26: 富山県(ア) | C26: 自校（イ） | D26: 県との差(イーア)
A27: ="国語 "&国語!AX1&"問" -> 国語 25問 | B27: =E17 -> 70.80961538 | C27: =F17 -> 47.32193732 | D27: =C27-B27 -> -23.48767806

Sheet ③国語の正答数別分布
A1: ③国語の正答数別分布
A3: 問題数 | B3: =国語!AX1 -> 25
A6: ◆国語 | D6: ◆国語
A7: 正答数別の児童数(人) | D7: 正答数 | E7: 富山県％（ア） | F7: 自校％(イ) | G7: 県との差(イーア)
A8: 0問 | B8: =国語得点!BD3 -> 0 | D8: 0問 | E8: =国語得点!BG3 -> 0 | F8: =IF(B8="","",B8/B$59*100) -> 0 | G8: =IF($F8="","",$F8-$E8) -> 0
A9: 1問 | B9: =国語得点!BD4 -> 2 | D9: 1問 | E9: =国語得点!BG4 -> 95.5 | F9: =IF(B9="","",B9/B$59*100) -> 4.444444444 | G9: -91.05555556
A10: 2問 | B10: =国語得点!BD5 -> 3 | D10: 2問 | E10: =国語得点!BG5 -> 96.2 | F10: 6.666666667 | G10: -89.53333333
A11: 3問 | B11: =国語得点!BD6 -> 4 | D11: 3問 | E11: =国語得点!BG6 -> 52.6 | F11: 8.888888889 | G11: -43.71111111
A12: 4問 | B12: =国語得点!BD7 -> 5 | D12: 4問 | E12: =国語得点!BG7 -> 96.4 | F12: 11.11111111 | G12: -85.28888889
A13: 5問 | B13: =国語得点!BD8 -> 7 | D13: 5問 | E13: =国語得点!BG8 -> 81.3 | F13: 15.55555556 | G13: -65.74444444
A14: 6問 | B14: =国語得点!BD9 -> 9 | D14: 6問 | E14: =国語得点!BG9 -> 56.7 | F14: 20 | G14: -36.7
A15: 7問 | B15: =国語得点!BD10 -> 11 | D15: 7問 | E15: =国語得点!BG10 -> 81.6 | F15: 24.44444444 | G15: -57.15555556
A16: 8問 | B16: =国語得点!BD11 -> 11 | D16: 8問 | E16: =国語得点!BG11 -> 53.8 | F16: 24.44444444 | G16: -29.35555556
A17: 9問 | B17: =国語得点!BD12 -> 13 | D17: 9問 | E17: =国語得点!BG12 -> 56 | F17: 28.88888889 | G17: -27.11111111
A18: 10問 | B18: =国語得点!BD13 -> 15 | D18: 10問 | E18: =国語得点!BG13 -> 62.1 | F18: 33.33333333 | G18: -28.76666667
A19: 11問 | B19: =国語得点!BD14 -> 17 | D19: 11問 | E19: =国語得点!BG14 -> 96.1 | F19: 37.77777778 | G19: -58.32222222
A20: 12問 | B20: =国語得点!BD15 -> 19 | D20: 12問 | E20: =国語得点!BG15 -> 97.5 | F20: 42.22222222 | G20: -55.27777778
A21: 13問 | B21: =国語得点!BD16 -> 21 | D21: 13問 | E21: =国語得点!BG16 -> 83.8 | F21: 46.66666667 | G21: -37.13333333
A22: 14問 | B22: =国語得点!BD17 -> 23 | D22: 14問 | E22: =国語得点!BG17 -> 84.1 | F22: 51.11111111 | G22: -32.98888889
A23: 15問 | B23: =国語得点!BD18 -> 25 | D23: 15問 | E23: =国語得点!BG18 -> 88.8 | F23: 55.55555556 | G23: -33.24444444
A24: 16問 | B24: =国語得点!BD19 -> 27 | D24: 16問 | E24: =国語得点!BG19 -> 82.8 | F24: 60 | G24: -22.8
A25: 17問 | B25: =国語得点!BD20 -> 29 | D25: 17問 | E25: =国語得点!BG20 -> 46.7 | F25: 64.44444444 | G25: 17.74444444
A26: 18問 | B26: =国語得点!BD21 -> 31 | D26: 18問 | E26: =国語得点!BG21 -> 58.3 | F26: 68.88888889 | G26: 10.58888889
A27: 19問 | B27: =国語得点!BD22 -> 33 | D27: 19問 | E27: =国語得点!BG22 -> 69.8 | F27: 73.33333333 | G27: 3.533333333
A28: 20問 | B28: =国語得点!BD23 -> 35 | D28: 20問 | E28: =国語得点!BG23 -> 83.1 | F28: 77.77777778 | G28: -5.322222222
A29: 21問 | B29: =国語得点!BD24 -> 37 | D29: 21問 | E29: =国語得点!BG24 -> 74 | F29: 82.22222222 | G29: 8.222222222
A30: 22問 | B30: =国語得点!BD25 -> 39 | D30: 22問 | E30: =国語得点!BG25 -> 42 | F30: 86.66666667 | G30: 44.66666667
A31: 23問 | B31: =国語得点!BD26 -> 41 | D31: 23問 | E31: =国語得点!BG26 -> 28.4 | F31: 91.11111111 | G31: 62.71111111
A32: 24問 | B32: =国語得点!BD27 -> 43 | D32: 24問 | E32: =国語得点!BG27 -> 39.6 | F32: 95.55555556 | G32: 55.95555556
A33: 25問 | B33: =国語得点!BD28 -> 44 | D33: 25問 | E33: =国語得点!BG28 -> 56.7 | F33: 97.77777778 | G33: 41.07777778
A34: 26問 | B34: =国語得点!BD29 -> 0 | D34: 26問 | E34: =国語得点!BG29 -> 0 | F34: 0 | G34: 0
A35: 27問 | B35: =国語得点!BD30 -> 0 | D35: 27問 | E35: =国語得点!BG30 -> 0 | F35: 0 | G35: 0
A36: 28問 | B36: =国語得点!BD31 -> 0 | D36: 28問 | E36: =国語得点!BG31 -> 0 | F36: 0 | G36: 0
A37: 29問 | B37: =国語得点!BD32 -> 0 | D37: 29問 | E37: =国語得点!BG32 -> 0 | F37: 0 | G37: 0
A38: 30問 | B38: =国語得点!BD33 -> 0 | D38: 30問 | E38: =国語得点!BG33 -> 0 | F38: 0 | G38: 0
A39: 31問 | B39: =国語得点!BD34 -> 0 | D39: 31問 | E39: =国語得点!BG34 -> 0 | F39: 0 | G39: 0
A40: 32問 | B40: =国語得点!BD35 -> 0 | D40: 32問 | E40: =国語得点!BG35 -> 0 | F40: 0 | G40: 0
A41: 33問 | B41: =国語得点!BD36 -> 0 | D41: 33問 | E41: =国語得点!BG36 -> 0 | F41: 0 | G41: 0
A42: 34問 | B42: =国語得点!BD37 -> 0 | D42: 34問 | E42: =国語得点!BG37 -> 0 | F42: 0 | G42: 0
A43: 35問 | B43: =国語得点!BD38 -> 0 | D43: 35問 | E43: =国語得点!BG38 -> 0 | F43: 0 | G43: 0
A44: 36問 | B44: =国語得点!BD39 -> 0 | D44: 36問 | E44: =国語得点!BG39 -> 0 | F44: 0 | G44: 0
A45: 37問 | B45: =国語得点!BD40 -> 0 | D45: 37問 | E45: =国語得点!BG40 -> 0 | F45: =IF(B45="","",B45/B$59*100) -> 0 | G45: 0
A46: 38問 | B46: =国語得点!BD41 -> 0 | D46: 38問 | E46: =国語得点!BG41 -> 0 | F46: 0 | G46: 0
A47: 39問 | B47: =国語得点!BD42 -> 0 | D47: 39問 | E47: =国語得点!BG42 -> 0 | F47: 0 | G47: 0
A48: 40問 | B48: =国語得点!BD43 -> 0 | D48: 40問 | E48: =国語得点!BG43 -> 0 | F48: 0 | G48: 0
A49: 41問 | B49: =国語得点!BD44 -> 0 | D49: 41問 | E49: =国語得点!BG44 -> 0 | F49: 0 | G49: 0
A50: 42問 | B50: =国語得点!BD45 -> 0 | D50: 42問 | E50: =国語得点!BG45 -> 0 | F50: 0 | G50: 0
A51: 43問 | B51: =国語得点!BD46 -> 0 | D51: 43問 | E51: =国語得点!BG46 -> 0 | F51: 0 | G51: 0
A52: 44問 | B52: =国語得点!BD47 -> 0 | D52: 44問 | E52: =国語得点!BG47 -> 0 | F52: 0 | G52: 0
A53: 45問 | B53: =国語得点!BD48 -> 0 | D53: 45問 | E53: =国語得点!BG48 -> 0 | F53: 0 | G53: 0
A54: 46問 | B54: =国語得点!BD49 -> 0 | D54: 46問 | E54: =国語得点!BG49 -> 0 | F54: 0 | G54: 0
A55: 47問 | B55: =国語得点!BD50 -> 0 | D55: 47問 | E55: =国語得点!BG50 -> 0 | F55: 0 | G55: 0
A56: 48問 | B56: =国語得点!BD51 -> 0 | D56: 48問 | E56: =国語得点!BG51 -> 0 | F56: 0 | G56: 0
A57: 49問 | B57: =国語得点!BD52 -> 0 | D57: 49問 | E57: =国語得点!BG52 -> 0 | F57: 0 | G57: 0
A58: 50問 | B58: =国語得点!BD53 -> 0 | D58: 50問 | E58: =国語得点!BG53 -> 0 | F58: 0 | G58: 0
A59: 児童数合計 | B59: =国語得点!BD54 -> 45 | D59: 合計 | E59: =国語得点!BG54 -> 1763.9 | F59: =SUM(F8:F58) -> 1208.888889

Sheet ④国語の問題別正答率
A1: ④国語の問題別正答率
C3: 問題数 | D3: =国語!AX1 -> 25
A4: ◆国語
A5: 問題通し番号 | B5: 問題 番号 | C5: 小問題 | D5: 問題の領域 | E5: 学習指導要領の領域等 | I5: 観点 | N5: 問題形式 | Q5: 正答率
I6: =国語!BG35 -> 知識・技能 | J6: =国語!BG36 -> 思考・判断・表現 | K6: =国語!BG37 -> - | L6: =国語!BG38 -> - | M6: =国語!BG39 -> - | N6: 選択式 | O6: 短答式 | P6: 記述式 | Q6: 富山県（ア） | R6: 自校（イ） | S6: 富山県との差（イ-ア)
A7: 1 | B7: =国語得点!BJ4 -> 1 | C7: =国語得点!BK4 -> 一（1） | D7: =国語得点!BL4 -> 知識及び技能 | I7: =IF(国語!$E$9=国語!$BF$35,"○","") -> ○ | J7: =IF(国語!$E$9=国語!$BF$36,"○","") ->  | K7: =IF(国語!$E$9=国語!$BF$37,"○","") ->  | L7: =IF(国語!$E$9=国語!$BF$38,"○","") ->  | M7: =IF(国語!$E$9=国語!$BF$39,"○","") ->  | Q7: =国語得点!B$58*100 -> 95.5 | R7: =国語!E$64*100 -> 4.444444444 | S7: =IF($R7="","",$R7-$Q7) -> -91.05555556
A8: 2 | B8: =国語得点!BJ5 -> 1 | C8: =国語得点!BK5 -> 一（2） | D8: =国語得点!BL5 -> 知識及び技能 | I8: =IF(国語!$F$9=国語!$BF$35,"○","") -> ○ | J8: =IF(国語!$F$9=国語!$BF$36,"○","") ->  | K8: =IF(国語!$F$9=国語!$BF$37,"○","") ->  | L8: =IF(国語!$F$9=国語!$BF$38,"○","") ->  | M8: =IF(国語!$F$9=国語!$BF$39,"○","") ->  | Q8: =国語得点!C$58*100 -> 96.2 | R8: =国語!F$64*100 -> 6.666666667 | S8: =IF($R8="","",$R8-$Q8) -> -89.53333333
A9: 3 | B9: =国語得点!BJ6 -> 1 | C9: =国語得点!BK6 -> 一（3） | D9: =国語得点!BL6 -> 知識及び技能 | I9: =IF(国語!$G$9=国語!$BF$35,"○","") -> ○ | J9: =IF(国語!$G$9=国語!$BF$36,"○","") ->  | K9: =IF(国語!$G$9=国語!$BF$37,"○","") ->  | L9: =IF(国語!$G$9=国語!$BF$38,"○","") ->  | M9: =IF(国語!$G$9=国語!$BF$39,"○","") ->  | Q9: =国語得点!D$58*100 -> 52.6 | R9: =国語!G$64*100 -> 8.888888889 | S9: =IF($R9="","",$R9-$Q9) -> -43.71111111
A10: 4 | B10: =国語得点!BJ7 -> 1 | C10: =国語得点!BK7 -> 一（4） | D10: =国語得点!BL7 -> 知識及び技能 | I10: =IF(国語!$H$9=国語!$BF$35,"○","") -> ○ | J10: =IF(国語!$H$9=国語!$BF$36,"○","") ->  | K10: =IF(国語!$H$9=国語!$BF$37,"○","") ->  | L10: =IF(国語!$H$9=国語!$BF$38,"○","") ->  | M10: =IF(国語!$H$9=国語!$BF$39,"○","") ->  | Q10: =国語得点!E$58*100 -> 96.4 | R10: =国語!H$64*100 -> 11.11111111 | S10: =IF($R10="","",$R10-$Q10) -> -85.28888889
A11: 5 | B11: =国語得点!BJ8 -> 1 | C11: =国語得点!BK8 -> 二（1） | D11: =国語得点!BL8 -> 知識及び技能 | I11: =IF(国語!$I$9=国語!$BF$35,"○","") -> ○ | J11: =IF(国語!$I$9=国語!$BF$36,"○","") ->  | K11: =IF(国語!$I$9=国語!$BF$37,"○","") ->  | L11: =IF(国語!$I$9=国語!$BF$38,"○","") ->  | M11: =IF(国語!$I$9=国語!$BF$39,"○","") ->  | Q11: =国語得点!F$58*100 -> 81.3 | R11: =国語!I$64*100 -> 15.55555556 | S11: =IF($R11="","",$R11-$Q11) -> -65.74444444
A12: 6 | B12: =国語得点!BJ9 -> 1 | C12: =国語得点!BK9 -> 二（2） | D12: =国語得点!BL9 -> 知識及び技能 | I12: =IF(国語!$J$9=国語!$BF$35,"○","") -> ○ | J12: =IF(国語!$J$9=国語!$BF$36,"○","") ->  | K12: =IF(国語!$J$9=国語!$BF$37,"○","") ->  | L12: =IF(国語!$J$9=国語!$BF$38,"○","") ->  | M12: =IF(国語!$J$9=国語!$BF$39,"○","") ->  | Q12: =国語得点!G$58*100 -> 56.7 | R12: =国語!J$64*100 -> 20 | S12: =IF($R12="","",$R12-$Q12) -> -36.7
A13: 7 | B13: =国語得点!BJ10 -> 1 | C13: =国語得点!BK10 -> 二（3） | D13: =国語得点!BL10 -> 知識及び技能 | I13: =IF(国語!$K$9=国語!$BF$35,"○","") -> ○ | J13: =IF(国語!$K$9=国語!$BF$36,"○","") ->  | K13: =IF(国語!$K$9=国語!$BF$37,"○","") ->  | L13: =IF(国語!$K$9=国語!$BF$38,"○","") ->  | M13: =IF(国語!$K$9=国語!$BF$39,"○","") ->  | Q13: =国語得点!H$58*100 -> 81.6 | R13: =国語!K$64*100 -> 24.44444444 | S13: =IF($R13="","",$R13-$Q13) -> -57.15555556
A14: 8 | B14: =国語得点!BJ11 -> 1 | C14: =国語得点!BK11 -> 二（4） | D14: =国語得点!BL11 -> 知識及び技能 | I14: =IF(国語!$L$9=国語!$BF$35,"○","") -> ○ | J14: =IF(国語!$L$9=国語!$BF$36,"○","") ->  | K14: =IF(国語!$L$9=国語!$BF$37,"○","") ->  | L14: =IF(国語!$L$9=国語!$BF$38,"○","") ->  | M14: =IF(国語!$L$9=国語!$BF$39,"○","") ->  | Q14: =国語得点!I$58*100 -> 53.8 | R14: =国語!L$64*100 -> 24.44444444 | S14: =IF($R14="","",$R14-$Q14) -> -29.35555556
A15: 9 | B15: =国語得点!BJ12 -> 2 | C15: =国語得点!BK12 -> 一 | D15: =国語得点!BL12 -> 知識及び技能 | I15: =IF(国語!$M$9=国語!$BF$35,"○","") -> ○ | J15: =IF(国語!$M$9=国語!$BF$36,"○","") ->  | K15: =IF(国語!$M$9=国語!$BF$37,"○","") ->  | L15: =IF(国語!$M$9=国語!$BF$38,"○","") ->  | M15: =IF(国語!$M$9=国語!$BF$39,"○","") ->  | Q15: =国語得点!J$58*100 -> 56 | R15: =国語!M$64*100 -> 28.88888889 | S15: =IF($R15="","",$R15-$Q15) -> -27.11111111
A16: 10 | B16: =国語得点!BJ13 -> 2 | C16: =国語得点!BK13 -> 二 | D16: =国語得点!BL13 -> 知識及び技能 | I16: =IF(国語!$N$9=国語!$BF$35,"○","") -> ○ | J16: =IF(国語!$N$9=国語!$BF$36,"○","") ->  | K16: =IF(国語!$N$9=国語!$BF$37,"○","") ->  | L16: =IF(国語!$N$9=国語!$BF$38,"○","") ->  | M16: =IF(国語!$N$9=国語!$BF$39,"○","") ->  | Q16: =国語得点!K$58*100 -> 62.1 | R16: =国語!N$64*100 -> 33.33333333 | S16: =IF($R16="","",$R16-$Q16) -> -28.76666667
A17: 11 | B17: =国語得点!BJ14 -> 3 | C17: =国語得点!BK14 -> 一 | D17: =国語得点!BL14 -> 知識及び技能 | I17: =IF(国語!$O$9=国語!$BF$35,"○","") -> ○ | J17: =IF(国語!$O$9=国語!$BF$36,"○","") ->  | K17: =IF(国語!$O$9=国語!$BF$37,"○","") ->  | L17: =IF(国語!$O$9=国語!$BF$38,"○","") ->  | M17: =IF(国語!$O$9=国語!$BF$39,"○","") ->  | Q17: =国語得点!L$58*100 -> 96.1 | R17: =国語!O$64*100 -> 37.77777778 | S17: =IF($R17="","",$R17-$Q17) -> -58.32222222
A18: 12 | B18: =国語得点!BJ15 -> 3 | C18: =国語得点!BK15 -> 二 | D18: =国語得点!BL15 -> 知識及び技能 | I18: =IF(国語!$P$9=国語!$BF$35,"○","") -> ○ | J18: =IF(国語!$P$9=国語!$BF$36,"○","") ->  | K18: =IF(国語!$P$9=国語!$BF$37,"○","") ->  | L18: =IF(国語!$P$9=国語!$BF$38,"○","") ->  | M18: =IF(国語!$P$9=国語!$BF$39,"○","") ->  | Q18: =国語得点!M$58*100 -> 97.5 | R18: =国語!P$64*100 -> 42.22222222 | S18: =IF($R18="","",$R18-$Q18) -> -55.27777778
A19: 13 | B19: =国語得点!BJ16 -> 4 | C19: =国語得点!BK16 -> 一 | D19: =国語得点!BL16 -> 読むこと | I19: =IF(国語!$Q$9=国語!$BF$35,"○","") ->  | J19: =IF(国語!$Q$9=国語!$BF$36,"○","") -> ○ | K19: =IF(国語!$Q$9=国語!$BF$37,"○","") ->  | L19: =IF(国語!$Q$9=国語!$BF$38,"○","") ->  | M19: =IF(国語!$Q$9=国語!$BF$39,"○","") ->  | Q19: =国語得点!N$58*100 -> 83.8 | R19: =国語!Q$64*100 -> 46.66666667 | S19: =IF($R19="","",$R19-$Q19) -> -37.13333333
A20: 14 | B20: =国語得点!BJ17 -> 4 | C20: =国語得点!BK17 -> 二Ａ | D20: =国語得点!BL17 -> 読むこと | I20: =IF(国語!$R$9=国語!$BF$35,"○","") ->  | J20: =IF(国語!$R$9=国語!$BF$36,"○","") -> ○ | K20: =IF(国語!$R$9=国語!$BF$37,"○","") ->  | L20: =IF(国語!$R$9=国語!$BF$38,"○","") ->  | M20: =IF(国語!$R$9=国語!$BF$39,"○","") ->  | Q20: =国語得点!O$58*100 -> 84.1 | R20: =国語!R$64*100 -> 51.11111111 | S20: =IF($R20="","",$R20-$Q20) -> -32.98888889
A21: 15 | B21: =国語得点!BJ18 -> 4 | C21: =国語得点!BK18 -> 二B | D21: =国語得点!BL18 -> 読むこと | I21: =IF(国語!$S$9=国語!$BF$35,"○","") ->  | J21: =IF(国語!$S$9=国語!$BF$36,"○","") -> ○ | K21: =IF(国語!$S$9=国語!$BF$37,"○","") ->  | L21: =IF(国語!$S$9=国語!$BF$38,"○","") ->  | M21: =IF(国語!$S$9=国語!$BF$39,"○","") ->  | Q21: =国語得点!P$58*100 -> 88.8 | R21: =国語!S$64*100 -> 55.55555556 | S21: =IF($R21="","",$R21-$Q21) -> -33.24444444
A22: 16 | B22: =国語得点!BJ19 -> 4 | C22: =国語得点!BK19 -> 三① | D22: =国語得点!BL19 -> 読むこと | I22: =IF(国語!$T$9=国語!$BF$35,"○","") ->  | J22: =IF(国語!$T$9=国語!$BF$36,"○","") -> ○ | K22: =IF(国語!$T$9=国語!$BF$37,"○","") ->  | L22: =IF(国語!$T$9=国語!$BF$38,"○","") ->  | M22: =IF(国語!$T$9=国語!$BF$39,"○","") ->  | Q22: =国語得点!Q$58*100 -> 82.8 | R22: =国語!T$64*100 -> 60 | S22: =IF($R22="","",$R22-$Q22) -> -22.8
A23: 17 | B23: =国語得点!BJ20 -> 4 | C23: =国語得点!BK20 -> 三② | D23: =国語得点!BL20 -> 読むこと | I23: =IF(国語!$U$9=国語!$BF$35,"○","") ->  | J23: =IF(国語!$U$9=国語!$BF$36,"○","") -> ○ | K23: =IF(国語!$U$9=国語!$BF$37,"○","") ->  | L23: =IF(国語!$U$9=国語!$BF$38,"○","") ->  | M23: =IF(国語!$U$9=国語!$BF$39,"○","") ->  | Q23: =国語得点!R$58*100 -> 46.7 | R23: =国語!U$64*100 -> 64.44444444 | S23: =IF($R23="","",$R23-$Q23) -> 17.74444444
A24: 18 | B24: =国語得点!BJ21 -> 4 | C24: =国語得点!BK21 -> 四 | D24: =国語得点!BL21 -> 読むこと | I24: =IF(国語!$V$9=国語!$BF$35,"○","") ->  | J24: =IF(国語!$V$9=国語!$BF$36,"○","") -> ○ | K24: =IF(国語!$V$9=国語!$BF$37,"○","") ->  | L24: =IF(国語!$V$9=国語!$BF$38,"○","") ->  | M24: =IF(国語!$V$9=国語!$BF$39,"○","") ->  | Q24: =国語得点!S$58*100 -> 58.3 | R24: =国語!V$64*100 -> 68.88888889 | S24: =IF($R24="","",$R24-$Q24) -> 10.58888889
A25: 19 | B25: =国語得点!BJ22 -> 4 | C25: =国語得点!BK22 -> 五① | D25: =国語得点!BL22 -> 読むこと | I25: =IF(国語!$W$9=国語!$BF$35,"○","") ->  | J25: =IF(国語!$W$9=国語!$BF$36,"○","") -> ○ | K25: =IF(国語!$W$9=国語!$BF$37,"○","") ->  | L25: =IF(国語!$W$9=国語!$BF$38,"○","") ->  | M25: =IF(国語!$W$9=国語!$BF$39,"○","") ->  | Q25: =国語得点!T$58*100 -> 69.8 | R25: =国語!W$64*100 -> 73.33333333 | S25: =IF($R25="","",$R25-$Q25) -> 3.533333333
A26: 20 | B26: =国語得点!BJ23 -> 4 | C26: =国語得点!BK23 -> 五② | D26: =国語得点!BL23 -> 読むこと | I26: =IF(国語!$X$9=国語!$BF$35,"○","") ->  | J26: =IF(国語!$X$9=国語!$BF$36,"○","") -> ○ | K26: =IF(国語!$X$9=国語!$BF$37,"○","") ->  | L26: =IF(国語!$X$9=国語!$BF$38,"○","") ->  | M26: =IF(国語!$X$9=国語!$BF$39,"○","") ->  | Q26: =国語得点!U$58*100 -> 83.1 | R26: =国語!X$64*100 -> 77.77777778 | S26: =IF($R26="","",$R26-$Q26) -> -5.322222222
A27: 21 | B27: =国語得点!BJ24 -> 5 | C27: =国語得点!BK24 -> 一 | D27: =国語得点!BL24 -> 書くこと | I27: =IF(国語!$Y$9=国語!$BF$35,"○","") ->  | J27: =IF(国語!$Y$9=国語!$BF$36,"○","") -> ○ | K27: =IF(国語!$Y$9=国語!$BF$37,"○","") ->  | L27: =IF(国語!$Y$9=国語!$BF$38,"○","") ->  | M27: =IF(国語!$Y$9=国語!$BF$39,"○","") ->  | Q27: =国語得点!V$58*100 -> 74 | R27: =国語!Y$64*100 -> 82.22222222 | S27: =IF($R27="","",$R27-$Q27) -> 8.222222222
A28: 22 | B28: =国語得点!BJ25 -> 5 | C28: =国語得点!BK25 -> 二 | D28: =国語得点!BL25 -> 書くこと | I28: =IF(国語!$Z$9=国語!$BF$35,"○","") ->  | J28: =IF(国語!$Z$9=国語!$BF$36,"○","") -> ○ | K28: =IF(国語!$Z$9=国語!$BF$37,"○","") ->  | L28: =IF(国語!$Z$9=国語!$BF38,"○","") ->  | M28: =IF(国語!$Z$9=国語!$BF$39,"○","") ->  | Q28: =国語得点!W$58*100 -> 42 | R28: =国語!Z$64*100 -> 86.66666667 | S28: =IF($R28="","",$R28-$Q28) -> 44.66666667
A29: 23 | B29: =国語得点!BJ26 -> 5 | C29: =国語得点!BK26 -> 三 一文目 | D29: =国語得点!BL26 -> 書くこと | I29: =IF(国語!$AA$9=国語!$BF$35,"○","") ->  | J29: =IF(国語!$AA$9=国語!$BF$36,"○","") -> ○ | K29: =IF(国語!$AA$9=国語!$BF$37,"○","") ->  | L29: =IF(国語!$AA$9=国語!$BF$38,"○","") ->  | M29: =IF(国語!$AA$9=国語!$BF$39,"○","") ->  | Q29: =国語得点!X$58*100 -> 28.4 | R29: =国語!AA$64*100 -> 91.11111111 | S29: =IF($R29="","",$R29-$Q29) -> 62.71111111
A30: 24 | B30: =国語得点!BJ27 -> 5 | C30: =国語得点!BK27 -> 三 二文目 | D30: =国語得点!BL27 -> 書くこと | I30: =IF(国語!$AB$9=国語!$BF$35,"○","") ->  | J30: =IF(国語!$AB$9=国語!$BF$36,"○","") -> ○ | K30: =IF(国語!$AB$9=国語!$BF$37,"○","") ->  | L30: =IF(国語!$AB$9=国語!$BF$38,"○","") ->  | M30: =IF(国語!$AB$9=国語!$BF$39,"○","") ->  | Q30: =国語得点!Y$58*100 -> 39.6 | R30: =国語!AB$64*100 -> 95.55555556 | S30: =IF($R30="","",$R30-$Q30) -> 55.95555556
A31: 25 | B31: =国語得点!BJ28 -> 5 | C31: =国語得点!BK28 -> 四 | D31: =国語得点!BL28 -> 書くこと | I31: =IF(国語!$AC$9=国語!$BF$35,"○","") ->  | J31: =IF(国語!$AC$9=国語!$BF$36,"○","") -> ○ | K31: =IF(国語!$AC$9=国語!$BF$37,"○","") ->  | L31: =IF(国語!$AC$9=国語!$BF$38,"○","") ->  | M31: =IF(国語!$AC$9=国語!$BF$39,"○","") ->  | Q31: =国語得点!Z$58*100 -> 56.7 | R31: =国語!AC$64*100 -> 97.77777778 | S31: =IF($R31="","",$R31-$Q31) -> 41.07777778
A32: 26 | B32: =国語得点!BJ29 -> 0 | C32: =国語得点!BK29 -> 0 | D32: =国語得点!BL29 -> 0 | I32: =IF(国語!$AD$9=国語!$BF$35,"○","") ->  | J32: =IF(国語!$AD$9=国語!$BF$36,"○","") ->  | K32: =IF(国語!$AD$9=国語!$BF$37,"○","") ->  | L32: =IF(国語!$AD$9=国語!$BF$38,"○","") ->  | M32: =IF(国語!$AD$9=国語!$BF$39,"○","") ->  | Q32: =国語得点!AA$58*100 -> 0 | R32: =国語!AD$64*100 ->  | S32: =IF($R32="","",$R32-$Q32) -> 
A33: 27 | B33: =国語得点!BJ30 -> 0 | C33: =国語得点!BK30 -> 0 | D33: =国語得点!BL30 -> 0 | I33: =IF(国語!$AE$9=国語!$BF$35,"○","") ->  | J33: =IF(国語!$AE$9=国語!$BF$36,"○","") ->  | K33: =IF(国語!$AE$9=国語!$BF$37,"○","") ->  | L33: =IF(国語!$AE$9=国語!$BF$38,"○","") ->  | M33: =IF(国語!$AE$9=国語!$BF$39,"○","") ->  | Q33: =国語得点!AB$58*100 -> 0 | R33: =国語!AE$64*100 ->  | S33: =IF($R33="","",$R33-$Q33) -> 
A34: 28 | B34: =国語得点!BJ31 -> 0 | C34: =国語得点!BK31 -> 0 | D34: =国語得点!BL31 -> 0 | I34: =IF(国語!$AF$9=国語!$BF$35,"○","") ->  | J34: =IF(国語!$AF$9=国語!$BF$36,"○","") ->  | K34: =IF(国語!$AF$9=国語!$BF$37,"○","") ->  | L34: =IF(国語!$AF$9=国語!$BF$38,"○","") ->  | M34: =IF(国語!$AF$9=国語!$BF$39,"○","") ->  | Q34: =国語得点!AC$58*100 -> 0 | R34: =国語!AF$64*100 -> 
A35: 29 | B35: =国語得点!BJ32 -> 0 | C35: =国語得点!BK32 -> 0 | D35: =国語得点!BL32 -> 0 | I35: =IF(国語!$AG$9=国語!$BF$35,"○","") ->  | J35: =IF(国語!$AG$9=国語!$BF$36,"○","") ->  | K35: =IF(国語!$AG$9=国語!$BF$37,"○","") ->  | L35: =IF(国語!$AG$9=国語!$BF$38,"○","") ->  | M35: =IF(国語!$AG$9=国語!$BF$39,"○","") ->  | Q35: =国語得点!AD$58*100 -> 0 | R35: =国語!AG$64*100 -> 
A36: 30 | B36: =国語得点!BJ33 -> 0 | C36: =国語得点!BK33 -> 0 | D36: =国語得点!BL33 -> 0 | I36: =IF(国語!$AH$9=国語!$BF$35,"○","") ->  | J36: =IF(国語!$AH$9=国語!$BF$36,"○","") ->  | K36: =IF(国語!$AH$9=国語!$BF$37,"○","") ->  | L36: =IF(国語!$AH$9=国語!$BF$38,"○","") ->  | M36: =IF(国語!$AH$9=国語!$BF$39,"○","") ->  | Q36: =国語得点!AE$58*100 -> 0 | R36: =国語!AH$64*100 -> 
A37: 31 | B37: =国語得点!BJ34 -> 0 | C37: =国語得点!BK34 -> 0 | D37: =国語得点!BL34 -> 0 | I37: =IF(国語!$AI$9=国語!$BF$35,"○","") ->  | J37: =IF(国語!$AI$9=国語!$BF$36,"○","") ->  | K37: =IF(国語!$AI$9=国語!$BF$37,"○","") ->  | L37: =IF(国語!$AI$9=国語!$BF$38,"○","") ->  | M37: =IF(国語!$AI$9=国語!$BF$39,"○","") ->  | Q37: =国語得点!AF$58*100 -> 0 | R37: =国語!AI$64*100 -> 
A38: 32 | B38: =国語得点!BJ35 -> 0 | C38: =国語得点!BK35 -> 0 | D38: =国語得点!BL35 -> 0 | I38: =IF(国語!$AJ$9=国語!$BF$35,"○","") ->  | J38: =IF(国語!$AJ$9=国語!$BF$36,"○","") ->  | K38: =IF(国語!$AJ$9=国語!$BF$37,"○","") ->  | L38: =IF(国語!$AJ$9=国語!$BF$38,"○","") ->  | M38: =IF(国語!$AJ$9=国語!$BF$39,"○","") ->  | Q38: =国語得点!AG$58*100 -> 0 | R38: =国語!AJ$64*100 -> 
A39: 33 | B39: =国語得点!BJ36 -> 0 | C39: =国語得点!BK36 -> 0 | D39: =国語得点!BL36 -> 0 | I39: =IF(国語!$AK$9=国語!$BF$35,"○","") ->  | J39: =IF(国語!$AK$9=国語!$BF$36,"○","") ->  | K39: =IF(国語!$AK$9=国語!$BF$37,"○","") ->  | L39: =IF(国語!$AK$9=国語!$BF$38,"○","") ->  | M39: =IF(国語!$AK$9=国語!$BF$39,"○","") ->  | Q39: =国語得点!AH$58*100 -> 0 | R39: =国語!AK$64*100 -> 
A40: 34 | B40: =国語得点!BJ37 -> 0 | C40: =国語得点!BK37 -> 0 | D40: =国語得点!BL37 -> 0 | I40: =IF(国語!$AL$9=国語!$BF$35,"○","") ->  | J40: =IF(国語!$AL$9=国語!$BF$36,"○","") ->  | K40: =IF(国語!$AL$9=国語!$BF$37,"○","") ->  | L40: =IF(国語!$AL$9=国語!$BF$38,"○","") ->  | M40: =IF(国語!$AL$9=国語!$BF$39,"○","") ->  | Q40: =国語得点!AI$58*100 -> 0 | R40: =国語!AL$64*100 -> 
A41: 35 | B41: =国語得点!BJ38 -> 0 | C41: =国語得点!BK38 -> 0 | D41: =国語得点!BL38 -> 0 | I41: =IF(国語!$AM$9=国語!$BF$35,"○","") ->  | J41: =IF(国語!$AM$9=国語!$BF$36,"○","") ->  | K41: =IF(国語!$AM$9=国語!$BF$37,"○","") ->  | L41: =IF(国語!$AM$9=国語!$BF$38,"○","") ->  | M41: =IF(国語!$AM$9=国語!$BF$39,"○","") ->  | Q41: =国語得点!AJ$58*100 -> 0 | R41: =国語!AM$64*100 -> 
A42: 36 | B42: =国語得点!BJ39 -> 0 | C42: =国語得点!BK39 -> 0 | D42: =国語得点!BL39 -> 0 | I42: =IF(国語!$AN$9=国語!$BF$35,"○","") ->  | J42: =IF(国語!$AN$9=国語!$BF$36,"○","") ->  | K42: =IF(国語!$AN$9=国語!$BF$37,"○","") ->  | L42: =IF(国語!$AN$9=国語!$BF$38,"○","") ->  | M42: =IF(国語!$AN$9=国語!$BF$39,"○","") ->  | Q42: =国語得点!AK$58*100 -> 0 | R42: =国語!AN$64*100 ->  | S42: =IF($R42="","",$R42-$Q42) -> 
A43: 37 | B43: =国語得点!BJ40 -> 0 | C43: =国語得点!BK40 -> 0 | D43: =国語得点!BL40 -> 0 | I43: =IF(国語!$AO$9=国語!$BF$35,"○","") ->  | J43: =IF(国語!$AO$9=国語!$BF$36,"○","") ->  | K43: =IF(国語!$AO$9=国語!$BF$37,"○","") ->  | L43: =IF(国語!$AO$9=国語!$BF$38,"○","") ->  | M43: =IF(国語!$AO$9=国語!$BF$39,"○","") ->  | Q43: =国語得点!AL$58*100 -> 0 | R43: =国語!AO$64*100 -> 
A44: 38 | B44: =国語得点!BJ41 -> 0 | C44: =国語得点!BK41 -> 0 | D44: =国語得点!BL41 -> 0 | I44: =IF(国語!$AP$9=国語!$BF$35,"○","") ->  | J44: =IF(国語!$AP$9=国語!$BF$36,"○","") ->  | K44: =IF(国語!$AP$9=国語!$BF$37,"○","") ->  | L44: =IF(国語!$AP$9=国語!$BF$38,"○","") ->  | M44: =IF(国語!$AP$9=国語!$BF$39,"○","") ->  | Q44: =国語得点!AM$58*100 -> 0 | R44: =国語!AP$64*100 -> 
A45: 39 | B45: =国語得点!BJ42 -> 0 | C45: =国語得点!BK42 -> 0 | D45: =国語得点!BL42 -> 0 | I45: =IF(国語!$AQ$9=国語!$BF$35,"○","") ->  | J45: =IF(国語!$AQ$9=国語!$BF$36,"○","") ->  | K45: =IF(国語!$AQ$9=国語!$BF$37,"○","") ->  | L45: =IF(国語!$AQ$9=国語!$BF$38,"○","") ->  | M45: =IF(国語!$AQ$9=国語!$BF$39,"○","") ->  | Q45: =国語得点!AN$58*100 -> 0 | R45: =国語!AQ$64*100 -> 
A46: 40 | B46: =国語得点!BJ43 -> 0 | C46: =国語得点!BK43 -> 0 | D46: =国語得点!BL43 -> 0 | I46: =IF(国語!$AR$9=国語!$BF$35,"○","") ->  | J46: =IF(国語!$AR$9=国語!$BF$36,"○","") ->  | K46: =IF(国語!$AR$9=国語!$BF$37,"○","") ->  | L46: =IF(国語!$AR$9=国語!$BF$38,"○","") ->  | M46: =IF(国語!$AR$9=国語!$BF$39,"○","") ->  | Q46: =国語得点!AO$58*100 -> 0 | R46: =国語!AR$64*100 -> 
A47: 41 | B47: =国語得点!BJ44 -> 0 | C47: =国語得点!BK44 -> 0 | D47: =国語得点!BL44 -> 0 | I47: =IF(国語!$AS$9=国語!$BF$35,"○","") ->  | J47: =IF(国語!$AS$9=国語!$BF$36,"○","") ->  | K47: =IF(国語!$AS$9=国語!$BF$37,"○","") ->  | L47: =IF(国語!$AS$9=国語!$BF$38,"○","") ->  | M47: =IF(国語!$AS$9=国語!$BF$39,"○","") ->  | Q47: =国語得点!AP$58100 -> 0 | R47: =国語!AS$64*100 -> 
A48: 42 | B48: =国語得点!BJ45 -> 0 | C48: =国語得点!BK45 -> 0 | D48: =国語得点!BL45 -> 0 | I48: =IF(国語!$AT$9=国語!$BF$35,"○","") ->  | J48: =IF(国語!$AT$9=国語!$BF$36,"○","") ->  | K48: =IF(国語!$AT$9=国語!$BF$37,"○","") ->  | L48: =IF(国語!$AT$9=国語!$BF$38,"○","") ->  | M48: =IF(国語!$AT$9=国語!$BF$39,"○","") ->  | Q48: =国語得点!AQ$58*100 -> 0 | R48: =国語!AT$64*100 -> 
A49: 43 | B49: =国語得点!BJ46 -> 0 | C49: =国語得点!BK46 -> 0 | D49: =国語得点!BL46 -> 0 | I49: =IF(国語!$AU$9=国語!$BF$35,"○","") ->  | J49: =IF(国語!$AU$9=国語!$BF$36,"○","") ->  | K49: =IF(国語!$AU$9=国語!$BF$37,"○","") ->  | L49: =IF(国語!$AU$9=国語!$BF$38,"○","") ->  | M49: =IF(国語!$AU$9=国語!$BF$39,"○","") ->  | Q49: =国語得点!AR$58*100 -> 0 | R49: =国語!AU$64*100 -> 
A50: 44 | B50: =国語得点!BJ47 -> 0 | C50: =国語得点!BK47 -> 0 | D50: =国語得点!BL47 -> 0 | I50: =IF(国語!$AV$9=国語!$BF$35,"○","") ->  | J50: =IF(国語!$AV$9=国語!$BF$36,"○","") ->  | K50: =IF(国語!$AV$9=国語!$BF$37,"○","") ->  | L50: =IF(国語!$AV$9=国語!$BF$38,"○","") ->  | M50: =IF(国語!$AV$9=国語!$BF$39,"○","") ->  | Q50: =国語得点!AS$58*100 -> 0 | R50: =国語!AV$64*100 -> 
A51: 45 | B51: =国語得点!BJ48 -> 0 | C51: =国語得点!BK48 -> 0 | D51: =国語得点!BL48 -> 0 | I51: =IF(国語!$AW$9=国語!$BF$35,"○","") ->  | J51: =IF(国語!$AW$9=国語!$BF$36,"○","") ->  | K51: =IF(国語!$AW$9=国語!$BF$37,"○","") ->  | L51: =IF(国語!$AW$9=国語!$BF$38,"○","") ->  | M51: =IF(国語!$AW$9=国語!$BF$39,"○","") ->  | Q51: =国語得点!AT$58*100 -> 0 | R51: =国語!AW$64*100 -> 
A52: 46 | B52: =国語得点!BJ49 -> 0 | C52: =国語得点!BK49 -> 0 | D52: =国語得点!BL49 -> 0 | I52: =IF(国語!$AX$9=国語!$BF$35,"○","") ->  | J52: =IF(国語!$AX$9=国語!$BF$36,"○","") ->  | K52: =IF(国語!$AX$9=国語!$BF$37,"○","") ->  | L52: =IF(国語!$AX$9=国語!$BF$38,"○","") ->  | M52: =IF(国語!$AX$9=国語!$BF$39,"○","") ->  | Q52: =国語得点!AU$58*100 -> 0 | R52: =国語!AX$64*100 -> 
A53: 47 | B53: =国語得点!BJ50 -> 0 | C53: =国語得点!BK50 -> 0 | D53: =国語得点!BL50 -> 0 | I53: =IF(国語!$AY$9=国語!$BF$35,"○","") ->  | J53: =IF(国語!$AY$9=国語!$BF$36,"○","") ->  | K53: =IF(国語!$AY$9=国語!$BF$37,"○","") ->  | L53: =IF(国語!$AY$9=国語!$BF$38,"○","") ->  | M53: =IF(国語!$AY$9=国語!$BF$39,"○","") ->  | Q53: =国語得点!AV$58*100 -> 0 | R53: =国語!AY$64*100 -> 
A54: 48 | B54: =国語得点!BJ51 -> 0 | C54: =国語得点!BK51 -> 0 | D54: =国語得点!BL51 -> 0 | I54: =IF(国語!$AZ$9=国語!$BF$35,"○","") ->  | J54: =IF(国語!$AZ$9=国語!$BF$36,"○","") ->  | K54: =IF(国語!$AZ$9=国語!$BF$37,"○","") ->  | L54: =IF(国語!$AZ$9=国語!$BF$38,"○","") ->  | M54: =IF(国語!$AZ$9=国語!$BF$39,"○","") ->  | Q54: =国語得点!AW$58*100 -> 0 | R54: =国語!AZ$64*100 -> 
A55: 49 | B55: =国語得点!BJ52 -> 0 | C55: =国語得点!BK52 -> 0 | D55: =国語得点!BL52 -> 0 | I55: =IF(国語!$BA$9=国語!$BF$35,"○","") ->  | J55: =IF(国語!$BA$9=国語!$BF$36,"○","") ->  | K55: =IF(国語!$BA$9=国語!$BF$37,"○","") ->  | L55: =IF(国語!$BA$9=国語!$BF$38,"○","") ->  | M55: =IF(国語!$BA$9=国語!$BF$39,"○","") ->  | Q55: =国語得点!AX$58*100 -> 0 | R55: =国語!BA$64*100 -> 
A56: 50 | B56: =国語得点!BJ53 -> 0 | C56: =国語得点!BK53 -> 0 | D56: =国語得点!BL53 -> 0 | I56: =IF(国語!$BB$9=国語!$BF$35,"○","") ->  | J56: =IF(国語!$BB$9=国語!$BF$36,"○","") ->  | K56: =IF(国語!$BB$9=国語!$BF$37,"○","") ->  | L56: =IF(国語!$BB$9=国語!$BF$38,"○","") ->  | M56: =IF(国語!$BB$9=国語!$BF$39,"○","") ->  | Q56: =国語得点!AY$58*100 -> 0 | R56: =国語!BB$64*100 -> 
A57: 平均 | Q57: =①国語の平均正答数②国語の平均正答率!B27 -> 70.80961538 | R57: =①国語の平均正答数②国語の平均正答率!C27 -> 47.32193732 | S57: =①国語の平均正答数②国語の平均正答率!D27 -> -23.48767806

Sheet ⑤国語の問題別誤答率
A1: ⑤国語の問題別誤答率
C3: 問題数 | D3: =国語!AX1 -> 25
A4: ◆国語
A5: 問題通し番号 | B5: 問題 番号 | C5: 小問題 | D5: 問題の領域 | E5: 学習指導要領の領域等 | I5: 観点 | N5: 問題形式 | Q5: 誤答率
I6: =国語!BG35 -> 知識・技能 | J6: =国語!BG36 -> 思考・判断・表現 | K6: =国語!BG37 -> - | L6: =国語!BG38 -> - | M6: =国語!BG39 -> - | N6: 選択式 | O6: 短答式 | P6: 記述式 | Q6: 富山県（ア） | R6: 自校（イ） | S6: 富山県との差（イ-ア)
A7: 1 | B7: =国語得点!BJ4 -> 1 | C7: =国語得点!BK4 -> 一（1） | D7: =国語得点!BL4 -> 知識及び技能 | I7: =IF(国語!$E$9=国語!$BF$35,"○","") -> ○ | J7: =IF(国語!$E$9=国語!$BF$36,"○","") ->  | K7: =IF(国語!$E$9=国語!$BF$37,"○","") ->  | L7: =IF(国語!$E$9=国語!$BF$38,"○","") ->  | M7: =IF(国語!$E$9=国語!$BF$39,"○","") ->  | Q7: =国語得点!B$59*100 -> 3.7 | R7: =国語!E$65*100 -> 46.66666667 | S7: =IF($R7="","",$R7-$Q7) -> 42.96666667
A8: 2 | B8: =国語得点!BJ5 -> 1 | C8: =国語得点!BK5 -> 一（2） | D8: =国語得点!BL5 -> 知識及び技能 | I8: =IF(国語!$F$9=国語!$BF$35,"○","") -> ○ | J8: =IF(国語!$F$9=国語!$BF$36,"○","") ->  | K8: =IF(国語!$F$9=国語!$BF$37,"○","") ->  | L8: =IF(国語!$F$9=国語!$BF$38,"○","") ->  | M8: =IF(国語!$F$9=国語!$BF$39,"○","") ->  | Q8: =国語得点!C$59*100 -> 3.7 | R8: =国語!F$65*100 -> 48.88888889 | S8: =IF($R8="","",$R8-$Q8) -> 45.18888889
A9: 3 | B9: =国語得点!BJ6 -> 1 | C9: =国語得点!BK6 -> 一（3） | D9: =国語得点!BL6 -> 知識及び技能 | I9: =IF(国語!$G$9=国語!$BF$35,"○","") -> ○ | J9: =IF(国語!$G$9=国語!$BF$36,"○","") ->  | K9: =IF(国語!$G$9=国語!$BF$37,"○","") ->  | L9: =IF(国語!$G$9=国語!$BF$38,"○","") ->  | M9: =IF(国語!$G$9=国語!$BF$39,"○","") ->  | Q9: =国語得点!D$59*100 -> 45.3 | R9: =国語!G$65*100 -> 44.44444444 | S9: =IF($R9="","",$R9-$Q9) -> -0.8555555556
A10: 4 | B10: =国語得点!BJ7 -> 1 | C10: =国語得点!BK7 -> 一（4） | D10: =国語得点!BL7 -> 知識及び技能 | I10: =IF(国語!$H$9=国語!$BF$35,"○","") -> ○ | J10: =IF(国語!$H$9=国語!$BF$36,"○","") ->  | K10: =IF(国語!$H$9=国語!$BF$37,"○","") ->  | L10: =IF(国語!$H$9=国語!$BF$38,"○","") ->  | M10: =IF(国語!$H$9=国語!$BF$39,"○","") ->  | Q10: =国語得点!E$59*100 -> 2.8 | R10: =国語!H$65*100 -> 44.44444444 | S10: =IF($R10="","",$R10-$Q10) -> 41.64444444
A11: 5 | B11: =国語得点!BJ8 -> 1 | C11: =国語得点!BK8 -> 二（1） | D11: =国語得点!BL8 -> 知識及び技能 | I11: =IF(国語!$I$9=国語!$BF$35,"○","") -> ○ | J11: =IF(国語!$I$9=国語!$BF$36,"○","") ->  | K11: =IF(国語!$I$9=国語!$BF$37,"○","") ->  | L11: =IF(国語!$I$9=国語!$BF$38,"○","") ->  | M11: =IF(国語!$I$9=国語!$BF$39,"○","") ->  | Q11: =国語得点!F$59*100 -> 12.2 | R11: =国語!I$65*100 -> 42.22222222 | S11: =IF($R11="","",$R11-$Q11) -> 30.02222222
A12: 6 | B12: =国語得点!BJ9 -> 1 | C12: =国語得点!BK9 -> 二（2） | D12: =国語得点!BL9 -> 知識及び技能 | I12: =IF(国語!$J$9=国語!$BF$35,"○","") -> ○ | J12: =IF(国語!$J$9=国語!$BF$36,"○","") ->  | K12: =IF(国語!$J$9=国語!$BF$37,"○","") ->  | L12: =IF(国語!$J$9=国語!$BF$38,"○","") ->  | M12: =IF(国語!$J$9=国語!$BF$39,"○","") ->  | Q12: =国語得点!G$59*100 -> 29.9 | R12: =国語!J$65*100 -> 40 | S12: =IF($R12="","",$R12-$Q12) -> 10.1
A13: 7 | B13: =国語得点!BJ10 -> 1 | C13: =国語得点!BK10 -> 二（3） | D13: =国語得点!BL10 -> 知識及び技能 | I13: =IF(国語!$K$9=国語!$BF$35,"○","") -> ○ | J13: =IF(国語!$K$9=国語!$BF$36,"○","") ->  | K13: =IF(国語!$K$9=国語!$BF$37,"○","") ->  | L13: =IF(国語!$K$9=国語!$BF$38,"○","") ->  | M13: =IF(国語!$K$9=国語!$BF$39,"○","") ->  | Q13: =国語得点!H$59*100 -> 11.2 | R13: =国語!K$65*100 -> 37.77777778 | S13: =IF($R13="","",$R13-$Q13) -> 26.57777778
A14: 8 | B14: =国語得点!BJ11 -> 1 | C14: =国語得点!BK11 -> 二（4） | D14: =国語得点!BL11 -> 知識及び技能 | I14: =IF(国語!$L$9=国語!$BF$35,"○","") -> ○ | J14: =IF(国語!$L$9=国語!$BF$36,"○","") ->  | K14: =IF(国語!$L$9=国語!$BF$37,"○","") ->  | L14: =IF(国語!$L$9=国語!$BF$38,"○","") ->  | M14: =IF(国語!$L$9=国語!$BF$39,"○","") ->  | Q14: =国語得点!I$59*100 -> 37 | R14: =国語!L$65*100 -> 40 | S14: =IF($R14="","",$R14-$Q14) -> 3
A15: 9 | B15: =国語得点!BJ12 -> 2 | C15: =国語得点!BK12 -> 一 | D15: =国語得点!BL12 -> 知識及び技能 | I15: =IF(国語!$M$9=国語!$BF$35,"○","") -> ○ | J15: =IF(国語!$M$9=国語!$BF$36,"○","") ->  | K15: =IF(国語!$M$9=国語!$BF$37,"○","") ->  | L15: =IF(国語!$M$9=国語!$BF$38,"○","") ->  | M15: =IF(国語!$M$9=国語!$BF$39,"○","") ->  | Q15: =国語得点!J$59*100 -> 42.9 | R15: =国語!M$65*100 -> 35.55555556 | S15: =IF($R15="","",$R15-$Q15) -> -7.344444444
A16: 10 | B16: =国語得点!BJ13 -> 2 | C16: =国語得点!BK13 -> 二 | D16: =国語得点!BL13 -> 知識及び技能 | I16: =IF(国語!$N$9=国語!$BF$35,"○","") -> ○ | J16: =IF(国語!$N$9=国語!$BF$36,"○","") ->  | K16: =IF(国語!$N$9=国語!$BF$37,"○","") ->  | L16: =IF(国語!$N$9=国語!$BF$38,"○","") ->  | M16: =IF(国語!$N$9=国語!$BF$39,"○","") ->  | Q16: =国語得点!K$59*100 -> 36.3 | R16: =国語!N$65*100 -> 33.33333333 | S16: =IF($R16="","",$R16-$Q16) -> -2.966666667
A17: 11 | B17: =国語得点!BJ14 -> 3 | C17: =国語得点!BK14 -> 一 | D17: =国語得点!BL14 -> 知識及び技能 | I17: =IF(国語!$O$9=国語!$BF$35,"○","") -> ○ | J17: =IF(国語!$O$9=国語!$BF$36,"○","") ->  | K17: =IF(国語!$O$9=国語!$BF$37,"○","") ->  | L17: =IF(国語!$O$9=国語!$BF$38,"○","") ->  | M17: =IF(国語!$O$9=国語!$BF$39,"○","") ->  | Q17: =国語得点!L$59*100 -> 3.7 | R17: =国語!O$65*100 -> 31.11111111 | S17: =IF($R17="","",$R17-$Q17) -> 27.41111111
A18: 12 | B18: =国語得点!BJ15 -> 3 | C18: =国語得点!BK15 -> 二 | D18: =国語得点!BL15 -> 知識及び技能 | I18: =IF(国語!$P$9=国語!$BF$35,"○","") -> ○ | J18: =IF(国語!$P$9=国語!$BF$36,"○","") ->  | K18: =IF(国語!$P$9=国語!$BF$37,"○","") ->  | L18: =IF(国語!$P$9=国語!$BF$38,"○","") ->  | M18: =IF(国語!$P$9=国語!$BF$39,"○","") ->  | Q18: =国語得点!M$59*100 -> 2.2 | R18: =国語!P$65*100 -> 33.33333333 | S18: =IF($R18="","",$R18-$Q18) -> 31.13333333
A19: 13 | B19: =国語得点!BJ16 -> 4 | C19: =国語得点!BK16 -> 一 | D19: =国語得点!BL16 -> 読むこと | I19: =IF(国語!$Q$9=国語!$BF$35,"○","") ->  | J19: =IF(国語!$Q$9=国語!$BF$36,"○","") -> ○ | K19: =IF(国語!$Q$9=国語!$BF$37,"○","") ->  | L19: =IF(国語!$Q$9=国語!$BF$38,"○","") ->  | M19: =IF(国語!$Q$9=国語!$BF$39,"○","") ->  | Q19: =国語得点!N$59*100 -> 15.9 | R19: =国語!Q$65*100 -> 28.88888889 | S19: =IF($R19="","",$R19-$Q19) -> 12.98888889
A20: 14 | B20: =国語得点!BJ17 -> 4 | C20: =国語得点!BK17 -> 二Ａ | D20: =国語得点!BL17 -> 読むこと | I20: =IF(国語!$R$9=国語!$BF$35,"○","") ->  | J20: =IF(国語!$R$9=国語!$BF$36,"○","") -> ○ | K20: =IF(国語!$R$9=国語!$BF$37,"○","") ->  | L20: =IF(国語!$R$9=国語!$BF$38,"○","") ->  | M20: =IF(国語!$R$9=国語!$BF$39,"○","") ->  | Q20: =国語得点!O$59*100 -> 15.5 | R20: =国語!R$65*100 -> 26.66666667 | S20: =IF($R20="","",$R20-$Q20) -> 11.16666667
A21: 15 | B21: =国語得点!BJ18 -> 4 | C21: =国語得点!BK18 -> 二B | D21: =国語得点!BL18 -> 読むこと | I21: =IF(国語!$S$9=国語!$BF$35,"○","") ->  | J21: =IF(国語!$S$9=国語!$BF$36,"○","") -> ○ | K21: =IF(国語!$S$9=国語!$BF$37,"○","") ->  | L21: =IF(国語!$S$9=国語!$BF$38,"○","") ->  | M21: =IF(国語!$S$9=国語!$BF$39,"○","") ->  | Q21: =国語得点!P$59*100 -> 10.5 | R21: =国語!S$65*100 -> 24.44444444 | S21: =IF($R21="","",$R21-$Q21) -> 13.94444444
A22: 16 | B22: =国語得点!BJ19 -> 4 | C22: =国語得点!BK19 -> 三① | D22: =国語得点!BL19 -> 読むこと | I22: =IF(国語!$T$9=国語!$BF$35,"○","") ->  | J22: =IF(国語!$T$9=国語!$BF$36,"○","") -> ○ | K22: =IF(国語!$T$9=国語!$BF$37,"○","") ->  | L22: =IF(国語!$T$9=国語!$BF$38,"○","") ->  | M22: =IF(国語!$T$9=国語!$BF$39,"○","") ->  | Q22: =国語得点!Q$59*100 -> 14.8 | R22: =国語!T$65*100 -> 20 | S22: =IF($R22="","",$R22-$Q22) -> 5.2
A23: 17 | B23: =国語得点!BJ20 -> 4 | C23: =国語得点!BK20 -> 三② | D23: =国語得点!BL20 -> 読むこと | I23: =IF(国語!$U$9=国語!$BF$35,"○","") ->  | J23: =IF(国語!$U$9=国語!$BF$36,"○","") -> ○ | K23: =IF(国語!$U$9=国語!$BF$37,"○","") ->  | L23: =IF(国語!$U$9=国語!$BF$38,"○","") ->  | M23: =IF(国語!$U$9=国語!$BF$39,"○","") ->  | Q23: =国語得点!R$59*100 -> 50.3 | R23: =国語!U$65*100 -> 20 | S23: =IF($R23="","",$R23-$Q23) -> -30.3
A24: 18 | B24: =国語得点!BJ21 -> 4 | C24: =国語得点!BK21 -> 四 | D24: =国語得点!BL21 -> 読むこと | I24: =IF(国語!$V$9=国語!$BF$35,"○","") ->  | J24: =IF(国語!$V$9=国語!$BF$36,"○","") -> ○ | K24: =IF(国語!$V$9=国語!$BF$37,"○","") ->  | L24: =IF(国語!$V$9=国語!$BF$38,"○","") ->  | M24: =IF(国語!$V$9=国語!$BF$39,"○","") ->  | Q24: =国語得点!S$59*100 -> 39.8 | R24: =国語!V$65*100 -> 17.77777778 | S24: =IF($R24="","",$R24-$Q24) -> -22.02222222
A25: 19 | B25: =国語得点!BJ22 -> 4 | C25: =国語得点!BK22 -> 五① | D25: =国語得点!BL22 -> 読むこと | I25: =IF(国語!$W$9=国語!$BF$35,"○","") ->  | J25: =IF(国語!$W$9=国語!$BF$36,"○","") -> ○ | K25: =IF(国語!$W$9=国語!$BF$37,"○","") ->  | L25: =IF(国語!$W$9=国語!$BF$38,"○","") ->  | M25: =IF(国語!$W$9=国語!$BF$39,"○","") ->  | Q25: =国語得点!T$59*100 -> 28.8 | R25: =国語!W$65*100 -> 13.33333333 | S25: =IF($R25="","",$R25-$Q25) -> -15.46666667
A26: 20 | B26: =国語得点!BJ23 -> 4 | C26: =国語得点!BK23 -> 五② | D26: =国語得点!BL23 -> 読むこと | I26: =IF(国語!$X$9=国語!$BF$35,"○","") ->  | J26: =IF(国語!$X$9=国語!$BF$36,"○","") -> ○ | K26: =IF(国語!$X$9=国語!$BF$37,"○","") ->  | L26: =IF(国語!$X$9=国語!$BF$38,"○","") ->  | M26: =IF(国語!$X$9=国語!$BF$39,"○","") ->  | Q26: =国語得点!U$59*100 -> 15.6 | R26: =国語!X$65*100 -> 11.11111111 | S26: =IF($R26="","",$R26-$Q26) -> -4.488888889
A27: 21 | B27: =国語得点!BJ24 -> 5 | C27: =国語得点!BK24 -> 一 | D27: =国語得点!BL24 -> 書くこと | I27: =IF(国語!$Y$9=国語!$BF$35,"○","") ->  | J27: =IF(国語!$Y$9=国語!$BF$36,"○","") -> ○ | K27: =IF(国語!$Y$9=国語!$BF$37,"○","") ->  | L27: =IF(国語!$Y$9=国語!$BF$38,"○","") ->  | M27: =IF(国語!$Y$9=国語!$BF$39,"○","") ->  | Q27: =国語得点!V$59*100 -> 25.2 | R27: =国語!Y$65*100 -> 8.888888889 | S27: =IF($R27="","",$R27-$Q27) -> -16.31111111
A28: 22 | B28: =国語得点!BJ25 -> 5 | C28: =国語得点!BK25 -> 二 | D28: =国語得点!BL25 -> 書くこと | I28: =IF(国語!$Z$9=国語!$BF$35,"○","") ->  | J28: =IF(国語!$Z$9=国語!$BF$36,"○","") -> ○ | K28: =IF(国語!$Z$9=国語!$BF$37,"○","") ->  | L28: =IF(国語!$Z$9=国語!$BF38,"○","") ->  | M28: =IF(国語!$Z$9=国語!$BF$39,"○","") ->  | Q28: =国語得点!W$59*100 -> 50.6 | R28: =国語!Z$65*100 -> 6.666666667 | S28: =IF($R28="","",$R28-$Q28) -> -43.93333333
A29: 23 | B29: =国語得点!BJ26 -> 5 | C29: =国語得点!BK26 -> 三 一文目 | D29: =国語得点!BL26 -> 書くこと | I29: =IF(国語!$AA$9=国語!$BF$35,"○","") ->  | J29: =IF(国語!$AA$9=国語!$BF$36,"○","") -> ○ | K29: =IF(国語!$AA$9=国語!$BF$37,"○","") ->  | L29: =IF(国語!$AA$9=国語!$BF$38,"○","") ->  | M29: =IF(国語!$AA$9=国語!$BF$39,"○","") ->  | Q29: =国語得点!X$59*100 -> 63 | R29: =国語!AA$65*100 -> 4.444444444 | S29: =IF($R29="","",$R29-$Q29) -> -58.55555556
A30: 24 | B30: =国語得点!BJ27 -> 5 | C30: =国語得点!BK27 -> 三 二文目 | D30: =国語得点!BL27 -> 書くこと | I30: =IF(国語!$AB$9=国語!$BF$35,"○","") ->  | J30: =IF(国語!$AB$9=国語!$BF$36,"○","") -> ○ | K30: =IF(国語!$AB$9=国語!$BF$37,"○","") ->  | L30: =IF(国語!$AB$9=国語!$BF$38,"○","") ->  | M30: =IF(国語!$AB$9=国語!$BF$39,"○","") ->  | Q30: =国語得点!Y$59*100 -> 49.1 | R30: =国語!AB$65*100 -> 2.222222222 | S30: =IF($R30="","",$R30-$Q30) -> -46.87777778
A31: 25 | B31: =国語得点!BJ28 -> 5 | C31: =国語得点!BK28 -> 四 | D31: =国語得点!BL28 -> 書くこと | I31: =IF(国語!$AC$9=国語!$BF$35,"○","") ->  | J31: =IF(国語!$AC$9=国語!$BF$36,"○","") -> ○ | K31: =IF(国語!$AC$9=国語!$BF$37,"○","") ->  | L31: =IF(国語!$AC$9=国語!$BF$38,"○","") ->  | M31: =IF(国語!$AC$9=国語!$BF$39,"○","") ->  | Q31: =国語得点!Z$59*100 -> 41.6 | R31: =国語!AC$65*100 -> 2.222222222 | S31: =IF($R31="","",$R31-$Q31) -> -39.37777778
A32: 26 | B32: =国語得点!BJ29 -> 0 | C32: =国語得点!BK29 -> 0 | D32: =国語得点!BL29 -> 0 | I32: =IF(国語!$AD$9=国語!$BF$35,"○","") ->  | J32: =IF(国語!$AD$9=国語!$BF$36,"○","") ->  | K32: =IF(国語!$AD$9=国語!$BF$37,"○","") ->  | L32: =IF(国語!$AD$9=国語!$BF$38,"○","") ->  | M32: =IF(国語!$AD$9=国語!$BF$39,"○","") ->  | Q32: =国語得点!AA$59*100 -> 0 | R32: =国語!AD$65*100 ->  | S32: =IF($R32="","",$R32-$Q32) -> 
A33: 27 | B33: =国語得点!BJ30 -> 0 | C33: =国語得点!BK30 -> 0 | D33: =国語得点!BL30 -> 0 | I33: =IF(国語!$AE$9=国語!$BF$35,"○","") ->  | J33: =IF(国語!$AE$9=国語!$BF$36,"○","") ->  | K33: =IF(国語!$AE$9=国語!$BF$37,"○","") ->  | L33: =IF(国語!$AE$9=国語!$BF$38,"○","") ->  | M33: =IF(国語!$AE$9=国語!$BF$39,"○","") ->  | Q33: =国語得点!AB$59*100 -> 0 | R33: =国語!AE$65*100 ->  | S33: =IF($R33="","",$R33-$Q33) -> 
A34: 28 | B34: =国語得点!BJ31 -> 0 | C34: =国語得点!BK31 -> 0 | D34: =国語得点!BL31 -> 0 | I34: =IF(国語!$AF$9=国語!$BF$35,"○","") ->  | J34: =IF(国語!$AF$9=国語!$BF$36,"○","") ->  | K34: =IF(国語!$AF$9=国語!$BF$37,"○","") ->  | L34: =IF(国語!$AF$9=国語!$BF$38,"○","") ->  | M34: =IF(国語!$AF$9=国語!$BF$39,"○","") ->  | Q34: =国語得点!AC$59*100 -> 0 | R34: =国語!AF$65*100 -> 
A35: 29 | B35: =国語得点!BJ32 -> 0 | C35: =国語得点!BK32 -> 0 | D35: =国語得点!BL32 -> 0 | I35: =IF(国語!$AG$9=国語!$BF$35,"○","") ->  | J35: =IF(国語!$AG$9=国語!$BF$36,"○","") ->  | K35: =IF(国語!$AG$9=国語!$BF$37,"○","") ->  | L35: =IF(国語!$AG$9=国語!$BF$38,"○","") ->  | M35: =IF(国語!$AG$9=国語!$BF$39,"○","") ->  | Q35: =国語得点!AD$59*100 -> 0 | R35: =国語!AG$65*100 -> 
A36: 30 | B36: =国語得点!BJ33 -> 0 | C36: =国語得点!BK33 -> 0 | D36: =国語得点!BL33 -> 0 | I36: =IF(国語!$AH$9=国語!$BF$35,"○","") ->  | J36: =IF(国語!$AH$9=国語!$BF$36,"○","") ->  | K36: =IF(国語!$AH$9=国語!$BF$37,"○","") ->  | L36: =IF(国語!$AH$9=国語!$BF$38,"○","") ->  | M36: =IF(国語!$AH$9=国語!$BF$39,"○","") ->  | Q36: =国語得点!AE$59*100 -> 0 | R36: =国語!AH$65*100 -> 
A37: 31 | B37: =国語得点!BJ34 -> 0 | C37: =国語得点!BK34 -> 0 | D37: =国語得点!BL34 -> 0 | I37: =IF(国語!$AI$9=国語!$BF$35,"○","") ->  | J37: =IF(国語!$AI$9=国語!$BF$36,"○","") ->  | K37: =IF(国語!$AI$9=国語!$BF$37,"○","") ->  | L37: =IF(国語!$AI$9=国語!$BF$38,"○","") ->  | M37: =IF(国語!$AI$9=国語!$BF$39,"○","") ->  | Q37: =国語得点!AF$59*100 -> 0 | R37: =国語!AI$65*100 -> 
A38: 32 | B38: =国語得点!BJ35 -> 0 | C38: =国語得点!BK35 -> 0 | D38: =国語得点!BL35 -> 0 | I38: =IF(国語!$AJ$9=国語!$BF$35,"○","") ->  | J38: =IF(国語!$AJ$9=国語!$BF$36,"○","") ->  | K38: =IF(国語!$AJ$9=国語!$BF$37,"○","") ->  | L38: =IF(国語!$AJ$9=国語!$BF$38,"○","") ->  | M38: =IF(国語!$AJ$9=国語!$BF$39,"○","") ->  | Q38: =国語得点!AG$59*100 -> 0 | R38: =国語!AJ$65*100 -> 
A39: 33 | B39: =国語得点!BJ36 -> 0 | C39: =国語得点!BK36 -> 0 | D39: =国語得点!BL36 -> 0 | I39: =IF(国語!$AK$9=国語!$BF$35,"○","") ->  | J39: =IF(国語!$AK$9=国語!$BF$36,"○","") ->  | K39: =IF(国語!$AK$9=国語!$BF$37,"○","") ->  | L39: =IF(国語!$AK$9=国語!$BF$38,"○","") ->  | M39: =IF(国語!$AK$9=国語!$BF$39,"○","") ->  | Q39: =国語得点!AH$59*100 -> 0 | R39: =国語!AK$65*100 ->  | S39: =IF($R39="","",$R39-$Q39) -> 
A40: 34 | B40: =国語得点!BJ37 -> 0 | C40: =国語得点!BK37 -> 0 | D40: =国語得点!BL37 -> 0 | I40: =IF(国語!$AL$9=国語!$BF$35,"○","") ->  | J40: =IF(国語!$AL$9=国語!$BF$36,"○","") ->  | K40: =IF(国語!$AL$9=国語!$BF$37,"○","") ->  | L40: =IF(国語!$AL$9=国語!$BF$38,"○","") ->  | M40: =IF(国語!$AL$9=国語!$BF$39,"○","") ->  | Q40: =国語得点!AI$59*100 -> 0 | R40: =国語!AL$65*100 -> 
A41: 35 | B41: =国語得点!BJ38 -> 0 | C41: =国語得点!BK38 -> 0 | D41: =国語得点!BL38 -> 0 | I41: =IF(国語!$AM$9=国語!$BF$35,"○","") ->  | J41: =IF(国語!$AM$9=国語!$BF$36,"○","") ->  | K41: =IF(国語!$AM$9=国語!$BF$37,"○","") ->  | L41: =IF(国語!$AM$9=国語!$BF$38,"○","") ->  | M41: =IF(国語!$AM$9=国語!$BF$39,"○","") ->  | Q41: =国語得点!AJ$59*100 -> 0 | R41: =国語!AM$65*100 -> 
A42: 36 | B42: =国語得点!BJ39 -> 0 | C42: =国語得点!BK39 -> 0 | D42: =国語得点!BL39 -> 0 | I42: =IF(国語!$AN$9=国語!$BF$35,"○","") ->  | J42: =IF(国語!$AN$9=国語!$BF$36,"○","") ->  | K42: =IF(国語!$AN$9=国語!$BF$37,"○","") ->  | L42: =IF(国語!$AN$9=国語!$BF$38,"○","") ->  | M42: =IF(国語!$AN$9=国語!$BF$39,"○","") ->  | Q42: =国語得点!AK$59*100 -> 0 | R42: =国語!AN$65*100 -> 
A43: 37 | B43: =国語得点!BJ40 -> 0 | C43: =国語得点!BK40 -> 0 | D43: =国語得点!BL40 -> 0 | I43: =IF(国語!$AO$9=国語!$BF$35,"○","") ->  | J43: =IF(国語!$AO$9=国語!$BF$36,"○","") ->  | K43: =IF(国語!$AO$9=国語!$BF$37,"○","") ->  | L43: =IF(国語!$AO$9=国語!$BF$38,"○","") ->  | M43: =IF(国語!$AO$9=国語!$BF$39,"○","") ->  | Q43: =国語得点!AL$59*100 -> 0 | R43: =国語!AO$65*100 -> 
A44: 38 | B44: =国語得点!BJ41 -> 0 | C44: =国語得点!BK41 -> 0 | D44: =国語得点!BL41 -> 0 | I44: =IF(国語!$AP$9=国語!$BF$35,"○","") ->  | J44: =IF(国語!$AP$9=国語!$BF$36,"○","") ->  | K44: =IF(国語!$AP$9=国語!$BF$37,"○","") ->  | L44: =IF(国語!$AP$9=国語!$BF$38,"○","") ->  | M44: =IF(国語!$AP$9=国語!$BF$39,"○","") ->  | Q44: =国語得点!AM$59*100 -> 0 | R44: =国語!AP$65*100 -> 
A45: 39 | B45: =国語得点!BJ42 -> 0 | C45: =国語得点!BK42 -> 0 | D45: =国語得点!BL42 -> 0 | I45: =IF(国語!$AQ$9=国語!$BF$35,"○","") ->  | J45: =IF(国語!$AQ$9=国語!$BF$36,"○","") ->  | K45: =IF(国語!$AQ$9=国語!$BF$37,"○","") ->  | L45: =IF(国語!$AQ$9=国語!$BF$38,"○","") ->  | M45: =IF(国語!$AQ$9=国語!$BF$39,"○","") ->  | Q45: =国語得点!AN$59*100 -> 0 | R45: =国語!AQ$65*100 -> 
A46: 40 | B46: =国語得点!BJ43 -> 0 | C46: =国語得点!BK43 -> 0 | D46: =国語得点!BL43 -> 0 | I46: =IF(国語!$AR$9=国語!$BF$35,"○","") ->  | J46: =IF(国語!$AR$9=国語!$BF$36,"○","") ->  | K46: =IF(国語!$AR$9=国語!$BF$37,"○","") ->  | L46: =IF(国語!$AR$9=国語!$BF$38,"○","") ->  | M46: =IF(国語!$AR$9=国語!$BF$39,"○","") ->  | Q46: =国語得点!AO$59*100 -> 0 | R46: =国語!AR$65*100 -> 
A47: 41 | B47: =国語得点!BJ44 -> 0 | C47: =国語得点!BK44 -> 0 | D47: =国語得点!BL44 -> 0 | I47: =IF(国語!$AS$9=国語!$BF$35,"○","") ->  | J47: =IF(国語!$AS$9=国語!$BF$36,"○","") ->  | K47: =IF(国語!$AS$9=国語!$BF$37,"○","") ->  | L47: =IF(国語!$AS$9=国語!$BF$38,"○","") ->  | M47: =IF(国語!$AS$9=国語!$BF$39,"○","") ->  | Q47: =国語得点!AP$59*100 -> 0 | R47: =国語!AS$65*100 -> 
A48: 42 | B48: =国語得点!BJ45 -> 0 | C48: =国語得点!BK45 -> 0 | D48: =国語得点!BL45 -> 0 | I48: =IF(国語!$AT$9=国語!$BF$35,"○","") ->  | J48: =IF(国語!$AT$9=国語!$BF$36,"○","") ->  | K48: =IF(国語!$AT$9=国語!$BF$37,"○","") ->  | L48: =IF(国語!$AT$9=国語!$BF$38,"○","") ->  | M48: =IF(国語!$AT$9=国語!$BF$39,"○","") ->  | Q48: =国語得点!AQ$59*100 -> 0 | R48: =国語!AT$65*100 -> 
A49: 43 | B49: =国語得点!BJ46 -> 0 | C49: =国語得点!BK46 -> 0 | D49: =国語得点!BL46 -> 0 | I49: =IF(国語!$AU$9=国語!$BF$35,"○","") ->  | J49: =IF(国語!$AU$9=国語!$BF$36,"○","") ->  | K49: =IF(国語!$AU$9=国語!$BF$37,"○","") ->  | L49: =IF(国語!$AU$9=国語!$BF$38,"○","") ->  | M49: =IF(国語!$AU$9=国語!$BF$39,"○","") ->  | Q49: =国語得点!AR$59*100 -> 0 | R49: =国語!AU$65*100 -> 
A50: 44 | B50: =国語得点!BJ47 -> 0 | C50: =国語得点!BK47 -> 0 | D50: =国語得点!BL47 -> 0 | I50: =IF(国語!$AV$9=国語!$BF$35,"○","") ->  | J50: =IF(国語!$AV$9=国語!$BF$36,"○","") ->  | K50: =IF(国語!$AV$9=国語!$BF$37,"○","") ->  | L50: =IF(国語!$AV$9=国語!$BF$38,"○","") ->  | M50: =IF(国語!$AV$9=国語!$BF$39,"○","") ->  | Q50: =国語得点!AS$59*100 -> 0 | R50: =国語!AV$65*100 -> 
A51: 45 | B51: =国語得点!BJ48 -> 0 | C51: =国語得点!BK48 -> 0 | D51: =国語得点!BL48 -> 0 | I51: =IF(国語!$AW$9=国語!$BF$35,"○","") ->  | J51: =IF(国語!$AW$9=国語!$BF$36,"○","") ->  | K51: =IF(国語!$AW$9=国語!$BF$37,"○","") ->  | L51: =IF(国語!$AW$9=国語!$BF$38,"○","") ->  | M51: =IF(国語!$AW$9=国語!$BF$39,"○","") ->  | Q51: =国語得点!AT$59*100 -> 0 | R51: =国語!AW$65*100 -> 
A52: 46 | B52: =国語得点!BJ49 -> 0 | C52: =国語得点!BK49 -> 0 | D52: =国語得点!BL49 -> 0 | I52: =IF(国語!$AX$9=国語!$BF$35,"○","") ->  | J52: =IF(国語!$AX$9=国語!$BF$36,"○","") ->  | K52: =IF(国語!$AX$9=国語!$BF$37,"○","") ->  | L52: =IF(国語!$AX$9=国語!$BF$38,"○","") ->  | M52: =IF(国語!$AX$9=国語!$BF$39,"○","") ->  | Q52: =国語得点!AU$59*100 -> 0 | R52: =国語!AX$65*100 -> 
A53: 47 | B53: =国語得点!BJ50 -> 0 | C53: =国語得点!BK50 -> 0 | D53: =国語得点!BL50 -> 0 | I53: =IF(国語!$AY$9=国語!$BF$35,"○","") ->  | J53: =IF(国語!$AY$9=国語!$BF$36,"○","") ->  | K53: =IF(国語!$AY$9=国語!$BF$37,"○","") ->  | L53: =IF(国語!$AY$9=国語!$BF$38,"○","") ->  | M53: =IF(国語!$AY$9=国語!$BF$39,"○","") ->  | Q53: =国語得点!AV$59*100 -> 0 | R53: =国語!AY$65*100 -> 
A54: 48 | B54: =国語得点!BJ51 -> 0 | C54: =国語得点!BK51 -> 0 | D54: =国語得点!BL51 -> 0 | I54: =IF(国語!$AZ$9=国語!$BF$35,"○","") ->  | J54: =IF(国語!$AZ$9=国語!$BF$36,"○","") ->  | K54: =IF(国語!$AZ$9=国語!$BF$37,"○","") ->  | L54: =IF(国語!$AZ$9=国語!$BF$38,"○","") ->  | M54: =IF(国語!$AZ$9=国語!$BF$39,"○","") ->  | Q54: =国語得点!AW$59*100 -> 0 | R54: =国語!AZ$65*100 -> 
A55: 49 | B55: =国語得点!BJ52 -> 0 | C55: =国語得点!BK52 -> 0 | D55: =国語得点!BL52 -> 0 | I55: =IF(国語!$BA$9=国語!$BF$35,"○","") ->  | J55: =IF(国語!$BA$9=国語!$BF$36,"○","") ->  | K55: =IF(国語!$BA$9=国語!$BF$37,"○","") ->  | L55: =IF(国語!$BA$9=国語!$BF$38,"○","") ->  | M55: =IF(国語!$BA$9=国語!$BF$39,"○","") ->  | Q55: =国語得点!AX$59*100 -> 0 | R55: =国語!BA$65*100 -> 
A56: 50 | B56: =国語得点!BJ53 -> 0 | C56: =国語得点!BK53 -> 0 | D56: =国語得点!BL53 -> 0 | I56: =IF(国語!$BB$9=国語!$BF$35,"○","") ->  | J56: =IF(国語!$BB$9=国語!$BF$36,"○","") ->  | K56: =IF(国語!$BB$9=国語!$BF$37,"○","") ->  | L56: =IF(国語!$BB$9=国語!$BF$38,"○","") ->  | M56: =IF(国語!$BB$9=国語!$BF$39,"○","") ->  | Q56: =国語得点!AY$59*100 -> 0 | R56: =国語!BB$65*100 -> 
A57: 平均

Sheet ⑥国語の問題別無解答率
A1: ⑥国語の問題別無解答率
C3: 問題数 | D3: =国語!AX1 -> 25
A4: ◆国語
A5: 問題通し番号 | B5: 問題 番号 | C5: 小問題 | D5: 問題の領域 | E5: 学習指導要領の領域等 | I5: 観点 | N5: 問題形式 | Q5: 無解答率
I6: =国語!BG35 -> 知識・技能 | J6: =国語!BG36 -> 思考・判断・表現 | K6: =国語!BG37 -> - | L6: =国語!BG38 -> - | M6: =国語!BG39 -> - | N6: 選択式 | O6: 短答式 | P6: 記述式 | Q6: 富山県（ア） | R6: 自校（イ） | S6: 富山県との差（イ-ア)
A7: 1 | B7: =国語得点!BJ4 -> 1 | C7: =国語得点!BK4 -> 一（1） | D7: =国語得点!BL4 -> 知識及び技能 | I7: =IF(国語!$E$9=国語!$BF$35,"○","") -> ○ | J7: =IF(国語!$E$9=国語!$BF$36,"○","") ->  | K7: =IF(国語!$E$9=国語!$BF$37,"○","") ->  | L7: =IF(国語!$E$9=国語!$BF$38,"○","") ->  | M7: =IF(国語!$E$9=国語!$BF$39,"○","") ->  | Q7: =国語得点!B$60*100 -> 0.8 | R7: =国語!E$66*100 -> 48.88888889 | S7: =IF($R7="","",$R7-$Q7) -> 48.08888889
A8: 2 | B8: =国語得点!BJ5 -> 1 | C8: =国語得点!BK5 -> 一（2） | D8: =国語得点!BL5 -> 知識及び技能 | I8: =IF(国語!$F$9=国語!$BF$35,"○","") -> ○ | J8: =IF(国語!$F$9=国語!$BF$36,"○","") ->  | K8: =IF(国語!$F$9=国語!$BF$37,"○","") ->  | L8: =IF(国語!$F$9=国語!$BF$38,"○","") ->  | M8: =IF(国語!$F$9=国語!$BF$39,"○","") ->  | Q8: =国語得点!C$60*100 -> 0.1 | R8: =国語!F$66*100 -> 44.44444444 | S8: =IF($R8="","",$R8-$Q8) -> 44.34444444
A9: 3 | B9: =国語得点!BJ6 -> 1 | C9: =国語得点!BK6 -> 一（3） | D9: =国語得点!BL6 -> 知識及び技能 | I9: =IF(国語!$G$9=国語!$BF$35,"○","") -> ○ | J9: =IF(国語!$G$9=国語!$BF$36,"○","") ->  | K9: =IF(国語!$G$9=国語!$BF$37,"○","") ->  | L9: =IF(国語!$G$9=国語!$BF$38,"○","") ->  | M9: =IF(国語!$G$9=国語!$BF$39,"○","") ->  | Q9: =国語得点!D$60*100 -> 2.1 | R9: =国語!G$66*100 -> 46.66666667 | S9: =IF($R9="","",$R9-$Q9) -> 44.56666667
A10: 4 | B10: =国語得点!BJ7 -> 1 | C10: =国語得点!BK7 -> 一（4） | D10: =国語得点!BL7 -> 知識及び技能 | I10: =IF(国語!$H$9=国語!$BF$35,"○","") -> ○ | J10: =IF(国語!$H$9=国語!$BF$36,"○","") ->  | K10: =IF(国語!$H$9=国語!$BF$37,"○","") ->  | L10: =IF(国語!$H$9=国語!$BF$38,"○","") ->  | M10: =IF(国語!$H$9=国語!$BF$39,"○","") ->  | Q10: =国語得点!E$60*100 -> 0.8 | R10: =国語!H$66*100 -> 44.44444444 | S10: =IF($R10="","",$R10-$Q10) -> 43.64444444
A11: 5 | B11: =国語得点!BJ8 -> 1 | C11: =国語得点!BK8 -> 二（1） | D11: =国語得点!BL8 -> 知識及び技能 | I11: =IF(国語!$I$9=国語!$BF$35,"○","") -> ○ | J11: =IF(国語!$I$9=国語!$BF$36,"○","") ->  | K11: =IF(国語!$I$9=国語!$BF$37,"○","") ->  | L11: =IF(国語!$I$9=国語!$BF$38,"○","") ->  | M11: =IF(国語!$I$9=国語!$BF$39,"○","") ->  | Q11: =国語得点!F$60*100 -> 6.5 | R11: =国語!I$66*100 -> 42.22222222 | S11: =IF($R11="","",$R11-$Q11) -> 35.72222222
A12: 6 | B12: =国語得点!BJ9 -> 1 | C12: =国語得点!BK9 -> 二（2） | D12: =国語得点!BL9 -> 知識及び技能 | I12: =IF(国語!$J$9=国語!$BF$35,"○","") -> ○ | J12: =IF(国語!$J$9=国語!$BF$36,"○","") ->  | K12: =IF(国語!$J$9=国語!$BF$37,"○","") ->  | L12: =IF(国語!$J$9=国語!$BF$38,"○","") ->  | M12: =IF(国語!$J$9=国語!$BF$39,"○","") ->  | Q12: =国語得点!G$60*100 -> 13.4 | R12: =国語!J$66*100 -> 40 | S12: =IF($R12="","",$R12-$Q12) -> 26.6
A13: 7 | B13: =国語得点!BJ10 -> 1 | C13: =国語得点!BK10 -> 二（3） | D13: =国語得点!BL10 -> 知識及び技能 | I13: =IF(国語!$K$9=国語!$BF$35,"○","") -> ○ | J13: =IF(国語!$K$9=国語!$BF$36,"○","") ->  | K13: =IF(国語!$K$9=国語!$BF$37,"○","") ->  | L13: =IF(国語!$K$9=国語!$BF$38,"○","") ->  | M13: =IF(国語!$K$9=国語!$BF$39,"○","") ->  | Q13: =国語得点!H$60*100 -> 7.2 | R13: =国語!K$66*100 -> 37.77777778 | S13: =IF($R13="","",$R13-$Q13) -> 30.57777778
A14: 8 | B14: =国語得点!BJ11 -> 1 | C14: =国語得点!BK11 -> 二（4） | D14: =国語得点!BL11 -> 知識及び技能 | I14: =IF(国語!$L$9=国語!$BF$35,"○","") -> ○ | J14: =IF(国語!$L$9=国語!$BF$36,"○","") ->  | K14: =IF(国語!$L$9=国語!$BF$37,"○","") ->  | L14: =IF(国語!$L$9=国語!$BF$38,"○","") ->  | M14: =IF(国語!$L$9=国語!$BF$39,"○","") ->  | Q14: =国語得点!I$60*100 -> 9.2 | R14: =国語!L$66*100 -> 35.55555556 | S14: =IF($R14="","",$R14-$Q14) -> 26.35555556
A15: 9 | B15: =国語得点!BJ12 -> 2 | C15: =国語得点!BK12 -> 一 | D15: =国語得点!BL12 -> 知識及び技能 | I15: =IF(国語!$M$9=国語!$BF$35,"○","") -> ○ | J15: =IF(国語!$M$9=国語!$BF$36,"○","") ->  | K15: =IF(国語!$M$9=国語!$BF$37,"○","") ->  | L15: =IF(国語!$M$9=国語!$BF$38,"○","") ->  | M15: =IF(国語!$M$9=国語!$BF$39,"○","") ->  | Q15: =国語得点!J$60*100 -> 1.1 | R15: =国語!M$66*100 -> 35.55555556 | S15: =IF($R15="","",$R15-$Q15) -> 34.45555556
A16: 10 | B16: =国語得点!BJ13 -> 2 | C16: =国語得点!BK13 -> 二 | D16: =国語得点!BL13 -> 知識及び技能 | I16: =IF(国語!$N$9=国語!$BF$35,"○","") -> ○ | J16: =IF(国語!$N$9=国語!$BF$36,"○","") ->  | K16: =IF(国語!$N$9=国語!$BF$37,"○","") ->  | L16: =IF(国語!$N$9=国語!$BF$38,"○","") ->  | M16: =IF(国語!$N$9=国語!$BF$39,"○","") ->  | Q16: =国語得点!K$60*100 -> 1.6 | R16: =国語!N$66*100 -> 33.33333333 | S16: =IF($R16="","",$R16-$Q16) -> 31.73333333
A17: 11 | B17: =国語得点!BJ14 -> 3 | C17: =国語得点!BK14 -> 一 | D17: =国語得点!BL14 -> 知識及び技能 | I17: =IF(国語!$O$9=国語!$BF$35,"○","") -> ○ | J17: =IF(国語!$O$9=国語!$BF$36,"○","") ->  | K17: =IF(国語!$O$9=国語!$BF$37,"○","") ->  | L17: =IF(国語!$O$9=国語!$BF$38,"○","") ->  | M17: =IF(国語!$O$9=国語!$BF$39,"○","") ->  | Q17: =国語得点!L$60*100 -> 0.2 | R17: =国語!O$66*100 -> 31.11111111 | S17: =IF($R17="","",$R17-$Q17) -> 30.91111111
A18: 12 | B18: =国語得点!BJ15 -> 3 | C18: =国語得点!BK15 -> 二 | D18: =国語得点!BL15 -> 知識及び技能 | I18: =IF(国語!$P$9=国語!$BF$35,"○","") -> ○ | J18: =IF(国語!$P$9=国語!$BF$36,"○","") ->  | K18: =IF(国語!$P$9=国語!$BF$37,"○","") ->  | L18: =IF(国語!$P$9=国語!$BF$38,"○","") ->  | M18: =IF(国語!$P$9=国語!$BF$39,"○","") ->  | Q18: =国語得点!M$60*100 -> 0.3 | R18: =国語!P$66*100 -> 24.44444444 | S18: =IF($R18="","",$R18-$Q18) -> 24.14444444
A19: 13 | B19: =国語得点!BJ16 -> 4 | C19: =国語得点!BK16 -> 一 | D19: =国語得点!BL16 -> 読むこと | I19: =IF(国語!$Q$9=国語!$BF$35,"○","") ->  | J19: =IF(国語!$Q$9=国語!$BF$36,"○","") -> ○ | K19: =IF(国語!$Q$9=国語!$BF$37,"○","") ->  | L19: =IF(国語!$Q$9=国語!$BF$38,"○","") ->  | M19: =IF(国語!$Q$9=国語!$BF$39,"○","") ->  | Q19: =国語得点!N$60*100 -> 0.3 | R19: =国語!Q$66*100 -> 24.44444444 | S19: =IF($R19="","",$R19-$Q19) -> 24.14444444
A20: 14 | B20: =国語得点!BJ17 -> 4 | C20: =国語得点!BK17 -> 二Ａ | D20: =国語得点!BL17 -> 読むこと | I20: =IF(国語!$R$9=国語!$BF$35,"○","") ->  | J20: =IF(国語!$R$9=国語!$BF$36,"○","") -> ○ | K20: =IF(国語!$R$9=国語!$BF$37,"○","") ->  | L20: =IF(国語!$R$9=国語!$BF$38,"○","") ->  | M20: =IF(国語!$R$9=国語!$BF$39,"○","") ->  | Q20: =国語得点!O$60*100 -> 0.4 | R20: =国語!R$66*100 -> 22.22222222 | S20: =IF($R20="","",$R20-$Q20) -> 21.82222222
A21: 15 | B21: =国語得点!BJ18 -> 4 | C21: =国語得点!BK18 -> 二B | D21: =国語得点!BL18 -> 読むこと | I21: =IF(国語!$S$9=国語!$BF$35,"○","") ->  | J21: =IF(国語!$S$9=国語!$BF$36,"○","") -> ○ | K21: =IF(国語!$S$9=国語!$BF$37,"○","") ->  | L21: =IF(国語!$S$9=国語!$BF$38,"○","") ->  | M21: =IF(国語!$S$9=国語!$BF$39,"○","") ->  | Q21: =国語得点!P$60*100 -> 0.7 | R21: =国語!S$66*100 -> 20 | S21: =IF($R21="","",$R21-$Q21) -> 19.3
A22: 16 | B22: =国語得点!BJ19 -> 4 | C22: =国語得点!BK19 -> 三① | D22: =国語得点!BL19 -> 読むこと | I22: =IF(国語!$T$9=国語!$BF$35,"○","") ->  | J22: =IF(国語!$T$9=国語!$BF$36,"○","") -> ○ | K22: =IF(国語!$T$9=国語!$BF$37,"○","") ->  | L22: =IF(国語!$T$9=国語!$BF$38,"○","") ->  | M22: =IF(国語!$T$9=国語!$BF$39,"○","") ->  | Q22: =国語得点!Q$60*100 -> 2.4 | R22: =国語!T$66*100 -> 20 | S22: =IF($R22="","",$R22-$Q22) -> 17.6
A23: 17 | B23: =国語得点!BJ20 -> 4 | C23: =国語得点!BK20 -> 三② | D23: =国語得点!BL20 -> 読むこと | I23: =IF(国語!$U$9=国語!$BF$35,"○","") ->  | J23: =IF(国語!$U$9=国語!$BF$36,"○","") -> ○ | K23: =IF(国語!$U$9=国語!$BF$37,"○","") ->  | L23: =IF(国語!$U$9=国語!$BF$38,"○","") ->  | M23: =IF(国語!$U$9=国語!$BF$39,"○","") ->  | Q23: =国語得点!R$60*100 -> 3 | R23: =国語!U$66*100 -> 15.55555556 | S23: =IF($R23="","",$R23-$Q23) -> 12.55555556
A24: 18 | B24: =国語得点!BJ21 -> 4 | C24: =国語得点!BK21 -> 四 | D24: =国語得点!BL21 -> 読むこと | I24: =IF(国語!$V$9=国語!$BF$35,"○","") ->  | J24: =IF(国語!$V$9=国語!$BF$36,"○","") -> ○ | K24: =IF(国語!$V$9=国語!$BF$37,"○","") ->  | L24: =IF(国語!$V$9=国語!$BF$38,"○","") ->  | M24: =IF(国語!$V$9=国語!$BF$39,"○","") ->  | Q24: =国語得点!S$60*100 -> 1.9 | R24: =国語!V$66*100 -> 13.33333333 | S24: =IF($R24="","",$R24-$Q24) -> 11.43333333
A25: 19 | B25: =国語得点!BJ22 -> 4 | C25: =国語得点!BK22 -> 五① | D25: =国語得点!BL22 -> 読むこと | I25: =IF(国語!$W$9=国語!$BF$35,"○","") ->  | J25: =IF(国語!$W$9=国語!$BF$36,"○","") -> ○ | K25: =IF(国語!$W$9=国語!$BF$37,"○","") ->  | L25: =IF(国語!$W$9=国語!$BF$38,"○","") ->  | M25: =IF(国語!$W$9=国語!$BF$39,"○","") ->  | Q25: =国語得点!T$60*100 -> 1.4 | R25: =国語!W$66*100 -> 13.33333333 | S25: =IF($R25="","",$R25-$Q25) -> 11.93333333
A26: 20 | B26: =国語得点!BJ23 -> 4 | C26: =国語得点!BK23 -> 五② | D26: =国語得点!BL23 -> 読むこと | I26: =IF(国語!$X$9=国語!$BF$35,"○","") ->  | J26: =IF(国語!$X$9=国語!$BF$36,"○","") -> ○ | K26: =IF(国語!$X$9=国語!$BF$37,"○","") ->  | L26: =IF(国語!$X$9=国語!$BF$38,"○","") ->  | M26: =IF(国語!$X$9=国語!$BF$39,"○","") ->  | Q26: =国語得点!U$60*100 -> 1.3 | R26: =国語!X$66*100 -> 11.11111111 | S26: =IF($R26="","",$R26-$Q26) -> 9.811111111
A27: 21 | B27: =国語得点!BJ24 -> 5 | C27: =国語得点!BK24 -> 一 | D27: =国語得点!BL24 -> 書くこと | I27: =IF(国語!$Y$9=国語!$BF$35,"○","") ->  | J27: =IF(国語!$Y$9=国語!$BF$36,"○","") -> ○ | K27: =IF(国語!$Y$9=国語!$BF$37,"○","") ->  | L27: =IF(国語!$Y$9=国語!$BF$38,"○","") ->  | M27: =IF(国語!$Y$9=国語!$BF$39,"○","") ->  | Q27: =国語得点!V$60*100 -> 0.8 | R27: =国語!Y$66*100 -> 8.888888889 | S27: =IF($R27="","",$R27-$Q27) -> 8.088888889
A28: 22 | B28: =国語得点!BJ25 -> 5 | C28: =国語得点!BK25 -> 二 | D28: =国語得点!BL25 -> 書くこと | I28: =IF(国語!$Z$9=国語!$BF$35,"○","") ->  | J28: =IF(国語!$Z$9=国語!$BF$36,"○","") -> ○ | K28: =IF(国語!$Z$9=国語!$BF$37,"○","") ->  | L28: =IF(国語!$Z$9=国語!$BF38,"○","") ->  | M28: =IF(国語!$Z$9=国語!$BF$39,"○","") ->  | Q28: =国語得点!W$60*100 -> 7.4 | R28: =国語!Z$66*100 -> 6.666666667 | S28: =IF($R28="","",$R28-$Q28) -> -0.7333333333
A29: 23 | B29: =国語得点!BJ26 -> 5 | C29: =国語得点!BK26 -> 三 一文目 | D29: =国語得点!BL26 -> 書くこと | I29: =IF(国語!$AA$9=国語!$BF$35,"○","") ->  | J29: =IF(国語!$AA$9=国語!$BF$36,"○","") -> ○ | K29: =IF(国語!$AA$9=国語!$BF$37,"○","") ->  | L29: =IF(国語!$AA$9=国語!$BF$38,"○","") ->  | M29: =IF(国語!$AA$9=国語!$BF$39,"○","") ->  | Q29: =国語得点!X$60*100 -> 8.6 | R29: =国語!AA$66*100 -> 4.444444444 | S29: =IF($R29="","",$R29-$Q29) -> -4.155555556
A30: 24 | B30: =国語得点!BJ27 -> 5 | C30: =国語得点!BK27 -> 三 二文目 | D30: =国語得点!BL27 -> 書くこと | I30: =IF(国語!$AB$9=国語!$BF$35,"○","") ->  | J30: =IF(国語!$AB$9=国語!$BF$36,"○","") -> ○ | K30: =IF(国語!$AB$9=国語!$BF$37,"○","") ->  | L30: =IF(国語!$AB$9=国語!$BF$38,"○","") ->  | M30: =IF(国語!$AB$9=国語!$BF$39,"○","") ->  | Q30: =国語得点!Y$60*100 -> 11.3 | R30: =国語!AB$66*100 -> 2.222222222 | S30: =IF($R30="","",$R30-$Q30) -> -9.077777778
A31: 25 | B31: =国語得点!BJ28 -> 5 | C31: =国語得点!BK28 -> 四 | D31: =国語得点!BL28 -> 書くこと | I31: =IF(国語!$AC$9=国語!$BF$35,"○","") ->  | J31: =IF(国語!$AC$9=国語!$BF$36,"○","") -> ○ | K31: =IF(国語!$AC$9=国語!$BF$37,"○","") ->  | L31: =IF(国語!$AC$9=国語!$BF$38,"○","") ->  | M31: =IF(国語!$AC$9=国語!$BF$39,"○","") ->  | Q31: =国語得点!Z$60*100 -> 1.7 | R31: =国語!AC$66*100 -> 0 | S31: =IF($R31="","",$R31-$Q31) -> -1.7
A32: 26 | B32: =国語得点!BJ29 -> 0 | C32: =国語得点!BK29 -> 0 | D32: =国語得点!BL29 -> 0 | I32: =IF(国語!$AD$9=国語!$BF$35,"○","") ->  | J32: =IF(国語!$AD$9=国語!$BF$36,"○","") ->  | K32: =IF(国語!$AD$9=国語!$BF$37,"○","") ->  | L32: =IF(国語!$AD$9=国語!$BF$38,"○","") ->  | M32: =IF(国語!$AD$9=国語!$BF$39,"○","") ->  | Q32: =国語得点!AA$60*100 -> 0 | R32: =国語!AD$66*100 ->  | S32: =IF($R32="","",$R32-$Q32) -> 
A33: 27 | B33: =国語得点!BJ30 -> 0 | C33: =国語得点!BK30 -> 0 | D33: =国語得点!BL30 -> 0 | I33: =IF(国語!$AE$9=国語!$BF$35,"○","") ->  | J33: =IF(国語!$AE$9=国語!$BF$36,"○","") ->  | K33: =IF(国語!$AE$9=国語!$BF$37,"○","") ->  | L33: =IF(国語!$AE$9=国語!$BF$38,"○","") ->  | M33: =IF(国語!$AE$9=国語!$BF$39,"○","") ->  | Q33: =国語得点!AB$60*100 -> 0 | R33: =国語!AE$66*100 -> 
A34: 28 | B34: =国語得点!BJ31 -> 0 | C34: =国語得点!BK31 -> 0 | D34: =国語得点!BL31 -> 0 | I34: =IF(国語!$AF$9=国語!$BF$35,"○","") ->  | J34: =IF(国語!$AF$9=国語!$BF$36,"○","") ->  | K34: =IF(国語!$AF$9=国語!$BF$37,"○","") ->  | L34: =IF(国語!$AF$9=国語!$BF$38,"○","") ->  | M34: =IF(国語!$AF$9=国語!$BF$39,"○","") ->  | Q34: =国語得点!AC$60*100 -> 0 | R34: =国語!AF$66*100 -> 
A35: 29 | B35: =国語得点!BJ32 -> 0 | C35: =国語得点!BK32 -> 0 | D35: =国語得点!BL32 -> 0 | I35: =IF(国語!$AG$9=国語!$BF$35,"○","") ->  | J35: =IF(国語!$AG$9=国語!$BF$36,"○","") ->  | K35: =IF(国語!$AG$9=国語!$BF$37,"○","") ->  | L35: =IF(国語!$AG$9=国語!$BF$38,"○","") ->  | M35: =IF(国語!$AG$9=国語!$BF$39,"○","") ->  | Q35: =国語得点!AD$60*100 -> 0 | R35: =国語!AG$66*100 -> 
A36: 30 | B36: =国語得点!BJ33 -> 0 | C36: =国語得点!BK33 -> 0 | D36: =国語得点!BL33 -> 0 | I36: =IF(国語!$AH$9=国語!$BF$35,"○","") ->  | J36: =IF(国語!$AH$9=国語!$BF$36,"○","") ->  | K36: =IF(国語!$AH$9=国語!$BF$37,"○","") ->  | L36: =IF(国語!$AH$9=国語!$BF$38,"○","") ->  | M36: =IF(国語!$AH$9=国語!$BF$39,"○","") ->  | Q36: =国語得点!AE$60*100 -> 0 | R36: =国語!AH$66*100 -> 
A37: 31 | B37: =国語得点!BJ34 -> 0 | C37: =国語得点!BK34 -> 0 | D37: =国語得点!BL34 -> 0 | I37: =IF(国語!$AI$9=国語!$BF$35,"○","") ->  | J37: =IF(国語!$AI$9=国語!$BF$36,"○","") ->  | K37: =IF(国語!$AI$9=国語!$BF$37,"○","") ->  | L37: =IF(国語!$AI$9=国語!$BF$38,"○","") ->  | M37: =IF(国語!$AI$9=国語!$BF$39,"○","") ->  | Q37: =国語得点!AF$60*100 -> 0 | R37: =国語!AI$66*100 -> 
A38: 32 | B38: =国語得点!BJ35 -> 0 | C38: =国語得点!BK35 -> 0 | D38: =国語得点!BL35 -> 0 | I38: =IF(国語!$AJ$9=国語!$BF$35,"○","") ->  | J38: =IF(国語!$AJ$9=国語!$BF$36,"○","") ->  | K38: =IF(国語!$AJ$9=国語!$BF$37,"○","") ->  | L38: =IF(国語!$AJ$9=国語!$BF$38,"○","") ->  | M38: =IF(国語!$AJ$9=国語!$BF$39,"○","") ->  | Q38: =国語得点!AG$60*100 -> 0 | R38: =国語!AJ$66*100 -> 
A39: 33 | B39: =国語得点!BJ36 -> 0 | C39: =国語得点!BK36 -> 0 | D39: =国語得点!BL36 -> 0 | I39: =IF(国語!$AK$9=国語!$BF$35,"○","") ->  | J39: =IF(国語!$AK$9=国語!$BF$36,"○","") ->  | K39: =IF(国語!$AK$9=国語!$BF$37,"○","") ->  | L39: =IF(国語!$AK$9=国語!$BF$38,"○","") ->  | M39: =IF(国語!$AK$9=国語!$BF$39,"○","") ->  | Q39: =国語得点!AH$60*100 -> 0 | R39: =国語!AK$66*100 -> 
A40: 34 | B40: =国語得点!BJ37 -> 0 | C40: =国語得点!BK37 -> 0 | D40: =国語得点!BL37 -> 0 | I40: =IF(国語!$AL$9=国語!$BF$35,"○","") ->  | J40: =IF(国語!$AL$9=国語!$BF$36,"○","") ->  | K40: =IF(国語!$AL$9=国語!$BF$37,"○","") ->  | L40: =IF(国語!$AL$9=国語!$BF$38,"○","") ->  | M40: =IF(国語!$AL$9=国語!$BF$39,"○","") ->  | Q40: =国語得点!AI$60*100 -> 0 | R40: =国語!AL$66*100 -> 
A41: 35 | B41: =国語得点!BJ38 -> 0 | C41: =国語得点!BK38 -> 0 | D41: =国語得点!BL38 -> 0 | I41: =IF(国語!$AM$9=国語!$BF$35,"○","") ->  | J41: =IF(国語!$AM$9=国語!$BF$36,"○","") ->  | K41: =IF(国語!$AM$9=国語!$BF$37,"○","") ->  | L41: =IF(国語!$AM$9=国語!$BF$38,"○","") ->  | M41: =IF(国語!$AM$9=国語!$BF$39,"○","") ->  | Q41: =国語得点!AJ$60*100 -> 0 | R41: =国語!AM$66*100 -> 
A42: 36 | B42: =国語得点!BJ39 -> 0 | C42: =国語得点!BK39 -> 0 | D42: =国語得点!BL39 -> 0 | I42: =IF(国語!$AN$9=国語!$BF$35,"○","") ->  | J42: =IF(国語!$AN$9=国語!$BF$36,"○","") ->  | K42: =IF(国語!$AN$9=国語!$BF$37,"○","") ->  | L42: =IF(国語!$AN$9=国語!$BF$38,"○","") ->  | M42: =IF(国語!$AN$9=国語!$BF$39,"○","") ->  | Q42: =国語得点!AK$60*100 -> 0 | R42: =国語!AN$66*100 ->  | S42: =IF($R42="","",$R42-$Q42) -> 
A43: 37 | B43: =国語得点!BJ40 -> 0 | C43: =国語得点!BK40 -> 0 | D43: =国語得点!BL40 -> 0 | I43: =IF(国語!$AO$9=国語!$BF$35,"○","") ->  | J43: =IF(国語!$AO$9=国語!$BF$36,"○","") ->  | K43: =IF(国語!$AO$9=国語!$BF$37,"○","") ->  | L43: =IF(国語!$AO$9=国語!$BF$38,"○","") ->  | M43: =IF(国語!$AO$9=国語!$BF$39,"○","") ->  | Q43: =国語得点!AL$60*100 -> 0 | R43: =国語!AO$66*100 -> 
A44: 38 | B44: =国語得点!BJ41 -> 0 | C44: =国語得点!BK41 -> 0 | D44: =国語得点!BL41 -> 0 | I44: =IF(国語!$AP$9=国語!$BF$35,"○","") ->  | J44: =IF(国語!$AP$9=国語!$BF$36,"○","") ->  | K44: =IF(国語!$AP$9=国語!$BF$37,"○","") ->  | L44: =IF(国語!$AP$9=国語!$BF$38,"○","") ->  | M44: =IF(国語!$AP$9=国語!$BF$39,"○","") ->  | Q44: =国語得点!AM$60*100 -> 0 | R44: =国語!AP$66*100 -> 
A45: 39 | B45: =国語得点!BJ42 -> 0 | C45: =国語得点!BK42 -> 0 | D45: =国語得点!BL42 -> 0 | I45: =IF(国語!$AQ$9=国語!$BF$35,"○","") ->  | J45: =IF(国語!$AQ$9=国語!$BF$36,"○","") ->  | K45: =IF(国語!$AQ$9=国語!$BF$37,"○","") ->  | L45: =IF(国語!$AQ$9=国語!$BF$38,"○","") ->  | M45: =IF(国語!$AQ$9=国語!$BF$39,"○","") ->  | Q45: =国語得点!AN$60*100 -> 0 | R45: =国語!AQ$66*100 -> 
A46: 40 | B46: =国語得点!BJ43 -> 0 | C46: =国語得点!BK43 -> 0 | D46: =国語得点!BL43 -> 0 | I46: =IF(国語!$AR$9=国語!$BF$35,"○","") ->  | J46: =IF(国語!$AR$9=国語!$BF$36,"○","") ->  | K46: =IF(国語!$AR$9=国語!$BF$37,"○","") ->  | L46: =IF(国語!$AR$9=国語!$BF$38,"○","") ->  | M46: =IF(国語!$AR$9=国語!$BF$39,"○","") ->  | Q46: =国語得点!AO$60*100 -> 0 | R46: =国語!AR$66*100 -> 
A47: 41 | B47: =国語得点!BJ44 -> 0 | C47: =国語得点!BK44 -> 0 | D47: =国語得点!BL44 -> 0 | I47: =IF(国語!$AS$9=国語!$BF$35,"○","") ->  | J47: =IF(国語!$AS$9=国語!$BF$36,"○","") ->  | K47: =IF(国語!$AS$9=国語!$BF$37,"○","") ->  | L47: =IF(国語!$AS$9=国語!$BF$38,"○","") ->  | M47: =IF(国語!$AS$9=国語!$BF$39,"○","") ->  | Q47: =国語得点!AP$60*100 -> 0 | R47: =国語!AS$66*100 -> 
A48: 42 | B48: =国語得点!BJ45 -> 0 | C48: =国語得点!BK45 -> 0 | D48: =国語得点!BL45 -> 0 | I48: =IF(国語!$AT$9=国語!$BF$35,"○","") ->  | J48: =IF(国語!$AT$9=国語!$BF$36,"○","") ->  | K48: =IF(国語!$AT$9=国語!$BF$37,"○","") ->  | L48: =IF(国語!$AT$9=国語!$BF$38,"○","") ->  | M48: =IF(国語!$AT$9=国語!$BF$39,"○","") ->  | Q48: =国語得点!AQ$60*100 -> 0 | R48: =国語!AT$66*100 -> 
A49: 43 | B49: =国語得点!BJ46 -> 0 | C49: =国語得点!BK46 -> 0 | D49: =国語得点!BL46 -> 0 | I49: =IF(国語!$AU$9=国語!$BF$35,"○","") ->  | J49: =IF(国語!$AU$9=国語!$BF$36,"○","") ->  | K49: =IF(国語!$AU$9=国語!$BF$37,"○","") ->  | L49: =IF(国語!$AU$9=国語!$BF$38,"○","") ->  | M49: =IF(国語!$AU$9=国語!$BF$39,"○","") ->  | Q49: =国語得点!AR$60*100 -> 0 | R49: =国語!AU$66*100 -> 
A50: 44 | B50: =国語得点!BJ47 -> 0 | C50: =国語得点!BK47 -> 0 | D50: =国語得点!BL47 -> 0 | I50: =IF(国語!$AV$9=国語!$BF$35,"○","") ->  | J50: =IF(国語!$AV$9=国語!$BF$36,"○","") ->  | K50: =IF(国語!$AV$9=国語!$BF$37,"○","") ->  | L50: =IF(国語!$AV$9=国語!$BF$38,"○","") ->  | M50: =IF(国語!$AV$9=国語!$BF$39,"○","") ->  | Q50: =国語得点!AS$60*100 -> 0 | R50: =国語!AV$66*100 -> 
A51: 45 | B51: =国語得点!BJ48 -> 0 | C51: =国語得点!BK48 -> 0 | D51: =国語得点!BL48 -> 0 | I51: =IF(国語!$AW$9=国語!$BF$35,"○","") ->  | J51: =IF(国語!$AW$9=国語!$BF$36,"○","") ->  | K51: =IF(国語!$AW$9=国語!$BF$37,"○","") ->  | L51: =IF(国語!$AW$9=国語!$BF$38,"○","") ->  | M51: =IF(国語!$AW$9=国語!$BF$39,"○","") ->  | Q51: =国語得点!AT$60*100 -> 0 | R51: =国語!AW$66*100 -> 
A52: 46 | B52: =国語得点!BJ49 -> 0 | C52: =国語得点!BK49 -> 0 | D52: =国語得点!BL49 -> 0 | I52: =IF(国語!$AX$9=国語!$BF$35,"○","") ->  | J52: =IF(国語!$AX$9=国語!$BF$36,"○","") ->  | K52: =IF(国語!$AX$9=国語!$BF$37,"○","") ->  | L52: =IF(国語!$AX$9=国語!$BF$38,"○","") ->  | M52: =IF(国語!$AX$9=国語!$BF$39,"○","") ->  | Q52: =国語得点!AU$60*100 -> 0 | R52: =国語!AX$66*100 -> 
A53: 47 | B53: =国語得点!BJ50 -> 0 | C53: =国語得点!BK50 -> 0 | D53: =国語得点!BL50 -> 0 | I53: =IF(国語!$AY$9=国語!$BF$35,"○","") ->  | J53: =IF(国語!$AY$9=国語!$BF$36,"○","") ->  | K53: =IF(国語!$AY$9=国語!$BF$37,"○","") ->  | L53: =IF(国語!$AY$9=国語!$BF$38,"○","") ->  | M53: =IF(国語!$AY$9=国語!$BF$39,"○","") ->  | Q53: =国語得点!AV$60*100 -> 0 | R53: =国語!AY$66*100 -> 
A54: 48 | B54: =国語得点!BJ51 -> 0 | C54: =国語得点!BK51 -> 0 | D54: =国語得点!BL51 -> 0 | I54: =IF(国語!$AZ$9=国語!$BF$35,"○","") ->  | J54: =IF(国語!$AZ$9=国語!$BF$36,"○","") ->  | K54: =IF(国語!$AZ$9=国語!$BF$37,"○","") ->  | L54: =IF(国語!$AZ$9=国語!$BF$38,"○","") ->  | M54: =IF(国語!$AZ$9=国語!$BF$39,"○","") ->  | Q54: =国語得点!AW$60*100 -> 0 | R54: =国語!AZ$66*100 -> 
A55: 49 | B55: =国語得点!BJ52 -> 0 | C55: =国語得点!BK52 -> 0 | D55: =国語得点!BL52 -> 0 | I55: =IF(国語!$BA$9=国語!$BF$35,"○","") ->  | J55: =IF(国語!$BA$9=国語!$BF$36,"○","") ->  | K55: =IF(国語!$BA$9=国語!$BF$37,"○","") ->  | L55: =IF(国語!$BA$9=国語!$BF$38,"○","") ->  | M55: =IF(国語!$BA$9=国語!$BF$39,"○","") ->  | Q55: =国語得点!AX$60*100 -> 0 | R55: =国語!BA$66*100 -> 
A56: 50 | B56: =国語得点!BJ53 -> 0 | C56: =国語得点!BK53 -> 0 | D56: =国語得点!BL53 -> 0 | I56: =IF(国語!$BB$9=国語!$BF$35,"○","") ->  | J56: =IF(国語!$BB$9=国語!$BF$36,"○","") ->  | K56: =IF(国語!$BB$9=国語!$BF$37,"○","") ->  | L56: =IF(国語!$BB$9=国語!$BF$38,"○","") ->  | M56: =IF(国語!$BB$9=国語!$BF$39,"○","") ->  | Q56: =国語得点!AY$60*100 -> 0 | R56: =国語!BB$66*100 -> 
A57: 平均

Sheet ⑦国語の平均点⑧国語の得点別分布
A1: ⑦国語の平均点⑧国語の得点別分布
A5: ◆国語
B6: 平均点
B7: 富山県（ア） | C7: 自校(イ) | D7: 県との差（イーア）
A8: 国語 | B8: =国語!BJ23 -> 70.6 | C8: =国語!BG23 -> 48.35555556 | D8: =C8-B8 -> -22.24444444
A12: ◆国語
A13: 得点分布 | B13: 富山県％（ア） | C13: 自校％(イ) | D13: 県との差(イーア)
A14: 0点 | B14: =国語!BJ20 -> 0 | C14: =国語!BH20*100 -> 2.222222222 | D14: =IF($C14="","",$C14-$B14) -> 2.222222222
A15: １～９点 | B15: =国語!BJ19 -> 0.3 | C15: =国語!BH19*100 -> 6.666666667 | D15: =IF($C15="","",$C15-$B15) -> 6.366666667
A16: １０～１９点 | B16: =国語!BJ18 -> 0.5 | C16: =国語!BH18*100 -> 8.888888889 | D16: 8.388888889
A17: ２０～２９点 | B17: =国語!BJ17 -> 1.8 | C17: =国語!BH17*100 -> 13.33333333 | D17: 11.53333333
A18: ３０～３９点 | B18: =国語!BJ16 -> 2.2 | C18: =国語!BH16*100 -> 8.888888889 | D18: 6.688888889
A19: ４０～４９点 | B19: =国語!BJ15 -> 7 | C19: =国語!BH15*100 -> 13.33333333 | D19: 6.333333333
A20: ５０～５９点 | B20: =国語!BJ14 -> 8.2 | C20: =国語!BH14*100 -> 8.888888889 | D20: 0.6888888889
A21: ６０～６９点 | B21: =国語!BJ13 -> 23.5 | C21: =国語!BH13*100 -> 13.33333333 | D21: -10.16666667
A22: ７０～７９点 | B22: =国語!BJ12 -> 19.7 | C22: =国語!BH12*100 -> 2.222222222 | D22: -17.47777778
A23: ８０～８９点 | B23: =国語!BJ11 -> 26.9 | C23: =国語!BH11*100 -> 15.55555556 | D23: -11.34444444
A24: ９０～９９点 | B24: =国語!BJ10 -> 8.8 | C24: =国語!BH10*100 -> 4.444444444 | D24: -4.355555556
A25: 100点 | B25: =国語!BJ9 -> 1.2 | C25: =国語!BH9*100 -> 2.222222222 | D25: 1.022222222

Sheet 国語
A1: ６年国語（正誤） | I1: クラス名 | W1: 受検者数 | AB1: =BG30 -> 45 | AH1: 配点合計 | AM1: =SUM(E10:BB10) -> 100 | AS1: 問題数 | AX1: =COUNT(E10:BB10) -> 25
A2: ※『男女』の欄には、男子「0」及び女子「1」を入力してください。
A3: ※正答を「1」、誤答を「2」、無答を「3」で入力してください。
C4: 問題№ | E4: 1 | F4: 1 | G4: 1 | H4: 1 | I4: 1 | J4: 1 | K4: 1 | L4: 1 | M4: 2 | N4: 2 | O4: 3 | P4: 3 | Q4: 4 | R4: 4 | S4: 4 | T4: 4 | U4: 4 | V4: 4 | W4: 4 | X4: 4 | Y4: 5 | Z4: 5 | AA4: 5 | AB4: 5 | AC4: 5
C5: 小問№ | E5: 一 | F5: 一 | G5: 一 | H5: 一 | I5: 二 | J5: 二 | K5: 二 | L5: 二 | M5: 一 | N5: 二 | O5: 一 | P5: 二 | Q5: 一 | R5: 二 | S5: 二 | T5: 三 | U5: 三 | V5: 四 | W5: 五 | X5: 五 | Y5: 一 | Z5: 二 | AA5: 三 | AB5: 三 | AC5: 四
E6: ⑴ | F6: ⑵ | G6: ⑶ | H6: ⑷ | I6: ⑴ | J6: ⑵ | K6: ⑶ | L6: ⑷ | R6: Ａ | S6: Ｂ | T6: ① | U6: ② | W6: ① | X6: ② | AA6: 一文目 | AB6: 二文目
C7: ◎…活用する力をみる問題 ★…経年比較問題 ※…複数学年共通問題 | G7: ★ | J7: ※ | M7: ★ | Y7: ◎ | AA7: ◎ | AB7: ◎ | AC7: ◎ | BJ7: 富山県の 分布率％
C8: 通し番号 | E8: 1 | F8: 2 | G8: 3 | H8: 4 | I8: 5 | J8: 6 | K8: 7 | L8: 8 | M8: 9 | N8: 10 | O8: 11 | P8: 12 | Q8: 13 | R8: 14 | S8: 15 | T8: 16 | U8: 17 | V8: 18 | W8: 19 | X8: 20 | Y8: 21 | Z8: 22 | AA8: 23 | AB8: 24 | AC8: 25 | AD8: 26 | AE8: 27 | AF8: 28 | AG8: 29 | AH8: 30 | AI8: 31 | AJ8: 32 | AK8: 33 | AL8: 34 | AM8: 35 | AN8: 36 | AO8: 37 | AP8: 38 | AQ8: 39 | AR8: 40 | AS8: 41 | AT8: 42 | AU8: 43 | AV8: 44 | AW8: 45 | AX8: 46 | AY8: 47 | AZ8: 48 | BA8: 49 | BB8: 50 | BF8: 得点分布 | BG8: 分布人数 | BH8: 分布率
A9: № | C9: 男 名 | D9: 観点 | E9: 知・技 | F9: 知・技 | G9: 知・技 | H9: 知・技 | I9: 知・技 | J9: 知・技 | K9: 知・技 | L9: 知・技 | M9: 知・技 | N9: 知・技 | O9: 知・技 | P9: 知・技 | Q9: 思判表 | R9: 思判表 | S9: 思判表 | T9: 思判表 | U9: 思判表 | V9: 思判表 | W9: 思判表 | X9: 思判表 | Y9: 思判表 | Z9: 思判表 | AA9: 思判表 | AB9: 思判表 | AC9: 思判表 | BC9: 計算結果 | BD9: 正答数 | BF9: 100 | BG9: =COUNTIF(BC11:BC55,100) -> 1 | BH9: =BG9/BG$21 -> 0.02222222222 | BJ9: 1.2
C10: 女 前 | D10: 配点 | E10: 4 | F10: 4 | G10: 4 | H10: 4 | I10: 4 | J10: 4 | K10: 4 | L10: 4 | M10: 4 | N10: 4 | O10: 4 | P10: 4 | Q10: 4 | R10: 4 | S10: 4 | T10: 4 | U10: 4 | V10: 4 | W10: 4 | X10: 4 | Y10: 4 | Z10: 4 | AA10: 4 | AB10: 4 | AC10: 4 | BF10: 90～99 | BG10: =COUNTIF(BC11:BC55,99)+COUNTIF(BC11:BC55,98)+COUNTIF(BC11:BC55,97)+COUNTIF(BC11:BC55,96)+COUNTIF(BC11:BC55,95)+COUNTIF(BC11:BC55,94)+COUNTIF(BC11:BC55,93)+COUNTIF(BC11:BC55,92)+COUNTIF(BC11:BC55,91)+COUNTIF(BC11:BC55,90) -> 2 | BH10: =BG10/BG$21 -> 0.04444444444 | BJ10: 8.8
A11: 1 | C11: 0 | D11: 01あ | E11: 1 | F11: 1 | G11: 1 | H11: 1 | I11: 1 | J11: 1 | K11: 1 | L11: 1 | M11: 1 | N11: 1 | O11: 1 | P11: 1 | Q11: 1 | R11: 1 | S11: 1 | T11: 1 | U11: 1 | V11: 1 | W11: 1 | X11: 1 | Y11: 1 | Z11: 1 | AA11: 1 | AB11: 1 | AC11: 1 | BC11: =[1]国語得点!AZ4 -> 100 | BD11: =COUNTIF(E11:BB11,1) -> 25 | BF11: 80～89 | BG11: =COUNTIF(BC11:BC55,89)+COUNTIF(BC11:BC55,88)+COUNTIF(BC11:BC55,87)+COUNTIF(BC11:BC55,86)+COUNTIF(BC11:BC55,85)+COUNTIF(BC11:BC55,84)+COUNTIF(BC11:BC55,83)+COUNTIF(BC11:BC55,82)+COUNTIF(BC11:BC55,81)+COUNTIF(BC11:BC55,80) -> 7 | BH11: 0.1555555556 | BJ11: 26.9
A12: 2 | C12: 1 | D12: 2あ | E12: 2 | F12: 1 | G12: 1 | H12: 1 | I12: 1 | J12: 1 | K12: 1 | L12: 1 | M12: 1 | N12: 1 | O12: 1 | P12: 1 | Q12: 1 | R12: 1 | S12: 1 | T12: 1 | U12: 1 | V12: 1 | W12: 1 | X12: 1 | Y12: 1 | Z12: 1 | AA12: 1 | AB12: 1 | AC12: 1 | BC12: =[1]国語得点!AZ5 -> 96 | BD12: =COUNTIF(E12:BB12,1) -> 24 | BF12: 70～79 | BG12: =COUNTIF(BC11:BC55,79)+COUNTIF(BC11:BC55,78)+COUNTIF(BC11:BC55,77)+COUNTIF(BC11:BC55,76)+COUNTIF(BC11:BC55,75)+COUNTIF(BC11:BC55,74)+COUNTIF(BC11:BC55,73)+COUNTIF(BC11:BC55,72)+COUNTIF(BC11:BC55,71)+COUNTIF(BC11:BC55,70) -> 1 | BH12: 0.02222222222 | BJ12: 19.7
A13: 3 | C13: 0 | D13: 3あ | E13: 3 | F13: 2 | G13: 1 | H13: 1 | I13: 1 | J13: 1 | K13: 1 | L13: 1 | M13: 1 | N13: 1 | O13: 1 | P13: 1 | Q13: 1 | R13: 1 | S13: 1 | T13: 1 | U13: 1 | V13: 1 | W13: 1 | X13: 1 | Y13: 1 | Z13: 1 | AA13: 1 | AB13: 1 | AC13: 1 | BC13: =[1]国語得点!AZ6 -> 92 | BD13: 23 | BF13: 60～69 | BG13: =COUNTIF(BC11:BC55,69)+COUNTIF(BC11:BC55,68)+COUNTIF(BC11:BC55,67)+COUNTIF(BC11:BC55,66)+COUNTIF(BC11:BC55,65)+COUNTIF(BC11:BC55,64)+COUNTIF(BC11:BC55,63)+COUNTIF(BC11:BC55,62)+COUNTIF(BC11:BC55,61)+COUNTIF(BC11:BC55,60) -> 6 | BH13: 0.1333333333 | BJ13: 23.5
A14: 4 | C14: 1 | D14: 4あ | E14: 2 | F14: 2 | G14: 2 | H14: 1 | I14: 1 | J14: 1 | K14: 1 | L14: 1 | M14: 1 | N14: 1 | O14: 1 | P14: 1 | Q14: 1 | R14: 1 | S14: 1 | T14: 1 | U14: 1 | V14: 1 | W14: 1 | X14: 1 | Y14: 1 | Z14: 1 | AA14: 1 | AB14: 1 | AC14: 1 | BC14: =[1]国語得点!AZ7 -> 88 | BD14: 22 | BF14: 50～59 | BG14: =COUNTIF(BC11:BC55,59)+COUNTIF(BC11:BC55,58)+COUNTIF(BC11:BC55,57)+COUNTIF(BC11:BC55,56)+COUNTIF(BC11:BC55,55)+COUNTIF(BC11:BC55,54)+COUNTIF(BC11:BC55,53)+COUNTIF(BC11:BC55,52)+COUNTIF(BC11:BC55,51)+COUNTIF(BC11:BC55,50) -> 4 | BH14: 0.08888888889 | BJ14: 8.2
A15: 5 | C15: 0 | D15: 5あ | E15: 3 | F15: 2 | G15: 3 | H15: 2 | I15: 1 | J15: 1 | K15: 1 | L15: 1 | M15: 1 | N15: 1 | O15: 1 | P15: 1 | Q15: 1 | R15: 1 | S15: 1 | T15: 1 | U15: 1 | V15: 1 | W15: 1 | X15: 1 | Y15: 1 | Z15: 1 | AA15: 1 | AB15: 1 | AC15: 1 | BC15: =[1]国語得点!AZ8 -> 84 | BD15: 21 | BF15: 40～49 | BG15: =COUNTIF(BC11:BC55,49)+COUNTIF(BC11:BC55,48)+COUNTIF(BC11:BC55,47)+COUNTIF(BC11:BC55,46)+COUNTIF(BC11:BC55,45)+COUNTIF(BC11:BC55,44)+COUNTIF(BC11:BC55,43)+COUNTIF(BC11:BC55,42)+COUNTIF(BC11:BC55,41)+COUNTIF(BC11:BC55,40) -> 6 | BH15: 0.1333333333 | BJ15: 7
A16: 6 | C16: 1 | D16: 6あ | E16: 2 | F16: 3 | G16: 2 | H16: 3 | I16: 2 | J16: 1 | K16: 1 | L16: 1 | M16: 1 | N16: 1 | O16: 1 | P16: 1 | Q16: 1 | R16: 1 | S16: 1 | T16: 1 | U16: 1 | V16: 1 | W16: 1 | X16: 1 | Y16: 1 | Z16: 1 | AA16: 1 | AB16: 1 | AC16: 1 | BC16: =[1]国語得点!AZ9 -> 80 | BD16: 20 | BF16: 30～39 | BG16: =COUNTIF(BC11:BC55,39)+COUNTIF(BC11:BC55,38)+COUNTIF(BC11:BC55,37)+COUNTIF(BC11:BC55,36)+COUNTIF(BC11:BC55,35)+COUNTIF(BC11:BC55,34)+COUNTIF(BC11:BC55,33)+COUNTIF(BC11:BC55,32)+COUNTIF(BC11:BC55,31)+COUNTIF(BC11:BC55,30) -> 4 | BH16: 0.08888888889 | BJ16: 2.2
A17: 7 | C17: 0 | D17: 7あ | E17: 3 | F17: 2 | G17: 3 | H17: 2 | I17: 3 | J17: 2 | K17: 1 | L17: 1 | M17: 1 | N17: 1 | O17: 1 | P17: 1 | Q17: 1 | R17: 1 | S17: 1 | T17: 1 | U17: 1 | V17: 1 | W17: 1 | X17: 1 | Y17: 1 | Z17: 1 | AA17: 1 | AB17: 1 | AC17: 1 | BC17: =[1]国語得点!AZ10 -> 76 | BD17: 19 | BF17: 20～29 | BG17: =COUNTIF(BC11:BC55,29)+COUNTIF(BC11:BC66,28)+COUNTIF(BC11:BC55,27)+COUNTIF(BC11:BC55,26)+COUNTIF(BC11:BC55,25)+COUNTIF(BC11:BC55,24)+COUNTIF(BC11:BC55,23)+COUNTIF(BC11:BC55,22)+COUNTIF(BC11:BC55,21)+COUNTIF(BC11:BC55,20) -> 6 | BH17: 0.1333333333 | BJ17: 1.8
A18: 8 | C18: 1 | D18: 8あ | E18: 2 | F18: 3 | G18: 2 | H18: 3 | I18: 2 | J18: 3 | K18: 2 | L18: 2 | M18: 2 | N18: 1 | O18: 1 | P18: 1 | Q18: 1 | R18: 1 | S18: 1 | T18: 1 | U18: 1 | V18: 1 | W18: 1 | X18: 1 | Y18: 1 | Z18: 1 | AA18: 1 | AB18: 1 | AC18: 1 | BC18: =[1]国語得点!AZ11 -> 64 | BD18: 16 | BF18: 10～19 | BG18: =COUNTIF(BC11:BC55,19)+COUNTIF(BC11:BC55,18)+COUNTIF(BC11:BC55,17)+COUNTIF(BC11:BC55,16)+COUNTIF(BC11:BC55,15)+COUNTIF(BC11:BC55,14)+COUNTIF(BC11:BC55,13)+COUNTIF(BC11:BC55,12)+COUNTIF(BC11:BC55,11)+COUNTIF(BC11:BC55,10) -> 4 | BH18: 0.08888888889 | BJ18: 0.5
A19: 9 | C19: 0 | D19: 9あ | E19: 3 | F19: 2 | G19: 3 | H19: 2 | I19: 3 | J19: 2 | K19: 3 | L19: 2 | M19: 3 | N19: 2 | O19: 1 | P19: 1 | Q19: 1 | R19: 1 | S19: 1 | T19: 1 | U19: 1 | V19: 1 | W19: 1 | X19: 1 | Y19: 1 | Z19: 1 | AA19: 1 | AB19: 1 | AC19: 1 | BC19: =[1]国語得点!AZ12 -> 60 | BD19: 15 | BF19: 1 ～ 9 | BG19: =COUNTIF(BC11:BC55,9)+COUNTIF(BC11:BC55,8)+COUNTIF(BC11:BC55,7)+COUNTIF(BC11:BC55,6)+COUNTIF(BC11:BC55,5)+COUNTIF(BC11:BC55,4)+COUNTIF(BC11:BC55,3)+COUNTIF(BC11:BC55,2)+COUNTIF(BC11:BC55,1) -> 3 | BH19: 0.06666666667 | BJ19: 0.3
A20: 10 | C20: 1 | D20: 10あ | E20: 2 | F20: 3 | G20: 2 | H20: 3 | I20: 2 | J20: 3 | K20: 2 | L20: 3 | M20: 2 | N20: 3 | O20: 2 | P20: 1 | Q20: 1 | R20: 1 | S20: 1 | T20: 1 | U20: 1 | V20: 1 | W20: 1 | X20: 1 | Y20: 1 | Z20: 1 | AA20: 1 | AB20: 1 | AC20: 1 | BC20: =[1]国語得点!AZ13 -> 56 | BD20: 14 | BF20: 0 | BG20: =BG30-SUM(BG9:BG19) -> 1 | BH20: 0.02222222222 | BJ20: 0
A21: 11 | C21: 0 | D21: 11あ | E21: 3 | F21: 2 | G21: 3 | H21: 2 | I21: 3 | J21: 2 | K21: 3 | L21: 2 | M21: 3 | N21: 2 | O21: 3 | P21: 2 | Q21: 1 | R21: 1 | S21: 1 | T21: 1 | U21: 1 | V21: 1 | W21: 1 | X21: 1 | Y21: 1 | Z21: 1 | AA21: 1 | AB21: 1 | AC21: 1 | BC21: =[1]国語得点!AZ14 -> 52 | BD21: 13 | BF21: 集計人数計 | BG21: =SUM(BG9:BG20) -> 45
A22: 12 | C22: 1 | D22: 12あ | E22: 2 | F22: 3 | G22: 2 | H22: 3 | I22: 2 | J22: 3 | K22: 2 | L22: 3 | M22: 2 | N22: 3 | O22: 2 | P22: 3 | Q22: 2 | R22: 1 | S22: 1 | T22: 1 | U22: 1 | V22: 1 | W22: 1 | X22: 1 | Y22: 1 | Z22: 1 | AA22: 1 | AB22: 1 | AC22: 1 | BC22: =[1]国語得点!AZ15 -> 48 | BD22: 12 | BF22: 得点合計 | BG22: =SUM(BC11:BC55) -> 2176 | BI22: 富山県の 平均点
A23: 13 | C23: 0 | D23: 13あ | E23: 3 | F23: 2 | G23: 3 | H23: 2 | I23: 3 | J23: 2 | K23: 3 | L23: 2 | M23: 3 | N23: 2 | O23: 3 | P23: 2 | Q23: 3 | R23: 2 | S23: 1 | T23: 1 | U23: 1 | V23: 1 | W23: 1 | X23: 1 | Y23: 1 | Z23: 1 | AA23: 1 | AB23: 1 | AC23: 1 | BC23: =[1]国語得点!AZ16 -> 44 | BD23: 11 | BF23: 平均点 | BG23: =BG22/BG21 -> 48.35555556 | BJ23: 70.6
A24: 14 | C24: 1 | D24: 14あ | E24: 2 | F24: 3 | G24: 2 | H24: 3 | I24: 2 | J24: 3 | K24: 2 | L24: 3 | M24: 2 | N24: 3 | O24: 2 | P24: 3 | Q24: 2 | R24: 3 | S24: 2 | T24: 1 | U24: 1 | V24: 1 | W24: 1 | X24: 1 | Y24: 1 | Z24: 1 | AA24: 1 | AB24: 1 | AC24: 1 | BC24: =[1]国語得点!AZ17 -> 40 | BD24: 10
A25: 15 | C25: 0 | D25: 15あ | E25: 3 | F25: 2 | G25: 3 | H25: 2 | I25: 3 | J25: 2 | K25: 3 | L25: 2 | M25: 3 | N25: 2 | O25: 3 | P25: 2 | Q25: 3 | R25: 2 | S25: 3 | T25: 2 | U25: 1 | V25: 1 | W25: 1 | X25: 1 | Y25: 1 | Z25: 1 | AA25: 1 | AB25: 1 | AC25: 1 | BC25: =[1]国語得点!AZ18 -> 36 | BD25: 9
A26: 16 | C26: 1 | D26: 16あ | E26: 2 | F26: 3 | G26: 2 | H26: 3 | I26: 2 | J26: 3 | K26: 2 | L26: 3 | M26: 2 | N26: 3 | O26: 2 | P26: 3 | Q26: 2 | R26: 3 | S26: 2 | T26: 3 | U26: 2 | V26: 1 | W26: 1 | X26: 1 | Y26: 1 | Z26: 1 | AA26: 1 | AB26: 1 | AC26: 1 | BC26: =[1]国語得点!AZ19 -> 32 | BD26: 8
A27: 17 | C27: 0 | D27: 17あ | E27: 3 | F27: 2 | G27: 3 | H27: 2 | I27: 3 | J27: 2 | K27: 3 | L27: 2 | M27: 3 | N27: 2 | O27: 3 | P27: 2 | Q27: 3 | R27: 2 | S27: 3 | T27: 2 | U27: 3 | V27: 2 | W27: 1 | X27: 1 | Y27: 1 | Z27: 1 | AA27: 1 | AB27: 1 | AC27: 1 | BC27: =[1]国語得点!AZ20 -> 28 | BD27: 7 | BF27: 男女別人数
A28: 18 | C28: 1 | D28: 18あ | E28: 2 | F28: 3 | G28: 2 | H28: 3 | I28: 2 | J28: 3 | K28: 2 | L28: 3 | M28: 2 | N28: 3 | O28: 2 | P28: 3 | Q28: 2 | R28: 3 | S28: 2 | T28: 3 | U28: 2 | V28: 3 | W28: 2 | X28: 1 | Y28: 1 | Z28: 1 | AA28: 1 | AB28: 1 | AC28: 1 | BC28: =[1]国語得点!AZ21 -> 24 | BD28: 6 | BF28: 男 子 | BG28: =COUNTIF(C11:C55,0) -> 23
A29: 19 | C29: 0 | D29: 19あ | E29: 3 | F29: 2 | G29: 3 | H29: 2 | I29: 3 | J29: 2 | K29: 3 | L29: 2 | M29: 3 | N29: 2 | O29: 3 | P29: 2 | Q29: 3 | R29: 2 | S29: 3 | T29: 2 | U29: 3 | V29: 2 | W29: 3 | X29: 2 | Y29: 1 | Z29: 1 | AA29: 1 | AB29: 1 | AC29: 1 | BC29: =[1]国語得点!AZ22 -> 20 | BD29: 5 | BF29: 女 子 | BG29: =COUNTIF(C11:C55,1) -> 22
A30: 20 | C30: 1 | D30: 20あ | E30: 2 | F30: 3 | G30: 2 | H30: 3 | I30: 2 | J30: 3 | K30: 2 | L30: 3 | M30: 2 | N30: 3 | O30: 2 | P30: 3 | Q30: 2 | R30: 3 | S30: 2 | T30: 3 | U30: 2 | V30: 3 | W30: 2 | X30: 3 | Y30: 3 | Z30: 1 | AA30: 1 | AB30: 1 | AC30: 1 | BC30: =[1]国語得点!AZ23 -> 16 | BD30: 4 | BF30: 計 | BG30: =SUM(BG28:BG29) -> 45
A31: 21 | C31: 0 | D31: 21あ | E31: 3 | F31: 2 | G31: 3 | H31: 2 | I31: 3 | J31: 2 | K31: 3 | L31: 2 | M31: 3 | N31: 2 | O31: 3 | P31: 2 | Q31: 3 | R31: 2 | S31: 2 | T31: 2 | U31: 3 | V31: 2 | W31: 3 | X31: 2 | Y31: 2 | Z31: 3 | AA31: 1 | AB31: 1 | AC31: 1 | BC31: =[1]国語得点!AZ24 -> 12 | BD31: 3
A32: 22 | C32: 1 | D32: 22あ | E32: 2 | F32: 3 | G32: 2 | H32: 3 | I32: 2 | J32: 3 | K32: 2 | L32: 3 | M32: 2 | N32: 3 | O32: 2 | P32: 3 | Q32: 2 | R32: 3 | S32: 3 | T32: 3 | U32: 2 | V32: 2 | W32: 2 | X32: 3 | Y32: 3 | Z32: 2 | AA32: 3 | AB32: 1 | AC32: 1 | BC32: =[1]国語得点!AZ25 -> 8 | BD32: 2
A33: 23 | C33: 0 | D33: 23あ | E33: 3 | F33: 2 | G33: 3 | H33: 2 | I33: 3 | J33: 2 | K33: 3 | L33: 2 | M33: 3 | N33: 2 | O33: 3 | P33: 2 | Q33: 3 | R33: 2 | S33: 2 | T33: 2 | U33: 3 | V33: 3 | W33: 3 | X33: 2 | Y33: 2 | Z33: 3 | AA33: 2 | AB33: 3 | AC33: 2 | BC33: =[1]国語得点!AZ26 -> 0 | BD33: 0
A34: 24 | C34: 1 | D34: 24あ | E34: 2 | F34: 3 | G34: 2 | H34: 3 | I34: 2 | J34: 3 | K34: 2 | L34: 3 | M34: 2 | N34: 3 | O34: 2 | P34: 3 | Q34: 2 | R34: 3 | S34: 3 | T34: 3 | U34: 2 | V34: 2 | W34: 2 | X34: 3 | Y34: 3 | Z34: 2 | AA34: 3 | AB34: 2 | AC34: 1 | BC34: =[1]国語得点!AZ27 -> 4 | BD34: 1 | BF34: 観点別記号
A35: 25 | C35: 0 | D35: 25あ | E35: 3 | F35: 2 | G35: 3 | H35: 2 | I35: 3 | J35: 2 | K35: 3 | L35: 2 | M35: 3 | N35: 2 | O35: 3 | P35: 2 | Q35: 3 | R35: 2 | S35: 2 | T35: 2 | U35: 3 | V35: 2 | W35: 3 | X35: 2 | Y35: 2 | Z35: 3 | AA35: 2 | AB35: 1 | AC35: 1 | BC35: =[1]国語得点!AZ28 -> 8 | BD35: 2 | BF35: 知・技 | BG35: 知識・技能
A36: 26 | C36: 1 | D36: 26あ | E36: 2 | F36: 3 | G36: 2 | H36: 3 | I36: 2 | J36: 3 | K36: 2 | L36: 3 | M36: 2 | N36: 3 | O36: 2 | P36: 2 | Q36: 2 | R36: 3 | S36: 3 | T36: 3 | U36: 2 | V36: 2 | W36: 2 | X36: 3 | Y36: 3 | Z36: 2 | AA36: 1 | AB36: 1 | AC36: 1 | BC36: =[1]国語得点!AZ29 -> 12 | BD36: 3 | BF36: 思判表 | BG36: 思考・判断・表現
A37: 27 | C37: 0 | D37: 27あ | E37: 3 | F37: 2 | G37: 3 | H37: 2 | I37: 3 | J37: 2 | K37: 3 | L37: 2 | M37: 3 | N37: 2 | O37: 3 | P37: 3 | Q37: 3 | R37: 2 | S37: 2 | T37: 2 | U37: 3 | V37: 3 | W37: 3 | X37: 2 | Y37: 2 | Z37: 1 | AA37: 1 | AB37: 1 | AC37: 1 | BC37: =[1]国語得点!AZ30 -> 16 | BD37: 4 | BF37: - | BG37: -
A38: 28 | C38: 1 | D38: 28あ | E38: 2 | F38: 3 | G38: 2 | H38: 3 | I38: 2 | J38: 3 | K38: 2 | L38: 3 | M38: 2 | N38: 3 | O38: 2 | P38: 2 | Q38: 2 | R38: 3 | S38: 3 | T38: 3 | U38: 2 | V38: 2 | W38: 2 | X38: 3 | Y38: 1 | Z38: 1 | AA38: 1 | AB38: 1 | AC38: 1 | BC38: =[1]国語得点!AZ31 -> 20 | BD38: 5 | BF38: - | BG38: -
A39: 29 | C39: 0 | D39: 29あ | E39: 3 | F39: 2 | G39: 3 | H39: 2 | I39: 3 | J39: 2 | K39: 3 | L39: 2 | M39: 3 | N39: 2 | O39: 3 | P39: 2 | Q39: 3 | R39: 2 | S39: 2 | T39: 2 | U39: 3 | V39: 3 | W39: 3 | X39: 1 | Y39: 1 | Z39: 1 | AA39: 1 | AB39: 1 | AC39: 1 | BC39: =[1]国語得点!AZ32 -> 24 | BD39: 6 | BF39: - | BG39: -
A40: 30 | C40: 1 | D40: 30あ | E40: 2 | F40: 3 | G40: 2 | H40: 3 | I40: 2 | J40: 3 | K40: 2 | L40: 3 | M40: 2 | N40: 3 | O40: 2 | P40: 2 | Q40: 2 | R40: 2 | S40: 3 | T40: 3 | U40: 2 | V40: 3 | W40: 1 | X40: 1 | Y40: 1 | Z40: 1 | AA40: 1 | AB40: 1 | AC40: 1 | BC40: =[1]国語得点!AZ33 -> 28 | BD40: 7
A41: 31 | C41: 0 | D41: 31あ | E41: 3 | F41: 2 | G41: 3 | H41: 2 | I41: 3 | J41: 2 | K41: 3 | L41: 2 | M41: 3 | N41: 2 | O41: 3 | P41: 3 | Q41: 3 | R41: 3 | S41: 2 | T41: 2 | U41: 2 | V41: 1 | W41: 1 | X41: 1 | Y41: 1 | Z41: 1 | AA41: 1 | AB41: 1 | AC41: 1 | BC41: =[1]国語得点!AZ34 -> 32 | BD41: 8 | BF41: 観点数 | BG41: =SUMPRODUCT((BF35:BF39<>"")*1)-COUNTIF(BF35:BF39,"-") -> 2
A42: 32 | C42: 1 | D42: 32あ | E42: 2 | F42: 3 | G42: 2 | H42: 3 | I42: 2 | J42: 3 | K42: 2 | L42: 3 | M42: 2 | N42: 3 | O42: 2 | P42: 2 | Q42: 2 | R42: 2 | S42: 3 | T42: 3 | U42: 1 | V42: 1 | W42: 1 | X42: 1 | Y42: 1 | Z42: 1 | AA42: 1 | AB42: 1 | AC42: 1 | BC42: =[1]国語得点!AZ35 -> 36 | BD42: 9
A43: 33 | C43: 0 | D43: 33あ | E43: 3 | F43: 2 | G43: 3 | H43: 2 | I43: 3 | J43: 2 | K43: 3 | L43: 2 | M43: 3 | N43: 2 | O43: 3 | P43: 3 | Q43: 2 | R43: 3 | S43: 2 | T43: 1 | U43: 1 | V43: 1 | W43: 1 | X43: 1 | Y43: 1 | Z43: 1 | AA43: 1 | AB43: 1 | AC43: 1 | BC43: =[1]国語得点!AZ36 -> 40 | BD43: 10
A44: 34 | C44: 1 | D44: 34あ | E44: 2 | F44: 3 | G44: 2 | H44: 3 | I44: 2 | J44: 3 | K44: 2 | L44: 3 | M44: 2 | N44: 3 | O44: 2 | P44: 2 | Q44: 3 | R44: 2 | S44: 1 | T44: 1 | U44: 1 | V44: 1 | W44: 1 | X44: 1 | Y44: 1 | Z44: 1 | AA44: 1 | AB44: 1 | AC44: 1 | BC44: =[1]国語得点!AZ37 -> 44 | BD44: 11
A45: 35 | C45: 0 | D45: 35あ | E45: 3 | F45: 2 | G45: 3 | H45: 2 | I45: 3 | J45: 2 | K45: 3 | L45: 2 | M45: 3 | N45: 2 | O45: 3 | P45: 3 | Q45: 2 | R45: 1 | S45: 1 | T45: 1 | U45: 1 | V45: 1 | W45: 1 | X45: 1 | Y45: 1 | Z45: 1 | AA45: 1 | AB45: 1 | AC45: 1 | BC45: =[1]国語得点!AZ38 -> 48 | BD45: 12
A46: 36 | C46: 1 | D46: 36あ | E46: 2 | F46: 3 | G46: 2 | H46: 3 | I46: 2 | J46: 3 | K46: 2 | L46: 3 | M46: 2 | N46: 3 | O46: 2 | P46: 2 | Q46: 1 | R46: 1 | S46: 1 | T46: 1 | U46: 1 | V46: 1 | W46: 1 | X46: 1 | Y46: 1 | Z46: 1 | AA46: 1 | AB46: 1 | AC46: 1 | BC46: =[1]国語得点!AZ39 -> 52 | BD46: 13
A47: 37 | C47: 0 | D47: 37あ | E47: 3 | F47: 2 | G47: 3 | H47: 2 | I47: 3 | J47: 2 | K47: 3 | L47: 2 | M47: 3 | N47: 2 | O47: 3 | P47: 1 | Q47: 1 | R47: 1 | S47: 1 | T47: 1 | U47: 1 | V47: 1 | W47: 1 | X47: 1 | Y47: 1 | Z47: 1 | AA47: 1 | AB47: 1 | AC47: 1 | BC47: =[1]国語得点!AZ40 -> 56 | BD47: 14
A48: 38 | C48: 1 | D48: 38あ | E48: 2 | F48: 3 | G48: 2 | H48: 3 | I48: 2 | J48: 3 | K48: 2 | L48: 3 | M48: 2 | N48: 3 | O48: 1 | P48: 1 | Q48: 1 | R48: 1 | S48: 1 | T48: 1 | U48: 1 | V48: 1 | W48: 1 | X48: 1 | Y48: 1 | Z48: 1 | AA48: 1 | AB48: 1 | AC48: 1 | BC48: =[1]国語得点!AZ41 -> 60 | BD48: 15
A49: 39 | C49: 0 | D49: 39あ | E49: 3 | F49: 2 | G49: 3 | H49: 2 | I49: 3 | J49: 2 | K49: 3 | L49: 2 | M49: 3 | N49: 1 | O49: 1 | P49: 1 | Q49: 1 | R49: 1 | S49: 1 | T49: 1 | U49: 1 | V49: 1 | W49: 1 | X49: 1 | Y49: 1 | Z49: 1 | AA49: 1 | AB49: 1 | AC49: 1 | BC49: =[1]国語得点!AZ42 -> 64 | BD49: 16
A50: 40 | C50: 1 | D50: 40あ | E50: 2 | F50: 3 | G50: 2 | H50: 3 | I50: 2 | J50: 3 | K50: 2 | L50: 3 | M50: 1 | N50: 1 | O50: 1 | P50: 1 | Q50: 1 | R50: 1 | S50: 1 | T50: 1 | U50: 1 | V50: 1 | W50: 1 | X50: 1 | Y50: 1 | Z50: 1 | AA50: 1 | AB50: 1 | AC50: 1 | BC50: =[1]国語得点!AZ43 -> 68 | BD50: 17
A51: 41 | C51: 0 | D51: 41あ | E51: 3 | F51: 2 | G51: 3 | H51: 2 | I51: 3 | J51: 2 | K51: 3 | L51: 2 | M51: 1 | N51: 1 | O51: 1 | P51: 1 | Q51: 1 | R51: 1 | S51: 1 | T51: 1 | U51: 1 | V51: 1 | W51: 1 | X51: 1 | Y51: 1 | Z51: 1 | AA51: 1 | AB51: 1 | AC51: 1 | BC51: =[1]国語得点!AZ44 -> 68 | BD51: 17
A52: 42 | C52: 1 | D52: 42あ | E52: 1 | F52: 3 | G52: 2 | H52: 3 | I52: 2 | J52: 3 | K52: 1 | L52: 1 | M52: 1 | N52: 1 | O52: 1 | P52: 1 | Q52: 1 | R52: 1 | S52: 1 | T52: 1 | U52: 1 | V52: 1 | W52: 1 | X52: 1 | Y52: 1 | Z52: 1 | AA52: 1 | AB52: 1 | AC52: 1 | BC52: =[1]国語得点!AZ45 -> 80 | BD52: 20
A53: 43 | C53: 0 | D53: 43あ | E53: 3 | F53: 1 | G53: 3 | H53: 2 | I53: 3 | J53: 1 | K53: 1 | L53: 1 | M53: 1 | N53: 1 | O53: 1 | P53: 1 | Q53: 1 | R53: 1 | S53: 1 | T53: 1 | U53: 1 | V53: 1 | W53: 1 | X53: 1 | Y53: 1 | Z53: 1 | AA53: 1 | AB53: 1 | AC53: 1 | BC53: =[1]国語得点!AZ46 -> 84 | BD53: 21
A54: 44 | C54: 1 | D54: 44あ | E54: 2 | F54: 3 | G54: 1 | H54: 3 | I54: 1 | J54: 1 | K54: 1 | L54: 1 | M54: 1 | N54: 1 | O54: 1 | P54: 1 | Q54: 1 | R54: 1 | S54: 1 | T54: 1 | U54: 1 | V54: 1 | W54: 1 | X54: 1 | Y54: 1 | Z54: 1 | AA54: 1 | AB54: 1 | AC54: 1 | BC54: =[1]国語得点!AZ47 -> 88 | BD54: 22
A55: 45 | C55: 0 | D55: 45あ | E55: 3 | F55: 2 | G55: 3 | H55: 1 | I55: 1 | J55: 1 | K55: 1 | L55: 1 | M55: 1 | N55: 1 | O55: 1 | P55: 1 | Q55: 1 | R55: 1 | S55: 1 | T55: 1 | U55: 1 | V55: 1 | W55: 1 | X55: 1 | Y55: 1 | Z55: 1 | AA55: 1 | AB55: 1 | AC55: 1 | BC55: =[1]国語得点!AZ48 -> 88 | BD55: 22
C57: 数 | E57: 1 | F57: 2 | G57: 3 | H57: 4 | I57: 5 | J57: 6 | K57: 7 | L57: 8 | M57: 9 | N57: 10 | O57: 11 | P57: 12 | Q57: 13 | R57: 14 | S57: 15 | T57: 16 | U57: 17 | V57: 18 | W57: 19 | X57: 20 | Y57: 21 | Z57: 22 | AA57: 23 | AB57: 24 | AC57: 25 | AD57: 26 | AE57: 27 | AF57: 28 | AG57: 29 | AH57: 30 | AI57: 31 | AJ57: 32 | AK57: 33 | AL57: 34 | AM57: 35 | AN57: 36 | AO57: 37 | AP57: 38 | AQ57: 39 | AR57: 40 | AS57: 41 | AT57: 42 | AU57: 43 | AV57: 44 | AW57: 45 | AX57: 46 | AY57: 47 | AZ57: 48 | BA57: 49 | BB57: 50
C58: 正答 | E58: =COUNTIF(E11:E55,1) -> 2 | F58: =COUNTIF(F11:F55,1) -> 3 | G58: 4 | H58: 5 | I58: 7 | J58: 9 | K58: 11 | L58: 11 | M58: 13 | N58: 15 | O58: 17 | P58: 19 | Q58: 21 | R58: 23 | S58: 25 | T58: 27 | U58: 29 | V58: 31 | W58: 33 | X58: 35 | Y58: 37 | Z58: 39 | AA58: 41 | AB58: 43 | AC58: 44 | AD58: 0 | AE58: 0 | AF58: 0 | AG58: 0 | AH58: 0 | AI58: 0 | AJ58: 0 | AK58: 0 | AL58: 0 | AM58: 0 | AN58: 0 | AO58: 0 | AP58: 0 | AQ58: 0 | AR58: 0 | AS58: 0 | AT58: 0 | AU58: 0 | AV58: 0 | AW58: 0 | AX58: 0 | AY58: 0 | AZ58: 0 | BA58: 0 | BB58: 0
C59: 誤答 | E59: =COUNTIF(E11:E55,2) -> 21 | F59: =COUNTIF(F11:F55,2) -> 22 | G59: 20 | H59: 20 | I59: 19 | J59: 18 | K59: 17 | L59: 18 | M59: 16 | N59: 15 | O59: 14 | P59: 15 | Q59: 13 | R59: 12 | S59: 11 | T59: 9 | U59: 9 | V59: 8 | W59: 6 | X59: 5 | Y59: 4 | Z59: 3 | AA59: 2 | AB59: 1 | AC59: 1 | AD59: 0 | AE59: 0 | AF59: 0 | AG59: 0 | AH59: 0 | AI59: 0 | AJ59: 0 | AK59: 0 | AL59: 0 | AM59: 0 | AN59: 0 | AO59: 0 | AP59: 0 | AQ59: 0 | AR59: 0 | AS59: 0 | AT59: 0 | AU59: 0 | AV59: 0 | AW59: 0 | AX59: 0 | AY59: 0 | AZ59: 0 | BA59: 0 | BB59: 0
C60: 無答 | E60: =COUNTIF(E11:E55,3) -> 22 | F60: =COUNTIF(F11:F55,3) -> 20 | G60: 21 | H60: 20 | I60: 19 | J60: 18 | K60: 17 | L60: 16 | M60: 16 | N60: 15 | O60: 14 | P60: 11 | Q60: 11 | R60: 10 | S60: 9 | T60: 9 | U60: 7 | V60: 6 | W60: 6 | X60: 5 | Y60: 4 | Z60: 3 | AA60: 2 | AB60: 1 | AC60: 0 | AD60: 0 | AE60: 0 | AF60: 0 | AG60: 0 | AH60: 0 | AI60: 0 | AJ60: 0 | AK60: 0 | AL60: 0 | AM60: 0 | AN60: 0 | AO60: 0 | AP60: 0 | AQ60: 0 | AR60: 0 | AS60: 0 | AT60: 0 | AU60: 0 | AV60: 0 | AW60: 0 | AX60: 0 | AY60: 0 | AZ60: 0 | BA60: 0 | BB60: 0
C61: 合計 | E61: =SUM(E58:E60) -> 45 | F61: =SUM(F58:F60) -> 45 | G61: 45 | H61: 45 | I61: 45 | J61: 45 | K61: 45 | L61: 45 | M61: 45 | N61: 45 | O61: 45 | P61: 45 | Q61: 45 | R61: 45 | S61: 45 | T61: 45 | U61: 45 | V61: 45 | W61: 45 | X61: 45 | Y61: 45 | Z61: 45 | AA61: 45 | AB61: 45 | AC61: 45 | AD61: 0 | AE61: 0 | AF61: 0 | AG61: 0 | AH61: 0 | AI61: 0 | AJ61: 0 | AK61: 0 | AL61: 0 | AM61: 0 | AN61: 0 | AO61: 0 | AP61: 0 | AQ61: 0 | AR61: 0 | AS61: 0 | AT61: 0 | AU61: 0 | AV61: 0 | AW61: 0 | AX61: 0 | AY61: 0 | AZ61: 0 | BA61: 0 | BB61: 0
C63: 割合 | E63: =E57 -> 1 | F63: 2 | G63: 3 | H63: 4 | I63: 5 | J63: 6 | K63: 7 | L63: 8 | M63: 9 | N63: 10 | O63: 11 | P63: 12 | Q63: 13 | R63: 14 | S63: 15 | T63: 16 | U63: 17 | V63: 18 | W63: 19 | X63: 20 | Y63: 21 | Z63: 22 | AA63: 23 | AB63: 24 | AC63: 25 | AD63: 26 | AE63: 27 | AF63: 28 | AG63: 29 | AH63: 30 | AI63: 31 | AJ63: 32 | AK63: 33 | AL63: 34 | AM63: 35 | AN63: 36 | AO63: 37 | AP63: 38 | AQ63: 39 | AR63: 40 | AS63: 41 | AT63: 42 | AU63: 43 | AV63: 44 | AW63: 45 | AX63: 46 | AY63: 47 | AZ63: 48 | BA63: 49 | BB63: 50
C64: =C58 -> 正答 | E64: =E58/E61 -> 0.04444444444 | F64: 0.06666666667 | G64: 0.08888888889 | H64: 0.1111111111 | I64: 0.1555555556 | J64: 0.2 | K64: 0.2444444444 | L64: 0.2444444444 | M64: 0.2888888889 | N64: 0.3333333333 | O64: 0.3777777778 | P64: 0.4222222222 | Q64: 0.4666666667 | R64: 0.5111111111 | S64: 0.5555555556 | T64: 0.6 | U64: 0.6444444444 | V64: 0.6888888889 | W64: 0.7333333333 | X64: 0.7777777778 | Y64: 0.8222222222 | Z64: 0.8666666667 | AA64: 0.9111111111 | AB64: 0.9555555556 | AC64: 0.9777777778 | AP64: =AP58/AP61 -> 
C65: =C59 -> 誤答 | E65: =E59/E61 -> 0.4666666667 | F65: 0.4888888889 | G65: 0.4444444444 | H65: 0.4444444444 | I65: 0.4222222222 | J65: 0.4 | K65: 0.3777777778 | L65: 0.4 | M65: 0.3555555556 | N65: 0.3333333333 | O65: 0.3111111111 | P65: 0.3333333333 | Q65: 0.2888888889 | R65: 0.2666666667 | S65: 0.2444444444 | T65: 0.2 | U65: 0.2 | V65: 0.1777777778 | W65: 0.1333333333 | X65: 0.1111111111 | Y65: 0.08888888889 | Z65: 0.06666666667 | AA65: 0.04444444444 | AB65: 0.02222222222 | AC65: 0.02222222222
C66: =C60 -> 無答 | E66: =E60/E61 -> 0.4888888889 | F66: 0.4444444444 | G66: 0.4666666667 | H66: 0.4444444444 | I66: 0.4222222222 | J66: 0.4 | K66: 0.3777777778 | L66: 0.3555555556 | M66: 0.3555555556 | N66: 0.3333333333 | O66: 0.3111111111 | P66: 0.2444444444 | Q66: 0.2444444444 | R66: 0.2222222222 | S66: 0.2 | T66: 0.2 | U66: 0.1555555556 | V66: 0.1333333333 | W66: 0.1333333333 | X66: 0.1111111111 | Y66: 0.08888888889 | Z66: 0.06666666667 | AA66: 0.04444444444 | AB66: 0.02222222222 | AC66: 0
C67: =C61 -> 合計 | E67: =SUM(E64:E66) -> 1 | F67: 1 | G67: 1 | H67: 1 | I67: 1 | J67: 1 | K67: 1 | L67: 1 | M67: 1 | N67: 1 | O67: 1 | P67: 1 | Q67: 1 | R67: 1 | S67: 1 | T67: 1 | U67: 1 | V67: 1 | W67: 1 | X67: 1 | Y67: 1 | Z67: 1 | AA67: 1 | AB67: 1 | AC67: 1
C69: 観点別集計
F70: =BF35 -> 知・技 | K70: =BF36 -> 思判表 | P70: =BF37 -> - | U70: =BF38 -> - | Z70: =BF39 -> -
C71: 正答 | F71: =[1]国語得点!BB64 -> 0.2148148148 | K71: =[1]国語得点!BB65 -> 0.7316239316 | P71: =[1]国語得点!BB66 ->  | U71: =[1]国語得点!BB67 ->  | Z71: =[1]国語得点!BB68 -> 
C72: 誤答 | F72: =[1]国語得点!BB71 -> 0.3981481481 | K72: =[1]国語得点!BB72 -> 0.1435897436 | P72: =[1]国語得点!BB73 ->  | U72: =[1]国語得点!BB74 ->  | Z72: =[1]国語得点!BB75 -> 
C73: 無答 | F73: =[1]国語得点!BB78 -> 0.387037037 | K73: =[1]国語得点!BB79 -> 0.1247863248 | P73: =[1]国語得点!BB80 ->  | U73: =[1]国語得点!BB81 ->  | Z73: =[1]国語得点!BB82 -> 
C74: 合計 | F74: =SUM(F71:H73) -> 1 | K74: =SUM(K71:M73) -> 1 | P74: =SUM(P71:R73) ->  | U74: =SUM(U71:W73) ->  | Z74: =SUM(Z71:AB73) -> 
C76: 富山県平均正答率％ | F76: =[1]国語得点!BB85 -> 0.7715 | K76: =[1]国語得点!BB86 -> 0.6446923077 | P76: =[1]国語得点!BB87 ->  | U76: =[1]国語得点!AY88 -> 0 | Z76: =[1]国語得点!AY89 -> 0

Sheet 国語得点
A1: 国語（得点） | G1: 受検者数 | L1: =[1]国語!$AB$1 -> 45
A2: № | B2: 1 | C2: 2 | D2: 3 | E2: 4 | F2: 5 | G2: 6 | H2: 7 | I2: 8 | J2: 9 | K2: 10 | L2: 11 | M2: 12 | N2: 13 | O2: 14 | P2: 15 | Q2: 16 | R2: 17 | S2: 18 | T2: 19 | U2: 20 | V2: 21 | W2: 22 | X2: 23 | Y2: 24 | Z2: 25 | AA2: 26 | AB2: 27 | AC2: 28 | AD2: 29 | AE2: 30 | AF2: 31 | AG2: 32 | AH2: 33 | AI2: 34 | AJ2: 35 | AK2: 36 | AL2: 37 | AM2: 38 | AN2: 39 | AO2: 40 | AP2: 41 | AQ2: 42 | AR2: 43 | AS2: 44 | AT2: 45 | AU2: 46 | AV2: 47 | AW2: 48 | AX2: 49 | AY2: 50 | AZ2: 得点 | BC2: 正答数別の児童数(人) | BF2: 富山県正答数％ | BI2: 通し 番号 | BJ2: 問題 番号 | BK2: 小問 番号 | BL2: 問題の領域
A3: 観点 | B3: =[1]国語!E9 -> 知・技 | C3: =[1]国語!F9 -> 知・技 | D3: =[1]国語!G9 -> 知・技 | E3: =[1]国語!H9 -> 知・技 | F3: =[1]国語!I9 -> 知・技 | G3: =[1]国語!J9 -> 知・技 | H3: =[1]国語!K9 -> 知・技 | I3: =[1]国語!L9 -> 知・技 | J3: =[1]国語!M9 -> 知・技 | K3: =[1]国語!N9 -> 知・技 | L3: =[1]国語!O9 -> 知・技 | M3: =[1]国語!P9 -> 知・技 | N3: =[1]国語!Q9 -> 思判表 | O3: =[1]国語!R9 -> 思判表 | P3: =[1]国語!S9 -> 思判表 | Q3: =[1]国語!T9 -> 思判表 | R3: =[1]国語!U9 -> 思判表 | S3: =[1]国語!V9 -> 思判表 | T3: =[1]国語!W9 -> 思判表 | U3: =[1]国語!X9 -> 思判表 | V3: =[1]国語!Y9 -> 思判表 | W3: =[1]国語!Z9 -> 思判表 | X3: =[1]国語!AA9 -> 思判表 | Y3: =[1]国語!AB9 -> 思判表 | Z3: =[1]国語!AC9 -> 思判表 | AA3: =[1]国語!AD9 -> 0 | AB3: =[1]国語!AE9 -> 0 | AC3: =[1]国語!AF9 -> 0 | AD3: =[1]国語!AG9 -> 0 | AE3: =[1]国語!AH9 -> 0 | AF3: =[1]国語!AI9 -> 0 | AG3: =[1]国語!AJ9 -> 0 | AH3: =[1]国語!AK9 -> 0 | AI3: =[1]国語!AL9 -> 0 | AJ3: =[1]国語!AM9 -> 0 | AK3: =[1]国語!AN9 -> 0 | AL3: =[1]国語!AO9 -> 0 | AM3: =[1]国語!AP9 -> 0 | AN3: =[1]国語!AQ9 -> 0 | AO3: =[1]国語!AR9 -> 0 | AP3: =[1]国語!AS9 -> 0 | AQ3: =[1]国語!AT9 -> 0 | AR3: =[1]国語!AU9 -> 0 | AS3: =[1]国語!AV9 -> 0 | AT3: =[1]国語!AW9 -> 0 | AU3: =[1]国語!AX9 -> 0 | AV3: =[1]国語!AY9 -> 0 | AW3: =[1]国語!AZ9 -> 0 | AX3: =[1]国語!BA9 -> 0 | AY3: =[1]国語!BB9 -> 0 | BC3: 0問 | BF3: 0問
A4: 1 | B4: =COUNTIF([1]国語!E11,1)*[1]国語!$E$10 -> 4 | C4: =COUNTIF([1]国語!F11,1)*[1]国語!$F$10 -> 4 | D4: =COUNTIF([1]国語!G11,1)*[1]国語!$G$10 -> 4 | E4: =COUNTIF([1]国語!H11,1)*[1]国語!$H$10 -> 4 | F4: =COUNTIF([1]国語!I11,1)*[1]国語!$I$10 -> 4 | G4: =COUNTIF([1]国語!J11,1)*[1]国語!$J$10 -> 4 | H4: =COUNTIF([1]国語!K11,1)*[1]国語!$F$10 -> 4 | I4: =COUNTIF([1]国語!L11,1)*[1]国語!$F$10 -> 4 | J4: =COUNTIF([1]国語!M11,1)*[1]国語!$M$10 -> 4 | K4: =COUNTIF([1]国語!N11,1)*[1]国語!$N$10 -> 4 | L4: =COUNTIF([1]国語!O11,1)*[1]国語!$O$10 -> 4 | M4: =COUNTIF([1]国語!P11,1)*[1]国語!$P$10 -> 4 | N4: =COUNTIF([1]国語!Q11,1)*[1]国語!$Q$10 -> 4 | O4: =COUNTIF([1]国語!R11,1)*[1]国語!$R$10 -> 4 | P4: =COUNTIF([1]国語!S11,1)*[1]国語!$S$10 -> 4 | Q4: =COUNTIF([1]国語!T11,1)*[1]国語!$T$10 -> 4 | R4: =COUNTIF([1]国語!U11,1)*[1]国語!$U$10 -> 4 | S4: =COUNTIF([1]国語!V11,1)*[1]国語!$V$10 -> 4 | T4: =COUNTIF([1]国語!W11,1)*[1]国語!$W$10 -> 4 | U4: =COUNTIF([1]国語!X11,1)*[1]国語!$X$10 -> 4 | V4: =COUNTIF([1]国語!Y11,1)*[1]国語!$Y$10 -> 4 | W4: =COUNTIF([1]国語!Z11,1)*[1]国語!$Z$10 -> 4 | X4: =COUNTIF([1]国語!AA11,1)*[1]国語!$AA$10 -> 4 | Y4: =COUNTIF([1]国語!AB11,1)*[1]国語!$AB$10 -> 4 | Z4: =COUNTIF([1]国語!AC11,1)*[1]国語!$AC$10 -> 4 | AA4: =COUNTIF([1]国語!AD11,1)*[1]国語!$AD$10 -> 0 | AB4: =COUNTIF([1]国語!AE11,1)*[1]国語!$AE$10 -> 0 | AC4: =COUNTIF([1]国語!AF11,1)*[1]国語!$AF$10 -> 0 | AD4: =COUNTIF([1]国語!AG11,1)*[1]国語!$AG$10 -> 0 | AE4: =COUNTIF([1]国語!AH11,1)*[1]国語!$AH$10 -> 0 | AF4: =COUNTIF([1]国語!AI11,1)*[1]国語!$AI$10 -> 0 | AG4: =COUNTIF([1]国語!AJ11,1)*[1]国語!$AJ$10 -> 0 | AH4: =COUNTIF([1]国語!AK11,1)*[1]国語!$AK$10 -> 0 | AI4: =COUNTIF([1]国語!AL11,1)*[1]国語!$AL$10 -> 0 | AJ4: =COUNTIF([1]国語!AM11,1)*[1]国語!$AM$10 -> 0 | AK4: =COUNTIF([1]国語!AN11,1)*[1]国語!$AN$10 -> 0 | AL4: =COUNTIF([1]国語!AO11,1)*[1]国語!$AO$10 -> 0 | AM4: =COUNTIF([1]国語!AP11,1)*[1]国語!$AP$10 -> 0 | AN4: =COUNTIF([1]国語!AQ11,1)*[1]国語!$AQ$10 -> 0 | AO4: =COUNTIF([1]国語!AR11,1)*[1]国語!$AR$10 -> 0 | AP4: =COUNTIF([1]国語!AS11,1)*[1]国語!$AS$10 -> 0 | AQ4: =COUNTIF([1]国語!AT11,1)*[1]国語!$AT$10 -> 0 | AR4: =COUNTIF([1]国語!AU11,1)*[1]国語!$AU$10 -> 0 | AS4: =COUNTIF([1]国語!AV11,1)*[1]国語!$AV$10 -> 0 | AT4: =COUNTIF([1]国語!AW11,1)*[1]国語!$AW$10 -> 0 | AU4: =COUNTIF([1]国語!AX11,1)*[1]国語!$AX$10 -> 0 | AV4: =COUNTIF([1]国語!AY11,1)*[1]国語!$AY$10 -> 0 | AW4: =COUNTIF([1]国語!AZ11,1)*[1]国語!$AZ$10 -> 0 | AX4: =COUNTIF([1]国語!BA11,1)*[1]国語!$BA$10 -> 0 | AY4: =COUNTIF([1]国語!BB11,1)*[1]国語!$BB$10 -> 0 | AZ4: =SUM(B4:AY4) -> 100 | BC4: 1問 | BD4: =[1]国語!E58 -> 2 | BF4: 1問 | BG4: 95.5 | BI4: 1 | BJ4: 1 | BK4: 一（1） | BL4: 知識及び技能
A5: 2 | B5: =COUNTIF([1]国語!E12,1)*[1]国語!$E$10 -> 0 | C5: =COUNTIF([1]国語!F12,1)*[1]国語!$F$10 -> 4 | D5: =COUNTIF([1]国語!G12,1)*[1]国語!$G$10 -> 4 | E5: =COUNTIF([1]国語!H12,1)*[1]国語!$H$10 -> 4 | F5: =COUNTIF([1]国語!I12,1)*[1]国語!$I$10 -> 4 | G5: =COUNTIF([1]国語!J12,1)*[1]国語!$J$10 -> 4 | H5: =COUNTIF([1]国語!K12,1)*[1]国語!$F$10 -> 4 | I5: =COUNTIF([1]国語!L12,1)*[1]国語!$F$10 -> 4 | J5: =COUNTIF([1]国語!M12,1)*[1]国語!$M$10 -> 4 | K5: =COUNTIF([1]国語!N12,1)*[1]国語!$N$10 -> 4 | L5: =COUNTIF([1]国語!O12,1)*[1]国語!$O$10 -> 4 | M5: =COUNTIF([1]国語!P12,1)*[1]国語!$P$10 -> 4 | N5: =COUNTIF([1]国語!Q12,1)*[1]国語!$Q$10 -> 4 | O5: =COUNTIF([1]国語!R12,1)*[1]国語!$R$10 -> 4 | P5: =COUNTIF([1]国語!S12,1)*[1]国語!$S$10 -> 4 | Q5: =COUNTIF([1]国語!T12,1)*[1]国語!$T$10 -> 4 | R5: =COUNTIF([1]国語!U12,1)*[1]国語!$U$10 -> 4 | S5: =COUNTIF([1]国語!V12,1)*[1]国語!$V$10 -> 4 | T5: =COUNTIF([1]国語!W12,1)*[1]国語!$W$10 -> 4 | U5: =COUNTIF([1]国語!X12,1)*[1]国語!$X$10 -> 4 | V5: =COUNTIF([1]国語!Y12,1)*[1]国語!$Y$10 -> 4 | W5: =COUNTIF([1]国語!Z12,1)*[1]国語!$Z$10 -> 4 | X5: =COUNTIF([1]国語!AA12,1)*[1]国語!$AA$10 -> 4 | Y5: =COUNTIF([1]国語!AB12,1)*[1]国語!$AB$10 -> 4 | Z5: =COUNTIF([1]国語!AC12,1)*[1]国語!$AC$10 -> 4 | AA5: =COUNTIF([1]国語!AD12,1)*[1]国語!$AD$10 -> 0 | AB5: =COUNTIF([1]国語!AE12,1)*[1]国語!$AE$10 -> 0 | AC5: =COUNTIF([1]国語!AF12,1)*[1]国語!$AF$10 -> 0 | AD5: =COUNTIF([1]国語!AG12,1)*[1]国語!$AG$10 -> 0 | AE5: =COUNTIF([1]国語!AH12,1)*[1]国語!$AH$10 -> 0 | AF5: =COUNTIF([1]国語!AI12,1)*[1]国語!$AI$10 -> 0 | AG5: =COUNTIF([1]国語!AJ12,1)*[1]国語!$AJ$10 -> 0 | AH5: =COUNTIF([1]国語!AK12,1)*[1]国語!$AK$10 -> 0 | AI5: =COUNTIF([1]国語!AL12,1)*[1]国語!$AL$10 -> 0 | AJ5: =COUNTIF([1]国語!AM12,1)*[1]国語!$AM$10 -> 0 | AK5: =COUNTIF([1]国語!AN12,1)*[1]国語!$AN$10 -> 0 | AL5: =COUNTIF([1]国語!AO12,1)*[1]国語!$AO$10 -> 0 | AM5: =COUNTIF([1]国語!AP12,1)*[1]国語!$AP$10 -> 0 | AN5: =COUNTIF([1]国語!AQ12,1)*[1]国語!$AQ$10 -> 0 | AO5: =COUNTIF([1]国語!AR12,1)*[1]国語!$AR$10 -> 0 | AP5: =COUNTIF([1]国語!AS12,1)*[1]国語!$AS$10 -> 0 | AQ5: =COUNTIF([1]国語!AT12,1)*[1]国語!$AT$10 -> 0 | AR5: =COUNTIF([1]国語!AU12,1)*[1]国語!$AU$10 -> 0 | AS5: =COUNTIF([1]国語!AV12,1)*[1]国語!$AV$10 -> 0 | AT5: =COUNTIF([1]国語!AW12,1)*[1]国語!$AW$10 -> 0 | AU5: =COUNTIF([1]国語!AX12,1)*[1]国語!$AX$10 -> 0 | AV5: =COUNTIF([1]国語!AY12,1)*[1]国語!$AY$10 -> 0 | AW5: =COUNTIF([1]国語!AZ12,1)*[1]国語!$AZ$10 -> 0 | AX5: =COUNTIF([1]国語!BA12,1)*[1]国語!$BA$10 -> 0 | AY5: =COUNTIF([1]国語!BB12,1)*[1]国語!$BB$10 -> 0 | AZ5: =SUM(B5:AY5) -> 96 | BC5: 2問 | BD5: =[1]国語!F58 -> 3 | BF5: 2問 | BG5: 96.2 | BI5: 2 | BJ5: 1 | BK5: 一（2） | BL5: 知識及び技能
A6: 3 | B6: =COUNTIF([1]国語!E13,1)*[1]国語!$E$10 -> 0 | C6: =COUNTIF([1]国語!F13,1)*[1]国語!$F$10 -> 0 | D6: =COUNTIF([1]国語!G13,1)*[1]国語!$G$10 -> 4 | E6: =COUNTIF([1]国語!H13,1)*[1]国語!$H$10 -> 4 | F6: =COUNTIF([1]国語!I13,1)*[1]国語!$I$10 -> 4 | G6: =COUNTIF([1]国語!J13,1)*[1]国語!$J$10 -> 4 | H6: =COUNTIF([1]国語!K13,1)*[1]国語!$F$10 -> 4 | I6: =COUNTIF([1]国語!L13,1)*[1]国語!$F$10 -> 4 | J6: =COUNTIF([1]国語!M13,1)*[1]国語!$M$10 -> 4 | K6: =COUNTIF([1]国語!N13,1)*[1]国語!$N$10 -> 4 | L6: =COUNTIF([1]国語!O13,1)*[1]国語!$O$10 -> 4 | M6: =COUNTIF([1]国語!P13,1)*[1]国語!$P$10 -> 4 | N6: =COUNTIF([1]国語!Q13,1)*[1]国語!$Q$10 -> 4 | O6: =COUNTIF([1]国語!R13,1)*[1]国語!$R$10 -> 4 | P6: =COUNTIF([1]国語!S13,1)*[1]国語!$S$10 -> 4 | Q6: =COUNTIF([1]国語!T13,1)*[1]国語!$T$10 -> 4 | R6: =COUNTIF([1]国語!U13,1)*[1]国語!$U$10 -> 4 | S6: =COUNTIF([1]国語!V13,1)*[1]国語!$V$10 -> 4 | T6: =COUNTIF([1]国語!W13,1)*[1]国語!$W$10 -> 4 | U6: =COUNTIF([1]国語!X13,1)*[1]国語!$X$10 -> 4 | V6: =COUNTIF([1]国語!Y13,1)*[1]国語!$Y$10 -> 4 | W6: =COUNTIF([1]国語!Z13,1)*[1]国語!$Z$10 -> 4 | X6: =COUNTIF([1]国語!AA13,1)*[1]国語!$AA$10 -> 4 | Y6: =COUNTIF([1]国語!AB13,1)*[1]国語!$AB$10 -> 4 | Z6: =COUNTIF([1]国語!AC13,1)*[1]国語!$AC$10 -> 4 | AA6: =COUNTIF([1]国語!AD13,1)*[1]国語!$AD$10 -> 0 | AB6: =COUNTIF([1]国語!AE13,1)*[1]国語!$AE$10 -> 0 | AC6: =COUNTIF([1]国語!AF13,1)*[1]国語!$AF$10 -> 0 | AD6: =COUNTIF([1]国語!AG13,1)*[1]国語!$AG$10 -> 0 | AE6: =COUNTIF([1]国語!AH13,1)*[1]国語!$AH$10 -> 0 | AF6: =COUNTIF([1]国語!AI13,1)*[1]国語!$AI$10 -> 0 | AG6: =COUNTIF([1]国語!AJ13,1)*[1]国語!$AJ$10 -> 0 | AH6: =COUNTIF([1]国語!AK13,1)*[1]国語!$AK$10 -> 0 | AI6: =COUNTIF([1]国語!AL13,1)*[1]国語!$AL$10 -> 0 | AJ6: =COUNTIF([1]国語!AM13,1)*[1]国語!$AM$10 -> 0 | AK6: =COUNTIF([1]国語!AN13,1)*[1]国語!$AN$10 -> 0 | AL6: =COUNTIF([1]国語!AO13,1)*[1]国語!$AO$10 -> 0 | AM6: =COUNTIF([1]国語!AP13,1)*[1]国語!$AP$10 -> 0 | AN6: =COUNTIF([1]国語!AQ13,1)*[1]国語!$AQ$10 -> 0 | AO6: =COUNTIF([1]国語!AR13,1)*[1]国語!$AR$10 -> 0 | AP6: =COUNTIF([1]国語!AS13,1)*[1]国語!$AS$10 -> 0 | AQ6: =COUNTIF([1]国語!AT13,1)*[1]国語!$AT$10 -> 0 | AR6: =COUNTIF([1]国語!AU13,1)*[1]国語!$AU$10 -> 0 | AS6: =COUNTIF([1]国語!AV13,1)*[1]国語!$AV$10 -> 0 | AT6: =COUNTIF([1]国語!AW13,1)*[1]国語!$AW$10 -> 0 | AU6: =COUNTIF([1]国語!AX13,1)*[1]国語!$AX$10 -> 0 | AV6: =COUNTIF([1]国語!AY13,1)*[1]国語!$AY$10 -> 0 | AW6: =COUNTIF([1]国語!AZ13,1)*[1]国語!$AZ$10 -> 0 | AX6: =COUNTIF([1]国語!BA13,1)*[1]国語!$BA$10 -> 0 | AY6: =COUNTIF([1]国語!BB13,1)*[1]国語!$BB$10 -> 0 | AZ6: 92 | BC6: 3問 | BD6: =[1]国語!G58 -> 4 | BF6: 3問 | BG6: 52.6 | BI6: 3 | BJ6: 1 | BK6: 一（3） | BL6: 知識及び技能
A7: 4 | B7: =COUNTIF([1]国語!E14,1)*[1]国語!$E$10 -> 0 | C7: =COUNTIF([1]国語!F14,1)*[1]国語!$F$10 -> 0 | D7: =COUNTIF([1]国語!G14,1)*[1]国語!$G$10 -> 0 | E7: =COUNTIF([1]国語!H14,1)*[1]国語!$H$10 -> 4 | F7: =COUNTIF([1]国語!I14,1)*[1]国語!$I$10 -> 4 | G7: =COUNTIF([1]国語!J14,1)*[1]国語!$J$10 -> 4 | H7: =COUNTIF([1]国語!K14,1)*[1]国語!$F$10 -> 4 | I7: =COUNTIF([1]国語!L14,1)*[1]国語!$F$10 -> 4 | J7: =COUNTIF([1]国語!M14,1)*[1]国語!$M$10 -> 4 | K7: =COUNTIF([1]国語!N14,1)*[1]国語!$N$10 -> 4 | L7: =COUNTIF([1]国語!O14,1)*[1]国語!$O$10 -> 4 | M7: =COUNTIF([1]国語!P14,1)*[1]国語!$P$10 -> 4 | N7: =COUNTIF([1]国語!Q14,1)*[1]国語!$Q$10 -> 4 | O7: =COUNTIF([1]国語!R14,1)*[1]国語!$R$10 -> 4 | P7: =COUNTIF([1]国語!S14,1)*[1]国語!$S$10 -> 4 | Q7: =COUNTIF([1]国語!T14,1)*[1]国語!$T$10 -> 4 | R7: =COUNTIF([1]国語!U14,1)*[1]国語!$U$10 -> 4 | S7: =COUNTIF([1]国語!V14,1)*[1]国語!$V$10 -> 4 | T7: =COUNTIF([1]国語!W14,1)*[1]国語!$W$10 -> 4 | U7: =COUNTIF([1]国語!X14,1)*[1]国語!$X$10 -> 4 | V7: =COUNTIF([1]国語!Y14,1)*[1]国語!$Y$10 -> 4 | W7: =COUNTIF([1]国語!Z14,1)*[1]国語!$Z$10 -> 4 | X7: =COUNTIF([1]国語!AA14,1)*[1]国語!$AA$10 -> 4 | Y7: =COUNTIF([1]国語!AB14,1)*[1]国語!$AB$10 -> 4 | Z7: =COUNTIF([1]国語!AC14,1)*[1]国語!$AC$10 -> 4 | AA7: =COUNTIF([1]国語!AD14,1)*[1]国語!$AD$10 -> 0 | AB7: =COUNTIF([1]国語!AE14,1)*[1]国語!$AE$10 -> 0 | AC7: =COUNTIF([1]国語!AF14,1)*[1]国語!$AF$10 -> 0 | AD7: =COUNTIF([1]国語!AG14,1)*[1]国語!$AG$10 -> 0 | AE7: =COUNTIF([1]国語!AH14,1)*[1]国語!$AH$10 -> 0 | AF7: =COUNTIF([1]国語!AI14,1)*[1]国語!$AI$10 -> 0 | AG7: =COUNTIF([1]国語!AJ14,1)*[1]国語!$AJ$10 -> 0 | AH7: =COUNTIF([1]国語!AK14,1)*[1]国語!$AK$10 -> 0 | AI7: =COUNTIF([1]国語!AL14,1)*[1]国語!$AL$10 -> 0 | AJ7: =COUNTIF([1]国語!AM14,1)*[1]国語!$AM$10 -> 0 | AK7: =COUNTIF([1]国語!AN14,1)*[1]国語!$AN$10 -> 0 | AL7: =COUNTIF([1]国語!AO14,1)*[1]国語!$AO$10 -> 0 | AM7: =COUNTIF([1]国語!AP14,1)*[1]国語!$AP$10 -> 0 | AN7: =COUNTIF([1]国語!AQ14,1)*[1]国語!$AQ$10 -> 0 | AO7: =COUNTIF([1]国語!AR14,1)*[1]国語!$AR$10 -> 0 | AP7: =COUNTIF([1]国語!AS14,1)*[1]国語!$AS$10 -> 0 | AQ7: =COUNTIF([1]国語!AT14,1)*[1]国語!$AT$10 -> 0 | AR7: =COUNTIF([1]国語!AU14,1)*[1]国語!$AU$10 -> 0 | AS7: =COUNTIF([1]国語!AV14,1)*[1]国語!$AV$10 -> 0 | AT7: =COUNTIF([1]国語!AW14,1)*[1]国語!$AW$10 -> 0 | AU7: =COUNTIF([1]国語!AX14,1)*[1]国語!$AX$10 -> 0 | AV7: =COUNTIF([1]国語!AY14,1)*[1]国語!$AY$10 -> 0 | AW7: =COUNTIF([1]国語!AZ14,1)*[1]国語!$AZ$10 -> 0 | AX7: =COUNTIF([1]国語!BA14,1)*[1]国語!$BA$10 -> 0 | AY7: =COUNTIF([1]国語!BB14,1)*[1]国語!$BB$10 -> 0 | AZ7: 88 | BC7: 4問 | BD7: =[1]国語!H58 -> 5 | BF7: 4問 | BG7: 96.4 | BI7: 4 | BJ7: 1 | BK7: 一（4） | BL7: 知識及び技能
A8: 5 | B8: =COUNTIF([1]国語!E15,1)*[1]国語!$E$10 -> 0 | C8: =COUNTIF([1]国語!F15,1)*[1]国語!$F$10 -> 0 | D8: =COUNTIF([1]国語!G15,1)*[1]国語!$G$10 -> 0 | E8: =COUNTIF([1]国語!H15,1)*[1]国語!$H$10 -> 0 | F8: =COUNTIF([1]国語!I15,1)*[1]国語!$I$10 -> 4 | G8: =COUNTIF([1]国語!J15,1)*[1]国語!$J$10 -> 4 | H8: =COUNTIF([1]国語!K15,1)*[1]国語!$F$10 -> 4 | I8: =COUNTIF([1]国語!L15,1)*[1]国語!$F$10 -> 4 | J8: =COUNTIF([1]国語!M15,1)*[1]国語!$M$10 -> 4 | K8: =COUNTIF([1]国語!N15,1)*[1]国語!$N$10 -> 4 | L8: =COUNTIF([1]国語!O15,1)*[1]国語!$O$10 -> 4 | M8: =COUNTIF([1]国語!P15,1)*[1]国語!$P$10 -> 4 | N8: =COUNTIF([1]国語!Q15,1)*[1]国語!$Q$10 -> 4 | O8: =COUNTIF([1]国語!R15,1)*[1]国語!$R$10 -> 4 | P8: =COUNTIF([1]国語!S15,1)*[1]国語!$S$10 -> 4 | Q8: =COUNTIF([1]国語!T15,1)*[1]国語!$T$10 -> 4 | R8: =COUNTIF([1]国語!U15,1)*[1]国語!$U$10 -> 4 | S8: =COUNTIF([1]国語!V15,1)*[1]国語!$V$10 -> 4 | T8: =COUNTIF([1]国語!W15,1)*[1]国語!$W$10 -> 4 | U8: =COUNTIF([1]国語!X15,1)*[1]国語!$X$10 -> 4 | V8: =COUNTIF([1]国語!Y15,1)*[1]国語!$Y$10 -> 4 | W8: =COUNTIF([1]国語!Z15,1)*[1]国語!$Z$10 -> 4 | X8: =COUNTIF([1]国語!AA15,1)*[1]国語!$AA$10 -> 4 | Y8: =COUNTIF([1]国語!AB15,1)*[1]国語!$AB$10 -> 4 | Z8: =COUNTIF([1]国語!AC15,1)*[1]国語!$AC$10 -> 4 | AA8: =COUNTIF([1]国語!AD15,1)*[1]国語!$AD$10 -> 0 | AB8: =COUNTIF([1]国語!AE15,1)*[1]国語!$AE$10 -> 0 | AC8: =COUNTIF([1]国語!AF15,1)*[1]国語!$AF$10 -> 0 | AD8: =COUNTIF([1]国語!AG15,1)*[1]国語!$AG$10 -> 0 | AE8: =COUNTIF([1]国語!AH15,1)*[1]国語!$AH$10 -> 0 | AF8: =COUNTIF([1]国語!AI15,1)*[1]国語!$AI$10 -> 0 | AG8: =COUNTIF([1]国語!AJ15,1)*[1]国語!$AJ$10 -> 0 | AH8: =COUNTIF([1]国語!AK15,1)*[1]国語!$AK$10 -> 0 | AI8: =COUNTIF([1]国語!AL15,1)*[1]国語!$AL$10 -> 0 | AJ8: =COUNTIF([1]国語!AM15,1)*[1]国語!$AM$10 -> 0 | AK8: =COUNTIF([1]国語!AN15,1)*[1]国語!$AN$10 -> 0 | AL8: =COUNTIF([1]国語!AO15,1)*[1]国語!$AO$10 -> 0 | AM8: =COUNTIF([1]国語!AP15,1)*[1]国語!$AP$10 -> 0 | AN8: =COUNTIF([1]国語!AQ15,1)*[1]国語!$AQ$10 -> 0 | AO8: =COUNTIF([1]国語!AR15,1)*[1]国語!$AR$10 -> 0 | AP8: =COUNTIF([1]国語!AS15,1)*[1]国語!$AS$10 -> 0 | AQ8: =COUNTIF([1]国語!AT15,1)*[1]国語!$AT$10 -> 0 | AR8: =COUNTIF([1]国語!AU15,1)*[1]国語!$AU$10 -> 0 | AS8: =COUNTIF([1]国語!AV15,1)*[1]国語!$AV$10 -> 0 | AT8: =COUNTIF([1]国語!AW15,1)*[1]国語!$AW$10 -> 0 | AU8: =COUNTIF([1]国語!AX15,1)*[1]国語!$AX$10 -> 0 | AV8: =COUNTIF([1]国語!AY15,1)*[1]国語!$AY$10 -> 0 | AW8: =COUNTIF([1]国語!AZ15,1)*[1]国語!$AZ$10 -> 0 | AX8: =COUNTIF([1]国語!BA15,1)*[1]国語!$BA$10 -> 0 | AY8: =COUNTIF([1]国語!BB15,1)*[1]国語!$BB$10 -> 0 | AZ8: 84 | BC8: 5問 | BD8: =[1]国語!I58 -> 7 | BF8: 5問 | BG8: 81.3 | BI8: 5 | BJ8: 1 | BK8: 二（1） | BL8: 知識及び技能
A9: 6 | B9: =COUNTIF([1]国語!E16,1)*[1]国語!$E$10 -> 0 | C9: =COUNTIF([1]国語!F16,1)*[1]国語!$F$10 -> 0 | D9: =COUNTIF([1]国語!G16,1)*[1]国語!$G$10 -> 0 | E9: =COUNTIF([1]国語!H16,1)*[1]国語!$H$10 -> 0 | F9: =COUNTIF([1]国語!I16,1)*[1]国語!$I$10 -> 0 | G9: =COUNTIF([1]国語!J16,1)*[1]国語!$J$10 -> 4 | H9: =COUNTIF([1]国語!K16,1)*[1]国語!$F$10 -> 4 | I9: =COUNTIF([1]国語!L16,1)*[1]国語!$F$10 -> 4 | J9: =COUNTIF([1]国語!M16,1)*[1]国語!$M$10 -> 4 | K9: =COUNTIF([1]国語!N16,1)*[1]国語!$N$10 -> 4 | L9: =COUNTIF([1]国語!O16,1)*[1]国語!$O$10 -> 4 | M9: =COUNTIF([1]国語!P16,1)*[1]国語!$P$10 -> 4 | N9: =COUNTIF([1]国語!Q16,1)*[1]国語!$Q$10 -> 4 | O9: =COUNTIF([1]国語!R16,1)*[1]国語!$R$10 -> 4 | P9: =COUNTIF([1]国語!S16,1)*[1]国語!$S$10 -> 4 | Q9: =COUNTIF([1]国語!T16,1)*[1]国語!$T$10 -> 4 | R9: =COUNTIF([1]国語!U16,1)*[1]国語!$U$10 -> 4 | S9: =COUNTIF([1]国語!V16,1)*[1]国語!$V$10 -> 4 | T9: =COUNTIF([1]国語!W16,1)*[1]国語!$W$10 -> 4 | U9: =COUNTIF([1]国語!X16,1)*[1]国語!$X$10 -> 4 | V9: =COUNTIF([1]国語!Y16,1)*[1]国語!$Y$10 -> 4 | W9: =COUNTIF([1]国語!Z16,1)*[1]国語!$Z$10 -> 4 | X9: =COUNTIF([1]国語!AA16,1)*[1]国語!$AA$10 -> 4 | Y9: =COUNTIF([1]国語!AB16,1)*[1]国語!$AB$10 -> 4 | Z9: =COUNTIF([1]国語!AC16,1)*[1]国語!$AC$10 -> 4 | AA9: =COUNTIF([1]国語!AD16,1)*[1]国語!$AD$10 -> 0 | AB9: =COUNTIF([1]国語!AE16,1)*[1]国語!$AE$10 -> 0 | AC9: =COUNTIF([1]国語!AF16,1)*[1]国語!$AF$10 -> 0 | AD9: =COUNTIF([1]国語!AG16,1)*[1]国語!$AG$10 -> 0 | AE9: =COUNTIF([1]国語!AH16,1)*[1]国語!$AH$10 -> 0 | AF9: =COUNTIF([1]国語!AI16,1)*[1]国語!$AI$10 -> 0 | AG9: =COUNTIF([1]国語!AJ16,1)*[1]国語!$AJ$10 -> 0 | AH9: =COUNTIF([1]国語!AK16,1)*[1]国語!$AK$10 -> 0 | AI9: =COUNTIF([1]国語!AL16,1)*[1]国語!$AL$10 -> 0 | AJ9: =COUNTIF([1]国語!AM16,1)*[1]国語!$AM$10 -> 0 | AK9: =COUNTIF([1]国語!AN16,1)*[1]国語!$AN$10 -> 0 | AL9: =COUNTIF([1]国語!AO16,1)*[1]国語!$AO$10 -> 0 | AM9: =COUNTIF([1]国語!AP16,1)*[1]国語!$AP$10 -> 0 | AN9: =COUNTIF([1]国語!AQ16,1)*[1]国語!$AQ$10 -> 0 | AO9: =COUNTIF([1]国語!AR16,1)*[1]国語!$AR$10 -> 0 | AP9: =COUNTIF([1]国語!AS16,1)*[1]国語!$AS$10 -> 0 | AQ9: =COUNTIF([1]国語!AT16,1)*[1]国語!$AT$10 -> 0 | AR9: =COUNTIF([1]国語!AU16,1)*[1]国語!$AU$10 -> 0 | AS9: =COUNTIF([1]国語!AV16,1)*[1]国語!$AV$10 -> 0 | AT9: =COUNTIF([1]国語!AW16,1)*[1]国語!$AW$10 -> 0 | AU9: =COUNTIF([1]国語!AX16,1)*[1]国語!$AX$10 -> 0 | AV9: =COUNTIF([1]国語!AY16,1)*[1]国語!$AY$10 -> 0 | AW9: =COUNTIF([1]国語!AZ16,1)*[1]国語!$AZ$10 -> 0 | AX9: =COUNTIF([1]国語!BA16,1)*[1]国語!$BA$10 -> 0 | AY9: =COUNTIF([1]国語!BB16,1)*[1]国語!$BB$10 -> 0 | AZ9: 80 | BC9: 6問 | BD9: =[1]国語!J58 -> 9 | BF9: 6問 | BG9: 56.7 | BI9: 6 | BJ9: 1 | BK9: 二（2） | BL9: 知識及び技能
A10: 7 | B10: =COUNTIF([1]国語!E17,1)*[1]国語!$E$10 -> 0 | C10: =COUNTIF([1]国語!F17,1)*[1]国語!$F$10 -> 0 | D10: =COUNTIF([1]国語!G17,1)*[1]国語!$G$10 -> 0 | E10: =COUNTIF([1]国語!H17,1)*[1]国語!$H$10 -> 0 | F10: =COUNTIF([1]国語!I17,1)*[1]国語!$I$10 -> 0 | G10: =COUNTIF([1]国語!J17,1)*[1]国語!$J$10 -> 0 | H10: =COUNTIF([1]国語!K17,1)*[1]国語!$F$10 -> 4 | I10: =COUNTIF([1]国語!L17,1)*[1]国語!$F$10 -> 4 | J10: =COUNTIF([1]国語!M17,1)*[1]国語!$M$10 -> 4 | K10: =COUNTIF([1]国語!N17,1)*[1]国語!$N$10 -> 4 | L10: =COUNTIF([1]国語!O17,1)*[1]国語!$O$10 -> 4 | M10: =COUNTIF([1]国語!P17,1)*[1]国語!$P$10 -> 4 | N10: =COUNTIF([1]国語!Q17,1)*[1]国語!$Q$10 -> 4 | O10: =COUNTIF([1]国語!R17,1)*[1]国語!$R$10 -> 4 | P10: =COUNTIF([1]国語!S17,1)*[1]国語!$S$10 -> 4 | Q10: =COUNTIF([1]国語!T17,1)*[1]国語!$T$10 -> 4 | R10: =COUNTIF([1]国語!U17,1)*[1]国語!$U$10 -> 4 | S10: =COUNTIF([1]国語!V17,1)*[1]国語!$V$10 -> 4 | T10: =COUNTIF([1]国語!W17,1)*[1]国語!$W$10 -> 4 | U10: =COUNTIF([1]国語!X17,1)*[1]国語!$X$10 -> 4 | V10: =COUNTIF([1]国語!Y17,1)*[1]国語!$Y$10 -> 4 | W10: =COUNTIF([1]国語!Z17,1)*[1]国語!$Z$10 -> 4 | X10: =COUNTIF([1]国語!AA17,1)*[1]国語!$AA$10 -> 4 | Y10: =COUNTIF([1]国語!AB17,1)*[1]国語!$AB$10 -> 4 | Z10: =COUNTIF([1]国語!AC17,1)*[1]国語!$AC$10 -> 4 | AA10: =COUNTIF([1]国語!AD17,1)*[1]国語!$AD$10 -> 0 | AB10: =COUNTIF([1]国語!AE17,1)*[1]国語!$AE$10 -> 0 | AC10: =COUNTIF([1]国語!AF17,1)*[1]国語!$AF$10 -> 0 | AD10: =COUNTIF([1]国語!AG17,1)*[1]国語!$AG$10 -> 0 | AE10: =COUNTIF([1]国語!AH17,1)*[1]国語!$AH$10 -> 0 | AF10: =COUNTIF([1]国語!AI17,1)*[1]国語!$AI$10 -> 0 | AG10: =COUNTIF([1]国語!AJ17,1)*[1]国語!$AJ$10 -> 0 | AH10: =COUNTIF([1]国語!AK17,1)*[1]国語!$AK$10 -> 0 | AI10: =COUNTIF([1]国語!AL17,1)*[1]国語!$AL$10 -> 0 | AJ10: =COUNTIF([1]国語!AM17,1)*[1]国語!$AM$10 -> 0 | AK10: =COUNTIF([1]国語!AN17,1)*[1]国語!$AN$10 -> 0 | AL10: =COUNTIF([1]国語!AO17,1)*[1]国語!$AO$10 -> 0 | AM10: =COUNTIF([1]国語!AP17,1)*[1]国語!$AP$10 -> 0 | AN10: =COUNTIF([1]国語!AQ17,1)*[1]国語!$AQ$10 -> 0 | AO10: =COUNTIF([1]国語!AR17,1)*[1]国語!$AR$10 -> 0 | AP10: =COUNTIF([1]国語!AS17,1)*[1]国語!$AS$10 -> 0 | AQ10: =COUNTIF([1]国語!AT17,1)*[1]国語!$AT$10 -> 0 | AR10: =COUNTIF([1]国語!AU17,1)*[1]国語!$AU$10 -> 0 | AS10: =COUNTIF([1]国語!AV17,1)*[1]国語!$AV$10 -> 0 | AT10: =COUNTIF([1]国語!AW17,1)*[1]国語!$AW$10 -> 0 | AU10: =COUNTIF([1]国語!AX17,1)*[1]国語!$AX$10 -> 0 | AV10: =COUNTIF([1]国語!AY17,1)*[1]国語!$AY$10 -> 0 | AW10: =COUNTIF([1]国語!AZ17,1)*[1]国語!$AZ$10 -> 0 | AX10: =COUNTIF([1]国語!BA17,1)*[1]国語!$BA$10 -> 0 | AY10: =COUNTIF([1]国語!BB17,1)*[1]国語!$BB$10 -> 0 | AZ10: 76 | BC10: 7問 | BD10: =[1]国語!K58 -> 11 | BF10: 7問 | BG10: 81.6 | BI10: 7 | BJ10: 1 | BK10: 二（3） | BL10: 知識及び技能
A11: 8 | B11: =COUNTIF([1]国語!E18,1)*[1]国語!$E$10 -> 0 | C11: =COUNTIF([1]国語!F18,1)*[1]国語!$F$10 -> 0 | D11: =COUNTIF([1]国語!G18,1)*[1]国語!$G$10 -> 0 | E11: =COUNTIF([1]国語!H18,1)*[1]国語!$H$10 -> 0 | F11: =COUNTIF([1]国語!I18,1)*[1]国語!$I$10 -> 0 | G11: =COUNTIF([1]国語!J18,1)*[1]国語!$J$10 -> 0 | H11: =COUNTIF([1]国語!K18,1)*[1]国語!$F$10 -> 0 | I11: =COUNTIF([1]国語!L18,1)*[1]国語!$F$10 -> 0 | J11: =COUNTIF([1]国語!M18,1)*[1]国語!$M$10 -> 0 | K11: =COUNTIF([1]国語!N18,1)*[1]国語!$N$10 -> 4 | L11: =COUNTIF([1]国語!O18,1)*[1]国語!$O$10 -> 4 | M11: =COUNTIF([1]国語!P18,1)*[1]国語!$P$10 -> 4 | N11: =COUNTIF([1]国語!Q18,1)*[1]国語!$Q$10 -> 4 | O11: =COUNTIF([1]国語!R18,1)*[1]国語!$R$10 -> 4 | P11: =COUNTIF([1]国語!S18,1)*[1]国語!$S$10 -> 4 | Q11: =COUNTIF([1]国語!T18,1)*[1]国語!$T$10 -> 4 | R11: =COUNTIF([1]国語!U18,1)*[1]国語!$U$10 -> 4 | S11: =COUNTIF([1]国語!V18,1)*[1]国語!$V$10 -> 4 | T11: =COUNTIF([1]国語!W18,1)*[1]国語!$W$10 -> 4 | U11: =COUNTIF([1]国語!X18,1)*[1]国語!$X$10 -> 4 | V11: =COUNTIF([1]国語!Y18,1)*[1]国語!$Y$10 -> 4 | W11: =COUNTIF([1]国語!Z18,1)*[1]国語!$Z$10 -> 4 | X11: =COUNTIF([1]国語!AA18,1)*[1]国語!$AA$10 -> 4 | Y11: =COUNTIF([1]国語!AB18,1)*[1]国語!$AB$10 -> 4 | Z11: =COUNTIF([1]国語!AC18,1)*[1]国語!$AC$10 -> 4 | AA11: =COUNTIF([1]国語!AD18,1)*[1]国語!$AD$10 -> 0 | AB11: =COUNTIF([1]国語!AE18,1)*[1]国語!$AE$10 -> 0 | AC11: =COUNTIF([1]国語!AF18,1)*[1]国語!$AF$10 -> 0 | AD11: =COUNTIF([1]国語!AG18,1)*[1]国語!$AG$10 -> 0 | AE11: =COUNTIF([1]国語!AH18,1)*[1]国語!$AH$10 -> 0 | AF11: =COUNTIF([1]国語!AI18,1)*[1]国語!$AI$10 -> 0 | AG11: =COUNTIF([1]国語!AJ18,1)*[1]国語!$AJ$10 -> 0 | AH11: =COUNTIF([1]国語!AK18,1)*[1]国語!$AK$10 -> 0 | AI11: =COUNTIF([1]国語!AL18,1)*[1]国語!$AL$10 -> 0 | AJ11: =COUNTIF([1]国語!AM18,1)*[1]国語!$AM$10 -> 0 | AK11: =COUNTIF([1]国語!AN18,1)*[1]国語!$AN$10 -> 0 | AL11: =COUNTIF([1]国語!AO18,1)*[1]国語!$AO$10 -> 0 | AM11: =COUNTIF([1]国語!AP18,1)*[1]国語!$AP$10 -> 0 | AN11: =COUNTIF([1]国語!AQ18,1)*[1]国語!$AQ$10 -> 0 | AO11: =COUNTIF([1]国語!AR18,1)*[1]国語!$AR$10 -> 0 | AP11: =COUNTIF([1]国語!AS18,1)*[1]国語!$AS$10 -> 0 | AQ11: =COUNTIF([1]国語!AT18,1)*[1]国語!$AT$10 -> 0 | AR11: =COUNTIF([1]国語!AU18,1)*[1]国語!$AU$10 -> 0 | AS11: =COUNTIF([1]国語!AV18,1)*[1]国語!$AV$10 -> 0 | AT11: =COUNTIF([1]国語!AW18,1)*[1]国語!$AW$10 -> 0 | AU11: =COUNTIF([1]国語!AX18,1)*[1]国語!$AX$10 -> 0 | AV11: =COUNTIF([1]国語!AY18,1)*[1]国語!$AY$10 -> 0 | AW11: =COUNTIF([1]国語!AZ18,1)*[1]国語!$AZ$10 -> 0 | AX11: =COUNTIF([1]国語!BA18,1)*[1]国語!$BA$10 -> 0 | AY11: =COUNTIF([1]国語!BB18,1)*[1]国語!$BB$10 -> 0 | AZ11: 64 | BC11: 8問 | BD11: =[1]国語!L58 -> 11 | BF11: 8問 | BG11: 53.8 | BI11: 8 | BJ11: 1 | BK11: 二（4） | BL11: 知識及び技能
A12: 9 | B12: =COUNTIF([1]国語!E19,1)*[1]国語!$E$10 -> 0 | C12: =COUNTIF([1]国語!F19,1)*[1]国語!$F$10 -> 0 | D12: =COUNTIF([1]国語!G19,1)*[1]国語!$G$10 -> 0 | E12: =COUNTIF([1]国語!H19,1)*[1]国語!$H$10 -> 0 | F12: =COUNTIF([1]国語!I19,1)*[1]国語!$I$10 -> 0 | G12: =COUNTIF([1]国語!J19,1)*[1]国語!$J$10 -> 0 | H12: =COUNTIF([1]国語!K19,1)*[1]国語!$F$10 -> 0 | I12: =COUNTIF([1]国語!L19,1)*[1]国語!$F$10 -> 0 | J12: =COUNTIF([1]国語!M19,1)*[1]国語!$M$10 -> 0 | K12: =COUNTIF([1]国語!N19,1)*[1]国語!$N$10 -> 0 | L12: =COUNTIF([1]国語!O19,1)*[1]国語!$O$10 -> 4 | M12: =COUNTIF([1]国語!P19,1)*[1]国語!$P$10 -> 4 | N12: =COUNTIF([1]国語!Q19,1)*[1]国語!$Q$10 -> 4 | O12: =COUNTIF([1]国語!R19,1)*[1]国語!$R$10 -> 4 | P12: =COUNTIF([1]国語!S19,1)*[1]国語!$S$10 -> 4 | Q12: =COUNTIF([1]国語!T19,1)*[1]国語!$T$10 -> 4 | R12: =COUNTIF([1]国語!U19,1)*[1]国語!$U$10 -> 4 | S12: =COUNTIF([1]国語!V19,1)*[1]国語!$V$10 -> 4 | T12: =COUNTIF([1]国語!W19,1)*[1]国語!$W$10 -> 4 | U12: =COUNTIF([1]国語!X19,1)*[1]国語!$X$10 -> 4 | V12: =COUNTIF([1]国語!Y19,1)*[1]国語!$Y$10 -> 4 | W12: =COUNTIF([1]国語!Z19,1)*[1]国語!$Z$10 -> 4 | X12: =COUNTIF([1]国語!AA19,1)*[1]国語!$AA$10 -> 4 | Y12: =COUNTIF([1]国語!AB19,1)*[1]国語!$AB$10 -> 4 | Z12: =COUNTIF([1]国語!AC19,1)*[1]国語!$AC$10 -> 4 | AA12: =COUNTIF([1]国語!AD19,1)*[1]国語!$AD$10 -> 0 | AB12: =COUNTIF([1]国語!AE19,1)*[1]国語!$AE$10 -> 0 | AC12: =COUNTIF([1]国語!AF19,1)*[1]国語!$AF$10 -> 0 | AD12: =COUNTIF([1]国語!AG19,1)*[1]国語!$AG$10 -> 0 | AE12: =COUNTIF([1]国語!AH19,1)*[1]国語!$AH$10 -> 0 | AF12: =COUNTIF([1]国語!AI19,1)*[1]国語!$AI$10 -> 0 | AG12: =COUNTIF([1]国語!AJ19,1)*[1]国語!$AJ$10 -> 0 | AH12: =COUNTIF([1]国語!AK19,1)*[1]国語!$AK$10 -> 0 | AI12: =COUNTIF([1]国語!AL19,1)*[1]国語!$AL$10 -> 0 | AJ12: =COUNTIF([1]国語!AM19,1)*[1]国語!$AM$10 -> 0 | AK12: =COUNTIF([1]国語!AN19,1)*[1]国語!$AN$10 -> 0 | AL12: =COUNTIF([1]国語!AO19,1)*[1]国語!$AO$10 -> 0 | AM12: =COUNTIF([1]国語!AP19,1)*[1]国語!$AP$10 -> 0 | AN12: =COUNTIF([1]国語!AQ19,1)*[1]国語!$AQ$10 -> 0 | AO12: =COUNTIF([1]国語!AR19,1)*[1]国語!$AR$10 -> 0 | AP12: =COUNTIF([1]国語!AS19,1)*[1]国語!$AS$10 -> 0 | AQ12: =COUNTIF([1]国語!AT19,1)*[1]国語!$AT$10 -> 0 | AR12: =COUNTIF([1]国語!AU19,1)*[1]国語!$AU$10 -> 0 | AS12: =COUNTIF([1]国語!AV19,1)*[1]国語!$AV$10 -> 0 | AT12: =COUNTIF([1]国語!AW19,1)*[1]国語!$AW$10 -> 0 | AU12: =COUNTIF([1]国語!AX19,1)*[1]国語!$AX$10 -> 0 | AV12: =COUNTIF([1]国語!AY19,1)*[1]国語!$AY$10 -> 0 | AW12: =COUNTIF([1]国語!AZ19,1)*[1]国語!$AZ$10 -> 0 | AX12: =COUNTIF([1]国語!BA19,1)*[1]国語!$BA$10 -> 0 | AY12: =COUNTIF([1]国語!BB19,1)*[1]国語!$BB$10 -> 0 | AZ12: 60 | BC12: 9問 | BD12: =[1]国語!M58 -> 13 | BF12: 9問 | BG12: 56 | BI12: 9 | BJ12: 2 | BK12: 一 | BL12: 知識及び技能
A13: 10 | B13: =COUNTIF([1]国語!E20,1)*[1]国語!$E$10 -> 0 | C13: =COUNTIF([1]国語!F20,1)*[1]国語!$F$10 -> 0 | D13: =COUNTIF([1]国語!G20,1)*[1]国語!$G$10 -> 0 | E13: =COUNTIF([1]国語!H20,1)*[1]国語!$H$10 -> 0 | F13: =COUNTIF([1]国語!I20,1)*[1]国語!$I$10 -> 0 | G13: =COUNTIF([1]国語!J20,1)*[1]国語!$J$10 -> 0 | H13: =COUNTIF([1]国語!K20,1)*[1]国語!$F$10 -> 0 | I13: =COUNTIF([1]国語!L20,1)*[1]国語!$F$10 -> 0 | J13: =COUNTIF([1]国語!M20,1)*[1]国語!$M$10 -> 0 | K13: =COUNTIF([1]国語!N20,1)*[1]国語!$N$10 -> 0 | L13: =COUNTIF([1]国語!O20,1)*[1]国語!$O$10 -> 0 | M13: =COUNTIF([1]国語!P20,1)*[1]国語!$P$10 -> 4 | N13: =COUNTIF([1]国語!Q20,1)*[1]国語!$Q$10 -> 4 | O13: =COUNTIF([1]国語!R20,1)*[1]国語!$R$10 -> 4 | P13: =COUNTIF([1]国語!S20,1)*[1]国語!$S$10 -> 4 | Q13: =COUNTIF([1]国語!T20,1)*[1]国語!$T$10 -> 4 | R13: =COUNTIF([1]国語!U20,1)*[1]国語!$U$10 -> 4 | S13: =COUNTIF([1]国語!V20,1)*[1]国語!$V$10 -> 4 | T13: =COUNTIF([1]国語!W20,1)*[1]国語!$W$10 -> 4 | U13: =COUNTIF([1]国語!X20,1)*[1]国語!$X$10 -> 4 | V13: =COUNTIF([1]国語!Y20,1)*[1]国語!$Y$10 -> 4 | W13: =COUNTIF([1]国語!Z20,1)*[1]国語!$Z$10 -> 4 | X13: =COUNTIF([1]国語!AA20,1)*[1]国語!$AA$10 -> 4 | Y13: =COUNTIF([1]国語!AB20,1)*[1]国語!$AB$10 -> 4 | Z13: =COUNTIF([1]国語!AC20,1)*[1]国語!$AC$10 -> 4 | AA13: =COUNTIF([1]国語!AD20,1)*[1]国語!$AD$10 -> 0 | AB13: =COUNTIF([1]国語!AE20,1)*[1]国語!$AE$10 -> 0 | AC13: =COUNTIF([1]国語!AF20,1)*[1]国語!$AF$10 -> 0 | AD13: =COUNTIF([1]国語!AG20,1)*[1]国語!$AG$10 -> 0 | AE13: =COUNTIF([1]国語!AH20,1)*[1]国語!$AH$10 -> 0 | AF13: =COUNTIF([1]国語!AI20,1)*[1]国語!$AI$10 -> 0 | AG13: =COUNTIF([1]国語!AJ20,1)*[1]国語!$AJ$10 -> 0 | AH13: =COUNTIF([1]国語!AK20,1)*[1]国語!$AK$10 -> 0 | AI13: =COUNTIF([1]国語!AL20,1)*[1]国語!$AL$10 -> 0 | AJ13: =COUNTIF([1]国語!AM20,1)*[1]国語!$AM$10 -> 0 | AK13: =COUNTIF([1]国語!AN20,1)*[1]国語!$AN$10 -> 0 | AL13: =COUNTIF([1]国語!AO20,1)*[1]国語!$AO$10 -> 0 | AM13: =COUNTIF([1]国語!AP20,1)*[1]国語!$AP$10 -> 0 | AN13: =COUNTIF([1]国語!AQ20,1)*[1]国語!$AQ$10 -> 0 | AO13: =COUNTIF([1]国語!AR20,1)*[1]国語!$AR$10 -> 0 | AP13: =COUNTIF([1]国語!AS20,1)*[1]国語!$AS$10 -> 0 | AQ13: =COUNTIF([1]国語!AT20,1)*[1]国語!$AT$10 -> 0 | AR13: =COUNTIF([1]国語!AU20,1)*[1]国語!$AU$10 -> 0 | AS13: =COUNTIF([1]国語!AV20,1)*[1]国語!$AV$10 -> 0 | AT13: =COUNTIF([1]国語!AW20,1)*[1]国語!$AW$10 -> 0 | AU13: =COUNTIF([1]国語!AX20,1)*[1]国語!$AX$10 -> 0 | AV13: =COUNTIF([1]国語!AY20,1)*[1]国語!$AY$10 -> 0 | AW13: =COUNTIF([1]国語!AZ20,1)*[1]国語!$AZ$10 -> 0 | AX13: =COUNTIF([1]国語!BA20,1)*[1]国語!$BA$10 -> 0 | AY13: =COUNTIF([1]国語!BB20,1)*[1]国語!$BB$10 -> 0 | AZ13: 56 | BC13: 10問 | BD13: =[1]国語!N58 -> 15 | BF13: 10問 | BG13: 62.1 | BI13: 10 | BJ13: 2 | BK13: 二 | BL13: 知識及び技能
A14: 11 | B14: =COUNTIF([1]国語!E21,1)*[1]国語!$E$10 -> 0 | C14: =COUNTIF([1]国語!F21,1)*[1]国語!$F$10 -> 0 | D14: =COUNTIF([1]国語!G21,1)*[1]国語!$G$10 -> 0 | E14: =COUNTIF([1]国語!H21,1)*[1]国語!$H$10 -> 0 | F14: =COUNTIF([1]国語!I21,1)*[1]国語!$I$10 -> 0 | G14: =COUNTIF([1]国語!J21,1)*[1]国語!$J$10 -> 0 | H14: =COUNTIF([1]国語!K21,1)*[1]国語!$F$10 -> 0 | I14: =COUNTIF([1]国語!L21,1)*[1]国語!$F$10 -> 0 | J14: =COUNTIF([1]国語!M21,1)*[1]国語!$M$10 -> 0 | K14: =COUNTIF([1]国語!N21,1)*[1]国語!$N$10 -> 0 | L14: =COUNTIF([1]国語!O21,1)*[1]国語!$O$10 -> 0 | M14: =COUNTIF([1]国語!P21,1)*[1]国語!$P$10 -> 0 | N14: =COUNTIF([1]国語!Q21,1)*[1]国語!$Q$10 -> 4 | O14: =COUNTIF([1]国語!R21,1)*[1]国語!$R$10 -> 4 | P14: =COUNTIF([1]国語!S21,1)*[1]国語!$S$10 -> 4 | Q14: =COUNTIF([1]国語!T21,1)*[1]国語!$T$10 -> 4 | R14: =COUNTIF([1]国語!U21,1)*[1]国語!$U$10 -> 4 | S14: =COUNTIF([1]国語!V21,1)*[1]国語!$V$10 -> 4 | T14: =COUNTIF([1]国語!W21,1)*[1]国語!$W$10 -> 4 | U14: =COUNTIF([1]国語!X21,1)*[1]国語!$X$10 -> 4 | V14: =COUNTIF([1]国語!Y21,1)*[1]国語!$Y$10 -> 4 | W14: =COUNTIF([1]国語!Z21,1)*[1]国語!$Z$10 -> 4 | X14: =COUNTIF([1]国語!AA21,1)*[1]国語!$AA$10 -> 4 | Y14: =COUNTIF([1]国語!AB21,1)*[1]国語!$AB$10 -> 4 | Z14: =COUNTIF([1]国語!AC21,1)*[1]国語!$AC$10 -> 4 | AA14: =COUNTIF([1]国語!AD21,1)*[1]国語!$AD$10 -> 0 | AB14: =COUNTIF([1]国語!AE21,1)*[1]国語!$AE$10 -> 0 | AC14: =COUNTIF([1]国語!AF21,1)*[1]国語!$AF$10 -> 0 | AD14: =COUNTIF([1]国語!AG21,1)*[1]国語!$AG$10 -> 0 | AE14: =COUNTIF([1]国語!AH21,1)*[1]国語!$AH$10 -> 0 | AF14: =COUNTIF([1]国語!AI21,1)*[1]国語!$AI$10 -> 0 | AG14: =COUNTIF([1]国語!AJ21,1)*[1]国語!$AJ$10 -> 0 | AH14: =COUNTIF([1]国語!AK21,1)*[1]国語!$AK$10 -> 0 | AI14: =COUNTIF([1]国語!AL21,1)*[1]国語!$AL$10 -> 0 | AJ14: =COUNTIF([1]国語!AM21,1)*[1]国語!$AM$10 -> 0 | AK14: =COUNTIF([1]国語!AN21,1)*[1]国語!$AN$10 -> 0 | AL14: =COUNTIF([1]国語!AO21,1)*[1]国語!$AO$10 -> 0 | AM14: =COUNTIF([1]国語!AP21,1)*[1]国語!$AP$10 -> 0 | AN14: =COUNTIF([1]国語!AQ21,1)*[1]国語!$AQ$10 -> 0 | AO14: =COUNTIF([1]国語!AR21,1)*[1]国語!$AR$10 -> 0 | AP14: =COUNTIF([1]国語!AS21,1)*[1]国語!$AS$10 -> 0 | AQ14: =COUNTIF([1]国語!AT21,1)*[1]国語!$AT$10 -> 0 | AR14: =COUNTIF([1]国語!AU21,1)*[1]国語!$AU$10 -> 0 | AS14: =COUNTIF([1]国語!AV21,1)*[1]国語!$AV$10 -> 0 | AT14: =COUNTIF([1]国語!AW21,1)*[1]国語!$AW$10 -> 0 | AU14: =COUNTIF([1]国語!AX21,1)*[1]国語!$AX$10 -> 0 | AV14: =COUNTIF([1]国語!AY21,1)*[1]国語!$AY$10 -> 0 | AW14: =COUNTIF([1]国語!AZ21,1)*[1]国語!$AZ$10 -> 0 | AX14: =COUNTIF([1]国語!BA21,1)*[1]国語!$BA$10 -> 0 | AY14: =COUNTIF([1]国語!BB21,1)*[1]国語!$BB$10 -> 0 | AZ14: 52 | BC14: 11問 | BD14: =[1]国語!O58 -> 17 | BF14: 11問 | BG14: 96.1 | BI14: 11 | BJ14: 3 | BK14: 一 | BL14: 知識及び技能
A15: 12 | B15: =COUNTIF([1]国語!E22,1)*[1]国語!$E$10 -> 0 | C15: =COUNTIF([1]国語!F22,1)*[1]国語!$F$10 -> 0 | D15: =COUNTIF([1]国語!G22,1)*[1]国語!$G$10 -> 0 | E15: =COUNTIF([1]国語!H22,1)*[1]国語!$H$10 -> 0 | F15: =COUNTIF([1]国語!I22,1)*[1]国語!$I$10 -> 0 | G15: =COUNTIF([1]国語!J22,1)*[1]国語!$J$10 -> 0 | H15: =COUNTIF([1]国語!K22,1)*[1]国語!$F$10 -> 0 | I15: =COUNTIF([1]国語!L22,1)*[1]国語!$F$10 -> 0 | J15: =COUNTIF([1]国語!M22,1)*[1]国語!$M$10 -> 0 | K15: =COUNTIF([1]国語!N22,1)*[1]国語!$N$10 -> 0 | L15: =COUNTIF([1]国語!O22,1)*[1]国語!$O$10 -> 0 | M15: =COUNTIF([1]国語!P22,1)*[1]国語!$P$10 -> 0 | N15: =COUNTIF([1]国語!Q22,1)*[1]国語!$Q$10 -> 0 | O15: =COUNTIF([1]国語!R22,1)*[1]国語!$R$10 -> 4 | P15: =COUNTIF([1]国語!S22,1)*[1]国語!$S$10 -> 4 | Q15: =COUNTIF([1]国語!T22,1)*[1]国語!$T$10 -> 4 | R15: =COUNTIF([1]国語!U22,1)*[1]国語!$U$10 -> 4 | S15: =COUNTIF([1]国語!V22,1)*[1]国語!$V$10 -> 4 | T15: =COUNTIF([1]国語!W22,1)*[1]国語!$W$10 -> 4 | U15: =COUNTIF([1]国語!X22,1)*[1]国語!$X$10 -> 4 | V15: =COUNTIF([1]国語!Y22,1)*[1]国語!$Y$10 -> 4 | W15: =COUNTIF([1]国語!Z22,1)*[1]国語!$Z$10 -> 4 | X15: =COUNTIF([1]国語!AA22,1)*[1]国語!$AA$10 -> 4 | Y15: =COUNTIF([1]国語!AB22,1)*[1]国語!$AB$10 -> 4 | Z15: =COUNTIF([1]国語!AC22,1)*[1]国語!$AC$10 -> 4 | AA15: =COUNTIF([1]国語!AD22,1)*[1]国語!$AD$10 -> 0 | AB15: =COUNTIF([1]国語!AE22,1)*[1]国語!$AE$10 -> 0 | AC15: =COUNTIF([1]国語!AF22,1)*[1]国語!$AF$10 -> 0 | AD15: =COUNTIF([1]国語!AG22,1)*[1]国語!$AG$10 -> 0 | AE15: =COUNTIF([1]国語!AH22,1)*[1]国語!$AH$10 -> 0 | AF15: =COUNTIF([1]国語!AI22,1)*[1]国語!$AI$10 -> 0 | AG15: =COUNTIF([1]国語!AJ22,1)*[1]国語!$AJ$10 -> 0 | AH15: =COUNTIF([1]国語!AK22,1)*[1]国語!$AK$10 -> 0 | AI15: =COUNTIF([1]国語!AL22,1)*[1]国語!$AL$10 -> 0 | AJ15: =COUNTIF([1]国語!AM22,1)*[1]国語!$AM$10 -> 0 | AK15: =COUNTIF([1]国語!AN22,1)*[1]国語!$AN$10 -> 0 | AL15: =COUNTIF([1]国語!AO22,1)*[1]国語!$AO$10 -> 0 | AM15: =COUNTIF([1]国語!AP22,1)*[1]国語!$AP$10 -> 0 | AN15: =COUNTIF([1]国語!AQ22,1)*[1]国語!$AQ$10 -> 0 | AO15: =COUNTIF([1]国語!AR22,1)*[1]国語!$AR$10 -> 0 | AP15: =COUNTIF([1]国語!AS22,1)*[1]国語!$AS$10 -> 0 | AQ15: =COUNTIF([1]国語!AT22,1)*[1]国語!$AT$10 -> 0 | AR15: =COUNTIF([1]国語!AU22,1)*[1]国語!$AU$10 -> 0 | AS15: =COUNTIF([1]国語!AV22,1)*[1]国語!$AV$10 -> 0 | AT15: =COUNTIF([1]国語!AW22,1)*[1]国語!$AW$10 -> 0 | AU15: =COUNTIF([1]国語!AX22,1)*[1]国語!$AX$10 -> 0 | AV15: =COUNTIF([1]国語!AY22,1)*[1]国語!$AY$10 -> 0 | AW15: =COUNTIF([1]国語!AZ22,1)*[1]国語!$AZ$10 -> 0 | AX15: =COUNTIF([1]国語!BA22,1)*[1]国語!$BA$10 -> 0 | AY15: =COUNTIF([1]国語!BB22,1)*[1]国語!$BB$10 -> 0 | AZ15: 48 | BC15: 12問 | BD15: =[1]国語!P58 -> 19 | BF15: 12問 | BG15: 97.5 | BI15: 12 | BJ15: 3 | BK15: 二 | BL15: 知識及び技能
A16: 13 | B16: =COUNTIF([1]国語!E23,1)*[1]国語!$E$10 -> 0 | C16: =COUNTIF([1]国語!F23,1)*[1]国語!$F$10 -> 0 | D16: =COUNTIF([1]国語!G23,1)*[1]国語!$G$10 -> 0 | E16: =COUNTIF([1]国語!H23,1)*[1]国語!$H$10 -> 0 | F16: =COUNTIF([1]国語!I23,1)*[1]国語!$I$10 -> 0 | G16: =COUNTIF([1]国語!J23,1)*[1]国語!$J$10 -> 0 | H16: =COUNTIF([1]国語!K23,1)*[1]国語!$F$10 -> 0 | I16: =COUNTIF([1]国語!L23,1)*[1]国語!$F$10 -> 0 | J16: =COUNTIF([1]国語!M23,1)*[1]国語!$M$10 -> 0 | K16: =COUNTIF([1]国語!N23,1)*[1]国語!$N$10 -> 0 | L16: =COUNTIF([1]国語!O23,1)*[1]国語!$O$10 -> 0 | M16: =COUNTIF([1]国語!P23,1)*[1]国語!$P$10 -> 0 | N16: =COUNTIF([1]国語!Q23,1)*[1]国語!$Q$10 -> 0 | O16: =COUNTIF([1]国語!R23,1)*[1]国語!$R$10 -> 0 | P16: =COUNTIF([1]国語!S23,1)*[1]国語!$S$10 -> 4 | Q16: =COUNTIF([1]国語!T23,1)*[1]国語!$T$10 -> 4 | R16: =COUNTIF([1]国語!U23,1)*[1]国語!$U$10 -> 4 | S16: =COUNTIF([1]国語!V23,1)*[1]国語!$V$10 -> 4 | T16: =COUNTIF([1]国語!W23,1)*[1]国語!$W$10 -> 4 | U16: =COUNTIF([1]国語!X23,1)*[1]国語!$X$10 -> 4 | V16: =COUNTIF([1]国語!Y23,1)*[1]国語!$Y$10 -> 4 | W16: =COUNTIF([1]国語!Z23,1)*[1]国語!$Z$10 -> 4 | X16: =COUNTIF([1]国語!AA23,1)*[1]国語!$AA$10 -> 4 | Y16: =COUNTIF([1]国語!AB23,1)*[1]国語!$AB$10 -> 4 | Z16: =COUNTIF([1]国語!AC23,1)*[1]国語!$AC$10 -> 4 | AA16: =COUNTIF([1]国語!AD23,1)*[1]国語!$AD$10 -> 0 | AB16: =COUNTIF([1]国語!AE23,1)*[1]国語!$AE$10 -> 0 | AC16: =COUNTIF([1]国語!AF23,1)*[1]国語!$AF$10 -> 0 | AD16: =COUNTIF([1]国語!AG23,1)*[1]国語!$AG$10 -> 0 | AE16: =COUNTIF([1]国語!AH23,1)*[1]国語!$AH$10 -> 0 | AF16: =COUNTIF([1]国語!AI23,1)*[1]国語!$AI$10 -> 0 | AG16: =COUNTIF([1]国語!AJ23,1)*[1]国語!$AJ$10 -> 0 | AH16: =COUNTIF([1]国語!AK23,1)*[1]国語!$AK$10 -> 0 | AI16: =COUNTIF([1]国語!AL23,1)*[1]国語!$AL$10 -> 0 | AJ16: =COUNTIF([1]国語!AM23,1)*[1]国語!$AM$10 -> 0 | AK16: =COUNTIF([1]国語!AN23,1)*[1]国語!$AN$10 -> 0 | AL16: =COUNTIF([1]国語!AO23,1)*[1]国語!$AO$10 -> 0 | AM16: =COUNTIF([1]国語!AP23,1)*[1]国語!$AP$10 -> 0 | AN16: =COUNTIF([1]国語!AQ23,1)*[1]国語!$AQ$10 -> 0 | AO16: =COUNTIF([1]国語!AR23,1)*[1]国語!$AR$10 -> 0 | AP16: =COUNTIF([1]国語!AS23,1)*[1]国語!$AS$10 -> 0 | AQ16: =COUNTIF([1]国語!AT23,1)*[1]国語!$AT$10 -> 0 | AR16: =COUNTIF([1]国語!AU23,1)*[1]国語!$AU$10 -> 0 | AS16: =COUNTIF([1]国語!AV23,1)*[1]国語!$AV$10 -> 0 | AT16: =COUNTIF([1]国語!AW23,1)*[1]国語!$AW$10 -> 0 | AU16: =COUNTIF([1]国語!AX23,1)*[1]国語!$AX$10 -> 0 | AV16: =COUNTIF([1]国語!AY23,1)*[1]国語!$AY$10 -> 0 | AW16: =COUNTIF([1]国語!AZ23,1)*[1]国語!$AZ$10 -> 0 | AX16: =COUNTIF([1]国語!BA23,1)*[1]国語!$BA$10 -> 0 | AY16: =COUNTIF([1]国語!BB23,1)*[1]国語!$BB$10 -> 0 | AZ16: 44 | BC16: 13問 | BD16: =[1]国語!Q58 -> 21 | BF16: 13問 | BG16: 83.8 | BI16: 13 | BJ16: 4 | BK16: 一 | BL16: 読むこと
A17: 14 | B17: =COUNTIF([1]国語!E24,1)*[1]国語!$E$10 -> 0 | C17: =COUNTIF([1]国語!F24,1)*[1]国語!$F$10 -> 0 | D17: =COUNTIF([1]国語!G24,1)*[1]国語!$G$10 -> 0 | E17: =COUNTIF([1]国語!H24,1)*[1]国語!$H$10 -> 0 | F17: =COUNTIF([1]国語!I24,1)*[1]国語!$I$10 -> 0 | G17: =COUNTIF([1]国語!J24,1)*[1]国語!$J$10 -> 0 | H17: =COUNTIF([1]国語!K24,1)*[1]国語!$F$10 -> 0 | I17: =COUNTIF([1]国語!L24,1)*[1]国語!$F$10 -> 0 | J17: =COUNTIF([1]国語!M24,1)*[1]国語!$M$10 -> 0 | K17: =COUNTIF([1]国語!N24,1)*[1]国語!$N$10 -> 0 | L17: =COUNTIF([1]国語!O24,1)*[1]国語!$O$10 -> 0 | M17: =COUNTIF([1]国語!P24,1)*[1]国語!$P$10 -> 0 | N17: =COUNTIF([1]国語!Q24,1)*[1]国語!$Q$10 -> 0 | O17: =COUNTIF([1]国語!R24,1)*[1]国語!$R$10 -> 0 | P17: =COUNTIF([1]国語!S24,1)*[1]国語!$S$10 -> 0 | Q17: =COUNTIF([1]国語!T24,1)*[1]国語!$T$10 -> 4 | R17: =COUNTIF([1]国語!U24,1)*[1]国語!$U$10 -> 4 | S17: =COUNTIF([1]国語!V24,1)*[1]国語!$V$10 -> 4 | T17: =COUNTIF([1]国語!W24,1)*[1]国語!$W$10 -> 4 | U17: =COUNTIF([1]国語!X24,1)*[1]国語!$X$10 -> 4 | V17: =COUNTIF([1]国語!Y24,1)*[1]国語!$Y$10 -> 4 | W17: =COUNTIF([1]国語!Z24,1)*[1]国語!$Z$10 -> 4 | X17: =COUNTIF([1]国語!AA24,1)*[1]国語!$AA$10 -> 4 | Y17: =COUNTIF([1]国語!AB24,1)*[1]国語!$AB$10 -> 4 | Z17: =COUNTIF([1]国語!AC24,1)*[1]国語!$AC$10 -> 4 | AA17: =COUNTIF([1]国語!AD24,1)*[1]国語!$AD$10 -> 0 | AB17: =COUNTIF([1]国語!AE24,1)*[1]国語!$AE$10 -> 0 | AC17: =COUNTIF([1]国語!AF24,1)*[1]国語!$AF$10 -> 0 | AD17: =COUNTIF([1]国語!AG24,1)*[1]国語!$AG$10 -> 0 | AE17: =COUNTIF([1]国語!AH24,1)*[1]国語!$AH$10 -> 0 | AF17: =COUNTIF([1]国語!AI24,1)*[1]国語!$AI$10 -> 0 | AG17: =COUNTIF([1]国語!AJ24,1)*[1]国語!$AJ$10 -> 0 | AH17: =COUNTIF([1]国語!AK24,1)*[1]国語!$AK$10 -> 0 | AI17: =COUNTIF([1]国語!AL24,1)*[1]国語!$AL$10 -> 0 | AJ17: =COUNTIF([1]国語!AM24,1)*[1]国語!$AM$10 -> 0 | AK17: =COUNTIF([1]国語!AN24,1)*[1]国語!$AN$10 -> 0 | AL17: =COUNTIF([1]国語!AO24,1)*[1]国語!$AO$10 -> 0 | AM17: =COUNTIF([1]国語!AP24,1)*[1]国語!$AP$10 -> 0 | AN17: =COUNTIF([1]国語!AQ24,1)*[1]国語!$AQ$10 -> 0 | AO17: =COUNTIF([1]国語!AR24,1)*[1]国語!$AR$10 -> 0 | AP17: =COUNTIF([1]国語!AS24,1)*[1]国語!$AS$10 -> 0 | AQ17: =COUNTIF([1]国語!AT24,1)*[1]国語!$AT$10 -> 0 | AR17: =COUNTIF([1]国語!AU24,1)*[1]国語!$AU$10 -> 0 | AS17: =COUNTIF([1]国語!AV24,1)*[1]国語!$AV$10 -> 0 | AT17: =COUNTIF([1]国語!AW24,1)*[1]国語!$AW$10 -> 0 | AU17: =COUNTIF([1]国語!AX24,1)*[1]国語!$AX$10 -> 0 | AV17: =COUNTIF([1]国語!AY24,1)*[1]国語!$AY$10 -> 0 | AW17: =COUNTIF([1]国語!AZ24,1)*[1]国語!$AZ$10 -> 0 | AX17: =COUNTIF([1]国語!BA24,1)*[1]国語!$BA$10 -> 0 | AY17: =COUNTIF([1]国語!BB24,1)*[1]国語!$BB$10 -> 0 | AZ17: 40 | BC17: 14問 | BD17: =[1]国語!R58 -> 23 | BF17: 14問 | BG17: 84.1 | BI17: 14 | BJ17: 4 | BK17: 二Ａ | BL17: 読むこと
A18: 15 | B18: =COUNTIF([1]国語!E25,1)*[1]国語!$E$10 -> 0 | C18: =COUNTIF([1]国語!F25,1)*[1]国語!$F$10 -> 0 | D18: =COUNTIF([1]国語!G25,1)*[1]国語!$G$10 -> 0 | E18: =COUNTIF([1]国語!H25,1)*[1]国語!$H$10 -> 0 | F18: =COUNTIF([1]国語!I25,1)*[1]国語!$I$10 -> 0 | G18: =COUNTIF([1]国語!J25,1)*[1]国語!$J$10 -> 0 | H18: =COUNTIF([1]国語!K25,1)*[1]国語!$F$10 -> 0 | I18: =COUNTIF([1]国語!L25,1)*[1]国語!$F$10 -> 0 | J18: =COUNTIF([1]国語!M25,1)*[1]国語!$M$10 -> 0 | K18: =COUNTIF([1]国語!N25,1)*[1]国語!$N$10 -> 0 | L18: =COUNTIF([1]国語!O25,1)*[1]国語!$O$10 -> 0 | M18: =COUNTIF([1]国語!P25,1)*[1]国語!$P$10 -> 0 | N18: =COUNTIF([1]国語!Q25,1)*[1]国語!$Q$10 -> 0 | O18: =COUNTIF([1]国語!R25,1)*[1]国語!$R$10 -> 0 | P18: =COUNTIF([1]国語!S25,1)*[1]国語!$S$10 -> 0 | Q18: =COUNTIF([1]国語!T25,1)*[1]国語!$T$10 -> 0 | R18: =COUNTIF([1]国語!U25,1)*[1]国語!$U$10 -> 4 | S18: =COUNTIF([1]国語!V25,1)*[1]国語!$V$10 -> 4 | T18: =COUNTIF([1]国語!W25,1)*[1]国語!$W$10 -> 4 | U18: =COUNTIF([1]国語!X25,1)*[1]国語!$X$10 -> 4 | V18: =COUNTIF([1]国語!Y25,1)*[1]国語!$Y$10 -> 4 | W18: =COUNTIF([1]国語!Z25,1)*[1]国語!$Z$10 -> 4 | X18: =COUNTIF([1]国語!AA25,1)*[1]国語!$AA$10 -> 4 | Y18: =COUNTIF([1]国語!AB25,1)*[1]国語!$AB$10 -> 4 | Z18: =COUNTIF([1]国語!AC25,1)*[1]国語!$AC$10 -> 4 | AA18: =COUNTIF([1]国語!AD25,1)*[1]国語!$AD$10 -> 0 | AB18: =COUNTIF([1]国語!AE25,1)*[1]国語!$AE$10 -> 0 | AC18: =COUNTIF([1]国語!AF25,1)*[1]国語!$AF$10 -> 0 | AD18: =COUNTIF([1]国語!AG25,1)*[1]国語!$AG$10 -> 0 | AE18: =COUNTIF([1]国語!AH25,1)*[1]国語!$AH$10 -> 0 | AF18: =COUNTIF([1]国語!AI25,1)*[1]国語!$AI$10 -> 0 | AG18: =COUNTIF([1]国語!AJ25,1)*[1]国語!$AJ$10 -> 0 | AH18: =COUNTIF([1]国語!AK25,1)*[1]国語!$AK$10 -> 0 | AI18: =COUNTIF([1]国語!AL25,1)*[1]国語!$AL$10 -> 0 | AJ18: =COUNTIF([1]国語!AM25,1)*[1]国語!$AM$10 -> 0 | AK18: =COUNTIF([1]国語!AN25,1)*[1]国語!$AN$10 -> 0 | AL18: =COUNTIF([1]国語!AO25,1)*[1]国語!$AO$10 -> 0 | AM18: =COUNTIF([1]国語!AP25,1)*[1]国語!$AP$10 -> 0 | AN18: =COUNTIF([1]国語!AQ25,1)*[1]国語!$AQ$10 -> 0 | AO18: =COUNTIF([1]国語!AR25,1)*[1]国語!$AR$10 -> 0 | AP18: =COUNTIF([1]国語!AS25,1)*[1]国語!$AS$10 -> 0 | AQ18: =COUNTIF([1]国語!AT25,1)*[1]国語!$AT$10 -> 0 | AR18: =COUNTIF([1]国語!AU25,1)*[1]国語!$AU$10 -> 0 | AS18: =COUNTIF([1]国語!AV25,1)*[1]国語!$AV$10 -> 0 | AT18: =COUNTIF([1]国語!AW25,1)*[1]国語!$AW$10 -> 0 | AU18: =COUNTIF([1]国語!AX25,1)*[1]国語!$AX$10 -> 0 | AV18: =COUNTIF([1]国語!AY25,1)*[1]国語!$AY$10 -> 0 | AW18: =COUNTIF([1]国語!AZ25,1)*[1]国語!$AZ$10 -> 0 | AX18: =COUNTIF([1]国語!BA25,1)*[1]国語!$BA$10 -> 0 | AY18: =COUNTIF([1]国語!BB25,1)*[1]国語!$BB$10 -> 0 | AZ18: 36 | BC18: 15問 | BD18: =[1]国語!S58 -> 25 | BF18: 15問 | BG18: 88.8 | BI18: 15 | BJ18: 4 | BK18: 二B | BL18: 読むこと
A19: 16 | B19: =COUNTIF([1]国語!E26,1)*[1]国語!$E$10 -> 0 | C19: =COUNTIF([1]国語!F26,1)*[1]国語!$F$10 -> 0 | D19: =COUNTIF([1]国語!G26,1)*[1]国語!$G$10 -> 0 | E19: =COUNTIF([1]国語!H26,1)*[1]国語!$H$10 -> 0 | F19: =COUNTIF([1]国語!I26,1)*[1]国語!$I$10 -> 0 | G19: =COUNTIF([1]国語!J26,1)*[1]国語!$J$10 -> 0 | H19: =COUNTIF([1]国語!K26,1)*[1]国語!$F$10 -> 0 | I19: =COUNTIF([1]国語!L26,1)*[1]国語!$F$10 -> 0 | J19: =COUNTIF([1]国語!M26,1)*[1]国語!$M$10 -> 0 | K19: =COUNTIF([1]国語!N26,1)*[1]国語!$N$10 -> 0 | L19: =COUNTIF([1]国語!O26,1)*[1]国語!$O$10 -> 0 | M19: =COUNTIF([1]国語!P26,1)*[1]国語!$P$10 -> 0 | N19: =COUNTIF([1]国語!Q26,1)*[1]国語!$Q$10 -> 0 | O19: =COUNTIF([1]国語!R26,1)*[1]国語!$R$10 -> 0 | P19: =COUNTIF([1]国語!S26,1)*[1]国語!$S$10 -> 0 | Q19: =COUNTIF([1]国語!T26,1)*[1]国語!$T$10 -> 0 | R19: =COUNTIF([1]国語!U26,1)*[1]国語!$U$10 -> 0 | S19: =COUNTIF([1]国語!V26,1)*[1]国語!$V$10 -> 4 | T19: =COUNTIF([1]国語!W26,1)*[1]国語!$W$10 -> 4 | U19: =COUNTIF([1]国語!X26,1)*[1]国語!$X$10 -> 4 | V19: =COUNTIF([1]国語!Y26,1)*[1]国語!$Y$10 -> 4 | W19: =COUNTIF([1]国語!Z26,1)*[1]国語!$Z$10 -> 4 | X19: =COUNTIF([1]国語!AA26,1)*[1]国語!$AA$10 -> 4 | Y19: =COUNTIF([1]国語!AB26,1)*[1]国語!$AB$10 -> 4 | Z19: =COUNTIF([1]国語!AC26,1)*[1]国語!$AC$10 -> 4 | AA19: =COUNTIF([1]国語!AD26,1)*[1]国語!$AD$10 -> 0 | AB19: =COUNTIF([1]国語!AE26,1)*[1]国語!$AE$10 -> 0 | AC19: =COUNTIF([1]国語!AF26,1)*[1]国語!$AF$10 -> 0 | AD19: =COUNTIF([1]国語!AG26,1)*[1]国語!$AG$10 -> 0 | AE19: =COUNTIF([1]国語!AH26,1)*[1]国語!$AH$10 -> 0 | AF19: =COUNTIF([1]国語!AI26,1)*[1]国語!$AI$10 -> 0 | AG19: =COUNTIF([1]国語!AJ26,1)*[1]国語!$AJ$10 -> 0 | AH19: =COUNTIF([1]国語!AK26,1)*[1]国語!$AK$10 -> 0 | AI19: =COUNTIF([1]国語!AL26,1)*[1]国語!$AL$10 -> 0 | AJ19: =COUNTIF([1]国語!AM26,1)*[1]国語!$AM$10 -> 0 | AK19: =COUNTIF([1]国語!AN26,1)*[1]国語!$AN$10 -> 0 | AL19: =COUNTIF([1]国語!AO26,1)*[1]国語!$AO$10 -> 0 | AM19: =COUNTIF([1]国語!AP26,1)*[1]国語!$AP$10 -> 0 | AN19: =COUNTIF([1]国語!AQ26,1)*[1]国語!$AQ$10 -> 0 | AO19: =COUNTIF([1]国語!AR26,1)*[1]国語!$AR$10 -> 0 | AP19: =COUNTIF([1]国語!AS26,1)*[1]国語!$AS$10 -> 0 | AQ19: =COUNTIF([1]国語!AT26,1)*[1]国語!$AT$10 -> 0 | AR19: =COUNTIF([1]国語!AU26,1)*[1]国語!$AU$10 -> 0 | AS19: =COUNTIF([1]国語!AV26,1)*[1]国語!$AV$10 -> 0 | AT19: =COUNTIF([1]国語!AW26,1)*[1]国語!$AW$10 -> 0 | AU19: =COUNTIF([1]国語!AX26,1)*[1]国語!$AX$10 -> 0 | AV19: =COUNTIF([1]国語!AY26,1)*[1]国語!$AY$10 -> 0 | AW19: =COUNTIF([1]国語!AZ26,1)*[1]国語!$AZ$10 -> 0 | AX19: =COUNTIF([1]国語!BA26,1)*[1]国語!$BA$10 -> 0 | AY19: =COUNTIF([1]国語!BB26,1)*[1]国語!$BB$10 -> 0 | AZ19: 32 | BC19: 16問 | BD19: =[1]国語!T58 -> 27 | BF19: 16問 | BG19: 82.8 | BI19: 16 | BJ19: 4 | BK19: 三① | BL19: 読むこと
A20: 17 | B20: =COUNTIF([1]国語!E27,1)*[1]国語!$E$10 -> 0 | C20: =COUNTIF([1]国語!F27,1)*[1]国語!$F$10 -> 0 | D20: =COUNTIF([1]国語!G27,1)*[1]国語!$G$10 -> 0 | E20: =COUNTIF([1]国語!H27,1)*[1]国語!$H$10 -> 0 | F20: =COUNTIF([1]国語!I27,1)*[1]国語!$I$10 -> 0 | G20: =COUNTIF([1]国語!J27,1)*[1]国語!$J$10 -> 0 | H20: =COUNTIF([1]国語!K27,1)*[1]国語!$F$10 -> 0 | I20: =COUNTIF([1]国語!L27,1)*[1]国語!$F$10 -> 0 | J20: =COUNTIF([1]国語!M27,1)*[1]国語!$M$10 -> 0 | K20: =COUNTIF([1]国語!N27,1)*[1]国語!$N$10 -> 0 | L20: =COUNTIF([1]国語!O27,1)*[1]国語!$O$10 -> 0 | M20: =COUNTIF([1]国語!P27,1)*[1]国語!$P$10 -> 0 | N20: =COUNTIF([1]国語!Q27,1)*[1]国語!$Q$10 -> 0 | O20: =COUNTIF([1]国語!R27,1)*[1]国語!$R$10 -> 0 | P20: =COUNTIF([1]国語!S27,1)*[1]国語!$S$10 -> 0 | Q20: =COUNTIF([1]国語!T27,1)*[1]国語!$T$10 -> 0 | R20: =COUNTIF([1]国語!U27,1)*[1]国語!$U$10 -> 0 | S20: =COUNTIF([1]国語!V27,1)*[1]国語!$V$10 -> 0 | T20: =COUNTIF([1]国語!W27,1)*[1]国語!$W$10 -> 4 | U20: =COUNTIF([1]国語!X27,1)*[1]国語!$X$10 -> 4 | V20: =COUNTIF([1]国語!Y27,1)*[1]国語!$Y$10 -> 4 | W20: =COUNTIF([1]国語!Z27,1)*[1]国語!$Z$10 -> 4 | X20: =COUNTIF([1]国語!AA27,1)*[1]国語!$AA$10 -> 4 | Y20: =COUNTIF([1]国語!AB27,1)*[1]国語!$AB$10 -> 4 | Z20: =COUNTIF([1]国語!AC27,1)*[1]国語!$AC$10 -> 4 | AA20: =COUNTIF([1]国語!AD27,1)*[1]国語!$AD$10 -> 0 | AB20: =COUNTIF([1]国語!AE27,1)*[1]国語!$AE$10 -> 0 | AC20: =COUNTIF([1]国語!AF27,1)*[1]国語!$AF$10 -> 0 | AD20: =COUNTIF([1]国語!AG27,1)*[1]国語!$AG$10 -> 0 | AE20: =COUNTIF([1]国語!AH27,1)*[1]国語!$AH$10 -> 0 | AF20: =COUNTIF([1]国語!AI27,1)*[1]国語!$AI$10 -> 0 | AG20: =COUNTIF([1]国語!AJ27,1)*[1]国語!$AJ$10 -> 0 | AH20: =COUNTIF([1]国語!AK27,1)*[1]国語!$AK$10 -> 0 | AI20: =COUNTIF([1]国語!AL27,1)*[1]国語!$AL$10 -> 0 | AJ20: =COUNTIF([1]国語!AM27,1)*[1]国語!$AM$10 -> 0 | AK20: =COUNTIF([1]国語!AN27,1)*[1]国語!$AN$10 -> 0 | AL20: =COUNTIF([1]国語!AO27,1)*[1]国語!$AO$10 -> 0 | AM20: =COUNTIF([1]国語!AP27,1)*[1]国語!$AP$10 -> 0 | AN20: =COUNTIF([1]国語!AQ27,1)*[1]国語!$AQ$10 -> 0 | AO20: =COUNTIF([1]国語!AR27,1)*[1]国語!$AR$10 -> 0 | AP20: =COUNTIF([1]国語!AS27,1)*[1]国語!$AS$10 -> 0 | AQ20: =COUNTIF([1]国語!AT27,1)*[1]国語!$AT$10 -> 0 | AR20: =COUNTIF([1]国語!AU27,1)*[1]国語!$AU$10 -> 0 | AS20: =COUNTIF([1]国語!AV27,1)*[1]国語!$AV$10 -> 0 | AT20: =COUNTIF([1]国語!AW27,1)*[1]国語!$AW$10 -> 0 | AU20: =COUNTIF([1]国語!AX27,1)*[1]国語!$AX$10 -> 0 | AV20: =COUNTIF([1]国語!AY27,1)*[1]国語!$AY$10 -> 0 | AW20: =COUNTIF([1]国語!AZ27,1)*[1]国語!$AZ$10 -> 0 | AX20: =COUNTIF([1]国語!BA27,1)*[1]国語!$BA$10 -> 0 | AY20: =COUNTIF([1]国語!BB27,1)*[1]国語!$BB$10 -> 0 | AZ20: 28 | BC20: 17問 | BD20: =[1]国語!U58 -> 29 | BF20: 17問 | BG20: 46.7 | BI20: 17 | BJ20: 4 | BK20: 三② | BL20: 読むこと
A21: 18 | B21: =COUNTIF([1]国語!E28,1)*[1]国語!$E$10 -> 0 | C21: =COUNTIF([1]国語!F28,1)*[1]国語!$F$10 -> 0 | D21: =COUNTIF([1]国語!G28,1)*[1]国語!$G$10 -> 0 | E21: =COUNTIF([1]国語!H28,1)*[1]国語!$H$10 -> 0 | F21: =COUNTIF([1]国語!I28,1)*[1]国語!$I$10 -> 0 | G21: =COUNTIF([1]国語!J28,1)*[1]国語!$J$10 -> 0 | H21: =COUNTIF([1]国語!K28,1)*[1]国語!$F$10 -> 0 | I21: =COUNTIF([1]国語!L28,1)*[1]国語!$F$10 -> 0 | J21: =COUNTIF([1]国語!M28,1)*[1]国語!$M$10 -> 0 | K21: =COUNTIF([1]国語!N28,1)*[1]国語!$N$10 -> 0 | L21: =COUNTIF([1]国語!O28,1)*[1]国語!$O$10 -> 0 | M21: =COUNTIF([1]国語!P28,1)*[1]国語!$P$10 -> 0 | N21: =COUNTIF([1]国語!Q28,1)*[1]国語!$Q$10 -> 0 | O21: =COUNTIF([1]国語!R28,1)*[1]国語!$R$10 -> 0 | P21: =COUNTIF([1]国語!S28,1)*[1]国語!$S$10 -> 0 | Q21: =COUNTIF([1]国語!T28,1)*[1]国語!$T$10 -> 0 | R21: =COUNTIF([1]国語!U28,1)*[1]国語!$U$10 -> 0 | S21: =COUNTIF([1]国語!V28,1)*[1]国語!$V$10 -> 0 | T21: =COUNTIF([1]国語!W28,1)*[1]国語!$W$10 -> 0 | U21: =COUNTIF([1]国語!X28,1)*[1]国語!$X$10 -> 4 | V21: =COUNTIF([1]国語!Y28,1)*[1]国語!$Y$10 -> 4 | W21: =COUNTIF([1]国語!Z28,1)*[1]国語!$Z$10 -> 4 | X21: =COUNTIF([1]国語!AA28,1)*[1]国語!$AA$10 -> 4 | Y21: =COUNTIF([1]国語!AB28,1)*[1]国語!$AB$10 -> 4 | Z21: =COUNTIF([1]国語!AC28,1)*[1]国語!$AC$10 -> 4 | AA21: =COUNTIF([1]国語!AD28,1)*[1]国語!$AD$10 -> 0 | AB21: =COUNTIF([1]国語!AE28,1)*[1]国語!$AE$10 -> 0 | AC21: =COUNTIF([1]国語!AF28,1)*[1]国語!$AF$10 -> 0 | AD21: =COUNTIF([1]国語!AG28,1)*[1]国語!$AG$10 -> 0 | AE21: =COUNTIF([1]国語!AH28,1)*[1]国語!$AH$10 -> 0 | AF21: =COUNTIF([1]国語!AI28,1)*[1]国語!$AI$10 -> 0 | AG21: =COUNTIF([1]国語!AJ28,1)*[1]国語!$AJ$10 -> 0 | AH21: =COUNTIF([1]国語!AK28,1)*[1]国語!$AK$10 -> 0 | AI21: =COUNTIF([1]国語!AL28,1)*[1]国語!$AL$10 -> 0 | AJ21: =COUNTIF([1]国語!AM28,1)*[1]国語!$AM$10 -> 0 | AK21: =COUNTIF([1]国語!AN28,1)*[1]国語!$AN$10 -> 0 | AL21: =COUNTIF([1]国語!AO28,1)*[1]国語!$AO$10 -> 0 | AM21: =COUNTIF([1]国語!AP28,1)*[1]国語!$AP$10 -> 0 | AN21: =COUNTIF([1]国語!AQ28,1)*[1]国語!$AQ$10 -> 0 | AO21: =COUNTIF([1]国語!AR28,1)*[1]国語!$AR$10 -> 0 | AP21: =COUNTIF([1]国語!AS28,1)*[1]国語!$AS$10 -> 0 | AQ21: =COUNTIF([1]国語!AT28,1)*[1]国語!$AT$10 -> 0 | AR21: =COUNTIF([1]国語!AU28,1)*[1]国語!$AU$10 -> 0 | AS21: =COUNTIF([1]国語!AV28,1)*[1]国語!$AV$10 -> 0 | AT21: =COUNTIF([1]国語!AW28,1)*[1]国語!$AW$10 -> 0 | AU21: =COUNTIF([1]国語!AX28,1)*[1]国語!$AX$10 -> 0 | AV21: =COUNTIF([1]国語!AY28,1)*[1]国語!$AY$10 -> 0 | AW21: =COUNTIF([1]国語!AZ28,1)*[1]国語!$AZ$10 -> 0 | AX21: =COUNTIF([1]国語!BA28,1)*[1]国語!$BA$10 -> 0 | AY21: =COUNTIF([1]国語!BB28,1)*[1]国語!$BB$10 -> 0 | AZ21: 24 | BC21: 18問 | BD21: =[1]国語!V58 -> 31 | BF21: 18問 | BG21: 58.3 | BI21: 18 | BJ21: 4 | BK21: 四 | BL21: 読むこと
A22: 19 | B22: =COUNTIF([1]国語!E29,1)*[1]国語!$E$10 -> 0 | C22: =COUNTIF([1]国語!F29,1)*[1]国語!$F$10 -> 0 | D22: =COUNTIF([1]国語!G29,1)*[1]国語!$G$10 -> 0 | E22: =COUNTIF([1]国語!H29,1)*[1]国語!$H$10 -> 0 | F22: =COUNTIF([1]国語!I29,1)*[1]国語!$I$10 -> 0 | G22: =COUNTIF([1]国語!J29,1)*[1]国語!$J$10 -> 0 | H22: =COUNTIF([1]国語!K29,1)*[1]国語!$F$10 -> 0 | I22: =COUNTIF([1]国語!L29,1)*[1]国語!$F$10 -> 0 | J22: =COUNTIF([1]国語!M29,1)*[1]国語!$M$10 -> 0 | K22: =COUNTIF([1]国語!N29,1)*[1]国語!$N$10 -> 0 | L22: =COUNTIF([1]国語!O29,1)*[1]国語!$O$10 -> 0 | M22: =COUNTIF([1]国語!P29,1)*[1]国語!$P$10 -> 0 | N22: =COUNTIF([1]国語!Q29,1)*[1]国語!$Q$10 -> 0 | O22: =COUNTIF([1]国語!R29,1)*[1]国語!$R$10 -> 0 | P22: =COUNTIF([1]国語!S29,1)*[1]国語!$S$10 -> 0 | Q22: =COUNTIF([1]国語!T29,1)*[1]国語!$T$10 -> 0 | R22: =COUNTIF([1]国語!U29,1)*[1]国語!$U$10 -> 0 | S22: =COUNTIF([1]国語!V29,1)*[1]国語!$V$10 -> 0 | T22: =COUNTIF([1]国語!W29,1)*[1]国語!$W$10 -> 0 | U22: =COUNTIF([1]国語!X29,1)*[1]国語!$X$10 -> 0 | V22: =COUNTIF([1]国語!Y29,1)*[1]国語!$Y$10 -> 4 | W22: =COUNTIF([1]国語!Z29,1)*[1]国語!$Z$10 -> 4 | X22: =COUNTIF([1]国語!AA29,1)*[1]国語!$AA$10 -> 4 | Y22: =COUNTIF([1]国語!AB29,1)*[1]国語!$AB$10 -> 4 | Z22: =COUNTIF([1]国語!AC29,1)*[1]国語!$AC$10 -> 4 | AA22: =COUNTIF([1]国語!AD29,1)*[1]国語!$AD$10 -> 0 | AB22: =COUNTIF([1]国語!AE29,1)*[1]国語!$AE$10 -> 0 | AC22: =COUNTIF([1]国語!AF29,1)*[1]国語!$AF$10 -> 0 | AD22: =COUNTIF([1]国語!AG29,1)*[1]国語!$AG$10 -> 0 | AE22: =COUNTIF([1]国語!AH29,1)*[1]国語!$AH$10 -> 0 | AF22: =COUNTIF([1]国語!AI29,1)*[1]国語!$AI$10 -> 0 | AG22: =COUNTIF([1]国語!AJ29,1)*[1]国語!$AJ$10 -> 0 | AH22: =COUNTIF([1]国語!AK29,1)*[1]国語!$AK$10 -> 0 | AI22: =COUNTIF([1]国語!AL29,1)*[1]国語!$AL$10 -> 0 | AJ22: =COUNTIF([1]国語!AM29,1)*[1]国語!$AM$10 -> 0 | AK22: =COUNTIF([1]国語!AN29,1)*[1]国語!$AN$10 -> 0 | AL22: =COUNTIF([1]国語!AO29,1)*[1]国語!$AO$10 -> 0 | AM22: =COUNTIF([1]国語!AP29,1)*[1]国語!$AP$10 -> 0 | AN22: =COUNTIF([1]国語!AQ29,1)*[1]国語!$AQ$10 -> 0 | AO22: =COUNTIF([1]国語!AR29,1)*[1]国語!$AR$10 -> 0 | AP22: =COUNTIF([1]国語!AS29,1)*[1]国語!$AS$10 -> 0 | AQ22: =COUNTIF([1]国語!AT29,1)*[1]国語!$AT$10 -> 0 | AR22: =COUNTIF([1]国語!AU29,1)*[1]国語!$AU$10 -> 0 | AS22: =COUNTIF([1]国語!AV29,1)*[1]国語!$AV$10 -> 0 | AT22: =COUNTIF([1]国語!AW29,1)*[1]国語!$AW$10 -> 0 | AU22: =COUNTIF([1]国語!AX29,1)*[1]国語!$AX$10 -> 0 | AV22: =COUNTIF([1]国語!AY29,1)*[1]国語!$AY$10 -> 0 | AW22: =COUNTIF([1]国語!AZ29,1)*[1]国語!$AZ$10 -> 0 | AX22: =COUNTIF([1]国語!BA29,1)*[1]国語!$BA$10 -> 0 | AY22: =COUNTIF([1]国語!BB29,1)*[1]国語!$BB$10 -> 0 | AZ22: 20 | BC22: 19問 | BD22: =[1]国語!W58 -> 33 | BF22: 19問 | BG22: 69.8 | BI22: 19 | BJ22: 4 | BK22: 五① | BL22: 読むこと
A23: 20 | B23: =COUNTIF([1]国語!E30,1)*[1]国語!$E$10 -> 0 | C23: =COUNTIF([1]国語!F30,1)*[1]国語!$F$10 -> 0 | D23: =COUNTIF([1]国語!G30,1)*[1]国語!$G$10 -> 0 | E23: =COUNTIF([1]国語!H30,1)*[1]国語!$H$10 -> 0 | F23: =COUNTIF([1]国語!I30,1)*[1]国語!$I$10 -> 0 | G23: =COUNTIF([1]国語!J30,1)*[1]国語!$J$10 -> 0 | H23: =COUNTIF([1]国語!K30,1)*[1]国語!$F$10 -> 0 | I23: =COUNTIF([1]国語!L30,1)*[1]国語!$F$10 -> 0 | J23: =COUNTIF([1]国語!M30,1)*[1]国語!$M$10 -> 0 | K23: =COUNTIF([1]国語!N30,1)*[1]国語!$N$10 -> 0 | L23: =COUNTIF([1]国語!O30,1)*[1]国語!$O$10 -> 0 | M23: =COUNTIF([1]国語!P30,1)*[1]国語!$P$10 -> 0 | N23: =COUNTIF([1]国語!Q30,1)*[1]国語!$Q$10 -> 0 | O23: =COUNTIF([1]国語!R30,1)*[1]国語!$R$10 -> 0 | P23: =COUNTIF([1]国語!S30,1)*[1]国語!$S$10 -> 0 | Q23: =COUNTIF([1]国語!T30,1)*[1]国語!$T$10 -> 0 | R23: =COUNTIF([1]国語!U30,1)*[1]国語!$U$10 -> 0 | S23: =COUNTIF([1]国語!V30,1)*[1]国語!$V$10 -> 0 | T23: =COUNTIF([1]国語!W30,1)*[1]国語!$W$10 -> 0 | U23: =COUNTIF([1]国語!X30,1)*[1]国語!$X$10 -> 0 | V23: =COUNTIF([1]国語!Y30,1)*[1]国語!$Y$10 -> 0 | W23: =COUNTIF([1]国語!Z30,1)*[1]国語!$Z$10 -> 4 | X23: =COUNTIF([1]国語!AA30,1)*[1]国語!$AA$10 -> 4 | Y23: =COUNTIF([1]国語!AB30,1)*[1]国語!$AB$10 -> 4 | Z23: =COUNTIF([1]国語!AC30,1)*[1]国語!$AC$10 -> 4 | AA23: =COUNTIF([1]国語!AD30,1)*[1]国語!$AD$10 -> 0 | AB23: =COUNTIF([1]国語!AE30,1)*[1]国語!$AE$10 -> 0 | AC23: =COUNTIF([1]国語!AF30,1)*[1]国語!$AF$10 -> 0 | AD23: =COUNTIF([1]国語!AG30,1)*[1]国語!$AG$10 -> 0 | AE23: =COUNTIF([1]国語!AH30,1)*[1]国語!$AH$10 -> 0 | AF23: =COUNTIF([1]国語!AI30,1)*[1]国語!$AI$10 -> 0 | AG23: =COUNTIF([1]国語!AJ30,1)*[1]国語!$AJ$10 -> 0 | AH23: =COUNTIF([1]国語!AK30,1)*[1]国語!$AK$10 -> 0 | AI23: =COUNTIF([1]国語!AL30,1)*[1]国語!$AL$10 -> 0 | AJ23: =COUNTIF([1]国語!AM30,1)*[1]国語!$AM$10 -> 0 | AK23: =COUNTIF([1]国語!AN30,1)*[1]国語!$AN$10 -> 0 | AL23: =COUNTIF([1]国語!AO30,1)*[1]国語!$AO$10 -> 0 | AM23: =COUNTIF([1]国語!AP30,1)*[1]国語!$AP$10 -> 0 | AN23: =COUNTIF([1]国語!AQ30,1)*[1]国語!$AQ$10 -> 0 | AO23: =COUNTIF([1]国語!AR30,1)*[1]国語!$AR$10 -> 0 | AP23: =COUNTIF([1]国語!AS30,1)*[1]国語!$AS$10 -> 0 | AQ23: =COUNTIF([1]国語!AT30,1)*[1]国語!$AT$10 -> 0 | AR23: =COUNTIF([1]国語!AU30,1)*[1]国語!$AU$10 -> 0 | AS23: =COUNTIF([1]国語!AV30,1)*[1]国語!$AV$10 -> 0 | AT23: =COUNTIF([1]国語!AW30,1)*[1]国語!$AW$10 -> 0 | AU23: =COUNTIF([1]国語!AX30,1)*[1]国語!$AX$10 -> 0 | AV23: =COUNTIF([1]国語!AY30,1)*[1]国語!$AY$10 -> 0 | AW23: =COUNTIF([1]国語!AZ30,1)*[1]国語!$AZ$10 -> 0 | AX23: =COUNTIF([1]国語!BA30,1)*[1]国語!$BA$10 -> 0 | AY23: =COUNTIF([1]国語!BB30,1)*[1]国語!$BB$10 -> 0 | AZ23: 16 | BC23: 20問 | BD23: =[1]国語!X58 -> 35 | BF23: 20問 | BG23: 83.1 | BI23: 20 | BJ23: 4 | BK23: 五② | BL23: 読むこと
A24: 21 | B24: =COUNTIF([1]国語!E31,1)*[1]国語!$E$10 -> 0 | C24: =COUNTIF([1]国語!F31,1)*[1]国語!$F$10 -> 0 | D24: =COUNTIF([1]国語!G31,1)*[1]国語!$G$10 -> 0 | E24: =COUNTIF([1]国語!H31,1)*[1]国語!$H$10 -> 0 | F24: =COUNTIF([1]国語!I31,1)*[1]国語!$I$10 -> 0 | G24: =COUNTIF([1]国語!J31,1)*[1]国語!$J$10 -> 0 | H24: =COUNTIF([1]国語!K31,1)*[1]国語!$F$10 -> 0 | I24: =COUNTIF([1]国語!L31,1)*[1]国語!$F$10 -> 0 | J24: =COUNTIF([1]国語!M31,1)*[1]国語!$M$10 -> 0 | K24: =COUNTIF([1]国語!N31,1)*[1]国語!$N$10 -> 0 | L24: =COUNTIF([1]国語!O31,1)*[1]国語!$O$10 -> 0 | M24: =COUNTIF([1]国語!P31,1)*[1]国語!$P$10 -> 0 | N24: =COUNTIF([1]国語!Q31,1)*[1]国語!$Q$10 -> 0 | O24: =COUNTIF([1]国語!R31,1)*[1]国語!$R$10 -> 0 | P24: =COUNTIF([1]国語!S31,1)*[1]国語!$S$10 -> 0 | Q24: =COUNTIF([1]国語!T31,1)*[1]国語!$T$10 -> 0 | R24: =COUNTIF([1]国語!U31,1)*[1]国語!$U$10 -> 0 | S24: =COUNTIF([1]国語!V31,1)*[1]国語!$V$10 -> 0 | T24: =COUNTIF([1]国語!W31,1)*[1]国語!$W$10 -> 0 | U24: =COUNTIF([1]国語!X31,1)*[1]国語!$X$10 -> 0 | V24: =COUNTIF([1]国語!Y31,1)*[1]国語!$Y$10 -> 0 | W24: =COUNTIF([1]国語!Z31,1)*[1]国語!$Z$10 -> 0 | X24: =COUNTIF([1]国語!AA31,1)*[1]国語!$AA$10 -> 4 | Y24: =COUNTIF([1]国語!AB31,1)*[1]国語!$AB$10 -> 4 | Z24: =COUNTIF([1]国語!AC31,1)*[1]国語!$AC$10 -> 4 | AA24: =COUNTIF([1]国語!AD31,1)*[1]国語!$AD$10 -> 0 | AB24: =COUNTIF([1]国語!AE31,1)*[1]国語!$AE$10 -> 0 | AC24: =COUNTIF([1]国語!AF31,1)*[1]国語!$AF$10 -> 0 | AD24: =COUNTIF([1]国語!AG31,1)*[1]国語!$AG$10 -> 0 | AE24: =COUNTIF([1]国語!AH31,1)*[1]国語!$AH$10 -> 0 | AF24: =COUNTIF([1]国語!AI31,1)*[1]国語!$AI$10 -> 0 | AG24: =COUNTIF([1]国語!AJ31,1)*[1]国語!$AJ$10 -> 0 | AH24: =COUNTIF([1]国語!AK31,1)*[1]国語!$AK$10 -> 0 | AI24: =COUNTIF([1]国語!AL31,1)*[1]国語!$AL$10 -> 0 | AJ24: =COUNTIF([1]国語!AM31,1)*[1]国語!$AM$10 -> 0 | AK24: =COUNTIF([1]国語!AN31,1)*[1]国語!$AN$10 -> 0 | AL24: =COUNTIF([1]国語!AO31,1)*[1]国語!$AO$10 -> 0 | AM24: =COUNTIF([1]国語!AP31,1)*[1]国語!$AP$10 -> 0 | AN24: =COUNTIF([1]国語!AQ31,1)*[1]国語!$AQ$10 -> 0 | AO24: =COUNTIF([1]国語!AR31,1)*[1]国語!$AR$10 -> 0 | AP24: =COUNTIF([1]国語!AS31,1)*[1]国語!$AS$10 -> 0 | AQ24: =COUNTIF([1]国語!AT31,1)*[1]国語!$AT$10 -> 0 | AR24: =COUNTIF([1]国語!AU31,1)*[1]国語!$AU$10 -> 0 | AS24: =COUNTIF([1]国語!AV31,1)*[1]国語!$AV$10 -> 0 | AT24: =COUNTIF([1]国語!AW31,1)*[1]国語!$AW$10 -> 0 | AU24: =COUNTIF([1]国語!AX31,1)*[1]国語!$AX$10 -> 0 | AV24: =COUNTIF([1]国語!AY31,1)*[1]国語!$AY$10 -> 0 | AW24: =COUNTIF([1]国語!AZ31,1)*[1]国語!$AZ$10 -> 0 | AX24: =COUNTIF([1]国語!BA31,1)*[1]国語!$BA$10 -> 0 | AY24: =COUNTIF([1]国語!BB31,1)*[1]国語!$BB$10 -> 0 | AZ24: 12 | BC24: 21問 | BD24: =[1]国語!Y58 -> 37 | BF24: 21問 | BG24: 74 | BI24: 21 | BJ24: 5 | BK24: 一 | BL24: 書くこと
A25: 22 | B25: =COUNTIF([1]国語!E32,1)*[1]国語!$E$10 -> 0 | C25: =COUNTIF([1]国語!F32,1)*[1]国語!$F$10 -> 0 | D25: =COUNTIF([1]国語!G32,1)*[1]国語!$G$10 -> 0 | E25: =COUNTIF([1]国語!H32,1)*[1]国語!$H$10 -> 0 | F25: =COUNTIF([1]国語!I32,1)*[1]国語!$I$10 -> 0 | G25: =COUNTIF([1]国語!J32,1)*[1]国語!$J$10 -> 0 | H25: =COUNTIF([1]国語!K32,1)*[1]国語!$F$10 -> 0 | I25: =COUNTIF([1]国語!L32,1)*[1]国語!$F$10 -> 0 | J25: =COUNTIF([1]国語!M32,1)*[1]国語!$M$10 -> 0 | K25: =COUNTIF([1]国語!N32,1)*[1]国語!$N$10 -> 0 | L25: =COUNTIF([1]国語!O32,1)*[1]国語!$O$10 -> 0 | M25: =COUNTIF([1]国語!P32,1)*[1]国語!$P$10 -> 0 | N25: =COUNTIF([1]国語!Q32,1)*[1]国語!$Q$10 -> 0 | O25: =COUNTIF([1]国語!R32,1)*[1]国語!$R$10 -> 0 | P25: =COUNTIF([1]国語!S32,1)*[1]国語!$S$10 -> 0 | Q25: =COUNTIF([1]国語!T32,1)*[1]国語!$T$10 -> 0 | R25: =COUNTIF([1]国語!U32,1)*[1]国語!$U$10 -> 0 | S25: =COUNTIF([1]国語!V32,1)*[1]国語!$V$10 -> 0 | T25: =COUNTIF([1]国語!W32,1)*[1]国語!$W$10 -> 0 | U25: =COUNTIF([1]国語!X32,1)*[1]国語!$X$10 -> 0 | V25: =COUNTIF([1]国語!Y32,1)*[1]国語!$Y$10 -> 0 | W25: =COUNTIF([1]国語!Z32,1)*[1]国語!$Z$10 -> 0 | X25: =COUNTIF([1]国語!AA32,1)*[1]国語!$AA$10 -> 0 | Y25: =COUNTIF([1]国語!AB32,1)*[1]国語!$AB$10 -> 4 | Z25: =COUNTIF([1]国語!AC32,1)*[1]国語!$AC$10 -> 4 | AA25: =COUNTIF([1]国語!AD32,1)*[1]国語!$AD$10 -> 0 | AB25: =COUNTIF([1]国語!AE32,1)*[1]国語!$AE$10 -> 0 | AC25: =COUNTIF([1]国語!AF32,1)*[1]国語!$AF$10 -> 0 | AD25: =COUNTIF([1]国語!AG32,1)*[1]国語!$AG$10 -> 0 | AE25: =COUNTIF([1]国語!AH32,1)*[1]国語!$AH$10 -> 0 | AF25: =COUNTIF([1]国語!AI32,1)*[1]国語!$AI$10 -> 0 | AG25: =COUNTIF([1]国語!AJ32,1)*[1]国語!$AJ$10 -> 0 | AH25: =COUNTIF([1]国語!AK32,1)*[1]国語!$AK$10 -> 0 | AI25: =COUNTIF([1]国語!AL32,1)*[1]国語!$AL$10 -> 0 | AJ25: =COUNTIF([1]国語!AM32,1)*[1]国語!$AM$10 -> 0 | AK25: =COUNTIF([1]国語!AN32,1)*[1]国語!$AN$10 -> 0 | AL25: =COUNTIF([1]国語!AO32,1)*[1]国語!$AO$10 -> 0 | AM25: =COUNTIF([1]国語!AP32,1)*[1]国語!$AP$10 -> 0 | AN25: =COUNTIF([1]国語!AQ32,1)*[1]国語!$AQ$10 -> 0 | AO25: =COUNTIF([1]国語!AR32,1)*[1]国語!$AR$10 -> 0 | AP25: =COUNTIF([1]国語!AS32,1)*[1]国語!$AS$10 -> 0 | AQ25: =COUNTIF([1]国語!AT32,1)*[1]国語!$AT$10 -> 0 | AR25: =COUNTIF([1]国語!AU32,1)*[1]国語!$AU$10 -> 0 | AS25: =COUNTIF([1]国語!AV32,1)*[1]国語!$AV$10 -> 0 | AT25: =COUNTIF([1]国語!AW32,1)*[1]国語!$AW$10 -> 0 | AU25: =COUNTIF([1]国語!AX32,1)*[1]国語!$AX$10 -> 0 | AV25: =COUNTIF([1]国語!AY32,1)*[1]国語!$AY$10 -> 0 | AW25: =COUNTIF([1]国語!AZ32,1)*[1]国語!$AZ$10 -> 0 | AX25: =COUNTIF([1]国語!BA32,1)*[1]国語!$BA$10 -> 0 | AY25: =COUNTIF([1]国語!BB32,1)*[1]国語!$BB$10 -> 0 | AZ25: 8 | BC25: 22問 | BD25: =[1]国語!Z58 -> 39 | BF25: 22問 | BG25: 42 | BI25: 22 | BJ25: 5 | BK25: 二 | BL25: 書くこと
A26: 23 | B26: =COUNTIF([1]国語!E33,1)*[1]国語!$E$10 -> 0 | C26: =COUNTIF([1]国語!F33,1)*[1]国語!$F$10 -> 0 | D26: =COUNTIF([1]国語!G33,1)*[1]国語!$G$10 -> 0 | E26: =COUNTIF([1]国語!H33,1)*[1]国語!$H$10 -> 0 | F26: =COUNTIF([1]国語!I33,1)*[1]国語!$I$10 -> 0 | G26: =COUNTIF([1]国語!J33,1)*[1]国語!$J$10 -> 0 | H26: =COUNTIF([1]国語!K33,1)*[1]国語!$F$10 -> 0 | I26: =COUNTIF([1]国語!L33,1)*[1]国語!$F$10 -> 0 | J26: =COUNTIF([1]国語!M33,1)*[1]国語!$M$10 -> 0 | K26: =COUNTIF([1]国語!N33,1)*[1]国語!$N$10 -> 0 | L26: =COUNTIF([1]国語!O33,1)*[1]国語!$O$10 -> 0 | M26: =COUNTIF([1]国語!P33,1)*[1]国語!$P$10 -> 0 | N26: =COUNTIF([1]国語!Q33,1)*[1]国語!$Q$10 -> 0 | O26: =COUNTIF([1]国語!R33,1)*[1]国語!$R$10 -> 0 | P26: =COUNTIF([1]国語!S33,1)*[1]国語!$S$10 -> 0 | Q26: =COUNTIF([1]国語!T33,1)*[1]国語!$T$10 -> 0 | R26: =COUNTIF([1]国語!U33,1)*[1]国語!$U$10 -> 0 | S26: =COUNTIF([1]国語!V33,1)*[1]国語!$V$10 -> 0 | T26: =COUNTIF([1]国語!W33,1)*[1]国語!$W$10 -> 0 | U26: =COUNTIF([1]国語!X33,1)*[1]国語!$X$10 -> 0 | V26: =COUNTIF([1]国語!Y33,1)*[1]国語!$Y$10 -> 0 | W26: =COUNTIF([1]国語!Z33,1)*[1]国語!$Z$10 -> 0 | X26: =COUNTIF([1]国語!AA33,1)*[1]国語!$AA$10 -> 0 | Y26: =COUNTIF([1]国語!AB33,1)*[1]国語!$AB$10 -> 0 | Z26: =COUNTIF([1]国語!AC33,1)*[1]国語!$AC$10 -> 0 | AA26: =COUNTIF([1]国語!AD33,1)*[1]国語!$AD$10 -> 0 | AB26: =COUNTIF([1]国語!AE33,1)*[1]国語!$AE$10 -> 0 | AC26: =COUNTIF([1]国語!AF33,1)*[1]国語!$AF$10 -> 0 | AD26: =COUNTIF([1]国語!AG33,1)*[1]国語!$AG$10 -> 0 | AE26: =COUNTIF([1]国語!AH33,1)*[1]国語!$AH$10 -> 0 | AF26: =COUNTIF([1]国語!AI33,1)*[1]国語!$AI$10 -> 0 | AG26: =COUNTIF([1]国語!AJ33,1)*[1]国語!$AJ$10 -> 0 | AH26: =COUNTIF([1]国語!AK33,1)*[1]国語!$AK$10 -> 0 | AI26: =COUNTIF([1]国語!AL33,1)*[1]国語!$AL$10 -> 0 | AJ26: =COUNTIF([1]国語!AM33,1)*[1]国語!$AM$10 -> 0 | AK26: =COUNTIF([1]国語!AN33,1)*[1]国語!$AN$10 -> 0 | AL26: =COUNTIF([1]国語!AO33,1)*[1]国語!$AO$10 -> 0 | AM26: =COUNTIF([1]国語!AP33,1)*[1]国語!$AP$10 -> 0 | AN26: =COUNTIF([1]国語!AQ33,1)*[1]国語!$AQ$10 -> 0 | AO26: =COUNTIF([1]国語!AR33,1)*[1]国語!$AR$10 -> 0 | AP26: =COUNTIF([1]国語!AS33,1)*[1]国語!$AS$10 -> 0 | AQ26: =COUNTIF([1]国語!AT33,1)*[1]国語!$AT$10 -> 0 | AR26: =COUNTIF([1]国語!AU33,1)*[1]国語!$AU$10 -> 0 | AS26: =COUNTIF([1]国語!AV33,1)*[1]国語!$AV$10 -> 0 | AT26: =COUNTIF([1]国語!AW33,1)*[1]国語!$AW$10 -> 0 | AU26: =COUNTIF([1]国語!AX33,1)*[1]国語!$AX$10 -> 0 | AV26: =COUNTIF([1]国語!AY33,1)*[1]国語!$AY$10 -> 0 | AW26: =COUNTIF([1]国語!AZ33,1)*[1]国語!$AZ$10 -> 0 | AX26: =COUNTIF([1]国語!BA33,1)*[1]国語!$BA$10 -> 0 | AY26: =COUNTIF([1]国語!BB33,1)*[1]国語!$BB$10 -> 0 | AZ26: 0 | BC26: 23問 | BD26: =[1]国語!AA58 -> 41 | BF26: 23問 | BG26: 28.4 | BI26: 23 | BJ26: 5 | BK26: 三 一文目 | BL26: 書くこと
A27: 24 | B27: =COUNTIF([1]国語!E34,1)*[1]国語!$E$10 -> 0 | C27: =COUNTIF([1]国語!F34,1)*[1]国語!$F$10 -> 0 | D27: =COUNTIF([1]国語!G34,1)*[1]国語!$G$10 -> 0 | E27: =COUNTIF([1]国語!H34,1)*[1]国語!$H$10 -> 0 | F27: =COUNTIF([1]国語!I34,1)*[1]国語!$I$10 -> 0 | G27: =COUNTIF([1]国語!J34,1)*[1]国語!$J$10 -> 0 | H27: =COUNTIF([1]国語!K34,1)*[1]国語!$F$10 -> 0 | I27: =COUNTIF([1]国語!L34,1)*[1]国語!$F$10 -> 0 | J27: =COUNTIF([1]国語!M34,1)*[1]国語!$M$10 -> 0 | K27: =COUNTIF([1]国語!N34,1)*[1]国語!$N$10 -> 0 | L27: =COUNTIF([1]国語!O34,1)*[1]国語!$O$10 -> 0 | M27: =COUNTIF([1]国語!P34,1)*[1]国語!$P$10 -> 0 | N27: =COUNTIF([1]国語!Q34,1)*[1]国語!$Q$10 -> 0 | O27: =COUNTIF([1]国語!R34,1)*[1]国語!$R$10 -> 0 | P27: =COUNTIF([1]国語!S34,1)*[1]国語!$S$10 -> 0 | Q27: =COUNTIF([1]国語!T34,1)*[1]国語!$T$10 -> 0 | R27: =COUNTIF([1]国語!U34,1)*[1]国語!$U$10 -> 0 | S27: =COUNTIF([1]国語!V34,1)*[1]国語!$V$10 -> 0 | T27: =COUNTIF([1]国語!W34,1)*[1]国語!$W$10 -> 0 | U27: =COUNTIF([1]国語!X34,1)*[1]国語!$X$10 -> 0 | V27: =COUNTIF([1]国語!Y34,1)*[1]国語!$Y$10 -> 0 | W27: =COUNTIF([1]国語!Z34,1)*[1]国語!$Z$10 -> 0 | X27: =COUNTIF([1]国語!AA34,1)*[1]国語!$AA$10 -> 0 | Y27: =COUNTIF([1]国語!AB34,1)*[1]国語!$AB$10 -> 0 | Z27: =COUNTIF([1]国語!AC34,1)*[1]国語!$AC$10 -> 4 | AA27: =COUNTIF([1]国語!AD34,1)*[1]国語!$AD$10 -> 0 | AB27: =COUNTIF([1]国語!AE34,1)*[1]国語!$AE$10 -> 0 | AC27: =COUNTIF([1]国語!AF34,1)*[1]国語!$AF$10 -> 0 | AD27: =COUNTIF([1]国語!AG34,1)*[1]国語!$AG$10 -> 0 | AE27: =COUNTIF([1]国語!AH34,1)*[1]国語!$AH$10 -> 0 | AF27: =COUNTIF([1]国語!AI34,1)*[1]国語!$AI$10 -> 0 | AG27: =COUNTIF([1]国語!AJ34,1)*[1]国語!$AJ$10 -> 0 | AH27: =COUNTIF([1]国語!AK34,1)*[1]国語!$AK$10 -> 0 | AI27: =COUNTIF([1]国語!AL34,1)*[1]国語!$AL$10 -> 0 | AJ27: =COUNTIF([1]国語!AM34,1)*[1]国語!$AM$10 -> 0 | AK27: =COUNTIF([1]国語!AN34,1)*[1]国語!$AN$10 -> 0 | AL27: =COUNTIF([1]国語!AO34,1)*[1]国語!$AO$10 -> 0 | AM27: =COUNTIF([1]国語!AP34,1)*[1]国語!$AP$10 -> 0 | AN27: =COUNTIF([1]国語!AQ34,1)*[1]国語!$AQ$10 -> 0 | AO27: =COUNTIF([1]国語!AR34,1)*[1]国語!$AR$10 -> 0 | AP27: =COUNTIF([1]国語!AS34,1)*[1]国語!$AS$10 -> 0 | AQ27: =COUNTIF([1]国語!AT34,1)*[1]国語!$AT$10 -> 0 | AR27: =COUNTIF([1]国語!AU34,1)*[1]国語!$AU$10 -> 0 | AS27: =COUNTIF([1]国語!AV34,1)*[1]国語!$AV$10 -> 0 | AT27: =COUNTIF([1]国語!AW34,1)*[1]国語!$AW$10 -> 0 | AU27: =COUNTIF([1]国語!AX34,1)*[1]国語!$AX$10 -> 0 | AV27: =COUNTIF([1]国語!AY34,1)*[1]国語!$AY$10 -> 0 | AW27: =COUNTIF([1]国語!AZ34,1)*[1]国語!$AZ$10 -> 0 | AX27: =COUNTIF([1]国語!BA34,1)*[1]国語!$BA$10 -> 0 | AY27: =COUNTIF([1]国語!BB34,1)*[1]国語!$BB$10 -> 0 | AZ27: 4 | BC27: 24問 | BD27: =[1]国語!AB58 -> 43 | BF27: 24問 | BG27: 39.6 | BI27: 24 | BJ27: 5 | BK27: 三 二文目 | BL27: 書くこと
A28: 25 | B28: =COUNTIF([1]国語!E35,1)*[1]国語!$E$10 -> 0 | C28: =COUNTIF([1]国語!F35,1)*[1]国語!$F$10 -> 0 | D28: =COUNTIF([1]国語!G35,1)*[1]国語!$G$10 -> 0 | E28: =COUNTIF([1]国語!H35,1)*[1]国語!$H$10 -> 0 | F28: =COUNTIF([1]国語!I35,1)*[1]国語!$I$10 -> 0 | G28: =COUNTIF([1]国語!J35,1)*[1]国語!$J$10 -> 0 | H28: =COUNTIF([1]国語!K35,1)*[1]国語!$F$10 -> 0 | I28: =COUNTIF([1]国語!L35,1)*[1]国語!$F$10 -> 0 | J28: =COUNTIF([1]国語!M35,1)*[1]国語!$M$10 -> 0 | K28: =COUNTIF([1]国語!N35,1)*[1]国語!$N$10 -> 0 | L28: =COUNTIF([1]国語!O35,1)*[1]国語!$O$10 -> 0 | M28: =COUNTIF([1]国語!P35,1)*[1]国語!$P$10 -> 0 | N28: =COUNTIF([1]国語!Q35,1)*[1]国語!$Q$10 -> 0 | O28: =COUNTIF([1]国語!R35,1)*[1]国語!$R$10 -> 0 | P28: =COUNTIF([1]国語!S35,1)*[1]国語!$S$10 -> 0 | Q28: =COUNTIF([1]国語!T35,1)*[1]国語!$T$10 -> 0 | R28: =COUNTIF([1]国語!U35,1)*[1]国語!$U$10 -> 0 | S28: =COUNTIF([1]国語!V35,1)*[1]国語!$V$10 -> 0 | T28: =COUNTIF([1]国語!W35,1)*[1]国語!$W$10 -> 0 | U28: =COUNTIF([1]国語!X35,1)*[1]国語!$X$10 -> 0 | V28: =COUNTIF([1]国語!Y35,1)*[1]国語!$Y$10 -> 0 | W28: =COUNTIF([1]国語!Z35,1)*[1]国語!$Z$10 -> 0 | X28: =COUNTIF([1]国語!AA35,1)*[1]国語!$AA$10 -> 0 | Y28: =COUNTIF([1]国語!AB35,1)*[1]国語!$AB$10 -> 4 | Z28: =COUNTIF([1]国語!AC35,1)*[1]国語!$AC$10 -> 4 | AA28: =COUNTIF([1]国語!AD35,1)*[1]国語!$AD$10 -> 0 | AB28: =COUNTIF([1]国語!AE35,1)*[1]国語!$AE$10 -> 0 | AC28: =COUNTIF([1]国語!AF35,1)*[1]国語!$AF$10 -> 0 | AD28: =COUNTIF([1]国語!AG35,1)*[1]国語!$AG$10 -> 0 | AE28: =COUNTIF([1]国語!AH35,1)*[1]国語!$AH$10 -> 0 | AF28: =COUNTIF([1]国語!AI35,1)*[1]国語!$AI$10 -> 0 | AG28: =COUNTIF([1]国語!AJ35,1)*[1]国語!$AJ$10 -> 0 | AH28: =COUNTIF([1]国語!AK35,1)*[1]国語!$AK$10 -> 0 | AI28: =COUNTIF([1]国語!AL35,1)*[1]国語!$AL$10 -> 0 | AJ28: =COUNTIF([1]国語!AM35,1)*[1]国語!$AM$10 -> 0 | AK28: =COUNTIF([1]国語!AN35,1)*[1]国語!$AN$10 -> 0 | AL28: =COUNTIF([1]国語!AO35,1)*[1]国語!$AO$10 -> 0 | AM28: =COUNTIF([1]国語!AP35,1)*[1]国語!$AP$10 -> 0 | AN28: =COUNTIF([1]国語!AQ35,1)*[1]国語!$AQ$10 -> 0 | AO28: =COUNTIF([1]国語!AR35,1)*[1]国語!$AR$10 -> 0 | AP28: =COUNTIF([1]国語!AS35,1)*[1]国語!$AS$10 -> 0 | AQ28: =COUNTIF([1]国語!AT35,1)*[1]国語!$AT$10 -> 0 | AR28: =COUNTIF([1]国語!AU35,1)*[1]国語!$AU$10 -> 0 | AS28: =COUNTIF([1]国語!AV35,1)*[1]国語!$AV$10 -> 0 | AT28: =COUNTIF([1]国語!AW35,1)*[1]国語!$AW$10 -> 0 | AU28: =COUNTIF([1]国語!AX35,1)*[1]国語!$AX$10 -> 0 | AV28: =COUNTIF([1]国語!AY35,1)*[1]国語!$AY$10 -> 0 | AW28: =COUNTIF([1]国語!AZ35,1)*[1]国語!$AZ$10 -> 0 | AX28: =COUNTIF([1]国語!BA35,1)*[1]国語!$BA$10 -> 0 | AY28: =COUNTIF([1]国語!BB35,1)*[1]国語!$BB$10 -> 0 | AZ28: 8 | BC28: 25問 | BD28: =[1]国語!AC58 -> 44 | BF28: 25問 | BG28: 56.7 | BI28: 25 | BJ28: 5 | BK28: 四 | BL28: 書くこと
A29: 26 | B29: =COUNTIF([1]国語!E36,1)*[1]国語!$E$10 -> 0 | C29: =COUNTIF([1]国語!F36,1)*[1]国語!$F$10 -> 0 | D29: =COUNTIF([1]国語!G36,1)*[1]国語!$G$10 -> 0 | E29: =COUNTIF([1]国語!H36,1)*[1]国語!$H$10 -> 0 | F29: =COUNTIF([1]国語!I36,1)*[1]国語!$I$10 -> 0 | G29: =COUNTIF([1]国語!J36,1)*[1]国語!$J$10 -> 0 | H29: =COUNTIF([1]国語!K36,1)*[1]国語!$F$10 -> 0 | I29: =COUNTIF([1]国語!L36,1)*[1]国語!$F$10 -> 0 | J29: =COUNTIF([1]国語!M36,1)*[1]国語!$M$10 -> 0 | K29: =COUNTIF([1]国語!N36,1)*[1]国語!$N$10 -> 0 | L29: =COUNTIF([1]国語!O36,1)*[1]国語!$O$10 -> 0 | M29: =COUNTIF([1]国語!P36,1)*[1]国語!$P$10 -> 0 | N29: =COUNTIF([1]国語!Q36,1)*[1]国語!$Q$10 -> 0 | O29: =COUNTIF([1]国語!R36,1)*[1]国語!$R$10 -> 0 | P29: =COUNTIF([1]国語!S36,1)*[1]国語!$S$10 -> 0 | Q29: =COUNTIF([1]国語!T36,1)*[1]国語!$T$10 -> 0 | R29: =COUNTIF([1]国語!U36,1)*[1]国語!$U$10 -> 0 | S29: =COUNTIF([1]国語!V36,1)*[1]国語!$V$10 -> 0 | T29: =COUNTIF([1]国語!W36,1)*[1]国語!$W$10 -> 0 | U29: =COUNTIF([1]国語!X36,1)*[1]国語!$X$10 -> 0 | V29: =COUNTIF([1]国語!Y36,1)*[1]国語!$Y$10 -> 0 | W29: =COUNTIF([1]国語!Z36,1)*[1]国語!$Z$10 -> 0 | X29: =COUNTIF([1]国語!AA36,1)*[1]国語!$AA$10 -> 4 | Y29: =COUNTIF([1]国語!AB36,1)*[1]国語!$AB$10 -> 4 | Z29: =COUNTIF([1]国語!AC36,1)*[1]国語!$AC$10 -> 4 | AA29: =COUNTIF([1]国語!AD36,1)*[1]国語!$AD$10 -> 0 | AB29: =COUNTIF([1]国語!AE36,1)*[1]国語!$AE$10 -> 0 | AC29: =COUNTIF([1]国語!AF36,1)*[1]国語!$AF$10 -> 0 | AD29: =COUNTIF([1]国語!AG36,1)*[1]国語!$AG$10 -> 0 | AE29: =COUNTIF([1]国語!AH36,1)*[1]国語!$AH$10 -> 0 | AF29: =COUNTIF([1]国語!AI36,1)*[1]国語!$AI$10 -> 0 | AG29: =COUNTIF([1]国語!AJ36,1)*[1]国語!$AJ$10 -> 0 | AH29: =COUNTIF([1]国語!AK36,1)*[1]国語!$AK$10 -> 0 | AI29: =COUNTIF([1]国語!AL36,1)*[1]国語!$AL$10 -> 0 | AJ29: =COUNTIF([1]国語!AM36,1)*[1]国語!$AM$10 -> 0 | AK29: =COUNTIF([1]国語!AN36,1)*[1]国語!$AN$10 -> 0 | AL29: =COUNTIF([1]国語!AO36,1)*[1]国語!$AO$10 -> 0 | AM29: =COUNTIF([1]国語!AP36,1)*[1]国語!$AP$10 -> 0 | AN29: =COUNTIF([1]国語!AQ36,1)*[1]国語!$AQ$10 -> 0 | AO29: =COUNTIF([1]国語!AR36,1)*[1]国語!$AR$10 -> 0 | AP29: =COUNTIF([1]国語!AS36,1)*[1]国語!$AS$10 -> 0 | AQ29: =COUNTIF([1]国語!AT36,1)*[1]国語!$AT$10 -> 0 | AR29: =COUNTIF([1]国語!AU36,1)*[1]国語!$AU$10 -> 0 | AS29: =COUNTIF([1]国語!AV36,1)*[1]国語!$AV$10 -> 0 | AT29: =COUNTIF([1]国語!AW36,1)*[1]国語!$AW$10 -> 0 | AU29: =COUNTIF([1]国語!AX36,1)*[1]国語!$AX$10 -> 0 | AV29: =COUNTIF([1]国語!AY36,1)*[1]国語!$AY$10 -> 0 | AW29: =COUNTIF([1]国語!AZ36,1)*[1]国語!$AZ$10 -> 0 | AX29: =COUNTIF([1]国語!BA36,1)*[1]国語!$BA$10 -> 0 | AY29: =COUNTIF([1]国語!BB36,1)*[1]国語!$BB$10 -> 0 | AZ29: 12 | BC29: 26問 | BD29: =[1]国語!AD58 -> 0 | BF29: 26問 | BI29: 26
A30: 27 | B30: =COUNTIF([1]国語!E37,1)*[1]国語!$E$10 -> 0 | C30: =COUNTIF([1]国語!F37,1)*[1]国語!$F$10 -> 0 | D30: =COUNTIF([1]国語!G37,1)*[1]国語!$G$10 -> 0 | E30: =COUNTIF([1]国語!H37,1)*[1]国語!$H$10 -> 0 | F30: =COUNTIF([1]国語!I37,1)*[1]国語!$I$10 -> 0 | G30: =COUNTIF([1]国語!J37,1)*[1]国語!$J$10 -> 0 | H30: =COUNTIF([1]国語!K37,1)*[1]国語!$F$10 -> 0 | I30: =COUNTIF([1]国語!L37,1)*[1]国語!$F$10 -> 0 | J30: =COUNTIF([1]国語!M37,1)*[1]国語!$M$10 -> 0 | K30: =COUNTIF([1]国語!N37,1)*[1]国語!$N$10 -> 0 | L30: =COUNTIF([1]国語!O37,1)*[1]国語!$O$10 -> 0 | M30: =COUNTIF([1]国語!P37,1)*[1]国語!$P$10 -> 0 | N30: =COUNTIF([1]国語!Q37,1)*[1]国語!$Q$10 -> 0 | O30: =COUNTIF([1]国語!R37,1)*[1]国語!$R$10 -> 0 | P30: =COUNTIF([1]国語!S37,1)*[1]国語!$S$10 -> 0 | Q30: =COUNTIF([1]国語!T37,1)*[1]国語!$T$10 -> 0 | R30: =COUNTIF([1]国語!U37,1)*[1]国語!$U$10 -> 0 | S30: =COUNTIF([1]国語!V37,1)*[1]国語!$V$10 -> 0 | T30: =COUNTIF([1]国語!W37,1)*[1]国語!$W$10 -> 0 | U30: =COUNTIF([1]国語!X37,1)*[1]国語!$X$10 -> 0 | V30: =COUNTIF([1]国語!Y37,1)*[1]国語!$Y$10 -> 0 | W30: =COUNTIF([1]国語!Z37,1)*[1]国語!$Z$10 -> 4 | X30: =COUNTIF([1]国語!AA37,1)*[1]国語!$AA$10 -> 4 | Y30: =COUNTIF([1]国語!AB37,1)*[1]国語!$AB$10 -> 4 | Z30: =COUNTIF([1]国語!AC37,1)*[1]国語!$AC$10 -> 4 | AA30: =COUNTIF([1]国語!AD37,1)*[1]国語!$AD$10 -> 0 | AB30: =COUNTIF([1]国語!AE37,1)*[1]国語!$AE$10 -> 0 | AC30: =COUNTIF([1]国語!AF37,1)*[1]国語!$AF$10 -> 0 | AD30: =COUNTIF([1]国語!AG37,1)*[1]国語!$AG$10 -> 0 | AE30: =COUNTIF([1]国語!AH37,1)*[1]国語!$AH$10 -> 0 | AF30: =COUNTIF([1]国語!AI37,1)*[1]国語!$AI$10 -> 0 | AG30: =COUNTIF([1]国語!AJ37,1)*[1]国語!$AJ$10 -> 0 | AH30: =COUNTIF([1]国語!AK37,1)*[1]国語!$AK$10 -> 0 | AI30: =COUNTIF([1]国語!AL37,1)*[1]国語!$AL$10 -> 0 | AJ30: =COUNTIF([1]国語!AM37,1)*[1]国語!$AM$10 -> 0 | AK30: =COUNTIF([1]国語!AN37,1)*[1]国語!$AN$10 -> 0 | AL30: =COUNTIF([1]国語!AO37,1)*[1]国語!$AO$10 -> 0 | AM30: =COUNTIF([1]国語!AP37,1)*[1]国語!$AP$10 -> 0 | AN30: =COUNTIF([1]国語!AQ37,1)*[1]国語!$AQ$10 -> 0 | AO30: =COUNTIF([1]国語!AR37,1)*[1]国語!$AR$10 -> 0 | AP30: =COUNTIF([1]国語!AS37,1)*[1]国語!$AS$10 -> 0 | AQ30: =COUNTIF([1]国語!AT37,1)*[1]国語!$AT$10 -> 0 | AR30: =COUNTIF([1]国語!AU37,1)*[1]国語!$AU$10 -> 0 | AS30: =COUNTIF([1]国語!AV37,1)*[1]国語!$AV$10 -> 0 | AT30: =COUNTIF([1]国語!AW37,1)*[1]国語!$AW$10 -> 0 | AU30: =COUNTIF([1]国語!AX37,1)*[1]国語!$AX$10 -> 0 | AV30: =COUNTIF([1]国語!AY37,1)*[1]国語!$AY$10 -> 0 | AW30: =COUNTIF([1]国語!AZ37,1)*[1]国語!$AZ$10 -> 0 | AX30: =COUNTIF([1]国語!BA37,1)*[1]国語!$BA$10 -> 0 | AY30: =COUNTIF([1]国語!BB37,1)*[1]国語!$BB$10 -> 0 | AZ30: 16 | BC30: 27問 | BD30: =[1]国語!AE58 -> 0 | BF30: 27問 | BI30: 27
A31: 28 | B31: =COUNTIF([1]国語!E38,1)*[1]国語!$E$10 -> 0 | C31: =COUNTIF([1]国語!F38,1)*[1]国語!$F$10 -> 0 | D31: =COUNTIF([1]国語!G38,1)*[1]国語!$G$10 -> 0 | E31: =COUNTIF([1]国語!H38,1)*[1]国語!$H$10 -> 0 | F31: =COUNTIF([1]国語!I38,1)*[1]国語!$I$10 -> 0 | G31: =COUNTIF([1]国語!J38,1)*[1]国語!$J$10 -> 0 | H31: =COUNTIF([1]国語!K38,1)*[1]国語!$F$10 -> 0 | I31: =COUNTIF([1]国語!L38,1)*[1]国語!$F$10 -> 0 | J31: =COUNTIF([1]国語!M38,1)*[1]国語!$M$10 -> 0 | K31: =COUNTIF([1]国語!N38,1)*[1]国語!$N$10 -> 0 | L31: =COUNTIF([1]国語!O38,1)*[1]国語!$O$10 -> 0 | M31: =COUNTIF([1]国語!P38,1)*[1]国語!$P$10 -> 0 | N31: =COUNTIF([1]国語!Q38,1)*[1]国語!$Q$10 -> 0 | O31: =COUNTIF([1]国語!R38,1)*[1]国語!$R$10 -> 0 | P31: =COUNTIF([1]国語!S38,1)*[1]国語!$S$10 -> 0 | Q31: =COUNTIF([1]国語!T38,1)*[1]国語!$T$10 -> 0 | R31: =COUNTIF([1]国語!U38,1)*[1]国語!$U$10 -> 0 | S31: =COUNTIF([1]国語!V38,1)*[1]国語!$V$10 -> 0 | T31: =COUNTIF([1]国語!W38,1)*[1]国語!$W$10 -> 0 | U31: =COUNTIF([1]国語!X38,1)*[1]国語!$X$10 -> 0 | V31: =COUNTIF([1]国語!Y38,1)*[1]国語!$Y$10 -> 4 | W31: =COUNTIF([1]国語!Z38,1)*[1]国語!$Z$10 -> 4 | X31: =COUNTIF([1]国語!AA38,1)*[1]国語!$AA$10 -> 4 | Y31: =COUNTIF([1]国語!AB38,1)*[1]国語!$AB$10 -> 4 | Z31: =COUNTIF([1]国語!AC38,1)*[1]国語!$AC$10 -> 4 | AA31: =COUNTIF([1]国語!AD38,1)*[1]国語!$AD$10 -> 0 | AB31: =COUNTIF([1]国語!AE38,1)*[1]国語!$AE$10 -> 0 | AC31: =COUNTIF([1]国語!AF38,1)*[1]国語!$AF$10 -> 0 | AD31: =COUNTIF([1]国語!AG38,1)*[1]国語!$AG$10 -> 0 | AE31: =COUNTIF([1]国語!AH38,1)*[1]国語!$AH$10 -> 0 | AF31: =COUNTIF([1]国語!AI38,1)*[1]国語!$AI$10 -> 0 | AG31: =COUNTIF([1]国語!AJ38,1)*[1]国語!$AJ$10 -> 0 | AH31: =COUNTIF([1]国語!AK38,1)*[1]国語!$AK$10 -> 0 | AI31: =COUNTIF([1]国語!AL38,1)*[1]国語!$AL$10 -> 0 | AJ31: =COUNTIF([1]国語!AM38,1)*[1]国語!$AM$10 -> 0 | AK31: =COUNTIF([1]国語!AN38,1)*[1]国語!$AN$10 -> 0 | AL31: =COUNTIF([1]国語!AO38,1)*[1]国語!$AO$10 -> 0 | AM31: =COUNTIF([1]国語!AP38,1)*[1]国語!$AP$10 -> 0 | AN31: =COUNTIF([1]国語!AQ38,1)*[1]国語!$AQ$10 -> 0 | AO31: =COUNTIF([1]国語!AR38,1)*[1]国語!$AR$10 -> 0 | AP31: =COUNTIF([1]国語!AS38,1)*[1]国語!$AS$10 -> 0 | AQ31: =COUNTIF([1]国語!AT38,1)*[1]国語!$AT$10 -> 0 | AR31: =COUNTIF([1]国語!AU38,1)*[1]国語!$AU$10 -> 0 | AS31: =COUNTIF([1]国語!AV38,1)*[1]国語!$AV$10 -> 0 | AT31: =COUNTIF([1]国語!AW38,1)*[1]国語!$AW$10 -> 0 | AU31: =COUNTIF([1]国語!AX38,1)*[1]国語!$AX$10 -> 0 | AV31: =COUNTIF([1]国語!AY38,1)*[1]国語!$AY$10 -> 0 | AW31: =COUNTIF([1]国語!AZ38,1)*[1]国語!$AZ$10 -> 0 | AX31: =COUNTIF([1]国語!BA38,1)*[1]国語!$BA$10 -> 0 | AY31: =COUNTIF([1]国語!BB38,1)*[1]国語!$BB$10 -> 0 | AZ31: 20 | BC31: 28問 | BD31: =[1]国語!AF58 -> 0 | BF31: 28問 | BI31: 28
A32: 29 | B32: =COUNTIF([1]国語!E39,1)*[1]国語!$E$10 -> 0 | C32: =COUNTIF([1]国語!F39,1)*[1]国語!$F$10 -> 0 | D32: =COUNTIF([1]国語!G39,1)*[1]国語!$G$10 -> 0 | E32: =COUNTIF([1]国語!H39,1)*[1]国語!$H$10 -> 0 | F32: =COUNTIF([1]国語!I39,1)*[1]国語!$I$10 -> 0 | G32: =COUNTIF([1]国語!J39,1)*[1]国語!$J$10 -> 0 | H32: =COUNTIF([1]国語!K39,1)*[1]国語!$F$10 -> 0 | I32: =COUNTIF([1]国語!L39,1)*[1]国語!$F$10 -> 0 | J32: =COUNTIF([1]国語!M39,1)*[1]国語!$M$10 -> 0 | K32: =COUNTIF([1]国語!N39,1)*[1]国語!$N$10 -> 0 | L32: =COUNTIF([1]国語!O39,1)*[1]国語!$O$10 -> 0 | M32: =COUNTIF([1]国語!P39,1)*[1]国語!$P$10 -> 0 | N32: =COUNTIF([1]国語!Q39,1)*[1]国語!$Q$10 -> 0 | O32: =COUNTIF([1]国語!R39,1)*[1]国語!$R$10 -> 0 | P32: =COUNTIF([1]国語!S39,1)*[1]国語!$S$10 -> 0 | Q32: =COUNTIF([1]国語!T39,1)*[1]国語!$T$10 -> 0 | R32: =COUNTIF([1]国語!U39,1)*[1]国語!$U$10 -> 0 | S32: =COUNTIF([1]国語!V39,1)*[1]国語!$V$10 -> 0 | T32: =COUNTIF([1]国語!W39,1)*[1]国語!$W$10 -> 0 | U32: =COUNTIF([1]国語!X39,1)*[1]国語!$X$10 -> 4 | V32: =COUNTIF([1]国語!Y39,1)*[1]国語!$Y$10 -> 4 | W32: =COUNTIF([1]国語!Z39,1)*[1]国語!$Z$10 -> 4 | X32: =COUNTIF([1]国語!AA39,1)*[1]国語!$AA$10 -> 4 | Y32: =COUNTIF([1]国語!AB39,1)*[1]国語!$AB$10 -> 4 | Z32: =COUNTIF([1]国語!AC39,1)*[1]国語!$AC$10 -> 4 | AA32: =COUNTIF([1]国語!AD39,1)*[1]国語!$AD$10 -> 0 | AB32: =COUNTIF([1]国語!AE39,1)*[1]国語!$AE$10 -> 0 | AC32: =COUNTIF([1]国語!AF39,1)*[1]国語!$AF$10 -> 0 | AD32: =COUNTIF([1]国語!AG39,1)*[1]国語!$AG$10 -> 0 | AE32: =COUNTIF([1]国語!AH39,1)*[1]国語!$AH$10 -> 0 | AF32: =COUNTIF([1]国語!AI39,1)*[1]国語!$AI$10 -> 0 | AG32: =COUNTIF([1]国語!AJ39,1)*[1]国語!$AJ$10 -> 0 | AH32: =COUNTIF([1]国語!AK39,1)*[1]国語!$AK$10 -> 0 | AI32: =COUNTIF([1]国語!AL39,1)*[1]国語!$AL$10 -> 0 | AJ32: =COUNTIF([1]国語!AM39,1)*[1]国語!$AM$10 -> 0 | AK32: =COUNTIF([1]国語!AN39,1)*[1]国語!$AN$10 -> 0 | AL32: =COUNTIF([1]国語!AO39,1)*[1]国語!$AO$10 -> 0 | AM32: =COUNTIF([1]国語!AP39,1)*[1]国語!$AP$10 -> 0 | AN32: =COUNTIF([1]国語!AQ39,1)*[1]国語!$AQ$10 -> 0 | AO32: =COUNTIF([1]国語!AR39,1)*[1]国語!$AR$10 -> 0 | AP32: =COUNTIF([1]国語!AS39,1)*[1]国語!$AS$10 -> 0 | AQ32: =COUNTIF([1]国語!AT39,1)*[1]国語!$AT$10 -> 0 | AR32: =COUNTIF([1]国語!AU39,1)*[1]国語!$AU$10 -> 0 | AS32: =COUNTIF([1]国語!AV39,1)*[1]国語!$AV$10 -> 0 | AT32: =COUNTIF([1]国語!AW39,1)*[1]国語!$AW$10 -> 0 | AU32: =COUNTIF([1]国語!AX39,1)*[1]国語!$AX$10 -> 0 | AV32: =COUNTIF([1]国語!AY39,1)*[1]国語!$AY$10 -> 0 | AW32: =COUNTIF([1]国語!AZ39,1)*[1]国語!$AZ$10 -> 0 | AX32: =COUNTIF([1]国語!BA39,1)*[1]国語!$BA$10 -> 0 | AY32: =COUNTIF([1]国語!BB39,1)*[1]国語!$BB$10 -> 0 | AZ32: 24 | BC32: 29問 | BD32: =[1]国語!AG58 -> 0 | BF32: 29問 | BI32: 29
A33: 30 | B33: =COUNTIF([1]国語!E40,1)*[1]国語!$E$10 -> 0 | C33: =COUNTIF([1]国語!F40,1)*[1]国語!$F$10 -> 0 | D33: =COUNTIF([1]国語!G40,1)*[1]国語!$G$10 -> 0 | E33: =COUNTIF([1]国語!H40,1)*[1]国語!$H$10 -> 0 | F33: =COUNTIF([1]国語!I40,1)*[1]国語!$I$10 -> 0 | G33: =COUNTIF([1]国語!J40,1)*[1]国語!$J$10 -> 0 | H33: =COUNTIF([1]国語!K40,1)*[1]国語!$F$10 -> 0 | I33: =COUNTIF([1]国語!L40,1)*[1]国語!$F$10 -> 0 | J33: =COUNTIF([1]国語!M40,1)*[1]国語!$M$10 -> 0 | K33: =COUNTIF([1]国語!N40,1)*[1]国語!$N$10 -> 0 | L33: =COUNTIF([1]国語!O40,1)*[1]国語!$O$10 -> 0 | M33: =COUNTIF([1]国語!P40,1)*[1]国語!$P$10 -> 0 | N33: =COUNTIF([1]国語!Q40,1)*[1]国語!$Q$10 -> 0 | O33: =COUNTIF([1]国語!R40,1)*[1]国語!$R$10 -> 0 | P33: =COUNTIF([1]国語!S40,1)*[1]国語!$S$10 -> 0 | Q33: =COUNTIF([1]国語!T40,1)*[1]国語!$T$10 -> 0 | R33: =COUNTIF([1]国語!U40,1)*[1]国語!$U$10 -> 0 | S33: =COUNTIF([1]国語!V40,1)*[1]国語!$V$10 -> 0 | T33: =COUNTIF([1]国語!W40,1)*[1]国語!$W$10 -> 4 | U33: =COUNTIF([1]国語!X40,1)*[1]国語!$X$10 -> 4 | V33: =COUNTIF([1]国語!Y40,1)*[1]国語!$Y$10 -> 4 | W33: =COUNTIF([1]国語!Z40,1)*[1]国語!$Z$10 -> 4 | X33: =COUNTIF([1]国語!AA40,1)*[1]国語!$AA$10 -> 4 | Y33: =COUNTIF([1]国語!AB40,1)*[1]国語!$AB$10 -> 4 | Z33: =COUNTIF([1]国語!AC40,1)*[1]国語!$AC$10 -> 4 | AA33: =COUNTIF([1]国語!AD40,1)*[1]国語!$AD$10 -> 0 | AB33: =COUNTIF([1]国語!AE40,1)*[1]国語!$AE$10 -> 0 | AC33: =COUNTIF([1]国語!AF40,1)*[1]国語!$AF$10 -> 0 | AD33: =COUNTIF([1]国語!AG40,1)*[1]国語!$AG$10 -> 0 | AE33: =COUNTIF([1]国語!AH40,1)*[1]国語!$AH$10 -> 0 | AF33: =COUNTIF([1]国語!AI40,1)*[1]国語!$AI$10 -> 0 | AG33: =COUNTIF([1]国語!AJ40,1)*[1]国語!$AJ$10 -> 0 | AH33: =COUNTIF([1]国語!AK40,1)*[1]国語!$AK$10 -> 0 | AI33: =COUNTIF([1]国語!AL40,1)*[1]国語!$AL$10 -> 0 | AJ33: =COUNTIF([1]国語!AM40,1)*[1]国語!$AM$10 -> 0 | AK33: =COUNTIF([1]国語!AN40,1)*[1]国語!$AN$10 -> 0 | AL33: =COUNTIF([1]国語!AO40,1)*[1]国語!$AO$10 -> 0 | AM33: =COUNTIF([1]国語!AP40,1)*[1]国語!$AP$10 -> 0 | AN33: =COUNTIF([1]国語!AQ40,1)*[1]国語!$AQ$10 -> 0 | AO33: =COUNTIF([1]国語!AR40,1)*[1]国語!$AR$10 -> 0 | AP33: =COUNTIF([1]国語!AS40,1)*[1]国語!$AS$10 -> 0 | AQ33: =COUNTIF([1]国語!AT40,1)*[1]国語!$AT$10 -> 0 | AR33: =COUNTIF([1]国語!AU40,1)*[1]国語!$AU$10 -> 0 | AS33: =COUNTIF([1]国語!AV40,1)*[1]国語!$AV$10 -> 0 | AT33: =COUNTIF([1]国語!AW40,1)*[1]国語!$AW$10 -> 0 | AU33: =COUNTIF([1]国語!AX40,1)*[1]国語!$AX$10 -> 0 | AV33: =COUNTIF([1]国語!AY40,1)*[1]国語!$AY$10 -> 0 | AW33: =COUNTIF([1]国語!AZ40,1)*[1]国語!$AZ$10 -> 0 | AX33: =COUNTIF([1]国語!BA40,1)*[1]国語!$BA$10 -> 0 | AY33: =COUNTIF([1]国語!BB40,1)*[1]国語!$BB$10 -> 0 | AZ33: 28 | BC33: 30問 | BD33: =[1]国語!AH58 -> 0 | BF33: 30問 | BI33: 30
A34: 31 | B34: =COUNTIF([1]国語!E41,1)*[1]国語!$E$10 -> 0 | C34: =COUNTIF([1]国語!F41,1)*[1]国語!$F$10 -> 0 | D34: =COUNTIF([1]国語!G41,1)*[1]国語!$G$10 -> 0 | E34: =COUNTIF([1]国語!H41,1)*[1]国語!$H$10 -> 0 | F34: =COUNTIF([1]国語!I41,1)*[1]国語!$I$10 -> 0 | G34: =COUNTIF([1]国語!J41,1)*[1]国語!$J$10 -> 0 | H34: =COUNTIF([1]国語!K41,1)*[1]国語!$F$10 -> 0 | I34: =COUNTIF([1]国語!L41,1)*[1]国語!$F$10 -> 0 | J34: =COUNTIF([1]国語!M41,1)*[1]国語!$M$10 -> 0 | K34: =COUNTIF([1]国語!N41,1)*[1]国語!$N$10 -> 0 | L34: =COUNTIF([1]国語!O41,1)*[1]国語!$O$10 -> 0 | M34: =COUNTIF([1]国語!P41,1)*[1]国語!$P$10 -> 0 | N34: =COUNTIF([1]国語!Q41,1)*[1]国語!$Q$10 -> 0 | O34: =COUNTIF([1]国語!R41,1)*[1]国語!$R$10 -> 0 | P34: =COUNTIF([1]国語!S41,1)*[1]国語!$S$10 -> 0 | Q34: =COUNTIF([1]国語!T41,1)*[1]国語!$T$10 -> 0 | R34: =COUNTIF([1]国語!U41,1)*[1]国語!$U$10 -> 0 | S34: =COUNTIF([1]国語!V41,1)*[1]国語!$V$10 -> 4 | T34: =COUNTIF([1]国語!W41,1)*[1]国語!$W$10 -> 4 | U34: =COUNTIF([1]国語!X41,1)*[1]国語!$X$10 -> 4 | V34: =COUNTIF([1]国語!Y41,1)*[1]国語!$Y$10 -> 4 | W34: =COUNTIF([1]国語!Z41,1)*[1]国語!$Z$10 -> 4 | X34: =COUNTIF([1]国語!AA41,1)*[1]国語!$AA$10 -> 4 | Y34: =COUNTIF([1]国語!AB41,1)*[1]国語!$AB$10 -> 4 | Z34: =COUNTIF([1]国語!AC41,1)*[1]国語!$AC$10 -> 4 | AA34: =COUNTIF([1]国語!AD41,1)*[1]国語!$AD$10 -> 0 | AB34: =COUNTIF([1]国語!AE41,1)*[1]国語!$AE$10 -> 0 | AC34: =COUNTIF([1]国語!AF41,1)*[1]国語!$AF$10 -> 0 | AD34: =COUNTIF([1]国語!AG41,1)*[1]国語!$AG$10 -> 0 | AE34: =COUNTIF([1]国語!AH41,1)*[1]国語!$AH$10 -> 0 | AF34: =COUNTIF([1]国語!AI41,1)*[1]国語!$AI$10 -> 0 | AG34: =COUNTIF([1]国語!AJ41,1)*[1]国語!$AJ$10 -> 0 | AH34: =COUNTIF([1]国語!AK41,1)*[1]国語!$AK$10 -> 0 | AI34: =COUNTIF([1]国語!AL41,1)*[1]国語!$AL$10 -> 0 | AJ34: =COUNTIF([1]国語!AM41,1)*[1]国語!$AM$10 -> 0 | AK34: =COUNTIF([1]国語!AN41,1)*[1]国語!$AN$10 -> 0 | AL34: =COUNTIF([1]国語!AO41,1)*[1]国語!$AO$10 -> 0 | AM34: =COUNTIF([1]国語!AP41,1)*[1]国語!$AP$10 -> 0 | AN34: =COUNTIF([1]国語!AQ41,1)*[1]国語!$AQ$10 -> 0 | AO34: =COUNTIF([1]国語!AR41,1)*[1]国語!$AR$10 -> 0 | AP34: =COUNTIF([1]国語!AS41,1)*[1]国語!$AS$10 -> 0 | AQ34: =COUNTIF([1]国語!AT41,1)*[1]国語!$AT$10 -> 0 | AR34: =COUNTIF([1]国語!AU41,1)*[1]国語!$AU$10 -> 0 | AS34: =COUNTIF([1]国語!AV41,1)*[1]国語!$AV$10 -> 0 | AT34: =COUNTIF([1]国語!AW41,1)*[1]国語!$AW$10 -> 0 | AU34: =COUNTIF([1]国語!AX41,1)*[1]国語!$AX$10 -> 0 | AV34: =COUNTIF([1]国語!AY41,1)*[1]国語!$AY$10 -> 0 | AW34: =COUNTIF([1]国語!AZ41,1)*[1]国語!$AZ$10 -> 0 | AX34: =COUNTIF([1]国語!BA41,1)*[1]国語!$BA$10 -> 0 | AY34: =COUNTIF([1]国語!BB41,1)*[1]国語!$BB$10 -> 0 | AZ34: 32 | BC34: 31問 | BD34: =[1]国語!AI58 -> 0 | BF34: 31問 | BI34: 31
A35: 32 | B35: =COUNTIF([1]国語!E42,1)*[1]国語!$E$10 -> 0 | C35: =COUNTIF([1]国語!F42,1)*[1]国語!$F$10 -> 0 | D35: =COUNTIF([1]国語!G42,1)*[1]国語!$G$10 -> 0 | E35: =COUNTIF([1]国語!H42,1)*[1]国語!$H$10 -> 0 | F35: =COUNTIF([1]国語!I42,1)*[1]国語!$I$10 -> 0 | G35: =COUNTIF([1]国語!J42,1)*[1]国語!$J$10 -> 0 | H35: =COUNTIF([1]国語!K42,1)*[1]国語!$F$10 -> 0 | I35: =COUNTIF([1]国語!L42,1)*[1]国語!$F$10 -> 0 | J35: =COUNTIF([1]国語!M42,1)*[1]国語!$M$10 -> 0 | K35: =COUNTIF([1]国語!N42,1)*[1]国語!$N$10 -> 0 | L35: =COUNTIF([1]国語!O42,1)*[1]国語!$O$10 -> 0 | M35: =COUNTIF([1]国語!P42,1)*[1]国語!$P$10 -> 0 | N35: =COUNTIF([1]国語!Q42,1)*[1]国語!$Q$10 -> 0 | O35: =COUNTIF([1]国語!R42,1)*[1]国語!$R$10 -> 0 | P35: =COUNTIF([1]国語!S42,1)*[1]国語!$S$10 -> 0 | Q35: =COUNTIF([1]国語!T42,1)*[1]国語!$T$10 -> 0 | R35: =COUNTIF([1]国語!U42,1)*[1]国語!$U$10 -> 4 | S35: =COUNTIF([1]国語!V42,1)*[1]国語!$V$10 -> 4 | T35: =COUNTIF([1]国語!W42,1)*[1]国語!$W$10 -> 4 | U35: =COUNTIF([1]国語!X42,1)*[1]国語!$X$10 -> 4 | V35: =COUNTIF([1]国語!Y42,1)*[1]国語!$Y$10 -> 4 | W35: =COUNTIF([1]国語!Z42,1)*[1]国語!$Z$10 -> 4 | X35: =COUNTIF([1]国語!AA42,1)*[1]国語!$AA$10 -> 4 | Y35: =COUNTIF([1]国語!AB42,1)*[1]国語!$AB$10 -> 4 | Z35: =COUNTIF([1]国語!AC42,1)*[1]国語!$AC$10 -> 4 | AA35: =COUNTIF([1]国語!AD42,1)*[1]国語!$AD$10 -> 0 | AB35: =COUNTIF([1]国語!AE42,1)*[1]国語!$AE$10 -> 0 | AC35: =COUNTIF([1]国語!AF42,1)*[1]国語!$AF$10 -> 0 | AD35: =COUNTIF([1]国語!AG42,1)*[1]国語!$AG$10 -> 0 | AE35: =COUNTIF([1]国語!AH42,1)*[1]国語!$AH$10 -> 0 | AF35: =COUNTIF([1]国語!AI42,1)*[1]国語!$AI$10 -> 0 | AG35: =COUNTIF([1]国語!AJ42,1)*[1]国語!$AJ$10 -> 0 | AH35: =COUNTIF([1]国語!AK42,1)*[1]国語!$AK$10 -> 0 | AI35: =COUNTIF([1]国語!AL42,1)*[1]国語!$AL$10 -> 0 | AJ35: =COUNTIF([1]国語!AM42,1)*[1]国語!$AM$10 -> 0 | AK35: =COUNTIF([1]国語!AN42,1)*[1]国語!$AN$10 -> 0 | AL35: =COUNTIF([1]国語!AO42,1)*[1]国語!$AO$10 -> 0 | AM35: =COUNTIF([1]国語!AP42,1)*[1]国語!$AP$10 -> 0 | AN35: =COUNTIF([1]国語!AQ42,1)*[1]国語!$AQ$10 -> 0 | AO35: =COUNTIF([1]国語!AR42,1)*[1]国語!$AR$10 -> 0 | AP35: =COUNTIF([1]国語!AS42,1)*[1]国語!$AS$10 -> 0 | AQ35: =COUNTIF([1]国語!AT42,1)*[1]国語!$AT$10 -> 0 | AR35: =COUNTIF([1]国語!AU42,1)*[1]国語!$AU$10 -> 0 | AS35: =COUNTIF([1]国語!AV42,1)*[1]国語!$AV$10 -> 0 | AT35: =COUNTIF([1]国語!AW42,1)*[1]国語!$AW$10 -> 0 | AU35: =COUNTIF([1]国語!AX42,1)*[1]国語!$AX$10 -> 0 | AV35: =COUNTIF([1]国語!AY42,1)*[1]国語!$AY$10 -> 0 | AW35: =COUNTIF([1]国語!AZ42,1)*[1]国語!$AZ$10 -> 0 | AX35: =COUNTIF([1]国語!BA42,1)*[1]国語!$BA$10 -> 0 | AY35: =COUNTIF([1]国語!BB42,1)*[1]国語!$BB$10 -> 0 | AZ35: 36 | BC35: 32問 | BD35: =[1]国語!AJ58 -> 0 | BF35: 32問 | BI35: 32
A36: 33 | B36: =COUNTIF([1]国語!E43,1)*[1]国語!$E$10 -> 0 | C36: =COUNTIF([1]国語!F43,1)*[1]国語!$F$10 -> 0 | D36: =COUNTIF([1]国語!G43,1)*[1]国語!$G$10 -> 0 | E36: =COUNTIF([1]国語!H43,1)*[1]国語!$H$10 -> 0 | F36: =COUNTIF([1]国語!I43,1)*[1]国語!$I$10 -> 0 | G36: =COUNTIF([1]国語!J43,1)*[1]国語!$J$10 -> 0 | H36: =COUNTIF([1]国語!K43,1)*[1]国語!$F$10 -> 0 | I36: =COUNTIF([1]国語!L43,1)*[1]国語!$F$10 -> 0 | J36: =COUNTIF([1]国語!M43,1)*[1]国語!$M$10 -> 0 | K36: =COUNTIF([1]国語!N43,1)*[1]国語!$N$10 -> 0 | L36: =COUNTIF([1]国語!O43,1)*[1]国語!$O$10 -> 0 | M36: =COUNTIF([1]国語!P43,1)*[1]国語!$P$10 -> 0 | N36: =COUNTIF([1]国語!Q43,1)*[1]国語!$Q$10 -> 0 | O36: =COUNTIF([1]国語!R43,1)*[1]国語!$R$10 -> 0 | P36: =COUNTIF([1]国語!S43,1)*[1]国語!$S$10 -> 0 | Q36: =COUNTIF([1]国語!T43,1)*[1]国語!$T$10 -> 4 | R36: =COUNTIF([1]国語!U43,1)*[1]国語!$U$10 -> 4 | S36: =COUNTIF([1]国語!V43,1)*[1]国語!$V$10 -> 4 | T36: =COUNTIF([1]国語!W43,1)*[1]国語!$W$10 -> 4 | U36: =COUNTIF([1]国語!X43,1)*[1]国語!$X$10 -> 4 | V36: =COUNTIF([1]国語!Y43,1)*[1]国語!$Y$10 -> 4 | W36: =COUNTIF([1]国語!Z43,1)*[1]国語!$Z$10 -> 4 | X36: =COUNTIF([1]国語!AA43,1)*[1]国語!$AA$10 -> 4 | Y36: =COUNTIF([1]国語!AB43,1)*[1]国語!$AB$10 -> 4 | Z36: =COUNTIF([1]国語!AC43,1)*[1]国語!$AC$10 -> 4 | AA36: =COUNTIF([1]国語!AD43,1)*[1]国語!$AD$10 -> 0 | AB36: =COUNTIF([1]国語!AE43,1)*[1]国語!$AE$10 -> 0 | AC36: =COUNTIF([1]国語!AF43,1)*[1]国語!$AF$10 -> 0 | AD36: =COUNTIF([1]国語!AG43,1)*[1]国語!$AG$10 -> 0 | AE36: =COUNTIF([1]国語!AH43,1)*[1]国語!$AH$10 -> 0 | AF36: =COUNTIF([1]国語!AI43,1)*[1]国語!$AI$10 -> 0 | AG36: =COUNTIF([1]国語!AJ43,1)*[1]国語!$AJ$10 -> 0 | AH36: =COUNTIF([1]国語!AK43,1)*[1]国語!$AK$10 -> 0 | AI36: =COUNTIF([1]国語!AL43,1)*[1]国語!$AL$10 -> 0 | AJ36: =COUNTIF([1]国語!AM43,1)*[1]国語!$AM$10 -> 0 | AK36: =COUNTIF([1]国語!AN43,1)*[1]国語!$AN$10 -> 0 | AL36: =COUNTIF([1]国語!AO43,1)*[1]国語!$AO$10 -> 0 | AM36: =COUNTIF([1]国語!AP43,1)*[1]国語!$AP$10 -> 0 | AN36: =COUNTIF([1]国語!AQ43,1)*[1]国語!$AQ$10 -> 0 | AO36: =COUNTIF([1]国語!AR43,1)*[1]国語!$AR$10 -> 0 | AP36: =COUNTIF([1]国語!AS43,1)*[1]国語!$AS$10 -> 0 | AQ36: =COUNTIF([1]国語!AT43,1)*[1]国語!$AT$10 -> 0 | AR36: =COUNTIF([1]国語!AU43,1)*[1]国語!$AU$10 -> 0 | AS36: =COUNTIF([1]国語!AV43,1)*[1]国語!$AV$10 -> 0 | AT36: =COUNTIF([1]国語!AW43,1)*[1]国語!$AW$10 -> 0 | AU36: =COUNTIF([1]国語!AX43,1)*[1]国語!$AX$10 -> 0 | AV36: =COUNTIF([1]国語!AY43,1)*[1]国語!$AY$10 -> 0 | AW36: =COUNTIF([1]国語!AZ43,1)*[1]国語!$AZ$10 -> 0 | AX36: =COUNTIF([1]国語!BA43,1)*[1]国語!$BA$10 -> 0 | AY36: =COUNTIF([1]国語!BB43,1)*[1]国語!$BB$10 -> 0 | AZ36: 40 | BC36: 33問 | BD36: =[1]国語!AK58 -> 0 | BF36: 33問 | BI36: 33
A37: 34 | B37: =COUNTIF([1]国語!E44,1)*[1]国語!$E$10 -> 0 | C37: =COUNTIF([1]国語!F44,1)*[1]国語!$F$10 -> 0 | D37: =COUNTIF([1]国語!G44,1)*[1]国語!$G$10 -> 0 | E37: =COUNTIF([1]国語!H44,1)*[1]国語!$H$10 -> 0 | F37: =COUNTIF([1]国語!I44,1)*[1]国語!$I$10 -> 0 | G37: =COUNTIF([1]国語!J44,1)*[1]国語!$J$10 -> 0 | H37: =COUNTIF([1]国語!K44,1)*[1]国語!$F$10 -> 0 | I37: =COUNTIF([1]国語!L44,1)*[1]国語!$F$10 -> 0 | J37: =COUNTIF([1]国語!M44,1)*[1]国語!$M$10 -> 0 | K37: =COUNTIF([1]国語!N44,1)*[1]国語!$N$10 -> 0 | L37: =COUNTIF([1]国語!O44,1)*[1]国語!$O$10 -> 0 | M37: =COUNTIF([1]国語!P44,1)*[1]国語!$P$10 -> 0 | N37: =COUNTIF([1]国語!Q44,1)*[1]国語!$Q$10 -> 0 | O37: =COUNTIF([1]国語!R44,1)*[1]国語!$R$10 -> 0 | P37: =COUNTIF([1]国語!S44,1)*[1]国語!$S$10 -> 4 | Q37: =COUNTIF([1]国語!T44,1)*[1]国語!$T$10 -> 4 | R37: =COUNTIF([1]国語!U44,1)*[1]国語!$U$10 -> 4 | S37: =COUNTIF([1]国語!V44,1)*[1]国語!$V$10 -> 4 | T37: =COUNTIF([1]国語!W44,1)*[1]国語!$W$10 -> 4 | U37: =COUNTIF([1]国語!X44,1)*[1]国語!$X$10 -> 4 | V37: =COUNTIF([1]国語!Y44,1)*[1]国語!$Y$10 -> 4 | W37: =COUNTIF([1]国語!Z44,1)*[1]国語!$Z$10 -> 4 | X37: =COUNTIF([1]国語!AA44,1)*[1]国語!$AA$10 -> 4 | Y37: =COUNTIF([1]国語!AB44,1)*[1]国語!$AB$10 -> 4 | Z37: =COUNTIF([1]国語!AC44,1)*[1]国語!$AC$10 -> 4 | AA37: =COUNTIF([1]国語!AD44,1)*[1]国語!$AD$10 -> 0 | AB37: =COUNTIF([1]国語!AE44,1)*[1]国語!$AE$10 -> 0 | AC37: =COUNTIF([1]国語!AF44,1)*[1]国語!$AF$10 -> 0 | AD37: =COUNTIF([1]国語!AG44,1)*[1]国語!$AG$10 -> 0 | AE37: =COUNTIF([1]国語!AH44,1)*[1]国語!$AH$10 -> 0 | AF37: =COUNTIF([1]国語!AI44,1)*[1]国語!$AI$10 -> 0 | AG37: =COUNTIF([1]国語!AJ44,1)*[1]国語!$AJ$10 -> 0 | AH37: =COUNTIF([1]国語!AK44,1)*[1]国語!$AK$10 -> 0 | AI37: =COUNTIF([1]国語!AL44,1)*[1]国語!$AL$10 -> 0 | AJ37: =COUNTIF([1]国語!AM44,1)*[1]国語!$AM$10 -> 0 | AK37: =COUNTIF([1]国語!AN44,1)*[1]国語!$AN$10 -> 0 | AL37: =COUNTIF([1]国語!AO44,1)*[1]国語!$AO$10 -> 0 | AM37: =COUNTIF([1]国語!AP44,1)*[1]国語!$AP$10 -> 0 | AN37: =COUNTIF([1]国語!AQ44,1)*[1]国語!$AQ$10 -> 0 | AO37: =COUNTIF([1]国語!AR44,1)*[1]国語!$AR$10 -> 0 | AP37: =COUNTIF([1]国語!AS44,1)*[1]国語!$AS$10 -> 0 | AQ37: =COUNTIF([1]国語!AT44,1)*[1]国語!$AT$10 -> 0 | AR37: =COUNTIF([1]国語!AU44,1)*[1]国語!$AU$10 -> 0 | AS37: =COUNTIF([1]国語!AV44,1)*[1]国語!$AV$10 -> 0 | AT37: =COUNTIF([1]国語!AW44,1)*[1]国語!$AW$10 -> 0 | AU37: =COUNTIF([1]国語!AX44,1)*[1]国語!$AX$10 -> 0 | AV37: =COUNTIF([1]国語!AY44,1)*[1]国語!$AY$10 -> 0 | AW37: =COUNTIF([1]国語!AZ44,1)*[1]国語!$AZ$10 -> 0 | AX37: =COUNTIF([1]国語!BA44,1)*[1]国語!$BA$10 -> 0 | AY37: =COUNTIF([1]国語!BB44,1)*[1]国語!$BB$10 -> 0 | AZ37: 44 | BC37: 34問 | BD37: =[1]国語!AL58 -> 0 | BF37: 34問 | BI37: 34
A38: 35 | B38: =COUNTIF([1]国語!E45,1)*[1]国語!$E$10 -> 0 | C38: =COUNTIF([1]国語!F45,1)*[1]国語!$F$10 -> 0 | D38: =COUNTIF([1]国語!G45,1)*[1]国語!$G$10 -> 0 | E38: =COUNTIF([1]国語!H45,1)*[1]国語!$H$10 -> 0 | F38: =COUNTIF([1]国語!I45,1)*[1]国語!$I$10 -> 0 | G38: =COUNTIF([1]国語!J45,1)*[1]国語!$J$10 -> 0 | H38: =COUNTIF([1]国語!K45,1)*[1]国語!$F$10 -> 0 | I38: =COUNTIF([1]国語!L45,1)*[1]国語!$F$10 -> 0 | J38: =COUNTIF([1]国語!M45,1)*[1]国語!$M$10 -> 0 | K38: =COUNTIF([1]国語!N45,1)*[1]国語!$N$10 -> 0 | L38: =COUNTIF([1]国語!O45,1)*[1]国語!$O$10 -> 0 | M38: =COUNTIF([1]国語!P45,1)*[1]国語!$P$10 -> 0 | N38: =COUNTIF([1]国語!Q45,1)*[1]国語!$Q$10 -> 0 | O38: =COUNTIF([1]国語!R45,1)*[1]国語!$R$10 -> 4 | P38: =COUNTIF([1]国語!S45,1)*[1]国語!$S$10 -> 4 | Q38: =COUNTIF([1]国語!T45,1)*[1]国語!$T$10 -> 4 | R38: =COUNTIF([1]国語!U45,1)*[1]国語!$U$10 -> 4 | S38: =COUNTIF([1]国語!V45,1)*[1]国語!$V$10 -> 4 | T38: =COUNTIF([1]国語!W45,1)*[1]国語!$W$10 -> 4 | U38: =COUNTIF([1]国語!X45,1)*[1]国語!$X$10 -> 4 | V38: =COUNTIF([1]国語!Y45,1)*[1]国語!$Y$10 -> 4 | W38: =COUNTIF([1]国語!Z45,1)*[1]国語!$Z$10 -> 4 | X38: =COUNTIF([1]国語!AA45,1)*[1]国語!$AA$10 -> 4 | Y38: =COUNTIF([1]国語!AB45,1)*[1]国語!$AB$10 -> 4 | Z38: =COUNTIF([1]国語!AC45,1)*[1]国語!$AC$10 -> 4 | AA38: =COUNTIF([1]国語!AD45,1)*[1]国語!$AD$10 -> 0 | AB38: =COUNTIF([1]国語!AE45,1)*[1]国語!$AE$10 -> 0 | AC38: =COUNTIF([1]国語!AF45,1)*[1]国語!$AF$10 -> 0 | AD38: =COUNTIF([1]国語!AG45,1)*[1]国語!$AG$10 -> 0 | AE38: =COUNTIF([1]国語!AH45,1)*[1]国語!$AH$10 -> 0 | AF38: =COUNTIF([1]国語!AI45,1)*[1]国語!$AI$10 -> 0 | AG38: =COUNTIF([1]国語!AJ45,1)*[1]国語!$AJ$10 -> 0 | AH38: =COUNTIF([1]国語!AK45,1)*[1]国語!$AK$10 -> 0 | AI38: =COUNTIF([1]国語!AL45,1)*[1]国語!$AL$10 -> 0 | AJ38: =COUNTIF([1]国語!AM45,1)*[1]国語!$AM$10 -> 0 | AK38: =COUNTIF([1]国語!AN45,1)*[1]国語!$AN$10 -> 0 | AL38: =COUNTIF([1]国語!AO45,1)*[1]国語!$AO$10 -> 0 | AM38: =COUNTIF([1]国語!AP45,1)*[1]国語!$AP$10 -> 0 | AN38: =COUNTIF([1]国語!AQ45,1)*[1]国語!$AQ$10 -> 0 | AO38: =COUNTIF([1]国語!AR45,1)*[1]国語!$AR$10 -> 0 | AP38: =COUNTIF([1]国語!AS45,1)*[1]国語!$AS$10 -> 0 | AQ38: =COUNTIF([1]国語!AT45,1)*[1]国語!$AT$10 -> 0 | AR38: =COUNTIF([1]国語!AU45,1)*[1]国語!$AU$10 -> 0 | AS38: =COUNTIF([1]国語!AV45,1)*[1]国語!$AV$10 -> 0 | AT38: =COUNTIF([1]国語!AW45,1)*[1]国語!$AW$10 -> 0 | AU38: =COUNTIF([1]国語!AX45,1)*[1]国語!$AX$10 -> 0 | AV38: =COUNTIF([1]国語!AY45,1)*[1]国語!$AY$10 -> 0 | AW38: =COUNTIF([1]国語!AZ45,1)*[1]国語!$AZ$10 -> 0 | AX38: =COUNTIF([1]国語!BA45,1)*[1]国語!$BA$10 -> 0 | AY38: =COUNTIF([1]国語!BB45,1)*[1]国語!$BB$10 -> 0 | AZ38: 48 | BC38: 35問 | BD38: =[1]国語!AM58 -> 0 | BF38: 35問 | BI38: 35
A39: 36 | B39: =COUNTIF([1]国語!E46,1)*[1]国語!$E$10 -> 0 | C39: =COUNTIF([1]国語!F46,1)*[1]国語!$F$10 -> 0 | D39: =COUNTIF([1]国語!G46,1)*[1]国語!$G$10 -> 0 | E39: =COUNTIF([1]国語!H46,1)*[1]国語!$H$10 -> 0 | F39: =COUNTIF([1]国語!I46,1)*[1]国語!$I$10 -> 0 | G39: =COUNTIF([1]国語!J46,1)*[1]国語!$J$10 -> 0 | H39: =COUNTIF([1]国語!K46,1)*[1]国語!$F$10 -> 0 | I39: =COUNTIF([1]国語!L46,1)*[1]国語!$F$10 -> 0 | J39: =COUNTIF([1]国語!M46,1)*[1]国語!$M$10 -> 0 | K39: =COUNTIF([1]国語!N46,1)*[1]国語!$N$10 -> 0 | L39: =COUNTIF([1]国語!O46,1)*[1]国語!$O$10 -> 0 | M39: =COUNTIF([1]国語!P46,1)*[1]国語!$P$10 -> 0 | N39: =COUNTIF([1]国語!Q46,1)*[1]国語!$Q$10 -> 4 | O39: =COUNTIF([1]国語!R46,1)*[1]国語!$R$10 -> 4 | P39: =COUNTIF([1]国語!S46,1)*[1]国語!$S$10 -> 4 | Q39: =COUNTIF([1]国語!T46,1)*[1]国語!$T$10 -> 4 | R39: =COUNTIF([1]国語!U46,1)*[1]国語!$U$10 -> 4 | S39: =COUNTIF([1]国語!V46,1)*[1]国語!$V$10 -> 4 | T39: =COUNTIF([1]国語!W46,1)*[1]国語!$W$10 -> 4 | U39: =COUNTIF([1]国語!X46,1)*[1]国語!$X$10 -> 4 | V39: =COUNTIF([1]国語!Y46,1)*[1]国語!$Y$10 -> 4 | W39: =COUNTIF([1]国語!Z46,1)*[1]国語!$Z$10 -> 4 | X39: =COUNTIF([1]国語!AA46,1)*[1]国語!$AA$10 -> 4 | Y39: =COUNTIF([1]国語!AB46,1)*[1]国語!$AB$10 -> 4 | Z39: =COUNTIF([1]国語!AC46,1)*[1]国語!$AC$10 -> 4 | AA39: =COUNTIF([1]国語!AD46,1)*[1]国語!$AD$10 -> 0 | AB39: =COUNTIF([1]国語!AE46,1)*[1]国語!$AE$10 -> 0 | AC39: =COUNTIF([1]国語!AF46,1)*[1]国語!$AF$10 -> 0 | AD39: =COUNTIF([1]国語!AG46,1)*[1]国語!$AG$10 -> 0 | AE39: =COUNTIF([1]国語!AH46,1)*[1]国語!$AH$10 -> 0 | AF39: =COUNTIF([1]国語!AI46,1)*[1]国語!$AI$10 -> 0 | AG39: =COUNTIF([1]国語!AJ46,1)*[1]国語!$AJ$10 -> 0 | AH39: =COUNTIF([1]国語!AK46,1)*[1]国語!$AK$10 -> 0 | AI39: =COUNTIF([1]国語!AL46,1)*[1]国語!$AL$10 -> 0 | AJ39: =COUNTIF([1]国語!AM46,1)*[1]国語!$AM$10 -> 0 | AK39: =COUNTIF([1]国語!AN46,1)*[1]国語!$AN$10 -> 0 | AL39: =COUNTIF([1]国語!AO46,1)*[1]国語!$AO$10 -> 0 | AM39: =COUNTIF([1]国語!AP46,1)*[1]国語!$AP$10 -> 0 | AN39: =COUNTIF([1]国語!AQ46,1)*[1]国語!$AQ$10 -> 0 | AO39: =COUNTIF([1]国語!AR46,1)*[1]国語!$AR$10 -> 0 | AP39: =COUNTIF([1]国語!AS46,1)*[1]国語!$AS$10 -> 0 | AQ39: =COUNTIF([1]国語!AT46,1)*[1]国語!$AT$10 -> 0 | AR39: =COUNTIF([1]国語!AU46,1)*[1]国語!$AU$10 -> 0 | AS39: =COUNTIF([1]国語!AV46,1)*[1]国語!$AV$10 -> 0 | AT39: =COUNTIF([1]国語!AW46,1)*[1]国語!$AW$10 -> 0 | AU39: =COUNTIF([1]国語!AX46,1)*[1]国語!$AX$10 -> 0 | AV39: =COUNTIF([1]国語!AY46,1)*[1]国語!$AY$10 -> 0 | AW39: =COUNTIF([1]国語!AZ46,1)*[1]国語!$AZ$10 -> 0 | AX39: =COUNTIF([1]国語!BA46,1)*[1]国語!$BA$10 -> 0 | AY39: =COUNTIF([1]国語!BB46,1)*[1]国語!$BB$10 -> 0 | AZ39: 52 | BC39: 36問 | BD39: =[1]国語!AN58 -> 0 | BF39: 36問 | BI39: 36
A40: 37 | B40: =COUNTIF([1]国語!E47,1)*[1]国語!$E$10 -> 0 | C40: =COUNTIF([1]国語!F47,1)*[1]国語!$F$10 -> 0 | D40: =COUNTIF([1]国語!G47,1)*[1]国語!$G$10 -> 0 | E40: =COUNTIF([1]国語!H47,1)*[1]国語!$H$10 -> 0 | F40: =COUNTIF([1]国語!I47,1)*[1]国語!$I$10 -> 0 | G40: =COUNTIF([1]国語!J47,1)*[1]国語!$J$10 -> 0 | H40: =COUNTIF([1]国語!K47,1)*[1]国語!$F$10 -> 0 | I40: =COUNTIF([1]国語!L47,1)*[1]国語!$F$10 -> 0 | J40: =COUNTIF([1]国語!M47,1)*[1]国語!$M$10 -> 0 | K40: =COUNTIF([1]国語!N47,1)*[1]国語!$N$10 -> 0 | L40: =COUNTIF([1]国語!O47,1)*[1]国語!$O$10 -> 0 | M40: =COUNTIF([1]国語!P47,1)*[1]国語!$P$10 -> 4 | N40: =COUNTIF([1]国語!Q47,1)*[1]国語!$Q$10 -> 4 | O40: =COUNTIF([1]国語!R47,1)*[1]国語!$R$10 -> 4 | P40: =COUNTIF([1]国語!S47,1)*[1]国語!$S$10 -> 4 | Q40: =COUNTIF([1]国語!T47,1)*[1]国語!$T$10 -> 4 | R40: =COUNTIF([1]国語!U47,1)*[1]国語!$U$10 -> 4 | S40: =COUNTIF([1]国語!V47,1)*[1]国語!$V$10 -> 4 | T40: =COUNTIF([1]国語!W47,1)*[1]国語!$W$10 -> 4 | U40: =COUNTIF([1]国語!X47,1)*[1]国語!$X$10 -> 4 | V40: =COUNTIF([1]国語!Y47,1)*[1]国語!$Y$10 -> 4 | W40: =COUNTIF([1]国語!Z47,1)*[1]国語!$Z$10 -> 4 | X40: =COUNTIF([1]国語!AA47,1)*[1]国語!$AA$10 -> 4 | Y40: =COUNTIF([1]国語!AB47,1)*[1]国語!$AB$10 -> 4 | Z40: =COUNTIF([1]国語!AC47,1)*[1]国語!$AC$10 -> 4 | AA40: =COUNTIF([1]国語!AD47,1)*[1]国語!$AD$10 -> 0 | AB40: =COUNTIF([1]国語!AE47,1)*[1]国語!$AE$10 -> 0 | AC40: =COUNTIF([1]国語!AF47,1)*[1]国語!$AF$10 -> 0 | AD40: =COUNTIF([1]国語!AG47,1)*[1]国語!$AG$10 -> 0 | AE40: =COUNTIF([1]国語!AH47,1)*[1]国語!$AH$10 -> 0 | AF40: =COUNTIF([1]国語!AI47,1)*[1]国語!$AI$10 -> 0 | AG40: =COUNTIF([1]国語!AJ47,1)*[1]国語!$AJ$10 -> 0 | AH40: =COUNTIF([1]国語!AK47,1)*[1]国語!$AK$10 -> 0 | AI40: =COUNTIF([1]国語!AL47,1)*[1]国語!$AL$10 -> 0 | AJ40: =COUNTIF([1]国語!AM47,1)*[1]国語!$AM$10 -> 0 | AK40: =COUNTIF([1]国語!AN47,1)*[1]国語!$AN$10 -> 0 | AL40: =COUNTIF([1]国語!AO47,1)*[1]国語!$AO$10 -> 0 | AM40: =COUNTIF([1]国語!AP47,1)*[1]国語!$AP$10 -> 0 | AN40: =COUNTIF([1]国語!AQ47,1)*[1]国語!$AQ$10 -> 0 | AO40: =COUNTIF([1]国語!AR47,1)*[1]国語!$AR$10 -> 0 | AP40: =COUNTIF([1]国語!AS47,1)*[1]国語!$AS$10 -> 0 | AQ40: =COUNTIF([1]国語!AT47,1)*[1]国語!$AT$10 -> 0 | AR40: =COUNTIF([1]国語!AU47,1)*[1]国語!$AU$10 -> 0 | AS40: =COUNTIF([1]国語!AV47,1)*[1]国語!$AV$10 -> 0 | AT40: =COUNTIF([1]国語!AW47,1)*[1]国語!$AW$10 -> 0 | AU40: =COUNTIF([1]国語!AX47,1)*[1]国語!$AX$10 -> 0 | AV40: =COUNTIF([1]国語!AY47,1)*[1]国語!$AY$10 -> 0 | AW40: =COUNTIF([1]国語!AZ47,1)*[1]国語!$AZ$10 -> 0 | AX40: =COUNTIF([1]国語!BA47,1)*[1]国語!$BA$10 -> 0 | AY40: =COUNTIF([1]国語!BB47,1)*[1]国語!$BB$10 -> 0 | AZ40: 56 | BC40: 37問 | BD40: =[1]国語!AO58 -> 0 | BF40: 37問 | BI40: 37
A41: 38 | B41: =COUNTIF([1]国語!E48,1)*[1]国語!$E$10 -> 0 | C41: =COUNTIF([1]国語!F48,1)*[1]国語!$F$10 -> 0 | D41: =COUNTIF([1]国語!G48,1)*[1]国語!$G$10 -> 0 | E41: =COUNTIF([1]国語!H48,1)*[1]国語!$H$10 -> 0 | F41: =COUNTIF([1]国語!I48,1)*[1]国語!$I$10 -> 0 | G41: =COUNTIF([1]国語!J48,1)*[1]国語!$J$10 -> 0 | H41: =COUNTIF([1]国語!K48,1)*[1]国語!$F$10 -> 0 | I41: =COUNTIF([1]国語!L48,1)*[1]国語!$F$10 -> 0 | J41: =COUNTIF([1]国語!M48,1)*[1]国語!$M$10 -> 0 | K41: =COUNTIF([1]国語!N48,1)*[1]国語!$N$10 -> 0 | L41: =COUNTIF([1]国語!O48,1)*[1]国語!$O$10 -> 4 | M41: =COUNTIF([1]国語!P48,1)*[1]国語!$P$10 -> 4 | N41: =COUNTIF([1]国語!Q48,1)*[1]国語!$Q$10 -> 4 | O41: =COUNTIF([1]国語!R48,1)*[1]国語!$R$10 -> 4 | P41: =COUNTIF([1]国語!S48,1)*[1]国語!$S$10 -> 4 | Q41: =COUNTIF([1]国語!T48,1)*[1]国語!$T$10 -> 4 | R41: =COUNTIF([1]国語!U48,1)*[1]国語!$U$10 -> 4 | S41: =COUNTIF([1]国語!V48,1)*[1]国語!$V$10 -> 4 | T41: =COUNTIF([1]国語!W48,1)*[1]国語!$W$10 -> 4 | U41: =COUNTIF([1]国語!X48,1)*[1]国語!$X$10 -> 4 | V41: =COUNTIF([1]国語!Y48,1)*[1]国語!$Y$10 -> 4 | W41: =COUNTIF([1]国語!Z48,1)*[1]国語!$Z$10 -> 4 | X41: =COUNTIF([1]国語!AA48,1)*[1]国語!$AA$10 -> 4 | Y41: =COUNTIF([1]国語!AB48,1)*[1]国語!$AB$10 -> 4 | Z41: =COUNTIF([1]国語!AC48,1)*[1]国語!$AC$10 -> 4 | AA41: =COUNTIF([1]国語!AD48,1)*[1]国語!$AD$10 -> 0 | AB41: =COUNTIF([1]国語!AE48,1)*[1]国語!$AE$10 -> 0 | AC41: =COUNTIF([1]国語!AF48,1)*[1]国語!$AF$10 -> 0 | AD41: =COUNTIF([1]国語!AG48,1)*[1]国語!$AG$10 -> 0 | AE41: =COUNTIF([1]国語!AH48,1)*[1]国語!$AH$10 -> 0 | AF41: =COUNTIF([1]国語!AI48,1)*[1]国語!$AI$10 -> 0 | AG41: =COUNTIF([1]国語!AJ48,1)*[1]国語!$AJ$10 -> 0 | AH41: =COUNTIF([1]国語!AK48,1)*[1]国語!$AK$10 -> 0 | AI41: =COUNTIF([1]国語!AL48,1)*[1]国語!$AL$10 -> 0 | AJ41: =COUNTIF([1]国語!AM48,1)*[1]国語!$AM$10 -> 0 | AK41: =COUNTIF([1]国語!AN48,1)*[1]国語!$AN$10 -> 0 | AL41: =COUNTIF([1]国語!AO48,1)*[1]国語!$AO$10 -> 0 | AM41: =COUNTIF([1]国語!AP48,1)*[1]国語!$AP$10 -> 0 | AN41: =COUNTIF([1]国語!AQ48,1)*[1]国語!$AQ$10 -> 0 | AO41: =COUNTIF([1]国語!AR48,1)*[1]国語!$AR$10 -> 0 | AP41: =COUNTIF([1]国語!AS48,1)*[1]国語!$AS$10 -> 0 | AQ41: =COUNTIF([1]国語!AT48,1)*[1]国語!$AT$10 -> 0 | AR41: =COUNTIF([1]国語!AU48,1)*[1]国語!$AU$10 -> 0 | AS41: =COUNTIF([1]国語!AV48,1)*[1]国語!$AV$10 -> 0 | AT41: =COUNTIF([1]国語!AW48,1)*[1]国語!$AW$10 -> 0 | AU41: =COUNTIF([1]国語!AX48,1)*[1]国語!$AX$10 -> 0 | AV41: =COUNTIF([1]国語!AY48,1)*[1]国語!$AY$10 -> 0 | AW41: =COUNTIF([1]国語!AZ48,1)*[1]国語!$AZ$10 -> 0 | AX41: =COUNTIF([1]国語!BA48,1)*[1]国語!$BA$10 -> 0 | AY41: =COUNTIF([1]国語!BB48,1)*[1]国語!$BB$10 -> 0 | AZ41: 60 | BC41: 38問 | BD41: =[1]国語!AP58 -> 0 | BF41: 38問 | BI41: 38
A42: 39 | B42: =COUNTIF([1]国語!E49,1)*[1]国語!$E$10 -> 0 | C42: =COUNTIF([1]国語!F49,1)*[1]国語!$F$10 -> 0 | D42: =COUNTIF([1]国語!G49,1)*[1]国語!$G$10 -> 0 | E42: =COUNTIF([1]国語!H49,1)*[1]国語!$H$10 -> 0 | F42: =COUNTIF([1]国語!I49,1)*[1]国語!$I$10 -> 0 | G42: =COUNTIF([1]国語!J49,1)*[1]国語!$J$10 -> 0 | H42: =COUNTIF([1]国語!K49,1)*[1]国語!$F$10 -> 0 | I42: =COUNTIF([1]国語!L49,1)*[1]国語!$F$10 -> 0 | J42: =COUNTIF([1]国語!M49,1)*[1]国語!$M$10 -> 0 | K42: =COUNTIF([1]国語!N49,1)*[1]国語!$N$10 -> 4 | L42: =COUNTIF([1]国語!O49,1)*[1]国語!$O$10 -> 4 | M42: =COUNTIF([1]国語!P49,1)*[1]国語!$P$10 -> 4 | N42: =COUNTIF([1]国語!Q49,1)*[1]国語!$Q$10 -> 4 | O42: =COUNTIF([1]国語!R49,1)*[1]国語!$R$10 -> 4 | P42: =COUNTIF([1]国語!S49,1)*[1]国語!$S$10 -> 4 | Q42: =COUNTIF([1]国語!T49,1)*[1]国語!$T$10 -> 4 | R42: =COUNTIF([1]国語!U49,1)*[1]国語!$U$10 -> 4 | S42: =COUNTIF([1]国語!V49,1)*[1]国語!$V$10 -> 4 | T42: =COUNTIF([1]国語!W49,1)*[1]国語!$W$10 -> 4 | U42: =COUNTIF([1]国語!X49,1)*[1]国語!$X$10 -> 4 | V42: =COUNTIF([1]国語!Y49,1)*[1]国語!$Y$10 -> 4 | W42: =COUNTIF([1]国語!Z49,1)*[1]国語!$Z$10 -> 4 | X42: =COUNTIF([1]国語!AA49,1)*[1]国語!$AA$10 -> 4 | Y42: =COUNTIF([1]国語!AB49,1)*[1]国語!$AB$10 -> 4 | Z42: =COUNTIF([1]国語!AC49,1)*[1]国語!$AC$10 -> 4 | AA42: =COUNTIF([1]国語!AD49,1)*[1]国語!$AD$10 -> 0 | AB42: =COUNTIF([1]国語!AE49,1)*[1]国語!$AE$10 -> 0 | AC42: =COUNTIF([1]国語!AF49,1)*[1]国語!$AF$10 -> 0 | AD42: =COUNTIF([1]国語!AG49,1)*[1]国語!$AG$10 -> 0 | AE42: =COUNTIF([1]国語!AH49,1)*[1]国語!$AH$10 -> 0 | AF42: =COUNTIF([1]国語!AI49,1)*[1]国語!$AI$10 -> 0 | AG42: =COUNTIF([1]国語!AJ49,1)*[1]国語!$AJ$10 -> 0 | AH42: =COUNTIF([1]国語!AK49,1)*[1]国語!$AK$10 -> 0 | AI42: =COUNTIF([1]国語!AL49,1)*[1]国語!$AL$10 -> 0 | AJ42: =COUNTIF([1]国語!AM49,1)*[1]国語!$AM$10 -> 0 | AK42: =COUNTIF([1]国語!AN49,1)*[1]国語!$AN$10 -> 0 | AL42: =COUNTIF([1]国語!AO49,1)*[1]国語!$AO$10 -> 0 | AM42: =COUNTIF([1]国語!AP49,1)*[1]国語!$AP$10 -> 0 | AN42: =COUNTIF([1]国語!AQ49,1)*[1]国語!$AQ$10 -> 0 | AO42: =COUNTIF([1]国語!AR49,1)*[1]国語!$AR$10 -> 0 | AP42: =COUNTIF([1]国語!AS49,1)*[1]国語!$AS$10 -> 0 | AQ42: =COUNTIF([1]国語!AT49,1)*[1]国語!$AT$10 -> 0 | AR42: =COUNTIF([1]国語!AU49,1)*[1]国語!$AU$10 -> 0 | AS42: =COUNTIF([1]国語!AV49,1)*[1]国語!$AV$10 -> 0 | AT42: =COUNTIF([1]国語!AW49,1)*[1]国語!$AW$10 -> 0 | AU42: =COUNTIF([1]国語!AX49,1)*[1]国語!$AX$10 -> 0 | AV42: =COUNTIF([1]国語!AY49,1)*[1]国語!$AY$10 -> 0 | AW42: =COUNTIF([1]国語!AZ49,1)*[1]国語!$AZ$10 -> 0 | AX42: =COUNTIF([1]国語!BA49,1)*[1]国語!$BA$10 -> 0 | AY42: =COUNTIF([1]国語!BB49,1)*[1]国語!$BB$10 -> 0 | AZ42: 64 | BC42: 39問 | BD42: =[1]国語!AQ58 -> 0 | BF42: 39問 | BI42: 39
A43: 40 | B43: =COUNTIF([1]国語!E50,1)*[1]国語!$E$10 -> 0 | C43: =COUNTIF([1]国語!F50,1)*[1]国語!$F$10 -> 0 | D43: =COUNTIF([1]国語!G50,1)*[1]国語!$G$10 -> 0 | E43: =COUNTIF([1]国語!H50,1)*[1]国語!$H$10 -> 0 | F43: =COUNTIF([1]国語!I50,1)*[1]国語!$I$10 -> 0 | G43: =COUNTIF([1]国語!J50,1)*[1]国語!$J$10 -> 0 | H43: =COUNTIF([1]国語!K50,1)*[1]国語!$F$10 -> 0 | I43: =COUNTIF([1]国語!L50,1)*[1]国語!$F$10 -> 0 | J43: =COUNTIF([1]国語!M50,1)*[1]国語!$M$10 -> 4 | K43: =COUNTIF([1]国語!N50,1)*[1]国語!$N$10 -> 4 | L43: =COUNTIF([1]国語!O50,1)*[1]国語!$O$10 -> 4 | M43: =COUNTIF([1]国語!P50,1)*[1]国語!$P$10 -> 4 | N43: =COUNTIF([1]国語!Q50,1)*[1]国語!$Q$10 -> 4 | O43: =COUNTIF([1]国語!R50,1)*[1]国語!$R$10 -> 4 | P43: =COUNTIF([1]国語!S50,1)*[1]国語!$S$10 -> 4 | Q43: =COUNTIF([1]国語!T50,1)*[1]国語!$T$10 -> 4 | R43: =COUNTIF([1]国語!U50,1)*[1]国語!$U$10 -> 4 | S43: =COUNTIF([1]国語!V50,1)*[1]国語!$V$10 -> 4 | T43: =COUNTIF([1]国語!W50,1)*[1]国語!$W$10 -> 4 | U43: =COUNTIF([1]国語!X50,1)*[1]国語!$X$10 -> 4 | V43: =COUNTIF([1]国語!Y50,1)*[1]国語!$Y$10 -> 4 | W43: =COUNTIF([1]国語!Z50,1)*[1]国語!$Z$10 -> 4 | X43: =COUNTIF([1]国語!AA50,1)*[1]国語!$AA$10 -> 4 | Y43: =COUNTIF([1]国語!AB50,1)*[1]国語!$AB$10 -> 4 | Z43: =COUNTIF([1]国語!AC50,1)*[1]国語!$AC$10 -> 4 | AA43: =COUNTIF([1]国語!AD50,1)*[1]国語!$AD$10 -> 0 | AB43: =COUNTIF([1]国語!AE50,1)*[1]国語!$AE$10 -> 0 | AC43: =COUNTIF([1]国語!AF50,1)*[1]国語!$AF$10 -> 0 | AD43: =COUNTIF([1]国語!AG50,1)*[1]国語!$AG$10 -> 0 | AE43: =COUNTIF([1]国語!AH50,1)*[1]国語!$AH$10 -> 0 | AF43: =COUNTIF([1]国語!AI50,1)*[1]国語!$AI$10 -> 0 | AG43: =COUNTIF([1]国語!AJ50,1)*[1]国語!$AJ$10 -> 0 | AH43: =COUNTIF([1]国語!AK50,1)*[1]国語!$AK$10 -> 0 | AI43: =COUNTIF([1]国語!AL50,1)*[1]国語!$AL$10 -> 0 | AJ43: =COUNTIF([1]国語!AM50,1)*[1]国語!$AM$10 -> 0 | AK43: =COUNTIF([1]国語!AN50,1)*[1]国語!$AN$10 -> 0 | AL43: =COUNTIF([1]国語!AO50,1)*[1]国語!$AO$10 -> 0 | AM43: =COUNTIF([1]国語!AP50,1)*[1]国語!$AP$10 -> 0 | AN43: =COUNTIF([1]国語!AQ50,1)*[1]国語!$AQ$10 -> 0 | AO43: =COUNTIF([1]国語!AR50,1)*[1]国語!$AR$10 -> 0 | AP43: =COUNTIF([1]国語!AS50,1)*[1]国語!$AS$10 -> 0 | AQ43: =COUNTIF([1]国語!AT50,1)*[1]国語!$AT$10 -> 0 | AR43: =COUNTIF([1]国語!AU50,1)*[1]国語!$AU$10 -> 0 | AS43: =COUNTIF([1]国語!AV50,1)*[1]国語!$AV$10 -> 0 | AT43: =COUNTIF([1]国語!AW50,1)*[1]国語!$AW$10 -> 0 | AU43: =COUNTIF([1]国語!AX50,1)*[1]国語!$AX$10 -> 0 | AV43: =COUNTIF([1]国語!AY50,1)*[1]国語!$AY$10 -> 0 | AW43: =COUNTIF([1]国語!AZ50,1)*[1]国語!$AZ$10 -> 0 | AX43: =COUNTIF([1]国語!BA50,1)*[1]国語!$BA$10 -> 0 | AY43: =COUNTIF([1]国語!BB50,1)*[1]国語!$BB$10 -> 0 | AZ43: 68 | BC43: 40問 | BD43: =[1]国語!AR58 -> 0 | BF43: 40問 | BI43: 40
A44: 41 | B44: =COUNTIF([1]国語!E51,1)*[1]国語!$E$10 -> 0 | C44: =COUNTIF([1]国語!F51,1)*[1]国語!$F$10 -> 0 | D44: =COUNTIF([1]国語!G51,1)*[1]国語!$G$10 -> 0 | E44: =COUNTIF([1]国語!H51,1)*[1]国語!$H$10 -> 0 | F44: =COUNTIF([1]国語!I51,1)*[1]国語!$I$10 -> 0 | G44: =COUNTIF([1]国語!J51,1)*[1]国語!$J$10 -> 0 | H44: =COUNTIF([1]国語!K51,1)*[1]国語!$F$10 -> 0 | I44: =COUNTIF([1]国語!L51,1)*[1]国語!$F$10 -> 0 | J44: =COUNTIF([1]国語!M51,1)*[1]国語!$M$10 -> 4 | K44: =COUNTIF([1]国語!N51,1)*[1]国語!$N$10 -> 4 | L44: =COUNTIF([1]国語!O51,1)*[1]国語!$O$10 -> 4 | M44: =COUNTIF([1]国語!P51,1)*[1]国語!$P$10 -> 4 | N44: =COUNTIF([1]国語!Q51,1)*[1]国語!$Q$10 -> 4 | O44: =COUNTIF([1]国語!R51,1)*[1]国語!$R$10 -> 4 | P44: =COUNTIF([1]国語!S51,1)*[1]国語!$S$10 -> 4 | Q44: =COUNTIF([1]国語!T51,1)*[1]国語!$T$10 -> 4 | R44: =COUNTIF([1]国語!U51,1)*[1]国語!$U$10 -> 4 | S44: =COUNTIF([1]国語!V51,1)*[1]国語!$V$10 -> 4 | T44: =COUNTIF([1]国語!W51,1)*[1]国語!$W$10 -> 4 | U44: =COUNTIF([1]国語!X51,1)*[1]国語!$X$10 -> 4 | V44: =COUNTIF([1]国語!Y51,1)*[1]国語!$Y$10 -> 4 | W44: =COUNTIF([1]国語!Z51,1)*[1]国語!$Z$10 -> 4 | X44: =COUNTIF([1]国語!AA51,1)*[1]国語!$AA$10 -> 4 | Y44: =COUNTIF([1]国語!AB51,1)*[1]国語!$AB$10 -> 4 | Z44: =COUNTIF([1]国語!AC51,1)*[1]国語!$AC$10 -> 4 | AA44: =COUNTIF([1]国語!AD51,1)*[1]国語!$AD$10 -> 0 | AB44: =COUNTIF([1]国語!AE51,1)*[1]国語!$AE$10 -> 0 | AC44: =COUNTIF([1]国語!AF51,1)*[1]国語!$AF$10 -> 0 | AD44: =COUNTIF([1]国語!AG51,1)*[1]国語!$AG$10 -> 0 | AE44: =COUNTIF([1]国語!AH51,1)*[1]国語!$AH$10 -> 0 | AF44: =COUNTIF([1]国語!AI51,1)*[1]国語!$AI$10 -> 0 | AG44: =COUNTIF([1]国語!AJ51,1)*[1]国語!$AJ$10 -> 0 | AH44: =COUNTIF([1]国語!AK51,1)*[1]国語!$AK$10 -> 0 | AI44: =COUNTIF([1]国語!AL51,1)*[1]国語!$AL$10 -> 0 | AJ44: =COUNTIF([1]国語!AM51,1)*[1]国語!$AM$10 -> 0 | AK44: =COUNTIF([1]国語!AN51,1)*[1]国語!$AN$10 -> 0 | AL44: =COUNTIF([1]国語!AO51,1)*[1]国語!$AO$10 -> 0 | AM44: =COUNTIF([1]国語!AP51,1)*[1]国語!$AP$10 -> 0 | AN44: =COUNTIF([1]国語!AQ51,1)*[1]国語!$AQ$10 -> 0 | AO44: =COUNTIF([1]国語!AR51,1)*[1]国語!$AR$10 -> 0 | AP44: =COUNTIF([1]国語!AS51,1)*[1]国語!$AS$10 -> 0 | AQ44: =COUNTIF([1]国語!AT51,1)*[1]国語!$AT$10 -> 0 | AR44: =COUNTIF([1]国語!AU51,1)*[1]国語!$AU$10 -> 0 | AS44: =COUNTIF([1]国語!AV51,1)*[1]国語!$AV$10 -> 0 | AT44: =COUNTIF([1]国語!AW51,1)*[1]国語!$AW$10 -> 0 | AU44: =COUNTIF([1]国語!AX51,1)*[1]国語!$AX$10 -> 0 | AV44: =COUNTIF([1]国語!AY51,1)*[1]国語!$AY$10 -> 0 | AW44: =COUNTIF([1]国語!AZ51,1)*[1]国語!$AZ$10 -> 0 | AX44: =COUNTIF([1]国語!BA51,1)*[1]国語!$BA$10 -> 0 | AY44: =COUNTIF([1]国語!BB51,1)*[1]国語!$BB$10 -> 0 | AZ44: 68 | BC44: 41問 | BD44: =[1]国語!AS58 -> 0 | BF44: 41問 | BI44: 41
A45: 42 | B45: =COUNTIF([1]国語!E52,1)*[1]国語!$E$10 -> 4 | C45: =COUNTIF([1]国語!F52,1)*[1]国語!$F$10 -> 0 | D45: =COUNTIF([1]国語!G52,1)*[1]国語!$G$10 -> 0 | E45: =COUNTIF([1]国語!H52,1)*[1]国語!$H$10 -> 0 | F45: =COUNTIF([1]国語!I52,1)*[1]国語!$I$10 -> 0 | G45: =COUNTIF([1]国語!J52,1)*[1]国語!$J$10 -> 0 | H45: =COUNTIF([1]国語!K52,1)*[1]国語!$F$10 -> 4 | I45: =COUNTIF([1]国語!L52,1)*[1]国語!$F$10 -> 4 | J45: =COUNTIF([1]国語!M52,1)*[1]国語!$M$10 -> 4 | K45: =COUNTIF([1]国語!N52,1)*[1]国語!$N$10 -> 4 | L45: =COUNTIF([1]国語!O52,1)*[1]国語!$O$10 -> 4 | M45: =COUNTIF([1]国語!P52,1)*[1]国語!$P$10 -> 4 | N45: =COUNTIF([1]国語!Q52,1)*[1]国語!$Q$10 -> 4 | O45: =COUNTIF([1]国語!R52,1)*[1]国語!$R$10 -> 4 | P45: =COUNTIF([1]国語!S52,1)*[1]国語!$S$10 -> 4 | Q45: =COUNTIF([1]国語!T52,1)*[1]国語!$T$10 -> 4 | R45: =COUNTIF([1]国語!U52,1)*[1]国語!$U$10 -> 4 | S45: =COUNTIF([1]国語!V52,1)*[1]国語!$V$10 -> 4 | T45: =COUNTIF([1]国語!W52,1)*[1]国語!$W$10 -> 4 | U45: =COUNTIF([1]国語!X52,1)*[1]国語!$X$10 -> 4 | V45: =COUNTIF([1]国語!Y52,1)*[1]国語!$Y$10 -> 4 | W45: =COUNTIF([1]国語!Z52,1)*[1]国語!$Z$10 -> 4 | X45: =COUNTIF([1]国語!AA52,1)*[1]国語!$AA$10 -> 4 | Y45: =COUNTIF([1]国語!AB52,1)*[1]国語!$AB$10 -> 4 | Z45: =COUNTIF([1]国語!AC52,1)*[1]国語!$AC$10 -> 4 | AA45: =COUNTIF([1]国語!AD52,1)*[1]国語!$AD$10 -> 0 | AB45: =COUNTIF([1]国語!AE52,1)*[1]国語!$AE$10 -> 0 | AC45: =COUNTIF([1]国語!AF52,1)*[1]国語!$AF$10 -> 0 | AD45: =COUNTIF([1]国語!AG52,1)*[1]国語!$AG$10 -> 0 | AE45: =COUNTIF([1]国語!AH52,1)*[1]国語!$AH$10 -> 0 | AF45: =COUNTIF([1]国語!AI52,1)*[1]国語!$AI$10 -> 0 | AG45: =COUNTIF([1]国語!AJ52,1)*[1]国語!$AJ$10 -> 0 | AH45: =COUNTIF([1]国語!AK52,1)*[1]国語!$AK$10 -> 0 | AI45: =COUNTIF([1]国語!AL52,1)*[1]国語!$AL$10 -> 0 | AJ45: =COUNTIF([1]国語!AM52,1)*[1]国語!$AM$10 -> 0 | AK45: =COUNTIF([1]国語!AN52,1)*[1]国語!$AN$10 -> 0 | AL45: =COUNTIF([1]国語!AO52,1)*[1]国語!$AO$10 -> 0 | AM45: =COUNTIF([1]国語!AP52,1)*[1]国語!$AP$10 -> 0 | AN45: =COUNTIF([1]国語!AQ52,1)*[1]国語!$AQ$10 -> 0 | AO45: =COUNTIF([1]国語!AR52,1)*[1]国語!$AR$10 -> 0 | AP45: =COUNTIF([1]国語!AS52,1)*[1]国語!$AS$10 -> 0 | AQ45: =COUNTIF([1]国語!AT52,1)*[1]国語!$AT$10 -> 0 | AR45: =COUNTIF([1]国語!AU52,1)*[1]国語!$AU$10 -> 0 | AS45: =COUNTIF([1]国語!AV52,1)*[1]国語!$AV$10 -> 0 | AT45: =COUNTIF([1]国語!AW52,1)*[1]国語!$AW$10 -> 0 | AU45: =COUNTIF([1]国語!AX52,1)*[1]国語!$AX$10 -> 0 | AV45: =COUNTIF([1]国語!AY52,1)*[1]国語!$AY$10 -> 0 | AW45: =COUNTIF([1]国語!AZ52,1)*[1]国語!$AZ$10 -> 0 | AX45: =COUNTIF([1]国語!BA52,1)*[1]国語!$BA$10 -> 0 | AY45: =COUNTIF([1]国語!BB52,1)*[1]国語!$BB$10 -> 0 | AZ45: 80 | BC45: 42問 | BD45: =[1]国語!AT58 -> 0 | BF45: 42問 | BI45: 42
A46: 43 | B46: =COUNTIF([1]国語!E53,1)*[1]国語!$E$10 -> 0 | C46: =COUNTIF([1]国語!F53,1)*[1]国語!$F$10 -> 4 | D46: =COUNTIF([1]国語!G53,1)*[1]国語!$G$10 -> 0 | E46: =COUNTIF([1]国語!H53,1)*[1]国語!$H$10 -> 0 | F46: =COUNTIF([1]国語!I53,1)*[1]国語!$I$10 -> 0 | G46: =COUNTIF([1]国語!J53,1)*[1]国語!$J$10 -> 4 | H46: =COUNTIF([1]国語!K53,1)*[1]国語!$F$10 -> 4 | I46: =COUNTIF([1]国語!L53,1)*[1]国語!$F$10 -> 4 | J46: =COUNTIF([1]国語!M53,1)*[1]国語!$M$10 -> 4 | K46: =COUNTIF([1]国語!N53,1)*[1]国語!$N$10 -> 4 | L46: =COUNTIF([1]国語!O53,1)*[1]国語!$O$10 -> 4 | M46: =COUNTIF([1]国語!P53,1)*[1]国語!$P$10 -> 4 | N46: =COUNTIF([1]国語!Q53,1)*[1]国語!$Q$10 -> 4 | O46: =COUNTIF([1]国語!R53,1)*[1]国語!$R$10 -> 4 | P46: =COUNTIF([1]国語!S53,1)*[1]国語!$S$10 -> 4 | Q46: =COUNTIF([1]国語!T53,1)*[1]国語!$T$10 -> 4 | R46: =COUNTIF([1]国語!U53,1)*[1]国語!$U$10 -> 4 | S46: =COUNTIF([1]国語!V53,1)*[1]国語!$V$10 -> 4 | T46: =COUNTIF([1]国語!W53,1)*[1]国語!$W$10 -> 4 | U46: =COUNTIF([1]国語!X53,1)*[1]国語!$X$10 -> 4 | V46: =COUNTIF([1]国語!Y53,1)*[1]国語!$Y$10 -> 4 | W46: =COUNTIF([1]国語!Z53,1)*[1]国語!$Z$10 -> 4 | X46: =COUNTIF([1]国語!AA53,1)*[1]国語!$AA$10 -> 4 | Y46: =COUNTIF([1]国語!AB53,1)*[1]国語!$AB$10 -> 4 | Z46: =COUNTIF([1]国語!AC53,1)*[1]国語!$AC$10 -> 4 | AA46: =COUNTIF([1]国語!AD53,1)*[1]国語!$AD$10 -> 0 | AB46: =COUNTIF([1]国語!AE53,1)*[1]国語!$AE$10 -> 0 | AC46: =COUNTIF([1]国語!AF53,1)*[1]国語!$AF$10 -> 0 | AD46: =COUNTIF([1]国語!AG53,1)*[1]国語!$AG$10 -> 0 | AE46: =COUNTIF([1]国語!AH53,1)*[1]国語!$AH$10 -> 0 | AF46: =COUNTIF([1]国語!AI53,1)*[1]国語!$AI$10 -> 0 | AG46: =COUNTIF([1]国語!AJ53,1)*[1]国語!$AJ$10 -> 0 | AH46: =COUNTIF([1]国語!AK53,1)*[1]国語!$AK$10 -> 0 | AI46: =COUNTIF([1]国語!AL53,1)*[1]国語!$AL$10 -> 0 | AJ46: =COUNTIF([1]国語!AM53,1)*[1]国語!$AM$10 -> 0 | AK46: =COUNTIF([1]国語!AN53,1)*[1]国語!$AN$10 -> 0 | AL46: =COUNTIF([1]国語!AO53,1)*[1]国語!$AO$10 -> 0 | AM46: =COUNTIF([1]国語!AP53,1)*[1]国語!$AP$10 -> 0 | AN46: =COUNTIF([1]国語!AQ53,1)*[1]国語!$AQ$10 -> 0 | AO46: =COUNTIF([1]国語!AR53,1)*[1]国語!$AR$10 -> 0 | AP46: =COUNTIF([1]国語!AS53,1)*[1]国語!$AS$10 -> 0 | AQ46: =COUNTIF([1]国語!AT53,1)*[1]国語!$AT$10 -> 0 | AR46: =COUNTIF([1]国語!AU53,1)*[1]国語!$AU$10 -> 0 | AS46: =COUNTIF([1]国語!AV53,1)*[1]国語!$AV$10 -> 0 | AT46: =COUNTIF([1]国語!AW53,1)*[1]国語!$AW$10 -> 0 | AU46: =COUNTIF([1]国語!AX53,1)*[1]国語!$AX$10 -> 0 | AV46: =COUNTIF([1]国語!AY53,1)*[1]国語!$AY$10 -> 0 | AW46: =COUNTIF([1]国語!AZ53,1)*[1]国語!$AZ$10 -> 0 | AX46: =COUNTIF([1]国語!BA53,1)*[1]国語!$BA$10 -> 0 | AY46: =COUNTIF([1]国語!BB53,1)*[1]国語!$BB$10 -> 0 | AZ46: 84 | BC46: 43問 | BD46: =[1]国語!AU58 -> 0 | BF46: 43問 | BI46: 43
A47: 44 | B47: =COUNTIF([1]国語!E54,1)*[1]国語!$E$10 -> 0 | C47: =COUNTIF([1]国語!F54,1)*[1]国語!$F$10 -> 0 | D47: =COUNTIF([1]国語!G54,1)*[1]国語!$G$10 -> 4 | E47: =COUNTIF([1]国語!H54,1)*[1]国語!$H$10 -> 0 | F47: =COUNTIF([1]国語!I54,1)*[1]国語!$I$10 -> 4 | G47: =COUNTIF([1]国語!J54,1)*[1]国語!$J$10 -> 4 | H47: =COUNTIF([1]国語!K54,1)*[1]国語!$F$10 -> 4 | I47: =COUNTIF([1]国語!L54,1)*[1]国語!$F$10 -> 4 | J47: =COUNTIF([1]国語!M54,1)*[1]国語!$M$10 -> 4 | K47: =COUNTIF([1]国語!N54,1)*[1]国語!$N$10 -> 4 | L47: =COUNTIF([1]国語!O54,1)*[1]国語!$O$10 -> 4 | M47: =COUNTIF([1]国語!P54,1)*[1]国語!$P$10 -> 4 | N47: =COUNTIF([1]国語!Q54,1)*[1]国語!$Q$10 -> 4 | O47: =COUNTIF([1]国語!R54,1)*[1]国語!$R$10 -> 4 | P47: =COUNTIF([1]国語!S54,1)*[1]国語!$S$10 -> 4 | Q47: =COUNTIF([1]国語!T54,1)*[1]国語!$T$10 -> 4 | R47: =COUNTIF([1]国語!U54,1)*[1]国語!$U$10 -> 4 | S47: =COUNTIF([1]国語!V54,1)*[1]国語!$V$10 -> 4 | T47: =COUNTIF([1]国語!W54,1)*[1]国語!$W$10 -> 4 | U47: =COUNTIF([1]国語!X54,1)*[1]国語!$X$10 -> 4 | V47: =COUNTIF([1]国語!Y54,1)*[1]国語!$Y$10 -> 4 | W47: =COUNTIF([1]国語!Z54,1)*[1]国語!$Z$10 -> 4 | X47: =COUNTIF([1]国語!AA54,1)*[1]国語!$AA$10 -> 4 | Y47: =COUNTIF([1]国語!AB54,1)*[1]国語!$AB$10 -> 4 | Z47: =COUNTIF([1]国語!AC54,1)*[1]国語!$AC$10 -> 4 | AA47: =COUNTIF([1]国語!AD54,1)*[1]国語!$AD$10 -> 0 | AB47: =COUNTIF([1]国語!AE54,1)*[1]国語!$AE$10 -> 0 | AC47: =COUNTIF([1]国語!AF54,1)*[1]国語!$AF$10 -> 0 | AD47: =COUNTIF([1]国語!AG54,1)*[1]国語!$AG$10 -> 0 | AE47: =COUNTIF([1]国語!AH54,1)*[1]国語!$AH$10 -> 0 | AF47: =COUNTIF([1]国語!AI54,1)*[1]国語!$AI$10 -> 0 | AG47: =COUNTIF([1]国語!AJ54,1)*[1]国語!$AJ$10 -> 0 | AH47: =COUNTIF([1]国語!AK54,1)*[1]国語!$AK$10 -> 0 | AI47: =COUNTIF([1]国語!AL54,1)*[1]国語!$AL$10 -> 0 | AJ47: =COUNTIF([1]国語!AM54,1)*[1]国語!$AM$10 -> 0 | AK47: =COUNTIF([1]国語!AN54,1)*[1]国語!$AN$10 -> 0 | AL47: =COUNTIF([1]国語!AO54,1)*[1]国語!$AO$10 -> 0 | AM47: =COUNTIF([1]国語!AP54,1)*[1]国語!$AP$10 -> 0 | AN47: =COUNTIF([1]国語!AQ54,1)*[1]国語!$AQ$10 -> 0 | AO47: =COUNTIF([1]国語!AR54,1)*[1]国語!$AR$10 -> 0 | AP47: =COUNTIF([1]国語!AS54,1)*[1]国語!$AS$10 -> 0 | AQ47: =COUNTIF([1]国語!AT54,1)*[1]国語!$AT$10 -> 0 | AR47: =COUNTIF([1]国語!AU54,1)*[1]国語!$AU$10 -> 0 | AS47: =COUNTIF([1]国語!AV54,1)*[1]国語!$AV$10 -> 0 | AT47: =COUNTIF([1]国語!AW54,1)*[1]国語!$AW$10 -> 0 | AU47: =COUNTIF([1]国語!AX54,1)*[1]国語!$AX$10 -> 0 | AV47: =COUNTIF([1]国語!AY54,1)*[1]国語!$AY$10 -> 0 | AW47: =COUNTIF([1]国語!AZ54,1)*[1]国語!$AZ$10 -> 0 | AX47: =COUNTIF([1]国語!BA54,1)*[1]国語!$BA$10 -> 0 | AY47: =COUNTIF([1]国語!BB54,1)*[1]国語!$BB$10 -> 0 | AZ47: 88 | BC47: 44問 | BD47: =[1]国語!AV58 -> 0 | BF47: 44問 | BI47: 44
A48: 45 | B48: =COUNTIF([1]国語!E55,1)*[1]国語!$E$10 -> 0 | C48: =COUNTIF([1]国語!F55,1)*[1]国語!$F$10 -> 0 | D48: =COUNTIF([1]国語!G55,1)*[1]国語!$G$10 -> 0 | E48: =COUNTIF([1]国語!H55,1)*[1]国語!$H$10 -> 4 | F48: =COUNTIF([1]国語!I55,1)*[1]国語!$I$10 -> 4 | G48: =COUNTIF([1]国語!J55,1)*[1]国語!$J$10 -> 4 | H48: =COUNTIF([1]国語!K55,1)*[1]国語!$F$10 -> 4 | I48: =COUNTIF([1]国語!L55,1)*[1]国語!$F$10 -> 4 | J48: =COUNTIF([1]国語!M55,1)*[1]国語!$M$10 -> 4 | K48: =COUNTIF([1]国語!N55,1)*[1]国語!$N$10 -> 4 | L48: =COUNTIF([1]国語!O55,1)*[1]国語!$O$10 -> 4 | M48: =COUNTIF([1]国語!P55,1)*[1]国語!$P$10 -> 4 | N48: =COUNTIF([1]国語!Q55,1)*[1]国語!$Q$10 -> 4 | O48: =COUNTIF([1]国語!R55,1)*[1]国語!$R$10 -> 4 | P48: =COUNTIF([1]国語!S55,1)*[1]国語!$S$10 -> 4 | Q48: =COUNTIF([1]国語!T55,1)*[1]国語!$T$10 -> 4 | R48: =COUNTIF([1]国語!U55,1)*[1]国語!$U$10 -> 4 | S48: =COUNTIF([1]国語!V55,1)*[1]国語!$V$10 -> 4 | T48: =COUNTIF([1]国語!W55,1)*[1]国語!$W$10 -> 4 | U48: =COUNTIF([1]国語!X55,1)*[1]国語!$X$10 -> 4 | V48: =COUNTIF([1]国語!Y55,1)*[1]国語!$Y$10 -> 4 | W48: =COUNTIF([1]国語!Z55,1)*[1]国語!$Z$10 -> 4 | X48: =COUNTIF([1]国語!AA55,1)*[1]国語!$AA$10 -> 4 | Y48: =COUNTIF([1]国語!AB55,1)*[1]国語!$AB$10 -> 4 | Z48: =COUNTIF([1]国語!AC55,1)*[1]国語!$AC$10 -> 4 | AA48: =COUNTIF([1]国語!AD55,1)*[1]国語!$AD$10 -> 0 | AB48: =COUNTIF([1]国語!AE55,1)*[1]国語!$AE$10 -> 0 | AC48: =COUNTIF([1]国語!AF55,1)*[1]国語!$AF$10 -> 0 | AD48: =COUNTIF([1]国語!AG55,1)*[1]国語!$AG$10 -> 0 | AE48: =COUNTIF([1]国語!AH55,1)*[1]国語!$AH$10 -> 0 | AF48: =COUNTIF([1]国語!AI55,1)*[1]国語!$AI$10 -> 0 | AG48: =COUNTIF([1]国語!AJ55,1)*[1]国語!$AJ$10 -> 0 | AH48: =COUNTIF([1]国語!AK55,1)*[1]国語!$AK$10 -> 0 | AI48: =COUNTIF([1]国語!AL55,1)*[1]国語!$AL$10 -> 0 | AJ48: =COUNTIF([1]国語!AM55,1)*[1]国語!$AM$10 -> 0 | AK48: =COUNTIF([1]国語!AN55,1)*[1]国語!$AN$10 -> 0 | AL48: =COUNTIF([1]国語!AO55,1)*[1]国語!$AO$10 -> 0 | AM48: =COUNTIF([1]国語!AP55,1)*[1]国語!$AP$10 -> 0 | AN48: =COUNTIF([1]国語!AQ55,1)*[1]国語!$AQ$10 -> 0 | AO48: =COUNTIF([1]国語!AR55,1)*[1]国語!$AR$10 -> 0 | AP48: =COUNTIF([1]国語!AS55,1)*[1]国語!$AS$10 -> 0 | AQ48: =COUNTIF([1]国語!AT55,1)*[1]国語!$AT$10 -> 0 | AR48: =COUNTIF([1]国語!AU55,1)*[1]国語!$AU$10 -> 0 | AS48: =COUNTIF([1]国語!AV55,1)*[1]国語!$AV$10 -> 0 | AT48: =COUNTIF([1]国語!AW55,1)*[1]国語!$AW$10 -> 0 | AU48: =COUNTIF([1]国語!AX55,1)*[1]国語!$AX$10 -> 0 | AV48: =COUNTIF([1]国語!AY55,1)*[1]国語!$AY$10 -> 0 | AW48: =COUNTIF([1]国語!AZ55,1)*[1]国語!$AZ$10 -> 0 | AX48: =COUNTIF([1]国語!BA55,1)*[1]国語!$BA$10 -> 0 | AY48: =COUNTIF([1]国語!BB55,1)*[1]国語!$BB$10 -> 0 | AZ48: 88 | BC48: 45問 | BD48: =[1]国語!AW58 -> 0 | BF48: 45問 | BI48: 45
BC49: 46問 | BD49: =[1]国語!AX58 -> 0 | BF49: 46問 | BI49: 46
BC50: 47問 | BD50: =[1]国語!AY58 -> 0 | BF50: 47問 | BI50: 47
A51: 数 | B51: 1 | C51: 2 | D51: 3 | E51: 4 | F51: 5 | G51: 6 | H51: 7 | I51: 8 | J51: 9 | K51: 10 | L51: 11 | M51: 12 | N51: 13 | O51: 14 | P51: 15 | Q51: 16 | R51: 17 | S51: 18 | T51: 19 | U51: 20 | V51: 21 | W51: 22 | X51: 23 | Y51: 24 | Z51: 25 | AA51: 26 | AB51: 27 | AC51: 28 | AD51: 29 | AE51: 30 | AF51: 31 | AG51: 32 | AH51: 33 | AI51: 34 | AJ51: 35 | AK51: 36 | AL51: 37 | AM51: 38 | AN51: 39 | AO51: 40 | AP51: 41 | AQ51: 42 | AR51: 43 | AS51: 44 | AT51: 45 | AU51: 46 | AV51: 47 | AW51: 48 | AX51: 49 | AY51: 50 | BC51: 48問 | BD51: =[1]国語!AZ58 -> 0 | BF51: 48問 | BI51: 48
A52: 正答 | B52: =[1]国語!E58 -> 2 | C52: =[1]国語!F58 -> 3 | D52: =[1]国語!G58 -> 4 | E52: =[1]国語!H58 -> 5 | F52: =[1]国語!I58 -> 7 | G52: =[1]国語!J58 -> 9 | H52: =[1]国語!K58 -> 11 | I52: =[1]国語!L58 -> 11 | J52: =[1]国語!M58 -> 13 | K52: =[1]国語!N58 -> 15 | L52: =[1]国語!O58 -> 17 | M52: =[1]国語!P58 -> 19 | N52: =[1]国語!Q58 -> 21 | O52: =[1]国語!R58 -> 23 | P52: =[1]国語!S58 -> 25 | Q52: =[1]国語!T58 -> 27 | R52: =[1]国語!U58 -> 29 | S52: =[1]国語!V58 -> 31 | T52: =[1]国語!W58 -> 33 | U52: =[1]国語!X58 -> 35 | V52: =[1]国語!Y58 -> 37 | W52: =[1]国語!Z58 -> 39 | X52: =[1]国語!AA58 -> 41 | Y52: =[1]国語!AB58 -> 43 | Z52: =[1]国語!AC58 -> 44 | AA52: =[1]国語!AD58 -> 0 | AB52: =[1]国語!AE58 -> 0 | AC52: =[1]国語!AF58 -> 0 | AD52: =[1]国語!AG58 -> 0 | AE52: =[1]国語!AH58 -> 0 | AF52: =[1]国語!AI58 -> 0 | AG52: =[1]国語!AJ58 -> 0 | AH52: =[1]国語!AK58 -> 0 | AI52: =[1]国語!AL58 -> 0 | AJ52: =[1]国語!AM58 -> 0 | AK52: =[1]国語!AN58 -> 0 | AL52: =[1]国語!AO58 -> 0 | AM52: =[1]国語!AP58 -> 0 | AN52: =[1]国語!AQ58 -> 0 | AO52: =[1]国語!AR58 -> 0 | AP52: =[1]国語!AS58 -> 0 | AQ52: =[1]国語!AT58 -> 0 | AR52: =[1]国語!AU58 -> 0 | AS52: =[1]国語!AV58 -> 0 | AT52: =[1]国語!AW58 -> 0 | AU52: =[1]国語!AX58 -> 0 | AV52: =[1]国語!AY58 -> 0 | AW52: =[1]国語!AZ58 -> 0 | AX52: =[1]国語!BA58 -> 0 | AY52: =[1]国語!BB58 -> 0 | BC52: 49問 | BD52: =[1]国語!BA58 -> 0 | BF52: 49問 | BI52: 49
A53: 誤答 | B53: =[1]国語!E59 -> 21 | C53: =[1]国語!F59 -> 22 | D53: =[1]国語!G59 -> 20 | E53: =[1]国語!H59 -> 20 | F53: =[1]国語!I59 -> 19 | G53: =[1]国語!J59 -> 18 | H53: =[1]国語!K59 -> 17 | I53: =[1]国語!L59 -> 18 | J53: =[1]国語!M59 -> 16 | K53: =[1]国語!N59 -> 15 | L53: =[1]国語!O59 -> 14 | M53: =[1]国語!P59 -> 15 | N53: =[1]国語!Q59 -> 13 | O53: =[1]国語!R59 -> 12 | P53: =[1]国語!S59 -> 11 | Q53: =[1]国語!T59 -> 9 | R53: =[1]国語!U59 -> 9 | S53: =[1]国語!V59 -> 8 | T53: =[1]国語!W59 -> 6 | U53: =[1]国語!X59 -> 5 | V53: =[1]国語!Y59 -> 4 | W53: =[1]国語!Z59 -> 3 | X53: =[1]国語!AA59 -> 2 | Y53: =[1]国語!AB59 -> 1 | Z53: =[1]国語!AC59 -> 1 | AA53: =[1]国語!AD59 -> 0 | AB53: =[1]国語!AE59 -> 0 | AC53: =[1]国語!AF59 -> 0 | AD53: =[1]国語!AG59 -> 0 | AE53: =[1]国語!AH59 -> 0 | AF53: =[1]国語!AI59 -> 0 | AG53: =[1]国語!AJ59 -> 0 | AH53: =[1]国語!AK59 -> 0 | AI53: =[1]国語!AL59 -> 0 | AJ53: =[1]国語!AM59 -> 0 | AK53: =[1]国語!AN59 -> 0 | AL53: =[1]国語!AO59 -> 0 | AM53: =[1]国語!AP59 -> 0 | AN53: =[1]国語!AQ59 -> 0 | AO53: =[1]国語!AR59 -> 0 | AP53: =[1]国語!AS59 -> 0 | AQ53: =[1]国語!AT59 -> 0 | AR53: =[1]国語!AU59 -> 0 | AS53: =[1]国語!AV59 -> 0 | AT53: =[1]国語!AW59 -> 0 | AU53: =[1]国語!AX59 -> 0 | AV53: =[1]国語!AY59 -> 0 | AW53: =[1]国語!AZ59 -> 0 | AX53: =[1]国語!BA59 -> 0 | AY53: =[1]国語!BB59 -> 0 | BC53: 50問 | BD53: =[1]国語!BB58 -> 0 | BF53: 50問 | BI53: 50
A54: 無答 | B54: =[1]国語!E60 -> 22 | C54: =[1]国語!F60 -> 20 | D54: =[1]国語!G60 -> 21 | E54: =[1]国語!H60 -> 20 | F54: =[1]国語!I60 -> 19 | G54: =[1]国語!J60 -> 18 | H54: =[1]国語!K60 -> 17 | I54: =[1]国語!L60 -> 16 | J54: =[1]国語!M60 -> 16 | K54: =[1]国語!N60 -> 15 | L54: =[1]国語!O60 -> 14 | M54: =[1]国語!P60 -> 11 | N54: =[1]国語!Q60 -> 11 | O54: =[1]国語!R60 -> 10 | P54: =[1]国語!S60 -> 9 | Q54: =[1]国語!T60 -> 9 | R54: =[1]国語!U60 -> 7 | S54: =[1]国語!V60 -> 6 | T54: =[1]国語!W60 -> 6 | U54: =[1]国語!X60 -> 5 | V54: =[1]国語!Y60 -> 4 | W54: =[1]国語!Z60 -> 3 | X54: =[1]国語!AA60 -> 2 | Y54: =[1]国語!AB60 -> 1 | Z54: =[1]国語!AC60 -> 0 | AA54: =[1]国語!AD60 -> 0 | AB54: =[1]国語!AE60 -> 0 | AC54: =[1]国語!AF60 -> 0 | AD54: =[1]国語!AG60 -> 0 | AE54: =[1]国語!AH60 -> 0 | AF54: =[1]国語!AI60 -> 0 | AG54: =[1]国語!AJ60 -> 0 | AH54: =[1]国語!AK60 -> 0 | AI54: =[1]国語!AL60 -> 0 | AJ54: =[1]国語!AM60 -> 0 | AK54: =[1]国語!AN60 -> 0 | AL54: =[1]国語!AO60 -> 0 | AM54: =[1]国語!AP60 -> 0 | AN54: =[1]国語!AQ60 -> 0 | AO54: =[1]国語!AR60 -> 0 | AP54: =[1]国語!AS60 -> 0 | AQ54: =[1]国語!AT60 -> 0 | AR54: =[1]国語!AU60 -> 0 | AS54: =[1]国語!AV60 -> 0 | AT54: =[1]国語!AW60 -> 0 | AU54: =[1]国語!AX60 -> 0 | AV54: =[1]国語!AY60 -> 0 | AW54: =[1]国語!AZ60 -> 0 | AX54: =[1]国語!BA60 -> 0 | AY54: =[1]国語!BB60 -> 0 | BC54: 児童数合計 | BD54: =L1 -> 45 | BF54: 合計 | BG54: =SUM(BG3:BG53) -> 1763.9
A55: 合計 | B55: =[1]国語!E61 -> 45 | C55: =[1]国語!F61 -> 45 | D55: =[1]国語!G61 -> 45 | E55: =[1]国語!H61 -> 45 | F55: =[1]国語!I61 -> 45 | G55: =[1]国語!J61 -> 45 | H55: =[1]国語!K61 -> 45 | I55: =[1]国語!L61 -> 45 | J55: =[1]国語!M61 -> 45 | K55: =[1]国語!N61 -> 45 | L55: =[1]国語!O61 -> 45 | M55: =[1]国語!P61 -> 45 | N55: =[1]国語!Q61 -> 45 | O55: =[1]国語!R61 -> 45 | P55: =[1]国語!S61 -> 45 | Q55: =[1]国語!T61 -> 45 | R55: =[1]国語!U61 -> 45 | S55: =[1]国語!V61 -> 45 | T55: =[1]国語!W61 -> 45 | U55: =[1]国語!X61 -> 45 | V55: =[1]国語!Y61 -> 45 | W55: =[1]国語!Z61 -> 45 | X55: =[1]国語!AA61 -> 45 | Y55: =[1]国語!AB61 -> 45 | Z55: =[1]国語!AC61 -> 45 | AA55: =[1]国語!AD61 -> 0 | AB55: =[1]国語!AE61 -> 0 | AC55: =[1]国語!AF61 -> 0 | AD55: =[1]国語!AG61 -> 0 | AE55: =[1]国語!AH61 -> 0 | AF55: =[1]国語!AI61 -> 0 | AG55: =[1]国語!AJ61 -> 0 | AH55: =[1]国語!AK61 -> 0 | AI55: =[1]国語!AL61 -> 0 | AJ55: =[1]国語!AM61 -> 0 | AK55: =[1]国語!AN61 -> 0 | AL55: =[1]国語!AO61 -> 0 | AM55: =[1]国語!AP61 -> 0 | AN55: =[1]国語!AQ61 -> 0 | AO55: =[1]国語!AR61 -> 0 | AP55: =[1]国語!AS61 -> 0 | AQ55: =[1]国語!AT61 -> 0 | AR55: =[1]国語!AU61 -> 0 | AS55: =[1]国語!AV61 -> 0 | AT55: =[1]国語!AW61 -> 0 | AU55: =[1]国語!AX61 -> 0 | AV55: =[1]国語!AY61 -> 0 | AW55: =[1]国語!AZ61 -> 0 | AX55: =[1]国語!BA61 -> 0 | AY55: =[1]国語!BB61 -> 0
A56: ６年国語 | B56: =[1]国語!E9 -> 知・技 | C56: =[1]国語!F9 -> 知・技 | D56: =[1]国語!G9 -> 知・技 | E56: =[1]国語!H9 -> 知・技 | F56: =[1]国語!I9 -> 知・技 | G56: =[1]国語!J9 -> 知・技 | H56: =[1]国語!K9 -> 知・技 | I56: =[1]国語!L9 -> 知・技 | J56: =[1]国語!M9 -> 知・技 | K56: =[1]国語!N9 -> 知・技 | L56: =[1]国語!O9 -> 知・技 | M56: =[1]国語!P9 -> 知・技 | N56: =[1]国語!Q9 -> 思判表 | O56: =[1]国語!R9 -> 思判表 | P56: =[1]国語!S9 -> 思判表 | Q56: =[1]国語!T9 -> 思判表 | R56: =[1]国語!U9 -> 思判表 | S56: =[1]国語!V9 -> 思判表 | T56: =[1]国語!W9 -> 思判表 | U56: =[1]国語!X9 -> 思判表 | V56: =[1]国語!Y9 -> 思判表 | W56: =[1]国語!Z9 -> 思判表 | X56: =[1]国語!AA9 -> 思判表 | Y56: =[1]国語!AB9 -> 思判表 | Z56: =[1]国語!AC9 -> 思判表
A57: 富山県 割合％ | B57: 1 | C57: 2 | D57: 3 | E57: 4 | F57: 5 | G57: 6 | H57: 7 | I57: 8 | J57: 9 | K57: 10 | L57: 11 | M57: 12 | N57: 13 | O57: 14 | P57: 15 | Q57: 16 | R57: 17 | S57: 18 | T57: 19 | U57: 20 | V57: 21 | W57: 22 | X57: 23 | Y57: 24 | Z57: 25 | AA57: 26 | AB57: 27 | AC57: 28 | AD57: 29 | AE57: 30 | AF57: 31 | AG57: 32 | AH57: 33 | AI57: 34 | AJ57: 35 | AK57: 36 | AL57: 37 | AM57: 38 | AN57: 39 | AO57: 40 | AP57: 41 | AQ57: 42 | AR57: 43 | AS57: 44 | AT57: 45 | AU57: 46 | AV57: 47 | AW57: 48 | AX57: 49 | AY57: 50
A58: 正答率 | B58: 0.955 | C58: 0.962 | D58: 0.526 | E58: 0.964 | F58: 0.813 | G58: 0.567 | H58: 0.816 | I58: 0.538 | J58: 0.56 | K58: 0.621 | L58: 0.961 | M58: 0.975 | N58: 0.838 | O58: 0.841 | P58: 0.888 | Q58: 0.828 | R58: 0.467 | S58: 0.583 | T58: 0.698 | U58: 0.831 | V58: 0.74 | W58: 0.42 | X58: 0.284 | Y58: 0.396 | Z58: 0.567
A59: 誤答率 | B59: 0.037 | C59: 0.037 | D59: 0.453 | E59: 0.028 | F59: 0.122 | G59: 0.299 | H59: 0.112 | I59: 0.37 | J59: 0.429 | K59: 0.363 | L59: 0.037 | M59: 0.022 | N59: 0.159 | O59: 0.155 | P59: 0.105 | Q59: 0.148 | R59: 0.503 | S59: 0.398 | T59: 0.288 | U59: 0.156 | V59: 0.252 | W59: 0.506 | X59: 0.63 | Y59: 0.491 | Z59: 0.416
A60: 無答率 | B60: 0.008 | C60: 0.001 | D60: 0.021 | E60: 0.008 | F60: 0.065 | G60: 0.134 | H60: 0.072 | I60: 0.092 | J60: 0.011 | K60: 0.016 | L60: 0.002 | M60: 0.003 | N60: 0.003 | O60: 0.004 | P60: 0.007 | Q60: 0.024 | R60: 0.03 | S60: 0.019 | T60: 0.014 | U60: 0.013 | V60: 0.008 | W60: 0.074 | X60: 0.086 | Y60: 0.113 | Z60: 0.017
A61: 合計 | B61: =SUM(B58:B60) -> 1 | C61: =SUM(C58:C60) -> 1 | D61: 1 | E61: 1 | F61: 1 | G61: 1 | H61: 1 | I61: 1 | J61: 1 | K61: 1 | L61: 1 | M61: 1 | N61: 1 | O61: 1 | P61: 1 | Q61: 1 | R61: 1 | S61: 1 | T61: 1 | U61: 1 | V61: 1 | W61: 1 | X61: 1 | Y61: 1 | Z61: 1 | AA61: 0 | AB61: 0 | AC61: 0 | AD61: 0 | AE61: 0 | AF61: 0 | AG61: 0 | AH61: 0 | AI61: 0 | AJ61: 0 | AK61: 0 | AL61: 0 | AM61: 0 | AN61: 0 | AO61: 0 | AP61: 0 | AQ61: 0 | AR61: 0 | AS61: 0 | AT61: 0 | AU61: 0 | AV61: 0 | AW61: 0 | AX61: 0 | AY61: 0
A63: 観点別正答数 | AZ63: 計 | BA63: 数 | BB63: 割合 | BC63: =A63 -> 観点別正答数
A64: =[1]国語!BF35 -> 知・技 | B64: =IF(COUNTIF(B3,$A$64),SUM(B52),0) -> 2 | C64: 3 | D64: 4 | E64: 5 | F64: 7 | G64: 9 | H64: 11 | I64: 11 | J64: 13 | K64: 15 | L64: 17 | M64: 19 | N64: 0 | O64: 0 | P64: 0 | Q64: 0 | R64: 0 | S64: 0 | T64: 0 | U64: 0 | V64: 0 | W64: 0 | X64: 0 | Y64: 0 | Z64: 0 | AA64: 0 | AB64: 0 | AC64: 0 | AD64: 0 | AE64: 0 | AF64: 0 | AG64: 0 | AH64: =IF(COUNTIF(AH3,$A$64),SUM(AH52),0) -> 0 | AI64: 0 | AJ64: 0 | AK64: 0 | AL64: 0 | AM64: 0 | AN64: 0 | AO64: 0 | AP64: 0 | AQ64: 0 | AR64: 0 | AS64: 0 | AT64: 0 | AU64: 0 | AV64: 0 | AW64: 0 | AX64: 0 | AY64: 0 | AZ64: =SUM(B64:AY64) -> 116 | BA64: =COUNTIF($B$3:$AY$3,A64) -> 12 | BB64: =AZ64/BA64/$L$1 -> 0.2148148148 | BC64: =A64 -> 知・技
A65: =[1]国語!BF36 -> 思判表 | B65: =IF(COUNTIF(B3,$A$65),SUM(B52),0) -> 0 | C65: 0 | D65: 0 | E65: 0 | F65: 0 | G65: 0 | H65: 0 | I65: 0 | J65: 0 | K65: 0 | L65: 0 | M65: 0 | N65: 21 | O65: 23 | P65: 25 | Q65: 27 | R65: 29 | S65: 31 | T65: 33 | U65: 35 | V65: 37 | W65: 39 | X65: 41 | Y65: 43 | Z65: 44 | AA65: 0 | AB65: 0 | AC65: 0 | AD65: 0 | AE65: 0 | AF65: 0 | AG65: 0 | AH65: 0 | AI65: 0 | AJ65: 0 | AK65: 0 | AL65: 0 | AM65: 0 | AN65: 0 | AO65: 0 | AP65: 0 | AQ65: 0 | AR65: 0 | AS65: 0 | AT65: 0 | AU65: 0 | AV65: 0 | AW65: 0 | AX65: 0 | AY65: 0 | AZ65: =SUM(B65:AY65) -> 428 | BA65: =COUNTIF($B$3:$AY$3,A65) -> 13 | BB65: =AZ65/BA65/$L$1 -> 0.7316239316 | BC65: 思判表
A66: =[1]国語!BF37 -> - | B66: =IF(COUNTIF(B3,$A$66),SUM(B52),0) -> 0 | C66: 0 | D66: 0 | E66: 0 | F66: 0 | G66: 0 | H66: 0 | I66: 0 | J66: 0 | K66: 0 | L66: 0 | M66: 0 | N66: 0 | O66: 0 | P66: 0 | Q66: 0 | R66: 0 | S66: 0 | T66: 0 | U66: 0 | V66: 0 | W66: 0 | X66: 0 | Y66: 0 | Z66: 0 | AA66: 0 | AB66: 0 | AC66: 0 | AD66: 0 | AE66: 0 | AF66: 0 | AG66: 0 | AH66: 0 | AI66: 0 | AJ66: 0 | AK66: 0 | AL66: 0 | AM66: 0 | AN66: 0 | AO66: 0 | AP66: 0 | AQ66: 0 | AR66: 0 | AS66: 0 | AT66: 0 | AU66: 0 | AV66: 0 | AW66: 0 | AX66: 0 | AY66: 0 | AZ66: =SUM(B66:AY66) -> 0 | BA66: =COUNTIF($B$3:$AY$3,A66) -> 0 | BB66: =AZ66/BA66/$L$1 ->  | BC66: -
A67: =[1]国語!BF38 -> - | B67: =IF(COUNTIF(B3,$A$67),SUM(B52),0) -> 0 | C67: 0 | D67: 0 | E67: 0 | F67: 0 | G67: 0 | H67: 0 | I67: 0 | J67: 0 | K67: 0 | L67: 0 | M67: 0 | N67: 0 | O67: 0 | P67: 0 | Q67: 0 | R67: 0 | S67: 0 | T67: 0 | U67: 0 | V67: 0 | W67: 0 | X67: 0 | Y67: 0 | Z67: 0 | AA67: 0 | AB67: 0 | AC67: 0 | AD67: 0 | AE67: 0 | AF67: 0 | AG67: 0 | AH67: 0 | AI67: 0 | AJ67: 0 | AK67: 0 | AL67: 0 | AM67: 0 | AN67: 0 | AO67: 0 | AP67: 0 | AQ67: 0 | AR67: 0 | AS67: 0 | AT67: 0 | AU67: 0 | AV67: 0 | AW67: 0 | AX67: 0 | AY67: 0 | AZ67: =SUM(B67:AY67) -> 0 | BA67: =COUNTIF($B$3:$AY$3,A67) -> 0 | BB67: =AZ67/BA67/$L$1 ->  | BC67: -
A68: =[1]国語!BF39 -> - | B68: =IF(COUNTIF(B3,$A$68),SUM(B52),0) -> 0 | C68: 0 | D68: 0 | E68: 0 | F68: 0 | G68: 0 | H68: 0 | I68: 0 | J68: 0 | K68: 0 | L68: 0 | M68: 0 | N68: 0 | O68: 0 | P68: 0 | Q68: 0 | R68: 0 | S68: 0 | T68: 0 | U68: 0 | V68: 0 | W68: 0 | X68: 0 | Y68: 0 | Z68: 0 | AA68: 0 | AB68: 0 | AC68: 0 | AD68: 0 | AE68: 0 | AF68: 0 | AG68: 0 | AH68: 0 | AI68: 0 | AJ68: 0 | AK68: 0 | AL68: 0 | AM68: 0 | AN68: 0 | AO68: 0 | AP68: 0 | AQ68: 0 | AR68: 0 | AS68: 0 | AT68: 0 | AU68: 0 | AV68: 0 | AW68: 0 | AX68: 0 | AY68: 0 | AZ68: =SUM(B68:AY68) -> 0 | BA68: =COUNTIF($B$3:$AY$3,A68) -> 0 | BB68: =AZ68/BA68/$L$1 ->  | BC68: -
A70: 観点別誤答数 | BC70: 観点別誤答数
A71: =A64 -> 知・技 | B71: =IF(COUNTIF(B3,$A$64),SUM(B53),0) -> 21 | C71: 22 | D71: 20 | E71: 20 | F71: 19 | G71: 18 | H71: 17 | I71: 18 | J71: 16 | K71: 15 | L71: 14 | M71: 15 | N71: 0 | O71: 0 | P71: 0 | Q71: 0 | R71: 0 | S71: 0 | T71: 0 | U71: 0 | V71: 0 | W71: 0 | X71: 0 | Y71: 0 | Z71: 0 | AA71: 0 | AB71: 0 | AC71: 0 | AD71: 0 | AE71: 0 | AF71: 0 | AG71: 0 | AH71: 0 | AI71: 0 | AJ71: 0 | AK71: 0 | AL71: 0 | AM71: 0 | AN71: 0 | AO71: 0 | AP71: 0 | AQ71: 0 | AR71: 0 | AS71: 0 | AT71: 0 | AU71: 0 | AV71: 0 | AW71: 0 | AX71: 0 | AY71: 0 | AZ71: =SUM(B71:AY71) -> 215 | BA71: =BA64 -> 12 | BB71: =AZ71/BA71/$L$1 -> 0.3981481481 | BC71: 知・技
A72: =A65 -> 思判表 | B72: =IF(COUNTIF(B3,$A$65),SUM(B53),0) -> 0 | C72: 0 | D72: 0 | E72: 0 | F72: 0 | G72: 0 | H72: 0 | I72: 0 | J72: 0 | K72: 0 | L72: 0 | M72: 0 | N72: 13 | O72: 12 | P72: 11 | Q72: 9 | R72: 9 | S72: 8 | T72: 6 | U72: 5 | V72: 4 | W72: 3 | X72: 2 | Y72: 1 | Z72: 1 | AA72: 0 | AB72: 0 | AC72: 0 | AD72: 0 | AE72: 0 | AF72: 0 | AG72: 0 | AH72: 0 | AI72: 0 | AJ72: 0 | AK72: 0 | AL72: 0 | AM72: 0 | AN72: 0 | AO72: 0 | AP72: 0 | AQ72: 0 | AR72: 0 | AS72: 0 | AT72: 0 | AU72: 0 | AV72: 0 | AW72: 0 | AX72: 0 | AY72: 0 | AZ72: =SUM(B72:AY72) -> 84 | BA72: =BA65 -> 13 | BB72: =AZ72/BA72/$L$1 -> 0.1435897436 | BC72: 思判表
A73: =A66 -> - | B73: =IF(COUNTIF(B3,$A$66),SUM(B53),0) -> 0 | C73: 0 | D73: 0 | E73: 0 | F73: 0 | G73: 0 | H73: 0 | I73: 0 | J73: 0 | K73: 0 | L73: 0 | M73: 0 | N73: 0 | O73: 0 | P73: 0 | Q73: 0 | R73: 0 | S73: 0 | T73: 0 | U73: 0 | V73: 0 | W73: 0 | X73: 0 | Y73: 0 | Z73: 0 | AA73: 0 | AB73: 0 | AC73: 0 | AD73: 0 | AE73: 0 | AF73: 0 | AG73: 0 | AH73: 0 | AI73: 0 | AJ73: 0 | AK73: 0 | AL73: 0 | AM73: 0 | AN73: 0 | AO73: 0 | AP73: 0 | AQ73: 0 | AR73: 0 | AS73: 0 | AT73: 0 | AU73: 0 | AV73: 0 | AW73: 0 | AX73: 0 | AY73: 0 | AZ73: =SUM(B73:AY73) -> 0 | BA73: =BA66 -> 0 | BB73: =AZ73/BA73/$L$1 ->  | BC73: -
A74: =A67 -> - | B74: =IF(COUNTIF(B3,$A$67),SUM(B53),0) -> 0 | C74: 0 | D74: 0 | E74: 0 | F74: 0 | G74: 0 | H74: 0 | I74: 0 | J74: 0 | K74: 0 | L74: 0 | M74: 0 | N74: 0 | O74: 0 | P74: 0 | Q74: 0 | R74: 0 | S74: 0 | T74: 0 | U74: 0 | V74: 0 | W74: 0 | X74: 0 | Y74: 0 | Z74: 0 | AA74: 0 | AB74: 0 | AC74: 0 | AD74: 0 | AE74: 0 | AF74: 0 | AG74: 0 | AH74: 0 | AI74: 0 | AJ74: 0 | AK74: 0 | AL74: 0 | AM74: 0 | AN74: 0 | AO74: 0 | AP74: 0 | AQ74: 0 | AR74: 0 | AS74: 0 | AT74: 0 | AU74: 0 | AV74: 0 | AW74: 0 | AX74: 0 | AY74: 0 | AZ74: =SUM(B74:AY74) -> 0 | BA74: =BA67 -> 0 | BB74: =AZ74/BA74/$L$1 ->  | BC74: -
A75: =A68 -> - | B75: =IF(COUNTIF(B3,$A$68),SUM(B53),0) -> 0 | C75: 0 | D75: 0 | E75: 0 | F75: 0 | G75: 0 | H75: 0 | I75: 0 | J75: 0 | K75: 0 | L75: 0 | M75: 0 | N75: 0 | O75: 0 | P75: 0 | Q75: 0 | R75: 0 | S75: 0 | T75: 0 | U75: 0 | V75: 0 | W75: 0 | X75: 0 | Y75: 0 | Z75: 0 | AA75: 0 | AB75: 0 | AC75: 0 | AD75: 0 | AE75: 0 | AF75: 0 | AG75: 0 | AH75: 0 | AI75: 0 | AJ75: 0 | AK75: 0 | AL75: 0 | AM75: 0 | AN75: 0 | AO75: 0 | AP75: 0 | AQ75: 0 | AR75: 0 | AS75: 0 | AT75: 0 | AU75: 0 | AV75: 0 | AW75: 0 | AX75: 0 | AY75: 0 | AZ75: =SUM(B75:AY75) -> 0 | BA75: =BA68 -> 0 | BB75: =AZ75/BA75/$L$1 ->  | BC75: -
A77: 観点別無答数 | BC77: 観点別無答数
A78: =A64 -> 知・技 | B78: =IF(COUNTIF(B3,$A$64),SUM(B54),0) -> 22 | C78: 20 | D78: 21 | E78: 20 | F78: 19 | G78: 18 | H78: 17 | I78: 16 | J78: 16 | K78: 15 | L78: 14 | M78: 11 | N78: 0 | O78: 0 | P78: 0 | Q78: 0 | R78: 0 | S78: 0 | T78: 0 | U78: 0 | V78: 0 | W78: 0 | X78: 0 | Y78: 0 | Z78: 0 | AA78: 0 | AB78: 0 | AC78: 0 | AD78: 0 | AE78: 0 | AF78: 0 | AG78: 0 | AH78: 0 | AI78: 0 | AJ78: 0 | AK78: 0 | AL78: 0 | AM78: 0 | AN78: 0 | AO78: 0 | AP78: 0 | AQ78: 0 | AR78: 0 | AS78: 0 | AT78: 0 | AU78: 0 | AV78: 0 | AW78: 0 | AX78: 0 | AY78: 0 | AZ78: =SUM(B78:AY78) -> 209 | BA78: =BA64 -> 12 | BB78: =AZ78/BA78/$L$1 -> 0.387037037 | BC78: 知・技
A79: =A65 -> 思判表 | B79: =IF(COUNTIF(B3,$A$65),SUM(B54),0) -> 0 | C79: 0 | D79: 0 | E79: 0 | F79: 0 | G79: 0 | H79: 0 | I79: 0 | J79: 0 | K79: 0 | L79: 0 | M79: 0 | N79: 11 | O79: 10 | P79: 9 | Q79: 9 | R79: 7 | S79: 6 | T79: 6 | U79: 5 | V79: 4 | W79: 3 | X79: 2 | Y79: 1 | Z79: 0 | AA79: 0 | AB79: 0 | AC79: 0 | AD79: 0 | AE79: 0 | AF79: 0 | AG79: 0 | AH79: 0 | AI79: 0 | AJ79: 0 | AK79: 0 | AL79: 0 | AM79: 0 | AN79: 0 | AO79: 0 | AP79: 0 | AQ79: 0 | AR79: 0 | AS79: 0 | AT79: 0 | AU79: 0 | AV79: 0 | AW79: 0 | AX79: 0 | AY79: 0 | AZ79: =SUM(B79:AY79) -> 73 | BA79: =BA65 -> 13 | BB79: =AZ79/BA79/$L$1 -> 0.1247863248 | BC79: 思判表
A80: =A66 -> - | B80: =IF(COUNTIF(B3,$A$66),SUM(B54),0) -> 0 | C80: 0 | D80: 0 | E80: 0 | F80: 0 | G80: 0 | H80: 0 | I80: 0 | J80: 0 | K80: 0 | L80: 0 | M80: 0 | N80: 0 | O80: 0 | P80: 0 | Q80: 0 | R80: 0 | S80: 0 | T80: 0 | U80: 0 | V80: 0 | W80: 0 | X80: 0 | Y80: 0 | Z80: 0 | AA80: 0 | AB80: 0 | AC80: 0 | AD80: 0 | AE80: 0 | AF80: 0 | AG80: 0 | AH80: 0 | AI80: 0 | AJ80: 0 | AK80: 0 | AL80: 0 | AM80: 0 | AN80: 0 | AO80: 0 | AP80: 0 | AQ80: 0 | AR80: 0 | AS80: 0 | AT80: 0 | AU80: 0 | AV80: 0 | AW80: 0 | AX80: 0 | AY80: 0 | AZ80: =SUM(B80:AY80) -> 0 | BA80: =BA66 -> 0 | BB80: =AZ80/BA80/$L$1 ->  | BC80: -
A81: =A67 -> - | B81: =IF(COUNTIF(B3,$A$67),SUM(B54),0) -> 0 | C81: 0 | D81: 0 | E81: 0 | F81: 0 | G81: 0 | H81: 0 | I81: 0 | J81: 0 | K81: 0 | L81: 0 | M81: 0 | N81: 0 | O81: 0 | P81: 0 | Q81: 0 | R81: 0 | S81: 0 | T81: 0 | U81: 0 | V81: 0 | W81: 0 | X81: 0 | Y81: 0 | Z81: 0 | AA81: 0 | AB81: 0 | AC81: 0 | AD81: 0 | AE81: 0 | AF81: 0 | AG81: 0 | AH81: 0 | AI81: 0 | AJ81: 0 | AK81: 0 | AL81: 0 | AM81: 0 | AN81: 0 | AO81: 0 | AP81: 0 | AQ81: 0 | AR81: 0 | AS81: 0 | AT81: 0 | AU81: 0 | AV81: 0 | AW81: 0 | AX81: 0 | AY81: 0 | AZ81: =SUM(B81:AY81) -> 0 | BA81: =BA67 -> 0 | BB81: =AZ81/BA81/$L$1 ->  | BC81: -
A82: =A68 -> - | B82: =IF(COUNTIF(B3,$A$68),SUM(B54),0) -> 0 | C82: 0 | D82: 0 | E82: 0 | F82: 0 | G82: 0 | H82: 0 | I82: 0 | J82: 0 | K82: 0 | L82: 0 | M82: 0 | N82: 0 | O82: 0 | P82: 0 | Q82: 0 | R82: 0 | S82: 0 | T82: 0 | U82: 0 | V82: 0 | W82: 0 | X82: 0 | Y82: 0 | Z82: 0 | AA82: 0 | AB82: 0 | AC82: 0 | AD82: 0 | AE82: 0 | AF82: 0 | AG82: 0 | AH82: 0 | AI82: 0 | AJ82: 0 | AK82: 0 | AL82: 0 | AM82: 0 | AN82: 0 | AO82: 0 | AP82: 0 | AQ82: 0 | AR82: 0 | AS82: 0 | AT82: 0 | AU82: 0 | AV82: 0 | AW82: 0 | AX82: 0 | AY82: 0 | AZ82: =SUM(B82:AY82) -> 0 | BA82: =BA68 -> 0 | BB82: =AZ82/BA82/$L$1 ->  | BC82: -

Sheet 社会表紙
A2: 社会の結果の分析
B4: 最初にデータコピーをクリックして、社会のデータを入力したファイルを選択してください。
B6: 選択ボタン一覧（色で囲んであるところをクリックしてください。）

Sheet ①社会の平均正答数②社会の平均正答率
A1: ①社会の平均正答数②社会の平均正答率
A4: 集計対象
A5: 児童数
A6: =社会!AB1 -> 0 | B6: 人
A8: 観点別集計結果
O9: 1900-01-01
A10: 社会 | O10: 1900-01-01
A11: 観点 | D11: 対象設問数 （問） | E11: 富山県 平均正答率 （％） | F11: 自校 平均正答率 （％） | G11: 自校 平均正答数 （問） | J11: 自校 平均正答率 （％） | M11: 自校 平均正答数 （問）
A12: =社会!BG35 -> 思考・判断・表現 | D12: =社会得点!BA64 -> 7 | E12: =IF(ISERR(社会!F76)*100,0,(社会!F76)*100) -> 57.32857143 | F12: =IF(ISERR(社会!F71)*100,0,(社会!F71)*100) -> 0 | G12: =IF(ISERR(D12*F12)/100,"",(D12*F12)/100) -> 0 | I12: 60 | J12: 50 | M12: =IF(J12="","",D12*J12/100) -> 3.5
A13: =社会!BG36 -> 知識・技能 | D13: =社会得点!BA65 -> 18 | E13: =IF(ISERR(社会!K76)*100,0,(社会!K76)*100) -> 67.2 | F13: =IF(ISERR(社会!K71)*100,0,(社会!K71)*100) -> 0 | G13: =IF(ISERR(D13*F13)/100,"",(D13*F13)/100) -> 0 | I13: 60 | J13: 50 | M13: =IF(J13="","",D13*J13/100) -> 9
A14: =社会!BG37 -> - | D14: =社会得点!BA66 -> 0 | E14: =IF(ISERR(社会!P76)*100,0,(社会!P76)*100) -> 0 | F14: =IF(ISERR(社会!P71)*100,0,(社会!P71)*100) -> 0 | G14: =IF(ISERR(D14*F14)/100,"",(D14*F14)/100) -> 0 | I14: 60 | J14: 50 | M14: =IF(J14="","",D14*J14/100) -> 0
A15: =社会!BG38 -> - | D15: =社会得点!BA67 -> 0 | E15: =IF(ISERR(社会!U71)*100,0,(社会!U76)*100) -> 0 | F15: =IF(ISERR(社会!U71)*100,0,(社会!U71)*100) -> 0 | G15: =IF(ISERR(D15*F15)/100,"",(D15*F15)/100) -> 0
A16: =社会!BG39 -> - | D16: =社会得点!BA68 -> 0 | E16: =IF(ISERR(社会!Z76)*100,0,(社会!Z76)*100) -> 0 | F16: =IF(ISERR(社会!Z71)*100,0,(社会!Z71)*100) -> 0 | G16: =IF(ISERR(D16*F16)/100,"",(D16*F16)/100) -> 0
A17: 設問数・平均正答率・平均正答数 | D17: =SUM(D12:D16) -> 25 | E17: =SUM(E12:E16)/社会!BG41 -> 62.26428571 | F17: =SUM(F12:F16)/社会!BG41 -> 0 | G17: =D17*F17/100 -> 0 | I17: 0 | J17: 0 | K17: 観点数 | M17: =IF(J17="","",#REF!*J17/100) ->  | N17: =社会!BG41 -> 2
A19: ◆社会
B20: 平均正答数
B21: 富山県（ア） | C21: 自校(イ) | D21: 県との差（イーア）
A22: ="社会 "&社会!AX1&"問" -> 社会 25問 | B22: =D17*E17/100 -> 15.56607143 | C22: =G17 -> 0 | D22: =C22-B22 -> -15.56607143
B25: 平均正答率
B26: 富山県(ア) | C26: 自校（イ） | D26: 県との差(イーア)
A27: ="社会 "&社会!AX1&"問" -> 社会 25問 | B27: =E17 -> 62.26428571 | C27: =F17 -> 0 | D27: =C27-B27 -> -62.26428571

Sheet ③社会の正答数別分布
A1: ③社会の正答数別分布
A3: 問題数 | B3: =社会!AX1 -> 25
A6: ◆社会 | D6: ◆社会
A7: 正答数別の児童数(人) | D7: 正答数 | E7: 富山県％（ア） | F7: 自校％(イ) | G7: 県との差(イーア)
A8: 0問 | B8: =社会得点!BD3 -> 0 | D8: 0問 | E8: =社会得点!BG3 -> 0 | F8: =IF(B8="","",B8/B$59*100) ->  | G8: =IF($F8="","",$F8-$E8) -> 
A9: 1問 | B9: =社会得点!BD4 -> 0 | D9: 1問 | E9: =社会得点!BG4 -> 78.3
A10: 2問 | B10: =社会得点!BD5 -> 0 | D10: 2問 | E10: =社会得点!BG5 -> 52.3
A11: 3問 | B11: =社会得点!BD6 -> 0 | D11: 3問 | E11: =社会得点!BG6 -> 29
A12: 4問 | B12: =社会得点!BD7 -> 0 | D12: 4問 | E12: =社会得点!BG7 -> 78.3
A13: 5問 | B13: =社会得点!BD8 -> 0 | D13: 5問 | E13: =社会得点!BG8 -> 33.8
A14: 6問 | B14: =社会得点!BD9 -> 0 | D14: 6問 | E14: =社会得点!BG9 -> 35.9
A15: 7問 | B15: =社会得点!BD10 -> 0 | D15: 7問 | E15: =社会得点!BG10 -> 68.9
A16: 8問 | B16: =社会得点!BD11 -> 0 | D16: 8問 | E16: =社会得点!BG11 -> 65.5
A17: 9問 | B17: =社会得点!BD12 -> 0 | D17: 9問 | E17: =社会得点!BG12 -> 55.4
A18: 10問 | B18: =社会得点!BD13 -> 0 | D18: 10問 | E18: =社会得点!BG13 -> 73.2
A19: 11問 | B19: =社会得点!BD14 -> 0 | D19: 11問 | E19: =社会得点!BG14 -> 100
A20: 12問 | B20: =社会得点!BD15 -> 0 | D20: 12問 | E20: =社会得点!BG15 -> 92.1
A21: 13問 | B21: =社会得点!BD16 -> 0 | D21: 13問 | E21: =社会得点!BG16 -> 84.1
A22: 14問 | B22: =社会得点!BD17 -> 0 | D22: 14問 | E22: =社会得点!BG17 -> 70.6
A23: 15問 | B23: =社会得点!BD18 -> 0 | D23: 15問 | E23: =社会得点!BG18 -> 53.5
A24: 16問 | B24: =社会得点!BD19 -> 0 | D24: 16問 | E24: =社会得点!BG19 -> 83.9
A25: 17問 | B25: =社会得点!BD20 -> 0 | D25: 17問 | E25: =社会得点!BG20 -> 88.6
A26: 18問 | B26: =社会得点!BD21 -> 0 | D26: 18問 | E26: =社会得点!BG21 -> 57.7
A27: 19問 | B27: =社会得点!BD22 -> 0 | D27: 19問 | E27: =社会得点!BG22 -> 52.8
A28: 20問 | B28: =社会得点!BD23 -> 0 | D28: 20問 | E28: =社会得点!BG23 -> 27.9
A29: 21問 | B29: =社会得点!BD24 -> 0 | D29: 21問 | E29: =社会得点!BG24 -> 89.2
A30: 22問 | B30: =社会得点!BD25 -> 0 | D30: 22問 | E30: =社会得点!BG25 -> 73.9
A31: 23問 | B31: =社会得点!BD26 -> 0 | D31: 23問 | E31: =社会得点!BG26 -> 60.3
A32: 24問 | B32: =社会得点!BD27 -> 0 | D32: 24問 | E32: =社会得点!BG27 -> 47.7
A33: 25問 | B33: =社会得点!BD28 -> 0 | D33: 25問 | E33: =社会得点!BG28 -> 58
A34: 26問 | B34: =社会得点!BD29 -> 0 | D34: 26問 | E34: =社会得点!BG29 -> 0
A35: 27問 | B35: =社会得点!BD30 -> 0 | D35: 27問 | E35: =社会得点!BG30 -> 0
A36: 28問 | B36: =社会得点!BD31 -> 0 | D36: 28問 | E36: =社会得点!BG31 -> 0
A37: 29問 | B37: =社会得点!BD32 -> 0 | D37: 29問 | E37: =社会得点!BG32 -> 0
A38: 30問 | B38: =社会得点!BD33 -> 0 | D38: 30問 | E38: =社会得点!BG33 -> 0
A39: 31問 | B39: =社会得点!BD34 -> 0 | D39: 31問 | E39: =社会得点!BG34 -> 0
A40: 32問 | B40: =社会得点!BD35 -> 0 | D40: 32問 | E40: =社会得点!BG35 -> 0 | F40: =IF(B40="","",B40/B$59*100) ->  | G40: =IF($F40="","",$F40-$E40) -> 
A41: 33問 | B41: =社会得点!BD36 -> 0 | D41: 33問 | E41: =社会得点!BG36 -> 0
A42: 34問 | B42: =社会得点!BD37 -> 0 | D42: 34問 | E42: =社会得点!BG37 -> 0
A43: 35問 | B43: =社会得点!BD38 -> 0 | D43: 35問 | E43: =社会得点!BG38 -> 0
A44: 36問 | B44: =社会得点!BD39 -> 0 | D44: 36問 | E44: =社会得点!BG39 -> 0
A45: 37問 | B45: =社会得点!BD40 -> 0 | D45: 37問 | E45: =社会得点!BG40 -> 0
A46: 38問 | B46: =社会得点!BD41 -> 0 | D46: 38問 | E46: =社会得点!BG41 -> 0
A47: 39問 | B47: =社会得点!BD42 -> 0 | D47: 39問 | E47: =社会得点!BG42 -> 0
A48: 40問 | B48: =社会得点!BD43 -> 0 | D48: 40問 | E48: =社会得点!BG43 -> 0
A49: 41問 | B49: =社会得点!BD44 -> 0 | D49: 41問 | E49: =社会得点!BG44 -> 0
A50: 42問 | B50: =社会得点!BD45 -> 0 | D50: 42問 | E50: =社会得点!BG45 -> 0
A51: 43問 | B51: =社会得点!BD46 -> 0 | D51: 43問 | E51: =社会得点!BG46 -> 0
A52: 44問 | B52: =社会得点!BD47 -> 0 | D52: 44問 | E52: =社会得点!BG47 -> 0
A53: 45問 | B53: =社会得点!BD48 -> 0 | D53: 45問 | E53: =社会得点!BG48 -> 0
A54: 46問 | B54: =社会得点!BD49 -> 0 | D54: 46問 | E54: =社会得点!BG49 -> 0
A55: 47問 | B55: =社会得点!BD50 -> 0 | D55: 47問 | E55: =社会得点!BG50 -> 0
A56: 48問 | B56: =社会得点!BD51 -> 0 | D56: 48問 | E56: =社会得点!BG51 -> 0
A57: 49問 | B57: =社会得点!BD52 -> 0 | D57: 49問 | E57: =社会得点!BG52 -> 0
A58: 50問 | B58: =社会得点!BD53 -> 0 | D58: 50問 | E58: =社会得点!BG53 -> 0
A59: 児童数合計 | B59: =社会得点!BD54 -> 0 | D59: 合計 | E59: =社会得点!BG54 -> 1610.9 | F59: =SUM(F8:F58) -> 

Sheet ④社会の問題別正答率
A1: ④社会の問題別正答率
C3: 問題数 | D3: =社会!AX1 -> 25
A4: ◆社会
A5: 問題通し番号 | B5: 問題 番号 | C5: 小問題 | D5: 問題の領域 | E5: 学習指導要領の領域等 | I5: 観点 | N5: 問題形式 | Q5: 正答率
I6: =社会!BG35 -> 思考・判断・表現 | J6: =社会!BG36 -> 知識・技能 | K6: =社会!BG37 -> - | L6: =社会!BG38 -> - | M6: =社会!BG39 -> - | N6: 選択式 | O6: 短答式 | P6: 記述式 | Q6: 富山県（ア） | R6: 自校（イ） | S6: 富山県との差（イ-ア)
A7: 1 | B7: =社会得点!BJ4 -> 1 | C7: =社会得点!BK4 -> （1）① | D7: =社会得点!BL4 -> わたしたちの国土 | I7: =IF(社会!$E$9=社会!$BF$35,"○","") ->  | J7: =IF(社会!$E$9=社会!$BF$36,"○","") -> ○ | K7: =IF(社会!$E$9=社会!$BF$37,"○","") ->  | L7: =IF(社会!$E$9=社会!$BF$38,"○","") ->  | M7: =IF(社会!$E$9=社会!$BF$39,"○","") ->  | Q7: =社会得点!B$58*100 -> 78.3 | R7: =社会!E$64*100 ->  | S7: =IF($R7="","",$R7-$Q7) -> 
A8: 2 | B8: =社会得点!BJ5 -> 1 | C8: =社会得点!BK5 -> （1）② | D8: =社会得点!BL5 -> わたしたちの国土 | I8: =IF(社会!$F$9=社会!$BF$35,"○","") ->  | J8: =IF(社会!$F$9=社会!$BF$36,"○","") -> ○ | K8: =IF(社会!$F$9=社会!$BF$37,"○","") ->  | L8: =IF(社会!$F$9=社会!$BF$38,"○","") ->  | M8: =IF(社会!$F$9=社会!$BF$39,"○","") ->  | Q8: =社会得点!C$58*100 -> 52.3 | R8: =社会!F$64*100 -> 
A9: 3 | B9: =社会得点!BJ6 -> 1 | C9: =社会得点!BK6 -> （1）③ | D9: =社会得点!BL6 -> わたしたちの国土 | I9: =IF(社会!$G$9=社会!$BF$35,"○","") ->  | J9: =IF(社会!$G$9=社会!$BF$36,"○","") -> ○ | K9: =IF(社会!$G$9=社会!$BF$37,"○","") ->  | L9: =IF(社会!$G$9=社会!$BF$38,"○","") ->  | M9: =IF(社会!$G$9=社会!$BF$39,"○","") ->  | Q9: =社会得点!D$58*100 -> 29 | R9: =社会!G$64*100 -> 
A10: 4 | B10: =社会得点!BJ7 -> 1 | C10: =社会得点!BK7 -> （2） | D10: =社会得点!BL7 -> わたしたちの国土 | I10: =IF(社会!$H$9=社会!$BF$35,"○","") ->  | J10: =IF(社会!$H$9=社会!$BF$36,"○","") -> ○ | K10: =IF(社会!$H$9=社会!$BF$37,"○","") ->  | L10: =IF(社会!$H$9=社会!$BF$38,"○","") ->  | M10: =IF(社会!$H$9=社会!$BF$39,"○","") ->  | Q10: =社会得点!E$58*100 -> 78.3 | R10: =社会!H$64*100 -> 
A11: 5 | B11: =社会得点!BJ8 -> 1 | C11: =社会得点!BK8 -> （3） | D11: =社会得点!BL8 -> わたしたちの国土 | I11: =IF(社会!$I$9=社会!$BF$35,"○","") -> ○ | J11: =IF(社会!$I$9=社会!$BF$36,"○","") ->  | K11: =IF(社会!$I$9=社会!$BF$37,"○","") ->  | L11: =IF(社会!$I$9=社会!$BF$38,"○","") ->  | M11: =IF(社会!$I$9=社会!$BF$39,"○","") ->  | Q11: =社会得点!F$58*100 -> 33.8 | R11: =社会!I$64*100 -> 
A12: 6 | B12: =社会得点!BJ9 -> 2 | C12: =社会得点!BK9 -> （1） | D12: =社会得点!BL9 -> 米づくりのさかんな地域 | I12: =IF(社会!$J$9=社会!$BF$35,"○","") ->  | J12: =IF(社会!$J$9=社会!$BF$36,"○","") -> ○ | K12: =IF(社会!$J$9=社会!$BF$37,"○","") ->  | L12: =IF(社会!$J$9=社会!$BF$38,"○","") ->  | M12: =IF(社会!$J$9=社会!$BF$39,"○","") ->  | Q12: =社会得点!G$58*100 -> 35.9 | R12: =社会!J$64*100 -> 
A13: 7 | B13: =社会得点!BJ10 -> 2 | C13: =社会得点!BK10 -> （2）ゆか | D13: =社会得点!BL10 -> 米づくりのさかんな地域 | I13: =IF(社会!$K$9=社会!$BF$35,"○","") ->  | J13: =IF(社会!$K$9=社会!$BF$36,"○","") -> ○ | K13: =IF(社会!$K$9=社会!$BF$37,"○","") ->  | L13: =IF(社会!$K$9=社会!$BF$38,"○","") ->  | M13: =IF(社会!$K$9=社会!$BF$39,"○","") ->  | Q13: =社会得点!H$58*100 -> 68.9 | R13: =社会!K$64*100 -> 
A14: 8 | B14: =社会得点!BJ11 -> 2 | C14: =社会得点!BK11 -> （2）しんいち | D14: =社会得点!BL11 -> 米づくりのさかんな地域 | I14: =IF(社会!$L$9=社会!$BF$35,"○","") ->  | J14: =IF(社会!$L$9=社会!$BF$36,"○","") -> ○ | K14: =IF(社会!$L$9=社会!$BF$37,"○","") ->  | L14: =IF(社会!$L$9=社会!$BF$38,"○","") ->  | M14: =IF(社会!$L$9=社会!$BF$39,"○","") ->  | Q14: =社会得点!I$58*100 -> 65.5 | R14: =社会!L$64*100 -> 
A15: 9 | B15: =社会得点!BJ12 -> 2 | C15: =社会得点!BK12 -> （3） | D15: =社会得点!BL12 -> 米づくりのさかんな地域 | I15: =IF(社会!$M$9=社会!$BF$35,"○","") -> ○ | J15: =IF(社会!$M$9=社会!$BF$36,"○","") ->  | K15: =IF(社会!$M$9=社会!$BF$37,"○","") ->  | L15: =IF(社会!$M$9=社会!$BF$38,"○","") ->  | M15: =IF(社会!$M$9=社会!$BF$39,"○","") ->  | Q15: =社会得点!J$58*100 -> 55.4 | R15: =社会!M$64*100 -> 
A16: 10 | B16: =社会得点!BJ13 -> 3 | C16: =社会得点!BK13 -> （1）あ | D16: =社会得点!BL13 -> 水産業のさかんな地域 | I16: =IF(社会!$N$9=社会!$BF$35,"○","") ->  | J16: =IF(社会!$N$9=社会!$BF$36,"○","") -> ○ | K16: =IF(社会!$N$9=社会!$BF$37,"○","") ->  | L16: =IF(社会!$N$9=社会!$BF$38,"○","") ->  | M16: =IF(社会!$N$9=社会!$BF$39,"○","") ->  | Q16: =社会得点!K$58*100 -> 73.2 | R16: =社会!N$64*100 -> 
A17: 11 | B17: =社会得点!BJ14 -> 3 | C17: =社会得点!BK14 -> （1）い | D17: =社会得点!BL14 -> 水産業のさかんな地域 | I17: =IF(社会!$O$9=社会!$BF$35,"○","") ->  | J17: =IF(社会!$O$9=社会!$BF$36,"○","") -> ○ | K17: =IF(社会!$O$9=社会!$BF$37,"○","") ->  | L17: =IF(社会!$O$9=社会!$BF$38,"○","") ->  | M17: =IF(社会!$O$9=社会!$BF$39,"○","") ->  | Q17: =社会得点!L$58*100 -> 100 | R17: =社会!O$64*100 -> 
A18: 12 | B18: =社会得点!BJ15 -> 3 | C18: =社会得点!BK15 -> （2） | D18: =社会得点!BL15 -> 水産業のさかんな地域 | I18: =IF(社会!$P$9=社会!$BF$35,"○","") ->  | J18: =IF(社会!$P$9=社会!$BF$36,"○","") -> ○ | K18: =IF(社会!$P$9=社会!$BF$37,"○","") ->  | L18: =IF(社会!$P$9=社会!$BF$38,"○","") ->  | M18: =IF(社会!$P$9=社会!$BF$39,"○","") ->  | Q18: =社会得点!M$58*100 -> 92.1 | R18: =社会!P$64*100 -> 
A19: 13 | B19: =社会得点!BJ16 -> 3 | C19: =社会得点!BK16 -> （3） | D19: =社会得点!BL16 -> 水産業のさかんな地域 | I19: =IF(社会!$Q$9=社会!$BF$35,"○","") -> ○ | J19: =IF(社会!$Q$9=社会!$BF$36,"○","") ->  | K19: =IF(社会!$Q$9=社会!$BF$37,"○","") ->  | L19: =IF(社会!$Q$9=社会!$BF$38,"○","") ->  | M19: =IF(社会!$Q$9=社会!$BF$39,"○","") ->  | Q19: =社会得点!N$58*100 -> 84.1 | R19: =社会!Q$64*100 -> 
A20: 14 | B20: =社会得点!BJ17 -> 4 | C20: =社会得点!BK17 -> （1） | D20: =社会得点!BL17 -> わたしたちの生活と工業生産 | I20: =IF(社会!$R$9=社会!$BF$35,"○","") ->  | J20: =IF(社会!$R$9=社会!$BF$36,"○","") -> ○ | K20: =IF(社会!$R$9=社会!$BF$37,"○","") ->  | L20: =IF(社会!$R$9=社会!$BF$38,"○","") ->  | M20: =IF(社会!$R$9=社会!$BF$39,"○","") ->  | Q20: =社会得点!O$58*100 -> 70.6 | R20: =社会!R$64*100 -> 
A21: 15 | B21: =社会得点!BJ18 -> 4 | C21: =社会得点!BK18 -> （2） | D21: =社会得点!BL18 -> わたしたちの生活と工業生産 | I21: =IF(社会!$S$9=社会!$BF$35,"○","") -> ○ | J21: =IF(社会!$S$9=社会!$BF$36,"○","") ->  | K21: =IF(社会!$S$9=社会!$BF$37,"○","") ->  | L21: =IF(社会!$S$9=社会!$BF$38,"○","") ->  | M21: =IF(社会!$S$9=社会!$BF$39,"○","") ->  | Q21: =社会得点!P$58*100 -> 53.5 | R21: =社会!S$64*100 -> 
A22: 16 | B22: =社会得点!BJ19 -> 4 | C22: =社会得点!BK19 -> （3） | D22: =社会得点!BL19 -> わたしたちの生活と工業生産 | I22: =IF(社会!$T$9=社会!$BF$35,"○","") ->  | J22: =IF(社会!$T$9=社会!$BF$36,"○","") -> ○ | K22: =IF(社会!$T$9=社会!$BF$37,"○","") ->  | L22: =IF(社会!$T$9=社会!$BF$38,"○","") ->  | M22: =IF(社会!$T$9=社会!$BF$39,"○","") ->  | Q22: =社会得点!Q$58*100 -> 83.9 | R22: =社会!T$64*100 -> 
A23: 17 | B23: =社会得点!BJ20 -> 4 | C23: =社会得点!BK20 -> （4） | D23: =社会得点!BL20 -> わたしたちの生活と工業生産 | I23: =IF(社会!$U$9=社会!$BF$35,"○","") -> ○ | J23: =IF(社会!$U$9=社会!$BF$36,"○","") ->  | K23: =IF(社会!$U$9=社会!$BF$37,"○","") ->  | L23: =IF(社会!$U$9=社会!$BF$38,"○","") ->  | M23: =IF(社会!$U$9=社会!$BF$39,"○","") ->  | Q23: =社会得点!R$58*100 -> 88.6 | R23: =社会!U$64*100 -> 
A24: 18 | B24: =社会得点!BJ21 -> 5 | C24: =社会得点!BK21 -> （1） | D24: =社会得点!BL21 -> 情報化した社会と産業の発展 | I24: =IF(社会!$V$9=社会!$BF$35,"○","") ->  | J24: =IF(社会!$V$9=社会!$BF$36,"○","") -> ○ | K24: =IF(社会!$V$9=社会!$BF$37,"○","") ->  | L24: =IF(社会!$V$9=社会!$BF$38,"○","") ->  | M24: =IF(社会!$V$9=社会!$BF$39,"○","") ->  | Q24: =社会得点!S$58*100 -> 57.7 | R24: =社会!V$64*100 -> 
A25: 19 | B25: =社会得点!BJ22 -> 5 | C25: =社会得点!BK22 -> （2） | D25: =社会得点!BL22 -> 情報化した社会と産業の発展 | I25: =IF(社会!$W$9=社会!$BF$35,"○","") ->  | J25: =IF(社会!$W$9=社会!$BF$36,"○","") -> ○ | K25: =IF(社会!$W$9=社会!$BF$37,"○","") ->  | L25: =IF(社会!$W$9=社会!$BF$38,"○","") ->  | M25: =IF(社会!$W$9=社会!$BF$39,"○","") ->  | Q25: =社会得点!T$58*100 -> 52.8 | R25: =社会!W$64*100 -> 
A26: 20 | B26: =社会得点!BJ23 -> 5 | C26: =社会得点!BK23 -> （3） | D26: =社会得点!BL23 -> 情報化した社会と産業の発展 | I26: =IF(社会!$X$9=社会!$BF$35,"○","") -> ○ | J26: =IF(社会!$X$9=社会!$BF$36,"○","") ->  | K26: =IF(社会!$X$9=社会!$BF$37,"○","") ->  | L26: =IF(社会!$X$9=社会!$BF$38,"○","") ->  | M26: =IF(社会!$X$9=社会!$BF$39,"○","") ->  | Q26: =社会得点!U$58*100 -> 27.9 | R26: =社会!X$64*100 -> 
A27: 21 | B27: =社会得点!BJ24 -> 5 | C27: =社会得点!BK24 -> （4） | D27: =社会得点!BL24 -> 情報化した社会と産業の発展 | I27: =IF(社会!$Y$9=社会!$BF$35,"○","") ->  | J27: =IF(社会!$Y$9=社会!$BF$36,"○","") -> ○ | K27: =IF(社会!$Y$9=社会!$BF$37,"○","") ->  | L27: =IF(社会!$Y$9=社会!$BF$38,"○","") ->  | M27: =IF(社会!$Y$9=社会!$BF$39,"○","") ->  | Q27: =社会得点!V$58*100 -> 89.2 | R27: =社会!Y$64*100 -> 
A28: 22 | B28: =社会得点!BJ25 -> 6 | C28: =社会得点!BK25 -> （1）ABC | D28: =社会得点!BL25 -> わたしたちの生活と環境 | I28: =IF(社会!$Z$9=社会!$BF$35,"○","") ->  | J28: =IF(社会!$Z$9=社会!$BF$36,"○","") -> ○ | K28: =IF(社会!$Z$9=社会!$BF$37,"○","") ->  | L28: =IF(社会!$Z$9=社会!$BF$38,"○","") ->  | M28: =IF(社会!$Z$9=社会!$BF$39,"○","") ->  | Q28: =社会得点!W$58*100 -> 73.9 | R28: =社会!Z$64*100 -> 
A29: 23 | B29: =社会得点!BJ26 -> 6 | C29: =社会得点!BK26 -> （2） | D29: =社会得点!BL26 -> わたしたちの生活と環境 | I29: =IF(社会!$AA$9=社会!$BF$35,"○","") ->  | J29: =IF(社会!$AA$9=社会!$BF$36,"○","") -> ○ | K29: =IF(社会!$AA$9=社会!$BF$37,"○","") ->  | L29: =IF(社会!$AA$9=社会!$BF$38,"○","") ->  | M29: =IF(社会!$AA$9=社会!$BF$39,"○","") ->  | Q29: =社会得点!X$58*100 -> 60.3 | R29: =社会!AA$64*100 -> 
A30: 24 | B30: =社会得点!BJ27 -> 6 | C30: =社会得点!BK27 -> （3）あいうえ | D30: =社会得点!BL27 -> わたしたちの生活と環境 | I30: =IF(社会!$AB$9=社会!$BF$35,"○","") ->  | J30: =IF(社会!$AB$9=社会!$BF$36,"○","") -> ○ | K30: =IF(社会!$AB$9=社会!$BF$37,"○","") ->  | L30: =IF(社会!$AB$9=社会!$BF$38,"○","") ->  | M30: =IF(社会!$AB$9=社会!$BF$39,"○","") ->  | Q30: =社会得点!Y$58*100 -> 47.7 | R30: =社会!AB$64*100 -> 
A31: 25 | B31: =社会得点!BJ28 -> 6 | C31: =社会得点!BK28 -> （4） | D31: =社会得点!BL28 -> わたしたちの生活と環境 | I31: =IF(社会!$AC$9=社会!$BF$35,"○","") -> ○ | J31: =IF(社会!$AC$9=社会!$BF$36,"○","") ->  | K31: =IF(社会!$AC$9=社会!$BF$37,"○","") ->  | L31: =IF(社会!$AC$9=社会!$BF$38,"○","") ->  | M31: =IF(社会!$AC$9=社会!$BF$39,"○","") ->  | Q31: =社会得点!Z$58*100 -> 58 | R31: =社会!AC$64*100 -> 
A32: 26 | B32: =社会得点!BJ29 -> 0 | C32: =社会得点!BK29 -> 0 | D32: =社会得点!BL29 -> 0 | I32: =IF(社会!$AD$9=社会!$BF$35,"○","") ->  | J32: =IF(社会!$AD$9=社会!$BF$36,"○","") ->  | K32: =IF(社会!$AD$9=社会!$BF$37,"○","") ->  | L32: =IF(社会!$AD$9=社会!$BF$38,"○","") ->  | M32: =IF(社会!$AD$9=社会!$BF$39,"○","") ->  | Q32: =社会得点!AA$58*100 -> 0 | R32: =社会!AD$64*100 -> 
A33: 27 | B33: =社会得点!BJ30 -> 0 | C33: =社会得点!BK30 -> 0 | D33: =社会得点!BL30 -> 0 | I33: =IF(社会!$AE$9=社会!$BF$35,"○","") ->  | J33: =IF(社会!$AE$9=社会!$BF$36,"○","") ->  | K33: =IF(社会!$AE$9=社会!$BF$37,"○","") ->  | L33: =IF(社会!$AE$9=社会!$BF$38,"○","") ->  | M33: =IF(社会!$AE$9=社会!$BF$39,"○","") ->  | Q33: =社会得点!AB$58*100 -> 0 | R33: =社会!AE$64*100 -> 
A34: 28 | B34: =社会得点!BJ31 -> 0 | C34: =社会得点!BK31 -> 0 | D34: =社会得点!BL31 -> 0 | I34: =IF(社会!$AF$9=社会!$BF$35,"○","") ->  | J34: =IF(社会!$AF$9=社会!$BF$36,"○","") ->  | K34: =IF(社会!$AF$9=社会!$BF$37,"○","") ->  | L34: =IF(社会!$AF$9=社会!$BF$38,"○","") ->  | M34: =IF(社会!$AF$9=社会!$BF$39,"○","") ->  | Q34: =社会得点!AC$58*100 -> 0 | R34: =社会!AF$64*100 -> 
A35: 29 | B35: =社会得点!BJ32 -> 0 | C35: =社会得点!BK32 -> 0 | D35: =社会得点!BL32 -> 0 | I35: =IF(社会!$AG$9=社会!$BF$35,"○","") ->  | J35: =IF(社会!$AG$9=社会!$BF$36,"○","") ->  | K35: =IF(社会!$AG$9=社会!$BF$37,"○","") ->  | L35: =IF(社会!$AG$9=社会!$BF$38,"○","") ->  | M35: =IF(社会!$AG$9=社会!$BF$39,"○","") ->  | Q35: =社会得点!AD$58*100 -> 0 | R35: =社会!AG$64*100 -> 
A36: 30 | B36: =社会得点!BJ33 -> 0 | C36: =社会得点!BK33 -> 0 | D36: =社会得点!BL33 -> 0 | I36: =IF(社会!$AH$9=社会!$BF$35,"○","") ->  | J36: =IF(社会!$AH$9=社会!$BF$36,"○","") ->  | K36: =IF(社会!$AH$9=社会!$BF$37,"○","") ->  | L36: =IF(社会!$AH$9=社会!$BF$38,"○","") ->  | M36: =IF(社会!$AH$9=社会!$BF$39,"○","") ->  | Q36: =社会得点!AE$58*100 -> 0 | R36: =社会!AH$64*100 -> 
A37: 31 | B37: =社会得点!BJ34 -> 0 | C37: =社会得点!BK34 -> 0 | D37: =社会得点!BL34 -> 0 | I37: =IF(社会!$AI$9=社会!$BF$35,"○","") ->  | J37: =IF(社会!$AI$9=社会!$BF$36,"○","") ->  | K37: =IF(社会!$AI$9=社会!$BF$37,"○","") ->  | L37: =IF(社会!$AI$9=社会!$BF$38,"○","") ->  | M37: =IF(社会!$AI$9=社会!$BF$39,"○","") ->  | Q37: =社会得点!AF$58*100 -> 0 | R37: =社会!AI$64*100 -> 
A38: 32 | B38: =社会得点!BJ35 -> 0 | C38: =社会得点!BK35 -> 0 | D38: =社会得点!BL35 -> 0 | I38: =IF(社会!$AJ$9=社会!$BF$35,"○","") ->  | J38: =IF(社会!$AJ$9=社会!$BF$36,"○","") ->  | K38: =IF(社会!$AJ$9=社会!$BF$37,"○","") ->  | L38: =IF(社会!$AJ$9=社会!$BF$38,"○","") ->  | M38: =IF(社会!$AJ$9=社会!$BF$39,"○","") ->  | Q38: =社会得点!AG$58*100 -> 0 | R38: =社会!AJ$64*100 ->  | S38: =IF($R38="","",$R38-$Q38) -> 
A39: 33 | B39: =社会得点!BJ36 -> 0 | C39: =社会得点!BK36 -> 0 | D39: =社会得点!BL36 -> 0 | I39: =IF(社会!$AK$9=社会!$BF$35,"○","") ->  | J39: =IF(社会!$AK$9=社会!$BF$36,"○","") ->  | K39: =IF(社会!$AK$9=社会!$BF$37,"○","") ->  | L39: =IF(社会!$AK$9=社会!$BF$38,"○","") ->  | M39: =IF(社会!$AK$9=社会!$BF$39,"○","") ->  | Q39: =社会得点!AH$58*100 -> 0 | R39: =社会!AK$64*100 -> 
A40: 34 | B40: =社会得点!BJ37 -> 0 | C40: =社会得点!BK37 -> 0 | D40: =社会得点!BL37 -> 0 | I40: =IF(社会!$AL$9=社会!$BF$35,"○","") ->  | J40: =IF(社会!$AL$9=社会!$BF$36,"○","") ->  | K40: =IF(社会!$AL$9=社会!$BF$37,"○","") ->  | L40: =IF(社会!$AL$9=社会!$BF$38,"○","") ->  | M40: =IF(社会!$AL$9=社会!$BF$39,"○","") ->  | Q40: =社会得点!AI$58*100 -> 0 | R40: =社会!AL$64*100 -> 
A41: 35 | B41: =社会得点!BJ38 -> 0 | C41: =社会得点!BK38 -> 0 | D41: =社会得点!BL38 -> 0 | I41: =IF(社会!$AM$9=社会!$BF$35,"○","") ->  | J41: =IF(社会!$AM$9=社会!$BF$36,"○","") ->  | K41: =IF(社会!$AM$9=社会!$BF$37,"○","") ->  | L41: =IF(社会!$AM$9=社会!$BF$38,"○","") ->  | M41: =IF(社会!$AM$9=社会!$BF$39,"○","") ->  | Q41: =社会得点!AJ$58*100 -> 0 | R41: =社会!AM$64*100 -> 
A42: 36 | B42: =社会得点!BJ39 -> 0 | C42: =社会得点!BK39 -> 0 | D42: =社会得点!BL39 -> 0 | I42: =IF(社会!$AN$9=社会!$BF$35,"○","") ->  | J42: =IF(社会!$AN$9=社会!$BF$36,"○","") ->  | K42: =IF(社会!$AN$9=社会!$BF$37,"○","") ->  | L42: =IF(社会!$AN$9=社会!$BF$38,"○","") ->  | M42: =IF(社会!$AN$9=社会!$BF$39,"○","") ->  | Q42: =社会得点!AK$58*100 -> 0 | R42: =社会!AN$64*100 -> 
A43: 37 | B43: =社会得点!BJ40 -> 0 | C43: =社会得点!BK40 -> 0 | D43: =社会得点!BL40 -> 0 | I43: =IF(社会!$AO$9=社会!$BF$35,"○","") ->  | J43: =IF(社会!$AO$9=社会!$BF$36,"○","") ->  | K43: =IF(社会!$AO$9=社会!$BF$37,"○","") ->  | L43: =IF(社会!$AO$9=社会!$BF$38,"○","") ->  | M43: =IF(社会!$AO$9=社会!$BF$39,"○","") ->  | Q43: =社会得点!AL$58*100 -> 0 | R43: =社会!AO$64*100 -> 
A44: 38 | B44: =社会得点!BJ41 -> 0 | C44: =社会得点!BK41 -> 0 | D44: =社会得点!BL41 -> 0 | I44: =IF(社会!$AP$9=社会!$BF$35,"○","") ->  | J44: =IF(社会!$AP$9=社会!$BF$36,"○","") ->  | K44: =IF(社会!$AP$9=社会!$BF$37,"○","") ->  | L44: =IF(社会!$AP$9=社会!$BF$38,"○","") ->  | M44: =IF(社会!$AP$9=社会!$BF$39,"○","") ->  | Q44: =社会得点!AM$58*100 -> 0 | R44: =社会!AP$64*100 -> 
A45: 39 | B45: =社会得点!BJ42 -> 0 | C45: =社会得点!BK42 -> 0 | D45: =社会得点!BL42 -> 0 | I45: =IF(社会!$AQ$9=社会!$BF$35,"○","") ->  | J45: =IF(社会!$AQ$9=社会!$BF$36,"○","") ->  | K45: =IF(社会!$AQ$9=社会!$BF$37,"○","") ->  | L45: =IF(社会!$AQ$9=社会!$BF$38,"○","") ->  | M45: =IF(社会!$AQ$9=社会!$BF$39,"○","") ->  | Q45: =社会得点!AN$58*100 -> 0 | R45: =社会!AQ$64*100 -> 
A46: 40 | B46: =社会得点!BJ43 -> 0 | C46: =社会得点!BK43 -> 0 | D46: =社会得点!BL43 -> 0 | I46: =IF(社会!$AR$9=社会!$BF$35,"○","") ->  | J46: =IF(社会!$AR$9=社会!$BF$36,"○","") ->  | K46: =IF(社会!$AR$9=社会!$BF$37,"○","") ->  | L46: =IF(社会!$AR$9=社会!$BF$38,"○","") ->  | M46: =IF(社会!$AR$9=社会!$BF$39,"○","") ->  | Q46: =社会得点!AO$58*100 -> 0 | R46: =社会!AR$64*100 -> 
A47: 41 | B47: =社会得点!BJ44 -> 0 | C47: =社会得点!BK44 -> 0 | D47: =社会得点!BL44 -> 0 | I47: =IF(社会!$AS$9=社会!$BF$35,"○","") ->  | J47: =IF(社会!$AS$9=社会!$BF$36,"○","") ->  | K47: =IF(社会!$AS$9=社会!$BF$37,"○","") ->  | L47: =IF(社会!$AS$9=社会!$BF$38,"○","") ->  | M47: =IF(社会!$AS$9=社会!$BF$39,"○","") ->  | Q47: =社会得点!AP$58*100 -> 0 | R47: =社会!AS$64*100 -> 
A48: 42 | B48: =社会得点!BJ45 -> 0 | C48: =社会得点!BK45 -> 0 | D48: =社会得点!BL45 -> 0 | I48: =IF(社会!$AT$9=社会!$BF$35,"○","") ->  | J48: =IF(社会!$AT$9=社会!$BF$36,"○","") ->  | K48: =IF(社会!$AT$9=社会!$BF$37,"○","") ->  | L48: =IF(社会!$AT$9=社会!$BF$38,"○","") ->  | M48: =IF(社会!$AT$9=社会!$BF$39,"○","") ->  | Q48: =社会得点!AQ$58*100 -> 0 | R48: =社会!AT$64*100 -> 
A49: 43 | B49: =社会得点!BJ46 -> 0 | C49: =社会得点!BK46 -> 0 | D49: =社会得点!BL46 -> 0 | I49: =IF(社会!$AU$9=社会!$BF$35,"○","") ->  | J49: =IF(社会!$AU$9=社会!$BF$36,"○","") ->  | K49: =IF(社会!$AU$9=社会!$BF$37,"○","") ->  | L49: =IF(社会!$AU$9=社会!$BF$38,"○","") ->  | M49: =IF(社会!$AU$9=社会!$BF$39,"○","") ->  | Q49: =社会得点!AR$58*100 -> 0 | R49: =社会!AU$64*100 -> 
A50: 44 | B50: =社会得点!BJ47 -> 0 | C50: =社会得点!BK47 -> 0 | D50: =社会得点!BL47 -> 0 | I50: =IF(社会!$AV$9=社会!$BF$35,"○","") ->  | J50: =IF(社会!$AV$9=社会!$BF$36,"○","") ->  | K50: =IF(社会!$AV$9=社会!$BF$37,"○","") ->  | L50: =IF(社会!$AV$9=社会!$BF$38,"○","") ->  | M50: =IF(社会!$AV$9=社会!$BF$39,"○","") ->  | Q50: =社会得点!AS$58*100 -> 0 | R50: =社会!AV$64*100 -> 
A51: 45 | B51: =社会得点!BJ48 -> 0 | C51: =社会得点!BK48 -> 0 | D51: =社会得点!BL48 -> 0 | I51: =IF(社会!$AW$9=社会!$BF$35,"○","") ->  | J51: =IF(社会!$AW$9=社会!$BF$36,"○","") ->  | K51: =IF(社会!$AW$9=社会!$BF$37,"○","") ->  | L51: =IF(社会!$AW$9=社会!$BF$38,"○","") ->  | M51: =IF(社会!$AW$9=社会!$BF$39,"○","") ->  | Q51: =社会得点!AT$58*100 -> 0 | R51: =社会!AW$64*100 ->  | S51: =IF($R51="","",$R51-$Q51) -> 
A52: 46 | B52: =社会得点!BJ49 -> 0 | C52: =社会得点!BK49 -> 0 | D52: =社会得点!BL49 -> 0 | I52: =IF(社会!$AX$9=社会!$BF$35,"○","") ->  | J52: =IF(社会!$AX$9=社会!$BF$36,"○","") ->  | K52: =IF(社会!$AX$9=社会!$BF$37,"○","") ->  | L52: =IF(社会!$AX$9=社会!$BF$38,"○","") ->  | M52: =IF(社会!$AX$9=社会!$BF$39,"○","") ->  | Q52: =社会得点!AU$58*100 -> 0 | R52: =社会!AX$64*100 -> 
A53: 47 | B53: =社会得点!BJ50 -> 0 | C53: =社会得点!BK50 -> 0 | D53: =社会得点!BL50 -> 0 | I53: =IF(社会!$AY$9=社会!$BF$35,"○","") ->  | J53: =IF(社会!$AY$9=社会!$BF$36,"○","") ->  | K53: =IF(社会!$AY$9=社会!$BF$37,"○","") ->  | L53: =IF(社会!$AY$9=社会!$BF$38,"○","") ->  | M53: =IF(社会!$AY$9=社会!$BF$39,"○","") ->  | Q53: =社会得点!AV$58*100 -> 0 | R53: =社会!AY$64*100 -> 
A54: 48 | B54: =社会得点!BJ51 -> 0 | C54: =社会得点!BK51 -> 0 | D54: =社会得点!BL51 -> 0 | I54: =IF(社会!$AZ$9=社会!$BF$35,"○","") ->  | J54: =IF(社会!$AZ$9=社会!$BF$36,"○","") ->  | K54: =IF(社会!$AZ$9=社会!$BF$37,"○","") ->  | L54: =IF(社会!$AZ$9=社会!$BF$38,"○","") ->  | M54: =IF(社会!$AZ$9=社会!$BF$39,"○","") ->  | Q54: =社会得点!AW$58*100 -> 0 | R54: =社会!AZ$64*100 ->  | S54: =IF($R54="","",$R54-$Q54) -> 
A55: 49 | B55: =社会得点!BJ52 -> 0 | C55: =社会得点!BK52 -> 0 | D55: =社会得点!BL52 -> 0 | I55: =IF(社会!$BA$9=社会!$BF$35,"○","") ->  | J55: =IF(社会!$BA$9=社会!$BF$36,"○","") ->  | K55: =IF(社会!$BA$9=社会!$BF$37,"○","") ->  | L55: =IF(社会!$BA$9=社会!$BF$38,"○","") ->  | M55: =IF(社会!$BA$9=社会!$BF$39,"○","") ->  | Q55: =社会得点!AX$58*100 -> 0 | R55: =社会!BA$64*100 ->  | S55: =IF($R55="","",$R55-$Q55) -> 
A56: 50 | B56: =社会得点!BJ53 -> 0 | C56: =社会得点!BK53 -> 0 | D56: =社会得点!BL53 -> 0 | I56: =IF(社会!$BB$9=社会!$BF$35,"○","") ->  | J56: =IF(社会!$BB$9=社会!$BF$36,"○","") ->  | K56: =IF(社会!$BB$9=社会!$BF$37,"○","") ->  | L56: =IF(社会!$BB$9=社会!$BF$38,"○","") ->  | M56: =IF(社会!$BB$9=社会!$BF$39,"○","") ->  | Q56: =社会得点!AY$58*100 -> 0 | R56: =社会!BB$64*100 -> 
A57: 平均 | Q57: =①社会の平均正答数②社会の平均正答率!B27 -> 62.26428571 | R57: =①社会の平均正答数②社会の平均正答率!C27 -> 0 | S57: =①社会の平均正答数②社会の平均正答率!D27 -> -62.26428571

Sheet ⑤社会の問題別誤答率
A1: ⑤社会の問題別誤答率
C3: 問題数 | D3: =社会!AX1 -> 25
A4: ◆社会
A5: 問題通し番号 | B5: 問題 番号 | C5: 小問題 | D5: 問題の領域 | E5: 学習指導要領の領域等 | I5: 観点 | N5: 問題形式 | Q5: 誤答率
I6: =社会!BG35 -> 思考・判断・表現 | J6: =社会!BG36 -> 知識・技能 | K6: =社会!BG37 -> - | L6: =社会!BG38 -> - | M6: =社会!BG39 -> - | N6: 選択式 | O6: 短答式 | P6: 記述式 | Q6: 富山県（ア） | R6: 自校（イ） | S6: 富山県との差（イ-ア)
A7: 1 | B7: =社会得点!BJ4 -> 1 | C7: =社会得点!BK4 -> （1）① | D7: =社会得点!BL4 -> わたしたちの国土 | I7: =IF(社会!$E$9=社会!$BF$35,"○","") ->  | J7: =IF(社会!$E$9=社会!$BF$36,"○","") -> ○ | K7: =IF(社会!$E$9=社会!$BF$37,"○","") ->  | L7: =IF(社会!$E$9=社会!$BF$38,"○","") ->  | M7: =IF(社会!$E$9=社会!$BF$39,"○","") ->  | Q7: =社会得点!B$59*100 -> 21.1 | R7: =社会!E$65*100 ->  | S7: =IF($R7="","",$R7-$Q7) -> 
A8: 2 | B8: =社会得点!BJ5 -> 1 | C8: =社会得点!BK5 -> （1）② | D8: =社会得点!BL5 -> わたしたちの国土 | I8: =IF(社会!$F$9=社会!$BF$35,"○","") ->  | J8: =IF(社会!$F$9=社会!$BF$36,"○","") -> ○ | K8: =IF(社会!$F$9=社会!$BF$37,"○","") ->  | L8: =IF(社会!$F$9=社会!$BF$38,"○","") ->  | M8: =IF(社会!$F$9=社会!$BF$39,"○","") ->  | Q8: =社会得点!C$59*100 -> 33.9 | R8: =社会!F$65*100 -> 
A9: 3 | B9: =社会得点!BJ6 -> 1 | C9: =社会得点!BK6 -> （1）③ | D9: =社会得点!BL6 -> わたしたちの国土 | I9: =IF(社会!$G$9=社会!$BF$35,"○","") ->  | J9: =IF(社会!$G$9=社会!$BF$36,"○","") -> ○ | K9: =IF(社会!$G$9=社会!$BF$37,"○","") ->  | L9: =IF(社会!$G$9=社会!$BF$38,"○","") ->  | M9: =IF(社会!$G$9=社会!$BF$39,"○","") ->  | Q9: =社会得点!D$59*100 -> 46.9 | R9: =社会!G$65*100 -> 
A10: 4 | B10: =社会得点!BJ7 -> 1 | C10: =社会得点!BK7 -> （2） | D10: =社会得点!BL7 -> わたしたちの国土 | I10: =IF(社会!$H$9=社会!$BF$35,"○","") ->  | J10: =IF(社会!$H$9=社会!$BF$36,"○","") -> ○ | K10: =IF(社会!$H$9=社会!$BF$37,"○","") ->  | L10: =IF(社会!$H$9=社会!$BF$38,"○","") ->  | M10: =IF(社会!$H$9=社会!$BF$39,"○","") ->  | Q10: =社会得点!E$59*100 -> 21 | R10: =社会!H$65*100 -> 
A11: 5 | B11: =社会得点!BJ8 -> 1 | C11: =社会得点!BK8 -> （3） | D11: =社会得点!BL8 -> わたしたちの国土 | I11: =IF(社会!$I$9=社会!$BF$35,"○","") -> ○ | J11: =IF(社会!$I$9=社会!$BF$36,"○","") ->  | K11: =IF(社会!$I$9=社会!$BF$37,"○","") ->  | L11: =IF(社会!$I$9=社会!$BF$38,"○","") ->  | M11: =IF(社会!$I$9=社会!$BF$39,"○","") ->  | Q11: =社会得点!F$59*100 -> 52.1 | R11: =社会!I$65*100 -> 
A12: 6 | B12: =社会得点!BJ9 -> 2 | C12: =社会得点!BK9 -> （1） | D12: =社会得点!BL9 -> 米づくりのさかんな地域 | I12: =IF(社会!$J$9=社会!$BF$35,"○","") ->  | J12: =IF(社会!$J$9=社会!$BF$36,"○","") -> ○ | K12: =IF(社会!$J$9=社会!$BF$37,"○","") ->  | L12: =IF(社会!$J$9=社会!$BF$38,"○","") ->  | M12: =IF(社会!$J$9=社会!$BF$39,"○","") ->  | Q12: =社会得点!G$59*100 -> 39.3 | R12: =社会!J$65*100 -> 
A13: 7 | B13: =社会得点!BJ10 -> 2 | C13: =社会得点!BK10 -> （2）ゆか | D13: =社会得点!BL10 -> 米づくりのさかんな地域 | I13: =IF(社会!$K$9=社会!$BF$35,"○","") ->  | J13: =IF(社会!$K$9=社会!$BF$36,"○","") -> ○ | K13: =IF(社会!$K$9=社会!$BF$37,"○","") ->  | L13: =IF(社会!$K$9=社会!$BF$38,"○","") ->  | M13: =IF(社会!$K$9=社会!$BF$39,"○","") ->  | Q13: =社会得点!H$59*100 -> 30.5 | R13: =社会!K$65*100 -> 
A14: 8 | B14: =社会得点!BJ11 -> 2 | C14: =社会得点!BK11 -> （2）しんいち | D14: =社会得点!BL11 -> 米づくりのさかんな地域 | I14: =IF(社会!$L$9=社会!$BF$35,"○","") ->  | J14: =IF(社会!$L$9=社会!$BF$36,"○","") -> ○ | K14: =IF(社会!$L$9=社会!$BF$37,"○","") ->  | L14: =IF(社会!$L$9=社会!$BF$38,"○","") ->  | M14: =IF(社会!$L$9=社会!$BF$39,"○","") ->  | Q14: =社会得点!I$59*100 -> 33.7 | R14: =社会!L$65*100 -> 
A15: 9 | B15: =社会得点!BJ12 -> 2 | C15: =社会得点!BK12 -> （3） | D15: =社会得点!BL12 -> 米づくりのさかんな地域 | I15: =IF(社会!$M$9=社会!$BF$35,"○","") -> ○ | J15: =IF(社会!$M$9=社会!$BF$36,"○","") ->  | K15: =IF(社会!$M$9=社会!$BF$37,"○","") ->  | L15: =IF(社会!$M$9=社会!$BF$38,"○","") ->  | M15: =IF(社会!$M$9=社会!$BF$39,"○","") ->  | Q15: =社会得点!J$59*100 -> 38.7 | R15: =社会!M$65*100 -> 
A16: 10 | B16: =社会得点!BJ13 -> 3 | C16: =社会得点!BK13 -> （1）あ | D16: =社会得点!BL13 -> 水産業のさかんな地域 | I16: =IF(社会!$N$9=社会!$BF$35,"○","") ->  | J16: =IF(社会!$N$9=社会!$BF$36,"○","") -> ○ | K16: =IF(社会!$N$9=社会!$BF$37,"○","") ->  | L16: =IF(社会!$N$9=社会!$BF$38,"○","") ->  | M16: =IF(社会!$N$9=社会!$BF$39,"○","") ->  | Q16: =社会得点!K$59*100 -> 25.9 | R16: =社会!N$65*100 -> 
A17: 11 | B17: =社会得点!BJ14 -> 3 | C17: =社会得点!BK14 -> （1）い | D17: =社会得点!BL14 -> 水産業のさかんな地域 | I17: =IF(社会!$O$9=社会!$BF$35,"○","") ->  | J17: =IF(社会!$O$9=社会!$BF$36,"○","") -> ○ | K17: =IF(社会!$O$9=社会!$BF$37,"○","") ->  | L17: =IF(社会!$O$9=社会!$BF$38,"○","") ->  | M17: =IF(社会!$O$9=社会!$BF$39,"○","") ->  | Q17: =社会得点!L$59*100 -> 0 | R17: =社会!O$65*100 -> 
A18: 12 | B18: =社会得点!BJ15 -> 3 | C18: =社会得点!BK15 -> （2） | D18: =社会得点!BL15 -> 水産業のさかんな地域 | I18: =IF(社会!$P$9=社会!$BF$35,"○","") ->  | J18: =IF(社会!$P$9=社会!$BF$36,"○","") -> ○ | K18: =IF(社会!$P$9=社会!$BF$37,"○","") ->  | L18: =IF(社会!$P$9=社会!$BF$38,"○","") ->  | M18: =IF(社会!$P$9=社会!$BF$39,"○","") ->  | Q18: =社会得点!M$59*100 -> 7 | R18: =社会!P$65*100 -> 
A19: 13 | B19: =社会得点!BJ16 -> 3 | C19: =社会得点!BK16 -> （3） | D19: =社会得点!BL16 -> 水産業のさかんな地域 | I19: =IF(社会!$Q$9=社会!$BF$35,"○","") -> ○ | J19: =IF(社会!$Q$9=社会!$BF$36,"○","") ->  | K19: =IF(社会!$Q$9=社会!$BF$37,"○","") ->  | L19: =IF(社会!$Q$9=社会!$BF$38,"○","") ->  | M19: =IF(社会!$Q$9=社会!$BF$39,"○","") ->  | Q19: =社会得点!N$59*100 -> 14.5 | R19: =社会!Q$65*100 -> 
A20: 14 | B20: =社会得点!BJ17 -> 4 | C20: =社会得点!BK17 -> （1） | D20: =社会得点!BL17 -> わたしたちの生活と工業生産 | I20: =IF(社会!$R$9=社会!$BF$35,"○","") ->  | J20: =IF(社会!$R$9=社会!$BF$36,"○","") -> ○ | K20: =IF(社会!$R$9=社会!$BF$37,"○","") ->  | L20: =IF(社会!$R$9=社会!$BF$38,"○","") ->  | M20: =IF(社会!$R$9=社会!$BF$39,"○","") ->  | Q20: =社会得点!O$59*100 -> 20.4 | R20: =社会!R$65*100 -> 
A21: 15 | B21: =社会得点!BJ18 -> 4 | C21: =社会得点!BK18 -> （2） | D21: =社会得点!BL18 -> わたしたちの生活と工業生産 | I21: =IF(社会!$S$9=社会!$BF$35,"○","") -> ○ | J21: =IF(社会!$S$9=社会!$BF$36,"○","") ->  | K21: =IF(社会!$S$9=社会!$BF$37,"○","") ->  | L21: =IF(社会!$S$9=社会!$BF$38,"○","") ->  | M21: =IF(社会!$S$9=社会!$BF$39,"○","") ->  | Q21: =社会得点!P$59*100 -> 34.3 | R21: =社会!S$65*100 -> 
A22: 16 | B22: =社会得点!BJ19 -> 4 | C22: =社会得点!BK19 -> （3） | D22: =社会得点!BL19 -> わたしたちの生活と工業生産 | I22: =IF(社会!$T$9=社会!$BF$35,"○","") ->  | J22: =IF(社会!$T$9=社会!$BF$36,"○","") -> ○ | K22: =IF(社会!$T$9=社会!$BF$37,"○","") ->  | L22: =IF(社会!$T$9=社会!$BF$38,"○","") ->  | M22: =IF(社会!$T$9=社会!$BF$39,"○","") ->  | Q22: =社会得点!Q$59*100 -> 14.2 | R22: =社会!T$65*100 -> 
A23: 17 | B23: =社会得点!BJ20 -> 4 | C23: =社会得点!BK20 -> （4） | D23: =社会得点!BL20 -> わたしたちの生活と工業生産 | I23: =IF(社会!$U$9=社会!$BF$35,"○","") -> ○ | J23: =IF(社会!$U$9=社会!$BF$36,"○","") ->  | K23: =IF(社会!$U$9=社会!$BF$37,"○","") ->  | L23: =IF(社会!$U$9=社会!$BF$38,"○","") ->  | M23: =IF(社会!$U$9=社会!$BF$39,"○","") ->  | Q23: =社会得点!R$59*100 -> 10.5 | R23: =社会!U$65*100 -> 
A24: 18 | B24: =社会得点!BJ21 -> 5 | C24: =社会得点!BK21 -> （1） | D24: =社会得点!BL21 -> 情報化した社会と産業の発展 | I24: =IF(社会!$V$9=社会!$BF$35,"○","") ->  | J24: =IF(社会!$V$9=社会!$BF$36,"○","") -> ○ | K24: =IF(社会!$V$9=社会!$BF$37,"○","") ->  | L24: =IF(社会!$V$9=社会!$BF$38,"○","") ->  | M24: =IF(社会!$V$9=社会!$BF$39,"○","") ->  | Q24: =社会得点!S$59*100 -> 41.2 | R24: =社会!V$65*100 -> 
A25: 19 | B25: =社会得点!BJ22 -> 5 | C25: =社会得点!BK22 -> （2） | D25: =社会得点!BL22 -> 情報化した社会と産業の発展 | I25: =IF(社会!$W$9=社会!$BF$35,"○","") ->  | J25: =IF(社会!$W$9=社会!$BF$36,"○","") -> ○ | K25: =IF(社会!$W$9=社会!$BF$37,"○","") ->  | L25: =IF(社会!$W$9=社会!$BF$38,"○","") ->  | M25: =IF(社会!$W$9=社会!$BF$39,"○","") ->  | Q25: =社会得点!T$59*100 -> 45.5 | R25: =社会!W$65*100 -> 
A26: 20 | B26: =社会得点!BJ23 -> 5 | C26: =社会得点!BK23 -> （3） | D26: =社会得点!BL23 -> 情報化した社会と産業の発展 | I26: =IF(社会!$X$9=社会!$BF$35,"○","") -> ○ | J26: =IF(社会!$X$9=社会!$BF$36,"○","") ->  | K26: =IF(社会!$X$9=社会!$BF$37,"○","") ->  | L26: =IF(社会!$X$9=社会!$BF$38,"○","") ->  | M26: =IF(社会!$X$9=社会!$BF$39,"○","") ->  | Q26: =社会得点!U$59*100 -> 62.1 | R26: =社会!X$65*100 -> 
A27: 21 | B27: =社会得点!BJ24 -> 5 | C27: =社会得点!BK24 -> （4） | D27: =社会得点!BL24 -> 情報化した社会と産業の発展 | I27: =IF(社会!$Y$9=社会!$BF$35,"○","") ->  | J27: =IF(社会!$Y$9=社会!$BF$36,"○","") -> ○ | K27: =IF(社会!$Y$9=社会!$BF$37,"○","") ->  | L27: =IF(社会!$Y$9=社会!$BF$38,"○","") ->  | M27: =IF(社会!$Y$9=社会!$BF$39,"○","") ->  | Q27: =社会得点!V$59*100 -> 8.5 | R27: =社会!Y$65*100 -> 
A28: 22 | B28: =社会得点!BJ25 -> 6 | C28: =社会得点!BK25 -> （1）ABC | D28: =社会得点!BL25 -> わたしたちの生活と環境 | I28: =IF(社会!$Z$9=社会!$BF$35,"○","") ->  | J28: =IF(社会!$Z$9=社会!$BF$36,"○","") -> ○ | K28: =IF(社会!$Z$9=社会!$BF$37,"○","") ->  | L28: =IF(社会!$Z$9=社会!$BF$38,"○","") ->  | M28: =IF(社会!$Z$9=社会!$BF$39,"○","") ->  | Q28: =社会得点!W$59*100 -> 24.3 | R28: =社会!Z$65*100 -> 
A29: 23 | B29: =社会得点!BJ26 -> 6 | C29: =社会得点!BK26 -> （2） | D29: =社会得点!BL26 -> わたしたちの生活と環境 | I29: =IF(社会!$AA$9=社会!$BF$35,"○","") ->  | J29: =IF(社会!$AA$9=社会!$BF$36,"○","") -> ○ | K29: =IF(社会!$AA$9=社会!$BF$37,"○","") ->  | L29: =IF(社会!$AA$9=社会!$BF$38,"○","") ->  | M29: =IF(社会!$AA$9=社会!$BF$39,"○","") ->  | Q29: =社会得点!X$59*100 -> 26.1 | R29: =社会!AA$65*100 -> 
A30: 24 | B30: =社会得点!BJ27 -> 6 | C30: =社会得点!BK27 -> （3）あいうえ | D30: =社会得点!BL27 -> わたしたちの生活と環境 | I30: =IF(社会!$AB$9=社会!$BF$35,"○","") ->  | J30: =IF(社会!$AB$9=社会!$BF$36,"○","") -> ○ | K30: =IF(社会!$AB$9=社会!$BF$37,"○","") ->  | L30: =IF(社会!$AB$9=社会!$BF$38,"○","") ->  | M30: =IF(社会!$AB$9=社会!$BF$39,"○","") ->  | Q30: =社会得点!Y$59*100 -> 47.5 | R30: =社会!AB$65*100 -> 
A31: 25 | B31: =社会得点!BJ28 -> 6 | C31: =社会得点!BK28 -> （4） | D31: =社会得点!BL28 -> わたしたちの生活と環境 | I31: =IF(社会!$AC$9=社会!$BF$35,"○","") -> ○ | J31: =IF(社会!$AC$9=社会!$BF$36,"○","") ->  | K31: =IF(社会!$AC$9=社会!$BF$37,"○","") ->  | L31: =IF(社会!$AC$9=社会!$BF$38,"○","") ->  | M31: =IF(社会!$AC$9=社会!$BF$39,"○","") ->  | Q31: =社会得点!Z$59*100 -> 28.6 | R31: =社会!AC$65*100 -> 
A32: 26 | B32: =社会得点!BJ29 -> 0 | C32: =社会得点!BK29 -> 0 | D32: =社会得点!BL29 -> 0 | I32: =IF(社会!$AD$9=社会!$BF$35,"○","") ->  | J32: =IF(社会!$AD$9=社会!$BF$36,"○","") ->  | K32: =IF(社会!$AD$9=社会!$BF$37,"○","") ->  | L32: =IF(社会!$AD$9=社会!$BF$38,"○","") ->  | M32: =IF(社会!$AD$9=社会!$BF$39,"○","") ->  | Q32: =社会得点!AA$59*100 -> 0 | R32: =社会!AD$65*100 -> 
A33: 27 | B33: =社会得点!BJ30 -> 0 | C33: =社会得点!BK30 -> 0 | D33: =社会得点!BL30 -> 0 | I33: =IF(社会!$AE$9=社会!$BF$35,"○","") ->  | J33: =IF(社会!$AE$9=社会!$BF$36,"○","") ->  | K33: =IF(社会!$AE$9=社会!$BF$37,"○","") ->  | L33: =IF(社会!$AE$9=社会!$BF$38,"○","") ->  | M33: =IF(社会!$AE$9=社会!$BF$39,"○","") ->  | Q33: =社会得点!AB$59*100 -> 0 | R33: =社会!AE$65*100 -> 
A34: 28 | B34: =社会得点!BJ31 -> 0 | C34: =社会得点!BK31 -> 0 | D34: =社会得点!BL31 -> 0 | I34: =IF(社会!$AF$9=社会!$BF$35,"○","") ->  | J34: =IF(社会!$AF$9=社会!$BF$36,"○","") ->  | K34: =IF(社会!$AF$9=社会!$BF$37,"○","") ->  | L34: =IF(社会!$AF$9=社会!$BF$38,"○","") ->  | M34: =IF(社会!$AF$9=社会!$BF$39,"○","") ->  | Q34: =社会得点!AC$59*100 -> 0 | R34: =社会!AF$65*100 -> 
A35: 29 | B35: =社会得点!BJ32 -> 0 | C35: =社会得点!BK32 -> 0 | D35: =社会得点!BL32 -> 0 | I35: =IF(社会!$AG$9=社会!$BF$35,"○","") ->  | J35: =IF(社会!$AG$9=社会!$BF$36,"○","") ->  | K35: =IF(社会!$AG$9=社会!$BF$37,"○","") ->  | L35: =IF(社会!$AG$9=社会!$BF$38,"○","") ->  | M35: =IF(社会!$AG$9=社会!$BF$39,"○","") ->  | Q35: =社会得点!AD$59*100 -> 0 | R35: =社会!AG$65*100 -> 
A36: 30 | B36: =社会得点!BJ33 -> 0 | C36: =社会得点!BK33 -> 0 | D36: =社会得点!BL33 -> 0 | I36: =IF(社会!$AH$9=社会!$BF$35,"○","") ->  | J36: =IF(社会!$AH$9=社会!$BF$36,"○","") ->  | K36: =IF(社会!$AH$9=社会!$BF$37,"○","") ->  | L36: =IF(社会!$AH$9=社会!$BF$38,"○","") ->  | M36: =IF(社会!$AH$9=社会!$BF$39,"○","") ->  | Q36: =社会得点!AE$59*100 -> 0 | R36: =社会!AH$65*100 -> 
A37: 31 | B37: =社会得点!BJ34 -> 0 | C37: =社会得点!BK34 -> 0 | D37: =社会得点!BL34 -> 0 | I37: =IF(社会!$AI$9=社会!$BF$35,"○","") ->  | J37: =IF(社会!$AI$9=社会!$BF$36,"○","") ->  | K37: =IF(社会!$AI$9=社会!$BF$37,"○","") ->  | L37: =IF(社会!$AI$9=社会!$BF$38,"○","") ->  | M37: =IF(社会!$AI$9=社会!$BF$39,"○","") ->  | Q37: =社会得点!AF$59*100 -> 0 | R37: =社会!AI$65*100 -> 
A38: 32 | B38: =社会得点!BJ35 -> 0 | C38: =社会得点!BK35 -> 0 | D38: =社会得点!BL35 -> 0 | I38: =IF(社会!$AJ$9=社会!$BF$35,"○","") ->  | J38: =IF(社会!$AJ$9=社会!$BF$36,"○","") ->  | K38: =IF(社会!$AJ$9=社会!$BF$37,"○","") ->  | L38: =IF(社会!$AJ$9=社会!$BF$38,"○","") ->  | M38: =IF(社会!$AJ$9=社会!$BF$39,"○","") ->  | Q38: =社会得点!AG$59*100 -> 0 | R38: =社会!AJ$65*100 ->  | S38: =IF($R38="","",$R38-$Q38) -> 
A39: 33 | B39: =社会得点!BJ36 -> 0 | C39: =社会得点!BK36 -> 0 | D39: =社会得点!BL36 -> 0 | I39: =IF(社会!$AK$9=社会!$BF$35,"○","") ->  | J39: =IF(社会!$AK$9=社会!$BF$36,"○","") ->  | K39: =IF(社会!$AK$9=社会!$BF$37,"○","") ->  | L39: =IF(社会!$AK$9=社会!$BF$38,"○","") ->  | M39: =IF(社会!$AK$9=社会!$BF$39,"○","") ->  | Q39: =社会得点!AH$59*100 -> 0 | R39: =社会!AK$65*100 -> 
A40: 34 | B40: =社会得点!BJ37 -> 0 | C40: =社会得点!BK37 -> 0 | D40: =社会得点!BL37 -> 0 | I40: =IF(社会!$AL$9=社会!$BF$35,"○","") ->  | J40: =IF(社会!$AL$9=社会!$BF$36,"○","") ->  | K40: =IF(社会!$AL$9=社会!$BF$37,"○","") ->  | L40: =IF(社会!$AL$9=社会!$BF$38,"○","") ->  | M40: =IF(社会!$AL$9=社会!$BF$39,"○","") ->  | Q40: =社会得点!AI$59*100 -> 0 | R40: =社会!AL$65*100 -> 
A41: 35 | B41: =社会得点!BJ38 -> 0 | C41: =社会得点!BK38 -> 0 | D41: =社会得点!BL38 -> 0 | I41: =IF(社会!$AM$9=社会!$BF$35,"○","") ->  | J41: =IF(社会!$AM$9=社会!$BF$36,"○","") ->  | K41: =IF(社会!$AM$9=社会!$BF$37,"○","") ->  | L41: =IF(社会!$AM$9=社会!$BF$38,"○","") ->  | M41: =IF(社会!$AM$9=社会!$BF$39,"○","") ->  | Q41: =社会得点!AJ$59*100 -> 0 | R41: =社会!AM$65*100 -> 
A42: 36 | B42: =社会得点!BJ39 -> 0 | C42: =社会得点!BK39 -> 0 | D42: =社会得点!BL39 -> 0 | I42: =IF(社会!$AN$9=社会!$BF$35,"○","") ->  | J42: =IF(社会!$AN$9=社会!$BF$36,"○","") ->  | K42: =IF(社会!$AN$9=社会!$BF$37,"○","") ->  | L42: =IF(社会!$AN$9=社会!$BF$38,"○","") ->  | M42: =IF(社会!$AN$9=社会!$BF$39,"○","") ->  | Q42: =社会得点!AK$59*100 -> 0 | R42: =社会!AN$65*100 -> 
A43: 37 | B43: =社会得点!BJ40 -> 0 | C43: =社会得点!BK40 -> 0 | D43: =社会得点!BL40 -> 0 | I43: =IF(社会!$AO$9=社会!$BF$35,"○","") ->  | J43: =IF(社会!$AO$9=社会!$BF$36,"○","") ->  | K43: =IF(社会!$AO$9=社会!$BF$37,"○","") ->  | L43: =IF(社会!$AO$9=社会!$BF$38,"○","") ->  | M43: =IF(社会!$AO$9=社会!$BF$39,"○","") ->  | Q43: =社会得点!AL$59*100 -> 0 | R43: =社会!AO$65*100 -> 
A44: 38 | B44: =社会得点!BJ41 -> 0 | C44: =社会得点!BK41 -> 0 | D44: =社会得点!BL41 -> 0 | I44: =IF(社会!$AP$9=社会!$BF$35,"○","") ->  | J44: =IF(社会!$AP$9=社会!$BF$36,"○","") ->  | K44: =IF(社会!$AP$9=社会!$BF$37,"○","") ->  | L44: =IF(社会!$AP$9=社会!$BF$38,"○","") ->  | M44: =IF(社会!$AP$9=社会!$BF$39,"○","") ->  | Q44: =社会得点!AM$59*100 -> 0 | R44: =社会!AP$65*100 -> 
A45: 39 | B45: =社会得点!BJ42 -> 0 | C45: =社会得点!BK42 -> 0 | D45: =社会得点!BL42 -> 0 | I45: =IF(社会!$AQ$9=社会!$BF$35,"○","") ->  | J45: =IF(社会!$AQ$9=社会!$BF$36,"○","") ->  | K45: =IF(社会!$AQ$9=社会!$BF$37,"○","") ->  | L45: =IF(社会!$AQ$9=社会!$BF$38,"○","") ->  | M45: =IF(社会!$AQ$9=社会!$BF$39,"○","") ->  | Q45: =社会得点!AN$59*100 -> 0 | R45: =社会!AQ$65*100 -> 
A46: 40 | B46: =社会得点!BJ43 -> 0 | C46: =社会得点!BK43 -> 0 | D46: =社会得点!BL43 -> 0 | I46: =IF(社会!$AR$9=社会!$BF$35,"○","") ->  | J46: =IF(社会!$AR$9=社会!$BF$36,"○","") ->  | K46: =IF(社会!$AR$9=社会!$BF$37,"○","") ->  | L46: =IF(社会!$AR$9=社会!$BF$38,"○","") ->  | M46: =IF(社会!$AR$9=社会!$BF$39,"○","") ->  | Q46: =社会得点!AO$59*100 -> 0 | R46: =社会!AR$65*100 -> 
A47: 41 | B47: =社会得点!BJ44 -> 0 | C47: =社会得点!BK44 -> 0 | D47: =社会得点!BL44 -> 0 | I47: =IF(社会!$AS$9=社会!$BF$35,"○","") ->  | J47: =IF(社会!$AS$9=社会!$BF$36,"○","") ->  | K47: =IF(社会!$AS$9=社会!$BF$37,"○","") ->  | L47: =IF(社会!$AS$9=社会!$BF$38,"○","") ->  | M47: =IF(社会!$AS$9=社会!$BF$39,"○","") ->  | Q47: =社会得点!AP$59*100 -> 0 | R47: =社会!AS$65*100 -> 
A48: 42 | B48: =社会得点!BJ45 -> 0 | C48: =社会得点!BK45 -> 0 | D48: =社会得点!BL45 -> 0 | I48: =IF(社会!$AT$9=社会!$BF$35,"○","") ->  | J48: =IF(社会!$AT$9=社会!$BF$36,"○","") ->  | K48: =IF(社会!$AT$9=社会!$BF$37,"○","") ->  | L48: =IF(社会!$AT$9=社会!$BF$38,"○","") ->  | M48: =IF(社会!$AT$9=社会!$BF$39,"○","") ->  | Q48: =社会得点!AQ$59*100 -> 0 | R48: =社会!AT$65*100 -> 
A49: 43 | B49: =社会得点!BJ46 -> 0 | C49: =社会得点!BK46 -> 0 | D49: =社会得点!BL46 -> 0 | I49: =IF(社会!$AU$9=社会!$BF$35,"○","") ->  | J49: =IF(社会!$AU$9=社会!$BF$36,"○","") ->  | K49: =IF(社会!$AU$9=社会!$BF$37,"○","") ->  | L49: =IF(社会!$AU$9=社会!$BF$38,"○","") ->  | M49: =IF(社会!$AU$9=社会!$BF$39,"○","") ->  | Q49: =社会得点!AR$59*100 -> 0 | R49: =社会!AU$65*100 -> 
A50: 44 | B50: =社会得点!BJ47 -> 0 | C50: =社会得点!BK47 -> 0 | D50: =社会得点!BL47 -> 0 | I50: =IF(社会!$AV$9=社会!$BF$35,"○","") ->  | J50: =IF(社会!$AV$9=社会!$BF$36,"○","") ->  | K50: =IF(社会!$AV$9=社会!$BF$37,"○","") ->  | L50: =IF(社会!$AV$9=社会!$BF$38,"○","") ->  | M50: =IF(社会!$AV$9=社会!$BF$39,"○","") ->  | Q50: =社会得点!AS$59*100 -> 0 | R50: =社会!AV$65*100 -> 
A51: 45 | B51: =社会得点!BJ48 -> 0 | C51: =社会得点!BK48 -> 0 | D51: =社会得点!BL48 -> 0 | I51: =IF(社会!$AW$9=社会!$BF$35,"○","") ->  | J51: =IF(社会!$AW$9=社会!$BF$36,"○","") ->  | K51: =IF(社会!$AW$9=社会!$BF$37,"○","") ->  | L51: =IF(社会!$AW$9=社会!$BF$38,"○","") ->  | M51: =IF(社会!$AW$9=社会!$BF$39,"○","") ->  | Q51: =社会得点!AT$59*100 -> 0 | R51: =社会!AW$65*100 ->  | S51: =IF($R51="","",$R51-$Q51) -> 
A52: 46 | B52: =社会得点!BJ49 -> 0 | C52: =社会得点!BK49 -> 0 | D52: =社会得点!BL49 -> 0 | I52: =IF(社会!$AX$9=社会!$BF$35,"○","") ->  | J52: =IF(社会!$AX$9=社会!$BF$36,"○","") ->  | K52: =IF(社会!$AX$9=社会!$BF$37,"○","") ->  | L52: =IF(社会!$AX$9=社会!$BF$38,"○","") ->  | M52: =IF(社会!$AX$9=社会!$BF$39,"○","") ->  | Q52: =社会得点!AU$59*100 -> 0 | R52: =社会!AX$65*100 -> 
A53: 47 | B53: =社会得点!BJ50 -> 0 | C53: =社会得点!BK50 -> 0 | D53: =社会得点!BL50 -> 0 | I53: =IF(社会!$AY$9=社会!$BF$35,"○","") ->  | J53: =IF(社会!$AY$9=社会!$BF$36,"○","") ->  | K53: =IF(社会!$AY$9=社会!$BF$37,"○","") ->  | L53: =IF(社会!$AY$9=社会!$BF$38,"○","") ->  | M53: =IF(社会!$AY$9=社会!$BF$39,"○","") ->  | Q53: =社会得点!AV$59*100 -> 0 | R53: =社会!AY$65*100 -> 
A54: 48 | B54: =社会得点!BJ51 -> 0 | C54: =社会得点!BK51 -> 0 | D54: =社会得点!BL51 -> 0 | I54: =IF(社会!$AZ$9=社会!$BF$35,"○","") ->  | J54: =IF(社会!$AZ$9=社会!$BF$36,"○","") ->  | K54: =IF(社会!$AZ$9=社会!$BF$37,"○","") ->  | L54: =IF(社会!$AZ$9=社会!$BF$38,"○","") ->  | M54: =IF(社会!$AZ$9=社会!$BF$39,"○","") ->  | Q54: =社会得点!AW$59*100 -> 0 | R54: =社会!AZ$65*100 ->  | S54: =IF($R54="","",$R54-$Q54) -> 
A55: 49 | B55: =社会得点!BJ52 -> 0 | C55: =社会得点!BK52 -> 0 | D55: =社会得点!BL52 -> 0 | I55: =IF(社会!$BA$9=社会!$BF$35,"○","") ->  | J55: =IF(社会!$BA$9=社会!$BF$36,"○","") ->  | K55: =IF(社会!$BA$9=社会!$BF$37,"○","") ->  | L55: =IF(社会!$BA$9=社会!$BF$38,"○","") ->  | M55: =IF(社会!$BA$9=社会!$BF$39,"○","") ->  | Q55: =社会得点!AX$59*100 -> 0 | R55: =社会!BA$65*100 ->  | S55: =IF($R55="","",$R55-$Q55) -> 
A56: 50 | B56: =社会得点!BJ53 -> 0 | C56: =社会得点!BK53 -> 0 | D56: =社会得点!BL53 -> 0 | I56: =IF(社会!$BB$9=社会!$BF$35,"○","") ->  | J56: =IF(社会!$BB$9=社会!$BF$36,"○","") ->  | K56: =IF(社会!$BB$9=社会!$BF$37,"○","") ->  | L56: =IF(社会!$BB$9=社会!$BF$38,"○","") ->  | M56: =IF(社会!$BB$9=社会!$BF$39,"○","") ->  | Q56: =社会得点!AY$59*100 -> 0 | R56: =社会!BB$65*100 -> 
A57: 平均

Sheet ⑥社会の問題別無解答率
A1: ⑥社会の問題別無解答率
C3: 問題数 | D3: =社会!AX1 -> 25
A4: ◆社会
A5: 問題通し番号 | B5: 問題 番号 | C5: 小問題 | D5: 問題の領域 | E5: 学習指導要領の領域等 | I5: 観点 | N5: 問題形式 | Q5: 無解答率
I6: =社会!BG35 -> 思考・判断・表現 | J6: =社会!BG36 -> 知識・技能 | K6: =社会!BG37 -> - | L6: =社会!BG38 -> - | M6: =社会!BG39 -> - | N6: 選択式 | O6: 短答式 | P6: 記述式 | Q6: 富山県（ア） | R6: 自校（イ） | S6: 富山県との差（イ-ア)
A7: 1 | B7: =社会得点!BJ4 -> 1 | C7: =社会得点!BK4 -> （1）① | D7: =社会得点!BL4 -> わたしたちの国土 | I7: =IF(社会!$E$9=社会!$BF$35,"○","") ->  | J7: =IF(社会!$E$9=社会!$BF$36,"○","") -> ○ | K7: =IF(社会!$E$9=社会!$BF$37,"○","") ->  | L7: =IF(社会!$E$9=社会!$BF$38,"○","") ->  | M7: =IF(社会!$E$9=社会!$BF$39,"○","") ->  | Q7: =社会得点!B$60*100 -> 0.6 | R7: =社会!E$66*100 ->  | S7: =IF($R7="","",$R7-$Q7) -> 
A8: 2 | B8: =社会得点!BJ5 -> 1 | C8: =社会得点!BK5 -> （1）② | D8: =社会得点!BL5 -> わたしたちの国土 | I8: =IF(社会!$F$9=社会!$BF$35,"○","") ->  | J8: =IF(社会!$F$9=社会!$BF$36,"○","") -> ○ | K8: =IF(社会!$F$9=社会!$BF$37,"○","") ->  | L8: =IF(社会!$F$9=社会!$BF$38,"○","") ->  | M8: =IF(社会!$F$9=社会!$BF$39,"○","") ->  | Q8: =社会得点!C$60*100 -> 13.8 | R8: =社会!F$66*100 -> 
A9: 3 | B9: =社会得点!BJ6 -> 1 | C9: =社会得点!BK6 -> （1）③ | D9: =社会得点!BL6 -> わたしたちの国土 | I9: =IF(社会!$G$9=社会!$BF$35,"○","") ->  | J9: =IF(社会!$G$9=社会!$BF$36,"○","") -> ○ | K9: =IF(社会!$G$9=社会!$BF$37,"○","") ->  | L9: =IF(社会!$G$9=社会!$BF$38,"○","") ->  | M9: =IF(社会!$G$9=社会!$BF$39,"○","") ->  | Q9: =社会得点!D$60*100 -> 24.1 | R9: =社会!G$66*100 -> 
A10: 4 | B10: =社会得点!BJ7 -> 1 | C10: =社会得点!BK7 -> （2） | D10: =社会得点!BL7 -> わたしたちの国土 | I10: =IF(社会!$H$9=社会!$BF$35,"○","") ->  | J10: =IF(社会!$H$9=社会!$BF$36,"○","") -> ○ | K10: =IF(社会!$H$9=社会!$BF$37,"○","") ->  | L10: =IF(社会!$H$9=社会!$BF$38,"○","") ->  | M10: =IF(社会!$H$9=社会!$BF$39,"○","") ->  | Q10: =社会得点!E$60*100 -> 0.7 | R10: =社会!H$66*100 -> 
A11: 5 | B11: =社会得点!BJ8 -> 1 | C11: =社会得点!BK8 -> （3） | D11: =社会得点!BL8 -> わたしたちの国土 | I11: =IF(社会!$I$9=社会!$BF$35,"○","") -> ○ | J11: =IF(社会!$I$9=社会!$BF$36,"○","") ->  | K11: =IF(社会!$I$9=社会!$BF$37,"○","") ->  | L11: =IF(社会!$I$9=社会!$BF$38,"○","") ->  | M11: =IF(社会!$I$9=社会!$BF$39,"○","") ->  | Q11: =社会得点!F$60*100 -> 14.1 | R11: =社会!I$66*100 -> 
A12: 6 | B12: =社会得点!BJ9 -> 2 | C12: =社会得点!BK9 -> （1） | D12: =社会得点!BL9 -> 米づくりのさかんな地域 | I12: =IF(社会!$J$9=社会!$BF$35,"○","") ->  | J12: =IF(社会!$J$9=社会!$BF$36,"○","") -> ○ | K12: =IF(社会!$J$9=社会!$BF$37,"○","") ->  | L12: =IF(社会!$J$9=社会!$BF$38,"○","") ->  | M12: =IF(社会!$J$9=社会!$BF$39,"○","") ->  | Q12: =社会得点!G$60*100 -> 24.8 | R12: =社会!J$66*100 -> 
A13: 7 | B13: =社会得点!BJ10 -> 2 | C13: =社会得点!BK10 -> （2）ゆか | D13: =社会得点!BL10 -> 米づくりのさかんな地域 | I13: =IF(社会!$K$9=社会!$BF$35,"○","") ->  | J13: =IF(社会!$K$9=社会!$BF$36,"○","") -> ○ | K13: =IF(社会!$K$9=社会!$BF$37,"○","") ->  | L13: =IF(社会!$K$9=社会!$BF$38,"○","") ->  | M13: =IF(社会!$K$9=社会!$BF$39,"○","") ->  | Q13: =社会得点!H$60*100 -> 0.6 | R13: =社会!K$66*100 -> 
A14: 8 | B14: =社会得点!BJ11 -> 2 | C14: =社会得点!BK11 -> （2）しんいち | D14: =社会得点!BL11 -> 米づくりのさかんな地域 | I14: =IF(社会!$L$9=社会!$BF$35,"○","") ->  | J14: =IF(社会!$L$9=社会!$BF$36,"○","") -> ○ | K14: =IF(社会!$L$9=社会!$BF$37,"○","") ->  | L14: =IF(社会!$L$9=社会!$BF$38,"○","") ->  | M14: =IF(社会!$L$9=社会!$BF$39,"○","") ->  | Q14: =社会得点!I$60*100 -> 0.8 | R14: =社会!L$66*100 -> 
A15: 9 | B15: =社会得点!BJ12 -> 2 | C15: =社会得点!BK12 -> （3） | D15: =社会得点!BL12 -> 米づくりのさかんな地域 | I15: =IF(社会!$M$9=社会!$BF$35,"○","") -> ○ | J15: =IF(社会!$M$9=社会!$BF$36,"○","") ->  | K15: =IF(社会!$M$9=社会!$BF$37,"○","") ->  | L15: =IF(社会!$M$9=社会!$BF$38,"○","") ->  | M15: =IF(社会!$M$9=社会!$BF$39,"○","") ->  | Q15: =社会得点!J$60*100 -> 5.9 | R15: =社会!M$66*100 -> 
A16: 10 | B16: =社会得点!BJ13 -> 3 | C16: =社会得点!BK13 -> （1）あ | D16: =社会得点!BL13 -> 水産業のさかんな地域 | I16: =IF(社会!$N$9=社会!$BF$35,"○","") ->  | J16: =IF(社会!$N$9=社会!$BF$36,"○","") -> ○ | K16: =IF(社会!$N$9=社会!$BF$37,"○","") ->  | L16: =IF(社会!$N$9=社会!$BF$38,"○","") ->  | M16: =IF(社会!$N$9=社会!$BF$39,"○","") ->  | Q16: =社会得点!K$60*100 -> 0.9 | R16: =社会!N$66*100 -> 
A17: 11 | B17: =社会得点!BJ14 -> 3 | C17: =社会得点!BK14 -> （1）い | D17: =社会得点!BL14 -> 水産業のさかんな地域 | I17: =IF(社会!$O$9=社会!$BF$35,"○","") ->  | J17: =IF(社会!$O$9=社会!$BF$36,"○","") -> ○ | K17: =IF(社会!$O$9=社会!$BF$37,"○","") ->  | L17: =IF(社会!$O$9=社会!$BF$38,"○","") ->  | M17: =IF(社会!$O$9=社会!$BF$39,"○","") ->  | Q17: =社会得点!L$60*100 -> 0 | R17: =社会!O$66*100 -> 
A18: 12 | B18: =社会得点!BJ15 -> 3 | C18: =社会得点!BK15 -> （2） | D18: =社会得点!BL15 -> 水産業のさかんな地域 | I18: =IF(社会!$P$9=社会!$BF$35,"○","") ->  | J18: =IF(社会!$P$9=社会!$BF$36,"○","") -> ○ | K18: =IF(社会!$P$9=社会!$BF$37,"○","") ->  | L18: =IF(社会!$P$9=社会!$BF$38,"○","") ->  | M18: =IF(社会!$P$9=社会!$BF$39,"○","") ->  | Q18: =社会得点!M$60*100 -> 0.9 | R18: =社会!P$66*100 -> 
A19: 13 | B19: =社会得点!BJ16 -> 3 | C19: =社会得点!BK16 -> （3） | D19: =社会得点!BL16 -> 水産業のさかんな地域 | I19: =IF(社会!$Q$9=社会!$BF$35,"○","") -> ○ | J19: =IF(社会!$Q$9=社会!$BF$36,"○","") ->  | K19: =IF(社会!$Q$9=社会!$BF$37,"○","") ->  | L19: =IF(社会!$Q$9=社会!$BF$38,"○","") ->  | M19: =IF(社会!$Q$9=社会!$BF$39,"○","") ->  | Q19: =社会得点!N$60*100 -> 1.4 | R19: =社会!Q$66*100 -> 
A20: 14 | B20: =社会得点!BJ17 -> 4 | C20: =社会得点!BK17 -> （1） | D20: =社会得点!BL17 -> わたしたちの生活と工業生産 | I20: =IF(社会!$R$9=社会!$BF$35,"○","") ->  | J20: =IF(社会!$R$9=社会!$BF$36,"○","") -> ○ | K20: =IF(社会!$R$9=社会!$BF$37,"○","") ->  | L20: =IF(社会!$R$9=社会!$BF$38,"○","") ->  | M20: =IF(社会!$R$9=社会!$BF$39,"○","") ->  | Q20: =社会得点!O$60*100 -> 9 | R20: =社会!R$66*100 -> 
A21: 15 | B21: =社会得点!BJ18 -> 4 | C21: =社会得点!BK18 -> （2） | D21: =社会得点!BL18 -> わたしたちの生活と工業生産 | I21: =IF(社会!$S$9=社会!$BF$35,"○","") -> ○ | J21: =IF(社会!$S$9=社会!$BF$36,"○","") ->  | K21: =IF(社会!$S$9=社会!$BF$37,"○","") ->  | L21: =IF(社会!$S$9=社会!$BF$38,"○","") ->  | M21: =IF(社会!$S$9=社会!$BF$39,"○","") ->  | Q21: =社会得点!P$60*100 -> 12.2 | R21: =社会!S$66*100 -> 
A22: 16 | B22: =社会得点!BJ19 -> 4 | C22: =社会得点!BK19 -> （3） | D22: =社会得点!BL19 -> わたしたちの生活と工業生産 | I22: =IF(社会!$T$9=社会!$BF$35,"○","") ->  | J22: =IF(社会!$T$9=社会!$BF$36,"○","") -> ○ | K22: =IF(社会!$T$9=社会!$BF$37,"○","") ->  | L22: =IF(社会!$T$9=社会!$BF$38,"○","") ->  | M22: =IF(社会!$T$9=社会!$BF$39,"○","") ->  | Q22: =社会得点!Q$60*100 -> 1.9 | R22: =社会!T$66*100 -> 
A23: 17 | B23: =社会得点!BJ20 -> 4 | C23: =社会得点!BK20 -> （4） | D23: =社会得点!BL20 -> わたしたちの生活と工業生産 | I23: =IF(社会!$U$9=社会!$BF$35,"○","") -> ○ | J23: =IF(社会!$U$9=社会!$BF$36,"○","") ->  | K23: =IF(社会!$U$9=社会!$BF$37,"○","") ->  | L23: =IF(社会!$U$9=社会!$BF$38,"○","") ->  | M23: =IF(社会!$U$9=社会!$BF$39,"○","") ->  | Q23: =社会得点!R$60*100 -> 0.9 | R23: =社会!U$66*100 -> 
A24: 18 | B24: =社会得点!BJ21 -> 5 | C24: =社会得点!BK21 -> （1） | D24: =社会得点!BL21 -> 情報化した社会と産業の発展 | I24: =IF(社会!$V$9=社会!$BF$35,"○","") ->  | J24: =IF(社会!$V$9=社会!$BF$36,"○","") -> ○ | K24: =IF(社会!$V$9=社会!$BF$37,"○","") ->  | L24: =IF(社会!$V$9=社会!$BF$38,"○","") ->  | M24: =IF(社会!$V$9=社会!$BF$39,"○","") ->  | Q24: =社会得点!S$60*100 -> 1.1 | R24: =社会!V$66*100 -> 
A25: 19 | B25: =社会得点!BJ22 -> 5 | C25: =社会得点!BK22 -> （2） | D25: =社会得点!BL22 -> 情報化した社会と産業の発展 | I25: =IF(社会!$W$9=社会!$BF$35,"○","") ->  | J25: =IF(社会!$W$9=社会!$BF$36,"○","") -> ○ | K25: =IF(社会!$W$9=社会!$BF$37,"○","") ->  | L25: =IF(社会!$W$9=社会!$BF$38,"○","") ->  | M25: =IF(社会!$W$9=社会!$BF$39,"○","") ->  | Q25: =社会得点!T$60*100 -> 1.7 | R25: =社会!W$66*100 -> 
A26: 20 | B26: =社会得点!BJ23 -> 5 | C26: =社会得点!BK23 -> （3） | D26: =社会得点!BL23 -> 情報化した社会と産業の発展 | I26: =IF(社会!$X$9=社会!$BF$35,"○","") -> ○ | J26: =IF(社会!$X$9=社会!$BF$36,"○","") ->  | K26: =IF(社会!$X$9=社会!$BF$37,"○","") ->  | L26: =IF(社会!$X$9=社会!$BF$38,"○","") ->  | M26: =IF(社会!$X$9=社会!$BF$39,"○","") ->  | Q26: =社会得点!U$60*100 -> 10 | R26: =社会!X$66*100 -> 
A27: 21 | B27: =社会得点!BJ24 -> 5 | C27: =社会得点!BK24 -> （4） | D27: =社会得点!BL24 -> 情報化した社会と産業の発展 | I27: =IF(社会!$Y$9=社会!$BF$35,"○","") ->  | J27: =IF(社会!$Y$9=社会!$BF$36,"○","") -> ○ | K27: =IF(社会!$Y$9=社会!$BF$37,"○","") ->  | L27: =IF(社会!$Y$9=社会!$BF$38,"○","") ->  | M27: =IF(社会!$Y$9=社会!$BF$39,"○","") ->  | Q27: =社会得点!V$60*100 -> 2.3 | R27: =社会!Y$66*100 -> 
A28: 22 | B28: =社会得点!BJ25 -> 6 | C28: =社会得点!BK25 -> （1）ABC | D28: =社会得点!BL25 -> わたしたちの生活と環境 | I28: =IF(社会!$Z$9=社会!$BF$35,"○","") ->  | J28: =IF(社会!$Z$9=社会!$BF$36,"○","") -> ○ | K28: =IF(社会!$Z$9=社会!$BF$37,"○","") ->  | L28: =IF(社会!$Z$9=社会!$BF$38,"○","") ->  | M28: =IF(社会!$Z$9=社会!$BF$39,"○","") ->  | Q28: =社会得点!W$60*100 -> 1.8 | R28: =社会!Z$66*100 -> 
A29: 23 | B29: =社会得点!BJ26 -> 6 | C29: =社会得点!BK26 -> （2） | D29: =社会得点!BL26 -> わたしたちの生活と環境 | I29: =IF(社会!$AA$9=社会!$BF$35,"○","") ->  | J29: =IF(社会!$AA$9=社会!$BF$36,"○","") -> ○ | K29: =IF(社会!$AA$9=社会!$BF$37,"○","") ->  | L29: =IF(社会!$AA$9=社会!$BF$38,"○","") ->  | M29: =IF(社会!$AA$9=社会!$BF$39,"○","") ->  | Q29: =社会得点!X$60*100 -> 13.6 | R29: =社会!AA$66*100 -> 
A30: 24 | B30: =社会得点!BJ27 -> 6 | C30: =社会得点!BK27 -> （3）あいうえ | D30: =社会得点!BL27 -> わたしたちの生活と環境 | I30: =IF(社会!$AB$9=社会!$BF$35,"○","") ->  | J30: =IF(社会!$AB$9=社会!$BF$36,"○","") -> ○ | K30: =IF(社会!$AB$9=社会!$BF$37,"○","") ->  | L30: =IF(社会!$AB$9=社会!$BF$38,"○","") ->  | M30: =IF(社会!$AB$9=社会!$BF$39,"○","") ->  | Q30: =社会得点!Y$60*100 -> 4.8 | R30: =社会!AB$66*100 -> 
A31: 25 | B31: =社会得点!BJ28 -> 6 | C31: =社会得点!BK28 -> （4） | D31: =社会得点!BL28 -> わたしたちの生活と環境 | I31: =IF(社会!$AC$9=社会!$BF$35,"○","") -> ○ | J31: =IF(社会!$AC$9=社会!$BF$36,"○","") ->  | K31: =IF(社会!$AC$9=社会!$BF$37,"○","") ->  | L31: =IF(社会!$AC$9=社会!$BF$38,"○","") ->  | M31: =IF(社会!$AC$9=社会!$BF$39,"○","") ->  | Q31: =社会得点!Z$60*100 -> 13.4 | R31: =社会!AC$66*100 -> 
A32: 26 | B32: =社会得点!BJ29 -> 0 | C32: =社会得点!BK29 -> 0 | D32: =社会得点!BL29 -> 0 | I32: =IF(社会!$AD$9=社会!$BF$35,"○","") ->  | J32: =IF(社会!$AD$9=社会!$BF$36,"○","") ->  | K32: =IF(社会!$AD$9=社会!$BF$37,"○","") ->  | L32: =IF(社会!$AD$9=社会!$BF$38,"○","") ->  | M32: =IF(社会!$AD$9=社会!$BF$39,"○","") ->  | Q32: =社会得点!AA$60*100 -> 0 | R32: =社会!AD$66*100 -> 
A33: 27 | B33: =社会得点!BJ30 -> 0 | C33: =社会得点!BK30 -> 0 | D33: =社会得点!BL30 -> 0 | I33: =IF(社会!$AE$9=社会!$BF$35,"○","") ->  | J33: =IF(社会!$AE$9=社会!$BF$36,"○","") ->  | K33: =IF(社会!$AE$9=社会!$BF$37,"○","") ->  | L33: =IF(社会!$AE$9=社会!$BF$38,"○","") ->  | M33: =IF(社会!$AE$9=社会!$BF$39,"○","") ->  | Q33: =社会得点!AB$60*100 -> 0 | R33: =社会!AE$66*100 -> 
A34: 28 | B34: =社会得点!BJ31 -> 0 | C34: =社会得点!BK31 -> 0 | D34: =社会得点!BL31 -> 0 | I34: =IF(社会!$AF$9=社会!$BF$35,"○","") ->  | J34: =IF(社会!$AF$9=社会!$BF$36,"○","") ->  | K34: =IF(社会!$AF$9=社会!$BF$37,"○","") ->  | L34: =IF(社会!$AF$9=社会!$BF$38,"○","") ->  | M34: =IF(社会!$AF$9=社会!$BF$39,"○","") ->  | Q34: =社会得点!AC$60*100 -> 0 | R34: =社会!AF$66*100 -> 
A35: 29 | B35: =社会得点!BJ32 -> 0 | C35: =社会得点!BK32 -> 0 | D35: =社会得点!BL32 -> 0 | I35: =IF(社会!$AG$9=社会!$BF$35,"○","") ->  | J35: =IF(社会!$AG$9=社会!$BF$36,"○","") ->  | K35: =IF(社会!$AG$9=社会!$BF$37,"○","") ->  | L35: =IF(社会!$AG$9=社会!$BF$38,"○","") ->  | M35: =IF(社会!$AG$9=社会!$BF$39,"○","") ->  | Q35: =社会得点!AD$60*100 -> 0 | R35: =社会!AG$66*100 -> 
A36: 30 | B36: =社会得点!BJ33 -> 0 | C36: =社会得点!BK33 -> 0 | D36: =社会得点!BL33 -> 0 | I36: =IF(社会!$AH$9=社会!$BF$35,"○","") ->  | J36: =IF(社会!$AH$9=社会!$BF$36,"○","") ->  | K36: =IF(社会!$AH$9=社会!$BF$37,"○","") ->  | L36: =IF(社会!$AH$9=社会!$BF$38,"○","") ->  | M36: =IF(社会!$AH$9=社会!$BF$39,"○","") ->  | Q36: =社会得点!AE$60*100 -> 0 | R36: =社会!AH$66*100 -> 
A37: 31 | B37: =社会得点!BJ34 -> 0 | C37: =社会得点!BK34 -> 0 | D37: =社会得点!BL34 -> 0 | I37: =IF(社会!$AI$9=社会!$BF$35,"○","") ->  | J37: =IF(社会!$AI$9=社会!$BF$36,"○","") ->  | K37: =IF(社会!$AI$9=社会!$BF$37,"○","") ->  | L37: =IF(社会!$AI$9=社会!$BF$38,"○","") ->  | M37: =IF(社会!$AI$9=社会!$BF$39,"○","") ->  | Q37: =社会得点!AF$60*100 -> 0 | R37: =社会!AI$66*100 -> 
A38: 32 | B38: =社会得点!BJ35 -> 0 | C38: =社会得点!BK35 -> 0 | D38: =社会得点!BL35 -> 0 | I38: =IF(社会!$AJ$9=社会!$BF$35,"○","") ->  | J38: =IF(社会!$AJ$9=社会!$BF$36,"○","") ->  | K38: =IF(社会!$AJ$9=社会!$BF$37,"○","") ->  | L38: =IF(社会!$AJ$9=社会!$BF$38,"○","") ->  | M38: =IF(社会!$AJ$9=社会!$BF$39,"○","") ->  | Q38: =社会得点!AG$60*100 -> 0 | R38: =社会!AJ$66*100 ->  | S38: =IF($R38="","",$R38-$Q38) -> 
A39: 33 | B39: =社会得点!BJ36 -> 0 | C39: =社会得点!BK36 -> 0 | D39: =社会得点!BL36 -> 0 | I39: =IF(社会!$AK$9=社会!$BF$35,"○","") ->  | J39: =IF(社会!$AK$9=社会!$BF$36,"○","") ->  | K39: =IF(社会!$AK$9=社会!$BF$37,"○","") ->  | L39: =IF(社会!$AK$9=社会!$BF$38,"○","") ->  | M39: =IF(社会!$AK$9=社会!$BF$39,"○","") ->  | Q39: =社会得点!AH$60*100 -> 0 | R39: =社会!AK$66*100 -> 
A40: 34 | B40: =社会得点!BJ37 -> 0 | C40: =社会得点!BK37 -> 0 | D40: =社会得点!BL37 -> 0 | I40: =IF(社会!$AL$9=社会!$BF$35,"○","") ->  | J40: =IF(社会!$AL$9=社会!$BF$36,"○","") ->  | K40: =IF(社会!$AL$9=社会!$BF$37,"○","") ->  | L40: =IF(社会!$AL$9=社会!$BF$38,"○","") ->  | M40: =IF(社会!$AL$9=社会!$BF$39,"○","") ->  | Q40: =社会得点!AI$60*100 -> 0 | R40: =社会!AL$66*100 -> 
A41: 35 | B41: =社会得点!BJ38 -> 0 | C41: =社会得点!BK38 -> 0 | D41: =社会得点!BL38 -> 0 | I41: =IF(社会!$AM$9=社会!$BF$35,"○","") ->  | J41: =IF(社会!$AM$9=社会!$BF$36,"○","") ->  | K41: =IF(社会!$AM$9=社会!$BF$37,"○","") ->  | L41: =IF(社会!$AM$9=社会!$BF$38,"○","") ->  | M41: =IF(社会!$AM$9=社会!$BF$39,"○","") ->  | Q41: =社会得点!AJ$60*100 -> 0 | R41: =社会!AM$66*100 -> 
A42: 36 | B42: =社会得点!BJ39 -> 0 | C42: =社会得点!BK39 -> 0 | D42: =社会得点!BL39 -> 0 | I42: =IF(社会!$AN$9=社会!$BF$35,"○","") ->  | J42: =IF(社会!$AN$9=社会!$BF$36,"○","") ->  | K42: =IF(社会!$AN$9=社会!$BF$37,"○","") ->  | L42: =IF(社会!$AN$9=社会!$BF$38,"○","") ->  | M42: =IF(社会!$AN$9=社会!$BF$39,"○","") ->  | Q42: =社会得点!AK$60*100 -> 0 | R42: =社会!AN$66*100 -> 
A43: 37 | B43: =社会得点!BJ40 -> 0 | C43: =社会得点!BK40 -> 0 | D43: =社会得点!BL40 -> 0 | I43: =IF(社会!$AO$9=社会!$BF$35,"○","") ->  | J43: =IF(社会!$AO$9=社会!$BF$36,"○","") ->  | K43: =IF(社会!$AO$9=社会!$BF$37,"○","") ->  | L43: =IF(社会!$AO$9=社会!$BF$38,"○","") ->  | M43: =IF(社会!$AO$9=社会!$BF$39,"○","") ->  | Q43: =社会得点!AL$60*100 -> 0 | R43: =社会!AO$66*100 -> 
A44: 38 | B44: =社会得点!BJ41 -> 0 | C44: =社会得点!BK41 -> 0 | D44: =社会得点!BL41 -> 0 | I44: =IF(社会!$AP$9=社会!$BF$35,"○","") ->  | J44: =IF(社会!$AP$9=社会!$BF$36,"○","") ->  | K44: =IF(社会!$AP$9=社会!$BF$37,"○","") ->  | L44: =IF(社会!$AP$9=社会!$BF$38,"○","") ->  | M44: =IF(社会!$AP$9=社会!$BF$39,"○","") ->  | Q44: =社会得点!AM$60*100 -> 0 | R44: =社会!AP$66*100 -> 
A45: 39 | B45: =社会得点!BJ42 -> 0 | C45: =社会得点!BK42 -> 0 | D45: =社会得点!BL42 -> 0 | I45: =IF(社会!$AQ$9=社会!$BF$35,"○","") ->  | J45: =IF(社会!$AQ$9=社会!$BF$36,"○","") ->  | K45: =IF(社会!$AQ$9=社会!$BF$37,"○","") ->  | L45: =IF(社会!$AQ$9=社会!$BF$38,"○","") ->  | M45: =IF(社会!$AQ$9=社会!$BF$39,"○","") ->  | Q45: =社会得点!AN$60*100 -> 0 | R45: =社会!AQ$66*100 -> 
A46: 40 | B46: =社会得点!BJ43 -> 0 | C46: =社会得点!BK43 -> 0 | D46: =社会得点!BL43 -> 0 | I46: =IF(社会!$AR$9=社会!$BF$35,"○","") ->  | J46: =IF(社会!$AR$9=社会!$BF$36,"○","") ->  | K46: =IF(社会!$AR$9=社会!$BF$37,"○","") ->  | L46: =IF(社会!$AR$9=社会!$BF$38,"○","") ->  | M46: =IF(社会!$AR$9=社会!$BF$39,"○","") ->  | Q46: =社会得点!AO$60*100 -> 0 | R46: =社会!AR$66*100 -> 
A47: 41 | B47: =社会得点!BJ44 -> 0 | C47: =社会得点!BK44 -> 0 | D47: =社会得点!BL44 -> 0 | I47: =IF(社会!$AS$9=社会!$BF$35,"○","") ->  | J47: =IF(社会!$AS$9=社会!$BF$36,"○","") ->  | K47: =IF(社会!$AS$9=社会!$BF$37,"○","") ->  | L47: =IF(社会!$AS$9=社会!$BF$38,"○","") ->  | M47: =IF(社会!$AS$9=社会!$BF$39,"○","") ->  | Q47: =社会得点!AP$60*100 -> 0 | R47: =社会!AS$66*100 -> 
A48: 42 | B48: =社会得点!BJ45 -> 0 | C48: =社会得点!BK45 -> 0 | D48: =社会得点!BL45 -> 0 | I48: =IF(社会!$AT$9=社会!$BF$35,"○","") ->  | J48: =IF(社会!$AT$9=社会!$BF$36,"○","") ->  | K48: =IF(社会!$AT$9=社会!$BF$37,"○","") ->  | L48: =IF(社会!$AT$9=社会!$BF$38,"○","") ->  | M48: =IF(社会!$AT$9=社会!$BF$39,"○","") ->  | Q48: =社会得点!AQ$60*100 -> 0 | R48: =社会!AT$66*100 -> 
A49: 43 | B49: =社会得点!BJ46 -> 0 | C49: =社会得点!BK46 -> 0 | D49: =社会得点!BL46 -> 0 | I49: =IF(社会!$AU$9=社会!$BF$35,"○","") ->  | J49: =IF(社会!$AU$9=社会!$BF$36,"○","") ->  | K49: =IF(社会!$AU$9=社会!$BF$37,"○","") ->  | L49: =IF(社会!$AU$9=社会!$BF$38,"○","") ->  | M49: =IF(社会!$AU$9=社会!$BF$39,"○","") ->  | Q49: =社会得点!AR$60*100 -> 0 | R49: =社会!AU$66*100 -> 
A50: 44 | B50: =社会得点!BJ47 -> 0 | C50: =社会得点!BK47 -> 0 | D50: =社会得点!BL47 -> 0 | I50: =IF(社会!$AV$9=社会!$BF$35,"○","") ->  | J50: =IF(社会!$AV$9=社会!$BF$36,"○","") ->  | K50: =IF(社会!$AV$9=社会!$BF$37,"○","") ->  | L50: =IF(社会!$AV$9=社会!$BF$38,"○","") ->  | M50: =IF(社会!$AV$9=社会!$BF$39,"○","") ->  | Q50: =社会得点!AS$60*100 -> 0 | R50: =社会!AV$66*100 -> 
A51: 45 | B51: =社会得点!BJ48 -> 0 | C51: =社会得点!BK48 -> 0 | D51: =社会得点!BL48 -> 0 | I51: =IF(社会!$AW$9=社会!$BF$35,"○","") ->  | J51: =IF(社会!$AW$9=社会!$BF$36,"○","") ->  | K51: =IF(社会!$AW$9=社会!$BF$37,"○","") ->  | L51: =IF(社会!$AW$9=社会!$BF$38,"○","") ->  | M51: =IF(社会!$AW$9=社会!$BF$39,"○","") ->  | Q51: =社会得点!AT$60*100 -> 0 | R51: =社会!AW$66*100 ->  | S51: =IF($R51="","",$R51-$Q51) -> 
A52: 46 | B52: =社会得点!BJ49 -> 0 | C52: =社会得点!BK49 -> 0 | D52: =社会得点!BL49 -> 0 | I52: =IF(社会!$AX$9=社会!$BF$35,"○","") ->  | J52: =IF(社会!$AX$9=社会!$BF$36,"○","") ->  | K52: =IF(社会!$AX$9=社会!$BF$37,"○","") ->  | L52: =IF(社会!$AX$9=社会!$BF$38,"○","") ->  | M52: =IF(社会!$AX$9=社会!$BF$39,"○","") ->  | Q52: =社会得点!AU$60*100 -> 0 | R52: =社会!AX$66*100 -> 
A53: 47 | B53: =社会得点!BJ50 -> 0 | C53: =社会得点!BK50 -> 0 | D53: =社会得点!BL50 -> 0 | I53: =IF(社会!$AY$9=社会!$BF$35,"○","") ->  | J53: =IF(社会!$AY$9=社会!$BF$36,"○","") ->  | K53: =IF(社会!$AY$9=社会!$BF$37,"○","") ->  | L53: =IF(社会!$AY$9=社会!$BF$38,"○","") ->  | M53: =IF(社会!$AY$9=社会!$BF$39,"○","") ->  | Q53: =社会得点!AV$60*100 -> 0 | R53: =社会!AY$66*100 -> 
A54: 48 | B54: =社会得点!BJ51 -> 0 | C54: =社会得点!BK51 -> 0 | D54: =社会得点!BL51 -> 0 | I54: =IF(社会!$AZ$9=社会!$BF$35,"○","") ->  | J54: =IF(社会!$AZ$9=社会!$BF$36,"○","") ->  | K54: =IF(社会!$AZ$9=社会!$BF$37,"○","") ->  | L54: =IF(社会!$AZ$9=社会!$BF$38,"○","") ->  | M54: =IF(社会!$AZ$9=社会!$BF$39,"○","") ->  | Q54: =社会得点!AW$60*100 -> 0 | R54: =社会!AZ$66*100 ->  | S54: =IF($R54="","",$R54-$Q54) -> 
A55: 49 | B55: =社会得点!BJ52 -> 0 | C55: =社会得点!BK52 -> 0 | D55: =社会得点!BL52 -> 0 | I55: =IF(社会!$BA$9=社会!$BF$35,"○","") ->  | J55: =IF(社会!$BA$9=社会!$BF$36,"○","") ->  | K55: =IF(社会!$BA$9=社会!$BF$37,"○","") ->  | L55: =IF(社会!$BA$9=社会!$BF$38,"○","") ->  | M55: =IF(社会!$BA$9=社会!$BF$39,"○","") ->  | Q55: =社会得点!AX$60*100 -> 0 | R55: =社会!BA$66*100 ->  | S55: =IF($R55="","",$R55-$Q55) -> 
A56: 50 | B56: =社会得点!BJ53 -> 0 | C56: =社会得点!BK53 -> 0 | D56: =社会得点!BL53 -> 0 | I56: =IF(社会!$BB$9=社会!$BF$35,"○","") ->  | J56: =IF(社会!$BB$9=社会!$BF$36,"○","") ->  | K56: =IF(社会!$BB$9=社会!$BF$37,"○","") ->  | L56: =IF(社会!$BB$9=社会!$BF$38,"○","") ->  | M56: =IF(社会!$BB$9=社会!$BF$39,"○","") ->  | Q56: =社会得点!AY$60*100 -> 0 | R56: =社会!BB$66*100 -> 
A57: 平均

Sheet ⑦社会の平均点⑧社会の得点別分布
A1: ⑦社会の平均点⑧社会の得点別分布
A5: ◆社会
B6: 平均点
B7: 富山県（ア） | C7: 自校(イ) | D7: 県との差（イーア）
A8: 社会 | B8: =社会!BJ23 -> 64.4 | C8: =社会!BG23 ->  | D8: =C8-B8 -> 
A12: ◆社会
A13: 得点分布 | B13: 富山県％（ア） | C13: 自校％(イ) | D13: 県との差(イーア)
A14: 0点 | B14: =社会!BJ20 -> 0 | C14: =社会!BH20*100 ->  | D14: =IF($C14="","",$C14-$B14) -> 
A15: １～９点 | B15: =社会!BJ19 -> 1 | C15: =社会!BH19*100 ->  | D15: =IF($C15="","",$C15-$B15) -> 
A16: １０～１９点 | B16: =社会!BJ18 -> 1.4 | C16: =社会!BH18*100 -> 
A17: ２０～２９点 | B17: =社会!BJ17 -> 4.2 | C17: =社会!BH17*100 -> 
A18: ３０～３９点 | B18: =社会!BJ16 -> 4.4 | C18: =社会!BH16*100 -> 
A19: ４０～４９点 | B19: =社会!BJ15 -> 11.4 | C19: =社会!BH15*100 -> 
A20: ５０～５９点 | B20: =社会!BJ14 -> 11.3 | C20: =社会!BH14*100 -> 
A21: ６０～６９点 | B21: =社会!BJ13 -> 21.5 | C21: =社会!BH13*100 -> 
A22: ７０～７９点 | B22: =社会!BJ12 -> 16.1 | C22: =社会!BH12*100 -> 
A23: ８０～８９点 | B23: =社会!BJ11 -> 20.5 | C23: =社会!BH11*100 -> 
A24: ９０～９９点 | B24: =社会!BJ10 -> 7.4 | C24: =社会!BH10*100 -> 
A25: 100点 | B25: =社会!BJ9 -> 0.7 | C25: =社会!BH9*100 -> 

Sheet 社会
A1: ６年社会（正誤） | I1: クラス名 | L1: =[1]国語!$L$1 -> 0 | W1: 受検者数 | AB1: =BG30 -> 0 | AH1: 配点合計 | AM1: =SUM(E10:BB10) -> 100 | AS1: 問題数 | AX1: =COUNT(E10:BB10) -> 25
A2: ※『男女』の欄には、男子「0」及び女子「1」を入力してください。
A3: ※正答を「1」、誤答を「2」、無答を「3」で入力してください。
C4: 問題№ | E4: 1 | F4: 1 | G4: 1 | H4: 1 | I4: 1 | J4: 2 | K4: 2 | L4: 2 | M4: 2 | N4: 3 | O4: 3 | P4: 3 | Q4: 3 | R4: 4 | S4: 4 | T4: 4 | U4: 4 | V4: 5 | W4: 5 | X4: 5 | Y4: 5 | Z4: 6 | AA4: 6 | AB4: 6 | AC4: 6
C5: 小問№ | E5: ⑴ | F5: ⑴ | G5: ⑴ | H5: ⑵ | I5: ⑶ | J5: ⑴ | K5: ⑵ | L5: ⑵ | M5: ⑶ | N5: ⑴ | O5: ⑴ | P5: ⑵ | Q5: ⑶ | R5: ⑴ | S5: ⑵ | T5: ⑶ | U5: ⑷ | V5: ⑴ | W5: ⑵ | X5: ⑶ | Y5: ⑷ | Z5: ⑴ | AA5: ⑵ | AB5: ⑶ | AC5: ⑷
E6: ① | F6: ② | G6: ③ | K6: ゆか | L6: しんいち | N6: あ | O6: い | Z6: ①②③ | AB6: あいうえ
C7: ◎…活用する力をみる問題 ★…経年比較問題 ※…複数学年共通問題 | E7: ※ | F7: ★ | G7: ★ | I7: ◎ | M7: ◎ | Q7: ◎ | U7: ◎ | X7: ◎ | AC7: ◎ | BJ7: 富山県の 分布率％
C8: 通し番号 | E8: 1 | F8: 2 | G8: 3 | H8: 4 | I8: 5 | J8: 6 | K8: 7 | L8: 8 | M8: 9 | N8: 10 | O8: 11 | P8: 12 | Q8: 13 | R8: 14 | S8: 15 | T8: 16 | U8: 17 | V8: 18 | W8: 19 | X8: 20 | Y8: 21 | Z8: 22 | AA8: 23 | AB8: 24 | AC8: 25 | AD8: 26 | AE8: 27 | AF8: 28 | AG8: 29 | AH8: 30 | AI8: 31 | AJ8: 32 | AK8: 33 | AL8: 34 | AM8: 35 | AN8: 36 | AO8: 37 | AP8: 38 | AQ8: 39 | AR8: 40 | AS8: 41 | AT8: 42 | AU8: 43 | AV8: 44 | AW8: 45 | AX8: 46 | AY8: 47 | AZ8: 48 | BA8: 49 | BB8: 50 | BF8: 得点分布 | BG8: 分布人数 | BH8: 分布率
A9: № | C9: 男 名 | D9: 観点 | E9: 知・技 | F9: 知・技 | G9: 知・技 | H9: 知・技 | I9: 思判表 | J9: 知・技 | K9: 知・技 | L9: 知・技 | M9: 思判表 | N9: 知・技 | O9: 知・技 | P9: 知・技 | Q9: 思判表 | R9: 知・技 | S9: 思判表 | T9: 知・技 | U9: 思判表 | V9: 知・技 | W9: 知・技 | X9: 思判表 | Y9: 知・技 | Z9: 知・技 | AA9: 知・技 | AB9: 知・技 | AC9: 思判表 | BC9: 計算結果 | BD9: 正答数 | BF9: 100 | BG9: =COUNTIF(BC11:BC55,100) -> 0 | BH9: =BG9/BG$21 ->  | BJ9: 0.7
C10: 女 前 | D10: 配点 | E10: 4 | F10: 4 | G10: 4 | H10: 4 | I10: 4 | J10: 4 | K10: 4 | L10: 4 | M10: 4 | N10: 4 | O10: 4 | P10: 4 | Q10: 4 | R10: 4 | S10: 4 | T10: 4 | U10: 4 | V10: 4 | W10: 4 | X10: 4 | Y10: 4 | Z10: 4 | AA10: 4 | AB10: 4 | AC10: 4 | BF10: 90～99 | BG10: =COUNTIF(BC11:BC55,99)+COUNTIF(BC11:BC55,98)+COUNTIF(BC11:BC55,97)+COUNTIF(BC11:BC55,96)+COUNTIF(BC11:BC55,95)+COUNTIF(BC11:BC55,94)+COUNTIF(BC11:BC55,93)+COUNTIF(BC11:BC55,92)+COUNTIF(BC11:BC55,91)+COUNTIF(BC11:BC55,90) -> 0 | BH10: =BG10/BG$21 ->  | BJ10: 7.4
A11: 1 | BC11: =[1]社会得点!AZ4 -> 0 | BD11: =COUNTIF(E11:BB11,1) -> 0 | BF11: 80～89 | BG11: =COUNTIF(BC11:BC55,89)+COUNTIF(BC11:BC55,88)+COUNTIF(BC11:BC55,87)+COUNTIF(BC11:BC55,86)+COUNTIF(BC11:BC55,85)+COUNTIF(BC11:BC55,84)+COUNTIF(BC11:BC55,83)+COUNTIF(BC11:BC55,82)+COUNTIF(BC11:BC55,81)+COUNTIF(BC11:BC55,80) -> 0 | BJ11: 20.5
A12: 2 | BC12: =[1]社会得点!AZ5 -> 0 | BD12: 0 | BF12: 70～79 | BG12: =COUNTIF(BC11:BC55,79)+COUNTIF(BC11:BC55,78)+COUNTIF(BC11:BC55,77)+COUNTIF(BC11:BC55,76)+COUNTIF(BC11:BC55,75)+COUNTIF(BC11:BC55,74)+COUNTIF(BC11:BC55,73)+COUNTIF(BC11:BC55,72)+COUNTIF(BC11:BC55,71)+COUNTIF(BC11:BC55,70) -> 0 | BJ12: 16.1
A13: 3 | BC13: =[1]社会得点!AZ6 -> 0 | BD13: 0 | BF13: 60～69 | BG13: =COUNTIF(BC11:BC55,69)+COUNTIF(BC11:BC55,68)+COUNTIF(BC11:BC55,67)+COUNTIF(BC11:BC55,66)+COUNTIF(BC11:BC55,65)+COUNTIF(BC11:BC55,64)+COUNTIF(BC11:BC55,63)+COUNTIF(BC11:BC55,62)+COUNTIF(BC11:BC55,61)+COUNTIF(BC11:BC55,60) -> 0 | BJ13: 21.5
A14: 4 | BC14: =[1]社会得点!AZ7 -> 0 | BD14: 0 | BF14: 50～59 | BG14: =COUNTIF(BC11:BC55,59)+COUNTIF(BC11:BC55,58)+COUNTIF(BC11:BC55,57)+COUNTIF(BC11:BC55,56)+COUNTIF(BC11:BC55,55)+COUNTIF(BC11:BC55,54)+COUNTIF(BC11:BC55,53)+COUNTIF(BC11:BC55,52)+COUNTIF(BC11:BC55,51)+COUNTIF(BC11:BC55,50) -> 0 | BJ14: 11.3
A15: 5 | BC15: =[1]社会得点!AZ8 -> 0 | BD15: 0 | BF15: 40～49 | BG15: =COUNTIF(BC11:BC55,49)+COUNTIF(BC11:BC55,48)+COUNTIF(BC11:BC55,47)+COUNTIF(BC11:BC55,46)+COUNTIF(BC11:BC55,45)+COUNTIF(BC11:BC55,44)+COUNTIF(BC11:BC55,43)+COUNTIF(BC11:BC55,42)+COUNTIF(BC11:BC55,41)+COUNTIF(BC11:BC55,40) -> 0 | BJ15: 11.4
A16: 6 | BC16: =[1]社会得点!AZ9 -> 0 | BD16: 0 | BF16: 30～39 | BG16: =COUNTIF(BC11:BC55,39)+COUNTIF(BC11:BC55,38)+COUNTIF(BC11:BC55,37)+COUNTIF(BC11:BC55,36)+COUNTIF(BC11:BC55,35)+COUNTIF(BC11:BC55,34)+COUNTIF(BC11:BC55,33)+COUNTIF(BC11:BC55,32)+COUNTIF(BC11:BC55,31)+COUNTIF(BC11:BC55,30) -> 0 | BJ16: 4.4
A17: 7 | BC17: =[1]社会得点!AZ10 -> 0 | BD17: 0 | BF17: 20～29 | BG17: =COUNTIF(BC11:BC55,29)+COUNTIF(BC11:BC55,28)+COUNTIF(BC11:BC55,27)+COUNTIF(BC11:BC55,26)+COUNTIF(BC11:BC55,25)+COUNTIF(BC11:BC55,24)+COUNTIF(BC11:BC55,23)+COUNTIF(BC11:BC55,22)+COUNTIF(BC11:BC55,21)+COUNTIF(BC11:BC55,20) -> 0 | BJ17: 4.2
A18: 8 | BC18: =[1]社会得点!AZ11 -> 0 | BD18: 0 | BF18: 10～19 | BG18: =COUNTIF(BC11:BC55,19)+COUNTIF(BC11:BC55,18)+COUNTIF(BC11:BC55,17)+COUNTIF(BC11:BC55,16)+COUNTIF(BC11:BC55,15)+COUNTIF(BC2:BC55,14)+COUNTIF(BC11:BC55,13)+COUNTIF(BC11:BC55,12)+COUNTIF(BC11:BC55,11)+COUNTIF(BC11:BC55,10) -> 0 | BJ18: 1.4
A19: 9 | BC19: =[1]社会得点!AZ12 -> 0 | BD19: 0 | BF19: 1 ～ 9 | BG19: =COUNTIF(BC11:BC55,9)+COUNTIF(BC11:BC55,8)+COUNTIF(BC11:BC55,7)+COUNTIF(BC11:BC55,6)+COUNTIF(BC11:BC55,5)+COUNTIF(BC11:BC55,4)+COUNTIF(BC11:BC55,3)+COUNTIF(BC11:BC55,2)+COUNTIF(BC11:BC55,1) -> 0 | BJ19: 1
A20: 10 | BC20: =[1]社会得点!AZ13 -> 0 | BD20: 0 | BF20: 0 | BG20: =BG30-SUM(BG9:BG19) -> 0 | BJ20: 0
A21: 11 | BC21: =[1]社会得点!AZ14 -> 0 | BD21: 0 | BF21: 集計人数計 | BG21: =SUM(BG9:BG20) -> 0
A22: 12 | BC22: =[1]社会得点!AZ15 -> 0 | BD22: 0 | BF22: 得点合計 | BG22: =SUM(BC11:BC55) -> 0 | BI22: 富山県の 平均点
A23: 13 | BC23: =[1]社会得点!AZ16 -> 0 | BD23: 0 | BF23: 平均点 | BG23: =BG22/BG21 ->  | BJ23: 64.4
A24: 14 | BC24: =[1]社会得点!AZ17 -> 0 | BD24: 0
A25: 15 | BC25: =[1]社会得点!AZ18 -> 0 | BD25: 0
A26: 16 | BC26: =[1]社会得点!AZ19 -> 0 | BD26: 0
A27: 17 | BC27: =[1]社会得点!AZ20 -> 0 | BD27: 0 | BF27: 男女別人数
A28: 18 | BC28: =[1]社会得点!AZ21 -> 0 | BD28: 0 | BF28: 男 子 | BG28: =COUNTIF(C11:C55,0) -> 0
A29: 19 | BC29: =[1]社会得点!AZ22 -> 0 | BD29: 0 | BF29: 女 子 | BG29: =COUNTIF(C11:C55,1) -> 0
A30: 20 | BC30: =[1]社会得点!AZ23 -> 0 | BD30: 0 | BF30: 計 | BG30: =SUM(BG28:BG29) -> 0
A31: 21 | BC31: =[1]社会得点!AZ24 -> 0 | BD31: 0
A32: 22 | BC32: =[1]社会得点!AZ25 -> 0 | BD32: 0
A33: 23 | BC33: =[1]社会得点!AZ26 -> 0 | BD33: 0
A34: 24 | BC34: =[1]社会得点!AZ27 -> 0 | BD34: 0 | BF34: 観点別記号
A35: 25 | BC35: =[1]社会得点!AZ28 -> 0 | BD35: 0 | BF35: 思判表 | BG35: 思考・判断・表現
A36: 26 | BC36: =[1]社会得点!AZ29 -> 0 | BD36: 0 | BF36: 知・技 | BG36: 知識・技能
A37: 27 | BC37: =[1]社会得点!AZ30 -> 0 | BD37: 0 | BF37: - | BG37: -
A38: 28 | BC38: =[1]社会得点!AZ31 -> 0 | BD38: 0 | BF38: - | BG38: -
A39: 29 | BC39: =[1]社会得点!AZ32 -> 0 | BD39: 0 | BF39: - | BG39: -
A40: 30 | BC40: =[1]社会得点!AZ33 -> 0 | BD40: 0
A41: 31 | BC41: =[1]社会得点!AZ34 -> 0 | BD41: 0 | BF41: 観点数 | BG41: =SUMPRODUCT((BF35:BF39<>"")*1)-COUNTIF(BF35:BF39,"-") -> 2
A42: 32 | BC42: =[1]社会得点!AZ35 -> 0 | BD42: 0
A43: 33 | BC43: =[1]社会得点!AZ36 -> 0 | BD43: 0
A44: 34 | BC44: =[1]社会得点!AZ37 -> 0 | BD44: 0
A45: 35 | BC45: =[1]社会得点!AZ38 -> 0 | BD45: 0
A46: 36 | BC46: =[1]社会得点!AZ39 -> 0 | BD46: 0
A47: 37 | BC47: =[1]社会得点!AZ40 -> 0 | BD47: 0
A48: 38 | BC48: =[1]社会得点!AZ41 -> 0 | BD48: 0
A49: 39 | BC49: =[1]社会得点!AZ42 -> 0 | BD49: 0
A50: 40 | BC50: =[1]社会得点!AZ43 -> 0 | BD50: 0
A51: 41 | BC51: =[1]社会得点!AZ44 -> 0 | BD51: 0
A52: 42 | BC52: =[1]社会得点!AZ45 -> 0 | BD52: 0
A53: 43 | BC53: =[1]社会得点!AZ46 -> 0 | BD53: 0
A54: 44 | BC54: =[1]社会得点!AZ47 -> 0 | BD54: 0
A55: 45 | BC55: =[1]社会得点!AZ48 -> 0 | BD55: 0
C57: 数 | E57: 1 | F57: 2 | G57: 3 | H57: 4 | I57: 5 | J57: 6 | K57: 7 | L57: 8 | M57: 9 | N57: 10 | O57: 11 | P57: 12 | Q57: 13 | R57: 14 | S57: 15 | T57: 16 | U57: 17 | V57: 18 | W57: 19 | X57: 20 | Y57: 21 | Z57: 22 | AA57: 23 | AB57: 24 | AC57: 25 | AD57: 26 | AE57: 27 | AF57: 28 | AG57: 29 | AH57: 30 | AI57: 31 | AJ57: 32 | AK57: 33 | AL57: 34 | AM57: 35 | AN57: 36 | AO57: 37 | AP57: 38 | AQ57: 39 | AR57: 40 | AS57: 41 | AT57: 42 | AU57: 43 | AV57: 44 | AW57: 45 | AX57: 46 | AY57: 47 | AZ57: 48 | BA57: 49 | BB57: 50
C58: 正答 | E58: =COUNTIF(E11:E55,1) -> 0 | F58: =COUNTIF(F11:F55,1) -> 0 | G58: 0 | H58: 0 | I58: 0 | J58: 0 | K58: 0 | L58: 0 | M58: 0 | N58: 0 | O58: 0 | P58: 0 | Q58: 0 | R58: 0 | S58: 0 | T58: 0 | U58: 0 | V58: 0 | W58: 0 | X58: 0 | Y58: 0 | Z58: 0 | AA58: 0 | AB58: 0 | AC58: 0 | AD58: 0 | AE58: 0 | AF58: 0 | AG58: 0 | AH58: 0 | AI58: 0 | AJ58: 0 | AK58: 0 | AL58: 0 | AM58: 0 | AN58: 0 | AO58: 0 | AP58: 0 | AQ58: 0 | AR58: 0 | AS58: 0 | AT58: 0 | AU58: 0 | AV58: 0 | AW58: 0 | AX58: 0 | AY58: 0 | AZ58: 0 | BA58: 0 | BB58: 0
C59: 誤答 | E59: =COUNTIF(E11:E55,2) -> 0 | F59: =COUNTIF(F11:F55,2) -> 0 | G59: 0 | H59: 0 | I59: 0 | J59: 0 | K59: 0 | L59: 0 | M59: 0 | N59: 0 | O59: 0 | P59: 0 | Q59: 0 | R59: 0 | S59: 0 | T59: 0 | U59: 0 | V59: 0 | W59: 0 | X59: 0 | Y59: 0 | Z59: 0 | AA59: 0 | AB59: 0 | AC59: 0 | AD59: 0 | AE59: 0 | AF59: 0 | AG59: 0 | AH59: 0 | AI59: 0 | AJ59: 0 | AK59: 0 | AL59: 0 | AM59: 0 | AN59: 0 | AO59: 0 | AP59: 0 | AQ59: 0 | AR59: 0 | AS59: 0 | AT59: 0 | AU59: 0 | AV59: 0 | AW59: 0 | AX59: 0 | AY59: 0 | AZ59: 0 | BA59: 0 | BB59: 0
C60: 無答 | E60: =COUNTIF(E11:E55,3) -> 0 | F60: =COUNTIF(F11:F55,3) -> 0 | G60: 0 | H60: 0 | I60: 0 | J60: 0 | K60: 0 | L60: 0 | M60: 0 | N60: 0 | O60: 0 | P60: 0 | Q60: 0 | R60: 0 | S60: 0 | T60: 0 | U60: 0 | V60: 0 | W60: 0 | X60: 0 | Y60: 0 | Z60: 0 | AA60: 0 | AB60: 0 | AC60: 0 | AD60: 0 | AE60: 0 | AF60: 0 | AG60: 0 | AH60: 0 | AI60: 0 | AJ60: 0 | AK60: 0 | AL60: 0 | AM60: 0 | AN60: 0 | AO60: 0 | AP60: 0 | AQ60: 0 | AR60: 0 | AS60: 0 | AT60: 0 | AU60: 0 | AV60: 0 | AW60: 0 | AX60: 0 | AY60: 0 | AZ60: 0 | BA60: 0 | BB60: 0
C61: 合計 | E61: =SUM(E58:E60) -> 0 | F61: =SUM(F58:F60) -> 0 | G61: 0 | H61: 0 | I61: 0 | J61: 0 | K61: 0 | L61: 0 | M61: 0 | N61: 0 | O61: 0 | P61: 0 | Q61: 0 | R61: 0 | S61: 0 | T61: 0 | U61: 0 | V61: 0 | W61: 0 | X61: 0 | Y61: 0 | Z61: 0 | AA61: 0 | AB61: 0 | AC61: 0 | AD61: 0 | AE61: 0 | AF61: 0 | AG61: 0 | AH61: 0 | AI61: 0 | AJ61: 0 | AK61: 0 | AL61: 0 | AM61: 0 | AN61: 0 | AO61: 0 | AP61: 0 | AQ61: 0 | AR61: 0 | AS61: 0 | AT61: 0 | AU61: 0 | AV61: 0 | AW61: 0 | AX61: 0 | AY61: 0 | AZ61: 0 | BA61: 0 | BB61: 0
C63: 割合 | E63: =E57 -> 1 | F63: 2 | G63: 3 | H63: 4 | I63: 5 | J63: 6 | K63: 7 | L63: 8 | M63: 9 | N63: 10 | O63: 11 | P63: 12 | Q63: 13 | R63: 14 | S63: 15 | T63: 16 | U63: 17 | V63: 18 | W63: 19 | X63: 20 | Y63: 21 | Z63: 22 | AA63: 23 | AB63: 24 | AC63: 25 | AD63: 26 | AE63: 27 | AF63: 28 | AG63: 29 | AH63: 30 | AI63: 31 | AJ63: 32 | AK63: 33 | AL63: 34 | AM63: 35 | AN63: 36 | AO63: 37 | AP63: 38 | AQ63: 39 | AR63: 40 | AS63: 41 | AT63: 42 | AU63: 43 | AV63: 44 | AW63: 45 | AX63: 46 | AY63: 47 | AZ63: 48 | BA63: 49 | BB63: 50
C64: =C58 -> 正答 | E64: =E58/E61 -> 
C65: =C59 -> 誤答 | E65: =E59/E61 -> 
C66: =C60 -> 無答 | E66: =E60/E61 -> 
C67: =C61 -> 合計 | E67: =SUM(E64:E66) -> 
C69: 観点別集計
F70: =BF35 -> 思判表 | K70: =BF36 -> 知・技 | P70: =BF37 -> - | U70: =BF38 -> - | Z70: =BF39 -> -
C71: 正答 | F71: =[1]社会得点!BB64 ->  | K71: =[1]社会得点!BB65 ->  | P71: =[1]社会得点!BB66 ->  | U71: =[1]社会得点!BB67 ->  | Z71: =[1]社会得点!BB68 -> 
C72: 誤答 | F72: =[1]社会得点!BB71 ->  | K72: =[1]社会得点!BB72 ->  | P72: =[1]社会得点!BB73 ->  | U72: =[1]社会得点!BB74 ->  | Z72: =[1]社会得点!BB75 -> 
C73: 無答 | F73: =[1]社会得点!BB78 ->  | K73: =[1]社会得点!BB79 ->  | P73: =[1]社会得点!BB80 ->  | U73: =[1]社会得点!BB81 ->  | Z73: =[1]社会得点!BB82 -> 
C74: 合計 | F74: =SUM(F71:H73) ->  | K74: =SUM(K71:M73) ->  | P74: =SUM(P71:R73) ->  | U74: =SUM(U71:W73) ->  | Z74: =SUM(Z71:AB73) -> 
C76: 富山県平均正答率％ | F76: =[1]社会得点!BB85 -> 0.5732857143 | K76: =[1]社会得点!BB86 -> 0.672 | P76: =[1]社会得点!BB87 ->  | U76: =[1]社会得点!BB88 ->  | Z76: =[1]社会得点!BB89 -> 

Sheet 社会得点
A1: 社会（得点） | G1: 受検者数 | L1: =[1]社会!$AB$1 -> 0
A2: № | B2: 1 | C2: 2 | D2: 3 | E2: 4 | F2: 5 | G2: 6 | H2: 7 | I2: 8 | J2: 9 | K2: 10 | L2: 11 | M2: 12 | N2: 13 | O2: 14 | P2: 15 | Q2: 16 | R2: 17 | S2: 18 | T2: 19 | U2: 20 | V2: 21 | W2: 22 | X2: 23 | Y2: 24 | Z2: 25 | AA2: 26 | AB2: 27 | AC2: 28 | AD2: 29 | AE2: 30 | AF2: 31 | AG2: 32 | AH2: 33 | AI2: 34 | AJ2: 35 | AK2: 36 | AL2: 37 | AM2: 38 | AN2: 39 | AO2: 40 | AP2: 41 | AQ2: 42 | AR2: 43 | AS2: 44 | AT2: 45 | AU2: 46 | AV2: 47 | AW2: 48 | AX2: 49 | AY2: 50 | AZ2: 得点 | BC2: 正答数別の児童数(人) | BF2: 富山県正答数％ | BI2: 通し 番号 | BJ2: 問題 番号 | BK2: 小問 番号 | BL2: 問題の領域
A3: 観点 | B3: =[1]社会!E9 -> 知・技 | C3: =[1]社会!F9 -> 知・技 | D3: =[1]社会!G9 -> 知・技 | E3: =[1]社会!H9 -> 知・技 | F3: =[1]社会!I9 -> 思判表 | G3: =[1]社会!J9 -> 知・技 | H3: =[1]社会!K9 -> 知・技 | I3: =[1]社会!L9 -> 知・技 | J3: =[1]社会!M9 -> 思判表 | K3: =[1]社会!N9 -> 知・技 | L3: =[1]社会!O9 -> 知・技 | M3: =[1]社会!P9 -> 知・技 | N3: =[1]社会!Q9 -> 思判表 | O3: =[1]社会!R9 -> 知・技 | P3: =[1]社会!S9 -> 思判表 | Q3: =[1]社会!T9 -> 知・技 | R3: =[1]社会!U9 -> 思判表 | S3: =[1]社会!V9 -> 知・技 | T3: =[1]社会!W9 -> 知・技 | U3: =[1]社会!X9 -> 思判表 | V3: =[1]社会!Y9 -> 知・技 | W3: =[1]社会!Z9 -> 知・技 | X3: =[1]社会!AA9 -> 知・技 | Y3: =[1]社会!AB9 -> 知・技 | Z3: =[1]社会!AC9 -> 思判表 | AA3: =[1]社会!AD9 -> 0 | AB3: =[1]社会!AE9 -> 0 | AC3: =[1]社会!AF9 -> 0 | AD3: =[1]社会!AG9 -> 0 | AE3: =[1]社会!AH9 -> 0 | AF3: =[1]社会!AI9 -> 0 | AG3: =[1]社会!AJ9 -> 0 | AH3: =[1]社会!AK9 -> 0 | AI3: =[1]社会!AL9 -> 0 | AJ3: =[1]社会!AM9 -> 0 | AK3: =[1]社会!AN9 -> 0 | AL3: =[1]社会!AO9 -> 0 | AM3: =[1]社会!AP9 -> 0 | AN3: =[1]社会!AQ9 -> 0 | AO3: =[1]社会!AR9 -> 0 | AP3: =[1]社会!AS9 -> 0 | AQ3: =[1]社会!AT9 -> 0 | AR3: =[1]社会!AU9 -> 0 | AS3: =[1]社会!AV9 -> 0 | AT3: =[1]社会!AW9 -> 0 | AU3: =[1]社会!AX9 -> 0 | AV3: =[1]社会!AY9 -> 0 | AW3: =[1]社会!AZ9 -> 0 | AX3: =[1]社会!BA9 -> 0 | AY3: =[1]社会!BB9 -> 0 | BC3: 0問 | BF3: 0問
A4: 1 | B4: =COUNTIF([1]社会!E11,1)*[1]社会!$E$10 -> 0 | C4: =COUNTIF([1]社会!F11,1)*[1]社会!$F$10 -> 0 | D4: =COUNTIF([1]社会!G11,1)*[1]社会!$G$10 -> 0 | E4: =COUNTIF([1]社会!H11,1)*[1]社会!$H$10 -> 0 | F4: =COUNTIF([1]社会!I11,1)*[1]社会!$I$10 -> 0 | G4: =COUNTIF([1]社会!J11,1)*[1]社会!$J$10 -> 0 | H4: =COUNTIF([1]社会!K11,1)*[1]社会!$K$10 -> 0 | I4: =COUNTIF([1]社会!L11,1)*[1]社会!$L$10 -> 0 | J4: =COUNTIF([1]社会!M11,1)*[1]社会!$M$10 -> 0 | K4: =COUNTIF([1]社会!N11,1)*[1]社会!$N$10 -> 0 | L4: =COUNTIF([1]社会!O11,1)*[1]社会!$O$10 -> 0 | M4: =COUNTIF([1]社会!P11,1)*[1]社会!$P$10 -> 0 | N4: =COUNTIF([1]社会!Q11,1)*[1]社会!$Q$10 -> 0 | O4: =COUNTIF([1]社会!R11,1)*[1]社会!$R$10 -> 0 | P4: =COUNTIF([1]社会!S11,1)*[1]社会!$S$10 -> 0 | Q4: =COUNTIF([1]社会!T11,1)*[1]社会!$T$10 -> 0 | R4: =COUNTIF([1]社会!U11,1)*[1]社会!$U$10 -> 0 | S4: =COUNTIF([1]社会!V11,1)*[1]社会!$V$10 -> 0 | T4: =COUNTIF([1]社会!W11,1)*[1]社会!$W$10 -> 0 | U4: =COUNTIF([1]社会!X11,1)*[1]社会!$X$10 -> 0 | V4: =COUNTIF([1]社会!Y11,1)*[1]社会!$Y$10 -> 0 | W4: =COUNTIF([1]社会!Z11,1)*[1]社会!$Z$10 -> 0 | X4: =COUNTIF([1]社会!AA11,1)*[1]社会!$AA$10 -> 0 | Y4: =COUNTIF([1]社会!AB11,1)*[1]社会!$AB$10 -> 0 | Z4: =COUNTIF([1]社会!AC11,1)*[1]社会!$AC$10 -> 0 | AA4: =COUNTIF([1]社会!AD11,1)*[1]社会!$AD$10 -> 0 | AB4: =COUNTIF([1]社会!AE11,1)*[1]社会!$AE$10 -> 0 | AC4: =COUNTIF([1]社会!AF11,1)*[1]社会!$AF$10 -> 0 | AD4: =COUNTIF([1]社会!AG11,1)*[1]社会!$AG$10 -> 0 | AE4: =COUNTIF([1]社会!AH11,1)*[1]社会!$AH$10 -> 0 | AF4: =COUNTIF([1]社会!AI11,1)*[1]社会!$AI$10 -> 0 | AG4: =COUNTIF([1]社会!AJ11,1)*[1]社会!$AJ$10 -> 0 | AH4: =COUNTIF([1]社会!AK11,1)*[1]社会!$AK$10 -> 0 | AI4: =COUNTIF([1]社会!AL11,1)*[1]社会!$AL$10 -> 0 | AJ4: =COUNTIF([1]社会!AM11,1)*[1]社会!$AM$10 -> 0 | AK4: =COUNTIF([1]社会!AN11,1)*[1]社会!$AN$10 -> 0 | AL4: =COUNTIF([1]社会!AO11,1)*[1]社会!$AO$10 -> 0 | AM4: =COUNTIF([1]社会!AP11,1)*[1]社会!$AP$10 -> 0 | AN4: =COUNTIF([1]社会!AQ11,1)*[1]社会!$AQ$10 -> 0 | AO4: =COUNTIF([1]社会!AR11,1)*[1]社会!$AR$10 -> 0 | AP4: =COUNTIF([1]社会!AS11,1)*[1]社会!$AS$10 -> 0 | AQ4: =COUNTIF([1]社会!AT11,1)*[1]社会!$AT$10 -> 0 | AR4: =COUNTIF([1]社会!AU11,1)*[1]社会!$AU$10 -> 0 | AS4: =COUNTIF([1]社会!AV11,1)*[1]社会!$AV$10 -> 0 | AT4: =COUNTIF([1]社会!AW11,1)*[1]社会!$AW$10 -> 0 | AU4: =COUNTIF([1]社会!AX11,1)*[1]社会!$AX$10 -> 0 | AV4: =COUNTIF([1]社会!AY11,1)*[1]社会!$AY$10 -> 0 | AW4: =COUNTIF([1]社会!AZ11,1)*[1]社会!$AZ$10 -> 0 | AX4: =COUNTIF([1]社会!BA11,1)*[1]社会!$BA$10 -> 0 | AY4: =COUNTIF([1]社会!BB11,1)*[1]社会!$BB$10 -> 0 | AZ4: =SUM(B4:AY4) -> 0 | BC4: 1問 | BD4: =[1]社会!E58 -> 0 | BF4: 1問 | BG4: 78.3 | BI4: 1 | BJ4: 1 | BK4: （1）① | BL4: わたしたちの国土
A5: 2 | B5: =COUNTIF([1]社会!E12,1)*[1]社会!$E$10 -> 0 | C5: =COUNTIF([1]社会!F12,1)*[1]社会!$F$10 -> 0 | D5: =COUNTIF([1]社会!G12,1)*[1]社会!$G$10 -> 0 | E5: =COUNTIF([1]社会!H12,1)*[1]社会!$H$10 -> 0 | F5: =COUNTIF([1]社会!I12,1)*[1]社会!$I$10 -> 0 | G5: =COUNTIF([1]社会!J12,1)*[1]社会!$J$10 -> 0 | H5: =COUNTIF([1]社会!K12,1)*[1]社会!$K$10 -> 0 | I5: =COUNTIF([1]社会!L12,1)*[1]社会!$L$10 -> 0 | J5: =COUNTIF([1]社会!M12,1)*[1]社会!$M$10 -> 0 | K5: =COUNTIF([1]社会!N12,1)*[1]社会!$N$10 -> 0 | L5: =COUNTIF([1]社会!O12,1)*[1]社会!$O$10 -> 0 | M5: =COUNTIF([1]社会!P12,1)*[1]社会!$P$10 -> 0 | N5: =COUNTIF([1]社会!Q12,1)*[1]社会!$Q$10 -> 0 | O5: =COUNTIF([1]社会!R12,1)*[1]社会!$R$10 -> 0 | P5: =COUNTIF([1]社会!S12,1)*[1]社会!$S$10 -> 0 | Q5: =COUNTIF([1]社会!T12,1)*[1]社会!$T$10 -> 0 | R5: =COUNTIF([1]社会!U12,1)*[1]社会!$U$10 -> 0 | S5: =COUNTIF([1]社会!V12,1)*[1]社会!$V$10 -> 0 | T5: =COUNTIF([1]社会!W12,1)*[1]社会!$W$10 -> 0 | U5: =COUNTIF([1]社会!X12,1)*[1]社会!$X$10 -> 0 | V5: =COUNTIF([1]社会!Y12,1)*[1]社会!$Y$10 -> 0 | W5: =COUNTIF([1]社会!Z12,1)*[1]社会!$Z$10 -> 0 | X5: =COUNTIF([1]社会!AA12,1)*[1]社会!$AA$10 -> 0 | Y5: =COUNTIF([1]社会!AB12,1)*[1]社会!$AB$10 -> 0 | Z5: =COUNTIF([1]社会!AC12,1)*[1]社会!$AC$10 -> 0 | AA5: =COUNTIF([1]社会!AD12,1)*[1]社会!$AD$10 -> 0 | AB5: =COUNTIF([1]社会!AE12,1)*[1]社会!$AE$10 -> 0 | AC5: =COUNTIF([1]社会!AF12,1)*[1]社会!$AF$10 -> 0 | AD5: =COUNTIF([1]社会!AG12,1)*[1]社会!$AG$10 -> 0 | AE5: =COUNTIF([1]社会!AH12,1)*[1]社会!$AH$10 -> 0 | AF5: =COUNTIF([1]社会!AI12,1)*[1]社会!$AI$10 -> 0 | AG5: =COUNTIF([1]社会!AJ12,1)*[1]社会!$AJ$10 -> 0 | AH5: =COUNTIF([1]社会!AK12,1)*[1]社会!$AK$10 -> 0 | AI5: =COUNTIF([1]社会!AL12,1)*[1]社会!$AL$10 -> 0 | AJ5: =COUNTIF([1]社会!AM12,1)*[1]社会!$AM$10 -> 0 | AK5: =COUNTIF([1]社会!AN12,1)*[1]社会!$AN$10 -> 0 | AL5: =COUNTIF([1]社会!AO12,1)*[1]社会!$AO$10 -> 0 | AM5: =COUNTIF([1]社会!AP12,1)*[1]社会!$AP$10 -> 0 | AN5: =COUNTIF([1]社会!AQ12,1)*[1]社会!$AQ$10 -> 0 | AO5: =COUNTIF([1]社会!AR12,1)*[1]社会!$AR$10 -> 0 | AP5: =COUNTIF([1]社会!AS12,1)*[1]社会!$AS$10 -> 0 | AQ5: =COUNTIF([1]社会!AT12,1)*[1]社会!$AT$10 -> 0 | AR5: =COUNTIF([1]社会!AU12,1)*[1]社会!$AU$10 -> 0 | AS5: =COUNTIF([1]社会!AV12,1)*[1]社会!$AV$10 -> 0 | AT5: =COUNTIF([1]社会!AW12,1)*[1]社会!$AW$10 -> 0 | AU5: =COUNTIF([1]社会!AX12,1)*[1]社会!$AX$10 -> 0 | AV5: =COUNTIF([1]社会!AY12,1)*[1]社会!$AY$10 -> 0 | AW5: =COUNTIF([1]社会!AZ12,1)*[1]社会!$AZ$10 -> 0 | AX5: =COUNTIF([1]社会!BA12,1)*[1]社会!$BA$10 -> 0 | AY5: =COUNTIF([1]社会!BB12,1)*[1]社会!$BB$10 -> 0 | AZ5: 0 | BC5: 2問 | BD5: =[1]社会!F58 -> 0 | BF5: 2問 | BG5: 52.3 | BI5: 2 | BJ5: 1 | BK5: （1）② | BL5: わたしたちの国土
